{"text_format":"1","workbook":"xlsx","n_sheets":7,"sheets":["Explanation","Stocks","ClosingPrices","Returns","SummaryMeasures","Model","EffecientFrontier"],"not_rendered":{"charts":1,"images":0,"macros":1,"external_links":0,"defined_names":98,"comments":0,"pivot_tables":0},"unopened":[],"bounds":{"document_bytes":16777216,"sheet_cells":100000,"rows_first":2000,"rows_last":500,"rows_between":2000,"halvings":0,"cell_chars":16384,"cell_head_chars":4096},"cells_cut":0,"cells_raw":0,"read":"whole","date_system":"1900"}

{"sheet":"Explanation","index":0,"n_rows":149,"n_cols":14,"rows_kept":149,"cut":false,"hidden":false,"merged":[[2,0,4,12]]}
[]
[]
["This program was created to calculate and graph the Efficient Frontier for portfolio of chosen stocks based the average required return of the minimum and maximum of the chosen stock returns."]
[]
[]
[null," "]
["To calculate and graph the Efficient Frontier, please press the Start button and follow the instructions."]
[]
[]
[]
[]
[]
[]
[]
[]
[]
[]
[]
[]
[]
[]
[]
[]
[]
[]
[]
[]
[]
[]
[]
[]
[]
[]
[]
[]
[]
[]
[]
[]
[]
[]
[]
[]
[]
[]
[]
[]
[]
[]
[]
[]
[]
[]
[]
[]
[]
[]
[]
[]
[]
[]
[]
[]
[]
[]
[]
[]
[]
[]
[]
[]
[]
[]
[]
[]
[]
[]
[]
[]
[]
[]
[]
[]
[]
[]
[]
[]
[]
[]
[null,null,null,null,null,null,null,null,null,null,null,null,"Get Historical Prices for: "]
[]
[]
[]
[null,null,null,null,null,null,null,null,null,null,null,null,null,"ADVERTISEMENT"]
[null,null,null,null,"Eg. Jan 1, 2003",null,"Daily",null,null,null,null,null,null,"Click Here"]
[null,null,null,null,null,null,"Weekly"]
[null,null,null,null,null,null,"Monthly"]
[null,null,null,null,null,null,"Dividends Only"]
[]
[]
[]
[]
[]
[]
[null,null,null,null,null,"Open",null,"High","Low","Close","Avg Vol","Adj Close*"]
[null,null,null,null,null,"$ 0.17 Dividend"]
[null,null,null,null,null,11.83,null,12.57,10.15,11.19,26938200,10.85]
[null,null,null,null,null,22.35,null,22.35,9,11.5,32290200,10.99]
[null,null,null,null,null,31.75,null,32,20.93,22.58,19154500,21.59]
[null,null,null,null,null,"$ 0.17 Dividend"]
[null,null,null,null,null,33.75,null,33.75,30.65,32.130000000000003,10185500,30.72]
[null,null,null,null,null,35.28,null,35.659999999999997,31.02,33.75,17425100,32.090000000000003]
[null,null,null,null,null,40.479999999999997,null,44.24,34.880000000000003,35.619999999999997,13591100,33.869999999999997]
[null,null,null,null,null,34.67,null,44.77,33.65,40.590000000000003,15743400,38.6]
[null,null,null,null,null,"$ 0.17 Dividend"]
[null,null,null,null,null,36.18,null,39.44,33.76,34.78,11309000,33.07]
[null,null,null,null,null,37.17,null,39.67,33.799999999999997,36.06,16044700,34.119999999999997]
[null,null,null,null,null,"$ 0.17 Dividend"]
[null,null,null,null,null,33.67,null,39.619999999999997,31.9,37.14,14882300,35.14]
[null,null,null,null,null,36.46,null,36.78,26.69,33.090000000000003,16898800,31.15]
[null,null,null,null,null,36.479999999999997,null,37.979999999999997,33.22,36.549999999999997,8942600,34.409999999999997]
[null,null,null,null,null,39.21,null,39.35,34.520000000000003,36.369999999999997,11610100,34.24]
[null,null,null,null,null,"$ 0.17 Dividend"]
[null,null,null,null,null,39.130000000000003,null,40.700000000000003,36.68,39.590000000000003,11858900,37.270000000000003]
[null,null,null,null,null,36.35,null,39.5,33.229999999999997,39.119999999999997,13003600,36.67]
[null,null,null,null,null,37.799999999999997,null,38.43,30.25,36.53,18641900,34.24]
[null,null,null,null,null,"$ 0.17 Dividend"]
[null,null,null,null,null,40.68,null,48.77,37.25,38.200000000000003,26595400,35.64]
[null,null,null,null,null,41.4,null,42.9,37.840000000000003,40.53,10925100,37.82]
[null,null,null,null,null,"$ 0.17 Dividend"]
[null,null,null,null,null,35.64,null,41.55,34.39,41.28,16588100,38.520000000000003]
[null,null,null,null,null,34.08,null,36.5,33.630000000000003,35.49,9870200,32.950000000000003]
[null,null,null,null,null,32.71,null,34.56,31.61,33.9,9447300,31.48]
[null,null,null,null,null,32.54,null,36.049999999999997,32.07,33.409999999999997,12043100,31.02]
[null,null,null,null,null,"$ 0.17 Dividend"]
[null,null,null,null,null,30.05,null,32.619999999999997,28.09,32.299999999999997,9861900,29.99]
[null,null,null,null,null,"$ 0.05 Dividend"]
[null,null,null,null,null,31.18,null,31.33,28.86,30.01,5528400,27.72]
[null,null,null,null,null,28.86,null,31.24,27.69,31.17,7437100,28.74]
[]
[]
[]
[]
[]
[]
[]
[]
[]
[null,null,"•","Splits"]

{"sheet":"Stocks","index":1,"n_rows":7436,"n_cols":2,"rows_kept":7436,"cut":false,"hidden":true,"merged":[]}
[null,"http://www.eoddata.com/Default.aspx"]
["From ","AMEX, NASDAQ, NYSE"]
["Symbol","Name"]
["A","Agilent Technologies Inc."]
["AA","Alcoa Inc."]
["AA.P","Alcoa Inc."]
["AACC","Asset Acceptance Capital Corp."]
["AAI","AirTran Holdings Inc."]
["AAME","Atlantic American Corporation"]
["AAN","AARON'S INC."]
["AAON","AAON Inc."]
["AAP","Advance Auto Parts Inc"]
["AAPL","Apple Inc."]
["AAR","AMR Corporation"]
["AATI","Advanced Analogic Technologies Inc."]
["AAU","Almaden Minerals Ltd."]
["AAV","ADVANTAGE ENERGY INCOME FUND"]
["AAWW","Atlas Air Worldwide Holdings"]
["AAXJ","iShares Trust"]
["AB","Alliance Capital Management Holding L.P."]
["ABA","Alabama Power Company"]
["ABAT","Advanced Battery Technologies Inc."]
["ABAX","ABAXIS Inc."]
["ABB","ABB Ltd"]
["ABBC","Abington Bancorp Inc."]
["ABC","AmerisourceBergen Corporation (Holding Co)"]
["ABCB","Ameris Bancorp"]
["ABCD","CAMBIUM LEARNING GROUP INC."]
["ABCO","Advisory Board Company (The)"]
["ABCW","Anchor BanCorp Wisconsin Inc."]
["ABD","Acco Brands Corporation"]
["ABFS","Arkansas Best Corporation"]
["ABG","Asbury Automotive Group Inc"]
["ABI","Applera Corp"]
["ABII","Abraxis Bioscience Inc."]
["ABIO","ARCA BIOPHARMA INC."]
["ABK","Ambac Financial Group Inc."]
["ABK-Z","Ambac Financial Group Inc."]
["ABL","American Biltrite Inc."]
["ABM","ABM Industries Incorporated"]
["ABMD","ABIOMED Inc."]
["ABR","Arbor Realty Trust"]
["ABT","Abbott Laboratories"]
["ABTL","Autobytel Inc."]
["ABV","Companhia de Bebidas das Americas - AmBev"]
["ABV.C","Companhia de Bebidas das Americas - AmBev"]
["ABVT","ABOVENET INC"]
["ABW-A","Associated Banc-Corp"]
["ABX","Barrick Gold Corporation"]
["ACAD","ACADIA Pharmaceuticals Inc."]
["ACAP","American Physicians Capital Inc."]
["ACAS","American Capital Ltd."]
["ACAT","Arctic Cat Inc."]
["ACC","American Campus Communities Inc"]
["ACCL","Accelrys Inc."]
["ACE","Ace"]
["ACET","Aceto Corporation"]
["ACF","AmeriCredit Corporation"]
["ACFC","Atlantic Coast Federal Corporation"]
["ACFN","Acorn Energy Inc."]
["ACG","Alliance Capital Management Holding L.P."]
["ACGL","Arch Capital Group Ltd."]
["ACGY","Acergy S.A."]
["ACH","Aluminum Corporation of China Ltd"]
["ACHN","Achillion Pharmaceuticals Inc."]
["ACI","Arch Coal Inc."]
["ACIW","ACI Worldwide Inc."]
["ACL","Alcon Inc"]
["ACLI","American Commercial Lines Inc"]
["ACLS","Axcelis Technologies Inc."]
["ACM","Aecom Technology Corporation"]
["ACMR","A.C. Moore Arts & Crafts Inc."]
["ACN","Accenture Ltd."]
["ACO","Amcol International Corporation"]
["ACOM","ANCESTRY.COM INC.- YAHOO! FINAN"]
["ACOR","Acorda Therapeutics Inc."]
["ACPW","Active Power Inc."]
["ACTG","Acacia Research Corporation"]
["ACTI","ActivIdentity Corporation"]
["ACTL","Actel Corporation"]
["ACTS","Actions Semiconductor Co. Ltd."]
["ACTU","Actuate Corporation"]
["ACU","Acme United Corporation."]
["ACUR","Acura Pharmaceuticals Inc."]
["ACV","Alberto-Culver Company"]
["ACWI","iShares MSCI ACWI Index Fund"]
["ACWX","iShares MSCI ACWI ex US Index Fund"]
["ACXM","Acxiom Corporation"]
["ACY","AeroCentury Corp."]
["ADAM","A.D.A.M. Inc."]
["ADAT","Authentidate Holding Corp."]
["ADBE","Adobe Systems Incorporated"]
["ADC","Agree Realty Corporation"]
["ADCT","ADC Telecommunications Inc."]
["ADEP","Adept Technology Inc."]
["ADES","ADA-ES Inc."]
["ADF","BANK OF AMERICA CORPORATION STR"]
["ADG","Allied Defense Group (The)"]
["ADGE","AMERICAN DG ENERGY"]
["ADGF","Adams Golf Inc."]
["ADI","Analog Devices Inc."]
["ADK","Adcare Health Systems Inc"]
["ADLR","Adolor Corporation"]
["ADM","Archer-Daniels-Midland Company"]
["ADM-A","Archer-Daniels-Midland Company"]
["ADP","AUTOMATIC DATA PROCS"]
["ADPI","American Dental Partners Inc."]
["ADPT","Adaptec Inc."]
["ADRA","BLDRS Asia 50 ADR Index Fund"]
["ADRD","BLDRS Developed Markets 100 ADR Index Fund"]
["ADRE","BLDRS Emerging Markets 50 ADR Index Fund"]
["ADRU","BLDRS Europe 100 ADR Index Fund"]
["ADS","Alliance Data Systems Corporation"]
["ADSK","Autodesk Inc."]
["ADTN","ADTRAN Inc."]
["ADUS","ADDUS HOMECARE CORPORATION- YAHO"]
["ADVS","Advent Software Inc."]
["ADX","Adams Express Company (The)"]
["ADY","AMERICAN DAIRY INC"]
["ADZ","DB AGRICUL SHORT ETN"]
["AE","Adams Resources & Energy Inc."]
["AEA","Advance America Cash Advance Centers Inc."]
["AEB","Aegon NV"]
["AEC","Associated Estates Realty Corporation"]
["AEC-B","Associated Estates Realty Corporation"]
["AED","Aegon NV"]
["AEE","Ameren Corporation"]
["AEF","Aegon NV"]
["AEG","Aegon NV"]
["AEH","Aegon NV"]
["AEHR","Aehr Test Systems"]
["AEIS","Advanced Energy Industries Inc."]
["AEL","American Equity Investment Life Holding Company"]
["AEM","Agnico-Eagle Mines"]
["AEN","Austral Pacific Energy Ltd."]
["AEO","American Eagle Outfitters Inc."]
["AEP","American Electric Power Company Inc."]
["AEP-A","American Electric Power Company Inc."]
["AEPI","AEP Industries Inc."]
["AER","Aercap Holdings N.V."]
["AERG","Applied Energetics Inc"]
["AES","Aes Trust"]
["AES-C","Aes Trust"]
["AET","Aetna Inc."]
["AETI","American Electric Technologies Inc."]
["AEV","Aegon NV"]
["AEY","ADDvantage Technologies Group Inc."]
["AEZ","American Oil & Gas Inc."]
["AEZS","AEterna Zentaris Inc."]
["AF","Astoria Financial Corporation"]
["AFAM","Almost Family Inc"]
["AFB","Alliance National Municipal Income Fund Inc"]
["AFC","Allied Capital Corporation"]
["AFCB","ATHENS BANCSHARES CORPORATION"]
["AFCE","AFC Enterprises Inc."]
["AFE","American Financial Group Inc."]
["AFF","American International Group Inc."]
["AFFM","Affirmative Insurance Holdings Inc."]
["AFFX","Affymetrix Inc."]
["AFFY","Affymax Inc."]
["AFG","American Financial Group Inc."]
["AFK","MV AFRICA ETF"]
["AFL","AFLAC Incorporated"]
["AFOP","Alliance Fiber Optic Products Inc."]
["AFSI","AmTrust Financial Services Inc."]
["AGA","DB AGRI DBL SHRT ETN"]
["AGAM","Acres Gaming"]
["AGC","Advent Claymore Convertible Securities and Income Fund"]
["AGCO","AGCO CP"]
["AGD","Alpine Global Dynamic Dividend Fund"]
["AGEN","Antigenics Inc."]
["AGF","DB AGRI LONG ETN"]
["AGG","Ishares Lehman Aggregate Bond Fund"]
["AGII","Argo Group International Holdings Ltd."]
["AGL","Angelica Corporation"]
["AGM","Federal Agricultural Mortgage Corporation"]
["AGM.A","Federal Agric Mtg Corp"]
["AGN","Allergan Inc."]
["AGNC","American Capital Agency Corp."]
["AGO","Assured Guaranty Ltd"]
["AGO-B","Assured Guaranty Ltd [B]"]
["AGO-E","Assured Guaranty Ltd [E]"]
["AGO-F","Assured Guaranty Ltd [F]"]
["AGP","AMERIGROUP Corporation"]
["AGQ","PROSHARES"]
["AGT","Apollo Gold Corporation"]
["AGU","Agrium Inc."]
["AGX","Argan Inc."]
["AGYS","Agilysys Inc."]
["AGZ","ISHARES"]
["AHC","A.H. Belo Corporation"]
["AHCI","Allied HealthCare International Inc."]
["AHD","Atlas Pipeline Holdings L.P."]
["AHGP","Alliance Holdings GP L.P."]
["AHII","Animal Health International Inc."]
["AHL","Aspen Insurance Holdings"]
["AHL.P","Aspen Insurance Holdings"]
["AHL-A","Aspen Insurance Holdings"]
["AHS","AMN Healthcare Services Inc"]
["AHT","Ashford Hospitality Trust Inc"]
["AHT-A","Ashford Hospitality Trust Inc"]
["AHT-D","Ashford Hospitality Trust Inc"]
["AHY","MS APPLE SPARQS"]
["AI","ARLINGTON ASSET INVT CORP"]
["AIA","American Insured Mortgage Investors"]
["AIB","Allied Irish Banks p.l.c."]
["AIG","American International Group Inc."]
["AIG-A","American International Group Inc."]
["AIM","Aerosonic Corporation"]
["AIMC","Altra Holdings Inc."]
["AIN","Albany International Corporation"]
["AINV","Apollo Investment Corporation"]
["AIP","American Israeli Paper Mills Ltd."]
["AIPC","AMER ITAL PASTA"]
["AIQ","Alliance Imaging Inc."]
["AIR","AAR Corp."]
["AIRM","Air Methods Corporation"]
["AIRT","Air T Inc."]
["AIRV","Airvana Inc."]
["AIS","Antares Pharma Inc."]
["AIT","Applied Industrial Technologies Inc."]
["AIV","Apartment Investment and Management Company"]
["AIV-G","Apartment Investment and Management Company"]
["AIV-T","Apartment Investment and Management Company"]
["AIV-U","Apartment Investment and Management Company"]
["AIV-V","Apartment Investment and Management Company"]
["AIV-Y","Apartment Investment and Management Company"]
["AIXG","Aixtron Aktiengesellschaft"]
["AIZ","Assurant Inc."]
["AJB","SAFETY FIRST TR SP50"]
["AJG","Arthur J. Gallagher & Co."]
["AKAM","Akamai Technologies Inc."]
["AKF","Ambac Financial Group Inc."]
["AKL","EKSPOTFINANS"]
["AKN","Safety First Trust"]
["AKNS","Akeena Solar Inc."]
["AKO.A","Embotelladora Andina S.A."]
["AKO.B","Embotelladora Andina S.A."]
["AKP","Alliance California Municipal Income Fund Inc"]
["AKR","Acadia Realty Trust"]
["AKRX","Akorn Inc."]
["AKS","AK Steel Holding Corporation"]
["AKT","Ambac Financial Group Inc."]
["ALAN","Alanco Technologies Inc."]
["ALB","Albemarle Corporation"]
["ALC","Assisted Living Concepts Inc. New"]
["ALCO","Alico Inc."]
["ALE","Allete Inc."]
["ALEX","ALEXANDER BALDWIN"]
["ALF","Alabama Power Company"]
["ALG","Alamo Group Inc."]
["ALGN","Align Technology Inc."]
["ALGT","Allegiant Travel Company"]
["ALJ","Alon USA Energy Inc."]
["ALK","Alaska Air Group Inc."]
["ALKS","Alkermes Inc."]
["ALL","Allstate Corporation (The)"]
["ALLB","Alliance Bancorp Inc. of Pennsylvania"]
["ALLT","Allot Communications Ltd."]
["ALM","Alabama Power Company"]
["ALN","AMERICAN LORAIN CORP"]
["ALNC","Alliance Financial Corporation"]
["ALNY","Alnylam Pharmaceuticals Inc."]
["ALOG","Analogic Corporation"]
["ALOT","Astro-Med Inc."]
["ALOY","Alloy Inc."]
["ALP-N","Alabama Power Company"]
["ALP-O","Alabama Power Company"]
["ALP-P","Alabama Power Company"]
["ALQ","Alabama Power Company"]
["ALRN","American Learning Corp New Yor"]
["ALSK","Alaska Communications Systems Group Inc."]
["ALT","Alteon Inc."]
["ALTH","Allos Therapeutics Inc."]
["ALTI","Altair Nanotechnologies Inc."]
["ALTR","Altera Corporation"]
["ALU","Alcatel"]
["ALV","Autoliv Inc."]
["ALVR","Alvarion Ltd."]
["ALV-Z","AUTOLIV INC"]
["ALX","Alexander's Inc."]
["ALXA","Alexza Pharmaceuticals Inc."]
["ALXN","Alexion Pharmaceuticals Inc."]
["ALY","Allis-Chalmers Corporation"]
["ALZ","Alabama Power Company"]
["AM","American Greetings Corporation"]
["AMAC","American Medical Alert Corp."]
["AMAG","AMAG Pharmaceuticals Inc."]
["AMAT","Applied Materials Inc."]
["AMB","AMB Property Corporation"]
["AMB-L","AMB Property Corporation"]
["AMB-M","AMB Property Corporation"]
["AMB-O","AMB Property Corporation"]
["AMB-P","AMB Property Corporation"]
["AMCC","Applied Micro Circuits Corporation"]
["AMCF","ANDATEE CHINA MARINE FUEL SERVI"]
["AMCN","AirMedia Group Inc"]
["AMCS","AMICAS Inc."]
["AMD","Advanced Micro Devices Inc."]
["AME","AMTEK Inc."]
["AMED","Amedisys Inc"]
["AMFI","Amcore Financial Inc."]
["AMG","Affiliated Managers Group Inc."]
["AMGN","Amgen Inc."]
["AMIC","American Independence Corp."]
["AMIE","Ambassadors International Inc."]
["AMIN","American International Industries Inc"]
["AMJ","JP MORGAN ALERIAN ET"]
["AMKR","Amkor Technology Inc."]
["AMLN","Amylin Pharmaceuticals Inc."]
["AMMD","American Medical Systems Holdings Inc."]
["AMN","Ameron International Corporation"]
["AMNB","American National Bankshares Inc."]
["AMOT","Allied Motion Technologies Inc."]
["AMOV","America Movil S.A.B. de C.V."]
["AMP","AMERIPRISE FINANCIAL SERVICES INC."]
["AMP-A","AMERIPRISE FINANCIAL"]
["AMPH","American Physicians Service Group Inc."]
["AMPL","Ampal-American Israel Corporation"]
["AMR","AMR Corporation"]
["AMRB","American River Bankshares"]
["AMRI","Albany Molecular Research Inc."]
["AMRN","Amarin Corporation PLC"]
["AMS","American Shared Hospital Services"]
["AMSC","American Superconductor Corporation"]
["AMSF","AMERISAFE Inc."]
["AMSG","Amsurg Corp."]
["AMSWA","American Software Inc."]
["AMT","American Tower Corporation"]
["AMTC","Ameritrans Capital Corporation"]
["AMTCP","Ameritrans Capital Corporation"]
["AMTD","TD Ameritrade Holding Corporation"]
["AMWD","American Woodmark Corporation"]
["AMX","America Movil S.A.B. de C.V."]
["AMZN","Amazon.com Inc."]
["AN","AutoNation Inc."]
["ANAD","ANADIGICS Inc."]
["ANAT","American National Insurance Company"]
["ANCI","AMERICAN CARESOURCE"]
["ANCX","Access National Corporation"]
["ANDE","Andersons Inc. (The)"]
["ANDS","Anadys Pharmaceuticals Inc."]
["ANEN","Anaren Inc."]
["ANF","Abercrombie & Fitch Company"]
["ANGN","Angeion Corporation"]
["ANGO","AngioDynamics Inc."]
["ANH","Anworth Mortgage Asset Corporation"]
["ANH-A","Anworth Mortgage Asset Corporation"]
["ANH-B","Anworth Mortgage Asset Corporation"]
["ANIK","Anika Therapeutics Inc."]
["ANLY","Analysts International Corporation"]
["ANN","AnnTaylor Stores Corporation"]
["ANNB","Annapolis Bancorp Inc."]
["ANO","Anooraq Resources Corporation"]
["ANPI","Angiotech Pharmaceuticals Inc."]
["ANR","Alpha Natural Resources inc."]
["ANSS","AYS Inc."]
["ANSW","Answers Corporation"]
["ANTH","ANTHERA PHARMACEUTICALS INC."]
["ANTP","PHAZAR CORP"]
["ANV","Allied Nevada Gold Corp"]
["ANW","Aegean Marine Petroleum Network Inc."]
["ANX","ADVENTRX Pharmaceuticals Inc."]
["AOA","ISHARES"]
["AO-A","Amerco"]
["AOB","American Oriental Bioengineering Inc."]
["AOD","Alpine Total Dynamic Dividend Fund"]
["AOI","Alliance One International Inc."]
["AOK","ISHARES"]
["AOL","America Online Inc"]
["AOM","ANORMED INC"]
["AON","AON CORP"]
["AONE","A123 SYSTEMS INC."]
["AOR","ISHARES"]
["AOS","Smith (a.o.) Corporation"]
["AP","Ampco-Pittsburgh Corporation"]
["APA","Apache Corporation"]
["APAC","APAC Customer Services Inc."]
["APAGF","APCO Argentina Inc."]
["APB","Asia Pacific Fund Inc. (The)"]
["APC","Anadarko Petroleum Corporation"]
["APCVZ","FK HOLDINGS CVR"]
["APD","Air Products and Chemicals Inc."]
["APEI","American Public Education Inc."]
["APF","Morgan Stanley Asia-pacific Fund Inc."]
["APFC","American Pacific Corporation"]
["APH","Amphenol Corporation"]
["API","Advanced Photonix Inc."]
["APKT","Acme Packet Inc."]
["APL","Atlas Pipeline Partners L.P."]
["APOG","Apogee Enterprises Inc."]
["APOL","Apollo Group Inc."]
["APP","American Apparel Inc"]
["APPA","A.P. Pharma Inc."]
["APPY","AspenBio Pharma Inc."]
["APSA","Alto Palermo S.A."]
["APSG","Applied Signal Technology Inc."]
["APT","Alpha Pro Tech Ltd."]
["APU","AmeriGas Partners L.P."]
["APWR","A-Power Energy Generation Systems Ltd."]
["APX","Blackrock APEX Municipal Fund Inc."]
["ARAY","Accuray Incorporated"]
["ARB","Arbitron Inc."]
["ARBA","Ariba Inc."]
["ARCC","Ares Capital Corporation"]
["ARCI","Appliance Recycling Centers of America Inc."]
["ARD","Arena Resources Inc"]
["ARE","Alexandria Real Estate Equities Inc."]
["ARE-C","Alexandria Real Estate Equities Inc."]
["AREX","Approach Resources Inc."]
["ARG","Airgas Inc."]
["ARGN","Amerigon Incorporated"]
["ARH-A","Arch Capital Group Ltd."]
["ARH-B","Arch Capital Group Ltd."]
["ARI","Arden Realty Inc."]
["ARIA","ARIAD Pharmaceuticals Inc."]
["ARII","American Railcar Industries Inc."]
["ARJ","Arch Chemicals Inc."]
["ARK","Senior High Income Portfolio Inc."]
["ARKR","Ark Restaurants Corp."]
["ARL","American Realty Investors Inc."]
["ARLP","Alliance Resource Partners L.P."]
["ARM","ArvinMeritor Inc."]
["ARMH","ARM Holdings plc"]
["ARNA","Arena Pharmaceuticals Inc."]
["ARO","Aeropostale Inc"]
["AROW","Arrow Financial Corporation"]
["ARP","American Reprographics Company"]
["ARQL","ArQule Inc."]
["ARRS","Arris Group Inc"]
["ARRY","Array BioPharma Inc."]
["ARSD","Arabian American Development Company"]
["ARST","Arc Sight Inc."]
["ART","ARTIO GLOBAL INVESTORS INC"]
["ARTC","ArthroCare Corporation"]
["ARTG","Art Technology Group Inc."]
["ARTNA","Artesian Resources Corporation"]
["ARTW","Art's-Way Manufacturing Co. Inc."]
["ARTX","Arotech Corporation"]
["ARUN","Aruba Networks Inc."]
["ARW","Arrow Electronics Inc."]
["ARWR","Arrowhead Research Corporation"]
["ARYX","ARYx Therapeutics Inc."]
["ASA","ASA"]
["ASB","Ascendia Brands Inc"]
["ASBC","Associated Banc-Corp"]
["ASCA","Ameristar Casinos Inc."]
["ASCMA","ASCENT MEDIA CORP"]
["ASEI","American Science and Engineering Inc."]
["ASF","Administaff Inc."]
["ASFI","Asta Funding Inc."]
["ASFN","Atlantic Southern Financial Group Inc."]
["ASG","Liberty All-star Growth Fund Inc."]
["ASGN","On Assignment Inc."]
["ASGR","America Service Group Inc."]
["ASH","Ashland Inc."]
["ASI","American Safety Insurance Holdings Ltd."]
["ASIA","AsiaInfo Holdings Inc."]
["ASMI","ASM International N.V."]
["ASML","ASML Holding N.V."]
["ASP","American Strategic Income Portfolio"]
["ASPS","ALTISOURCE PORTFOLIO SOLUTIONS"]
["ASR","Grupo Aeroportuario Del Sureste S.a. De C.v."]
["ASRV","AmeriServ Financial Inc."]
["ASRVP","AmeriServ Financial Inc."]
["ASTC","ASTROTECH CORPORATION"]
["ASTE","Astec Industries Inc."]
["ASTI","Ascent Solar Technologies Inc."]
["ASTIZ","Ascent Solar Technologies Inc."]
["ASTM","Aastrom Biosciences Inc."]
["ASUR","Forgent Networks Inc"]
["ASX","Advanced Semiconductor Engineering Inc."]
["ASYS","Amtech Systems Inc."]
["ATA","Safety First Trust"]
["ATAC","ATC Technology Corporation"]
["ATAI","ATA Inc."]
["ATAX","America First Tax Exempt Investors L.P."]
["ATBC","Atlantic BancGroup Inc"]
["ATE","Advantest Corporation (Kabushiki Kaisha Advantest) ADS"]
["ATEA","Astea International Inc."]
["ATEC","Alphatec Holdings Inc."]
["ATHN","athenahealth Inc."]
["ATHR","Atheros Communications Inc."]
["ATHX","Athersys Inc."]
["ATI","Allegheny Technologies Incorporated"]
["ATK","Alliant Techsystems Inc."]
["ATLO","Ames National Corporation"]
["ATLS","Atlas America Inc."]
["ATMI","ATMI Inc."]
["ATML","Atmel Corporation"]
["ATNI","Atlantic Tele-Network Inc."]
["ATO","Atmos Energy Corporation"]
["ATPG","ATP Oil & Gas Corporation"]
["ATR","AptarGroup Inc."]
["ATRC","AtriCure Inc."]
["ATRI","ATRION Corporation"]
["ATRM","Aetrium Incorporated"]
["ATRN","ATRINSIC INC"]
["ATRO","Astronics Corporation"]
["ATSC","AMERICAN TONERSERVE CORP"]
["ATSG","Air Transport Services Group Inc"]
["ATSI","ATS Medical Inc."]
["ATT","AT&T Inc."]
["ATU","Actuant Corporation"]
["ATV","Acorn International Inc."]
["ATVI","Activision Blizzard Inc"]
["ATW","Atwood Oceanics Inc."]
["ATX","CROSS A T CO"]
["AU","AngloGold Ashanti Ltd."]
["AUBN","Auburn National Bancorporation Inc."]
["AUDC","AudioCodes Ltd."]
["AUMN","Golden Minerals Co"]
["AUO","AU Optronics Corp"]
["AUTC","AUTOCHINA INTERNATIONAL LIMI"]
["AUTH","AuthenTec Inc."]
["AUXL","Auxilium Pharmaceuticals Inc."]
["AUY","YAMANA GOLD INC"]
["AV","Avaya Inc."]
["AVA","Avista Corporation"]
["AVAV","AeroVironment Inc."]
["AVB","AvalonBay Communities Inc."]
["AVCA","Advocat Inc."]
["AVD","American Vanguard Corporation"]
["AVEO","AVEO PHARMACEUTICALS INC."]
["AVF","American International Group Inc."]
["AVGO","Avantgo Inc"]
["AVID","Avid Technology Inc."]
["AVII","AVI BioPharma Inc."]
["AVK","Advent Claymore Convertible Securities and Income Fund"]
["AVNR","Avanir Pharmaceuticals"]
["AVNW","AVIAT NETWORKS INC"]
["AVP","Avon Products Inc."]
["AVT","Avnet Inc."]
["AVTR","Avatar Holdings Inc."]
["AVX","AVX Corporation"]
["AVY","Avery Dennison Corporation"]
["AVY-A","Avery Dennison Corporation"]
["AWC","Alumina Ltd"]
["AWF","Alliance World Dollar Government Fund II"]
["AWH","Allied World Assurance Company Holdings LTD."]
["AWI","Armstrong World Industries Inc"]
["AWK","American Water Works Company Inc."]
["AWP","Alpine Global Premier Properties Fund"]
["AWR","American States Water Company"]
["AWRE","Aware Inc."]
["AWX","Avalon Holdings Corporation"]
["AXAS","Abraxas Petroleum Corporation"]
["AXE","Anixter International Inc."]
["AXK","Accelr8 Technology Corporation"]
["AXL","American Axle & Manufacturing Holdings Inc."]
["AXP","American Express Company"]
["AXR","AMREP Corporation"]
["AXS","Axis Capital Holdings"]
["AXS-A","Axis Capital Holdings"]
["AXTI","AXT Inc"]
["AXU","Alexco Resource Corp"]
["AYE","Allegheny Energy Inc."]
["AYI","Acuity Brands Inc"]
["AYN","Alliance New York Municipal Income Fund Inc"]
["AYR","Aircastle"]
["AYT","BARCLAYS GEMS ASIA-8"]
["AZC","Augusta Resource Corporation"]
["AZK","Aurizon Mines Ltd."]
["AZN","Astrazeneca PLC"]
["AZO","AutoZone Inc."]
["AZPN","Aspen Technology Inc."]
["AZZ","AZZ Incorporated"]
["B","Barnes Group Inc."]
["BA","Boeing Company (The)"]
["BAA","BANRO CORPORATION"]
["BAA.W","BANRO CORPORATION"]
["BAB","POWERSHARES BUILD AM- YAHOO! FIN"]
["BABY","Natus Medical Incorporated"]
["BAC","Bank of America Corporation"]
["BAC.A","Bank Of America Corporation Bac"]
["BAC.B","Bank Of America Corporation Bac"]
["BAC-B","Bank of America Corporation"]
["BAC-C","Bank of America Corporation"]
["BAC-D","Bank of America Corporation"]
["BAC-E","Bank of America Corporation"]
["BAC-H","Bank of America Corporation"]
["BAC-I","Bank of America Corporation"]
["BAC-J","Bank of America Corporation"]
["BAC-L","Bank of America Corporation"]
["BAC-U","Bank of America Corporation"]
["BAC-V","Bank of America Corporation"]
["BAC-W","Bank of America Corporation"]
["BAC-X","Bank of America Corporation"]
["BAC-Y","Bank of America Corporation"]
["BAC-Z","Bank of America Corporation"]
["BAF","BLACKROCK FLORIDA IURED MUNICIPAL INCOME TRUST"]
["BAGL","Einstein Noah Restaurant Group Inc."]
["BAK","Copene-Petroquimica do Nordeste"]
["BAL","IPATH DJ-AIG COTTON"]
["BALT","BALTIC TRADING LIMITED"]
["BAM","Brookfield Asset Management Inc"]
["BAMM","Books-A-Million Inc."]
["BANF","BancFirst Corporation"]
["BANR","Banner Corporation"]
["BAP","Credicorp Ltd."]
["BARI","Bancorp Rhode Island Inc."]
["BAS","Basic Energy Services Inc."]
["BASI","Bioanalytical Systems Inc."]
["BAX","Baxter International Inc."]
["BAYN","Bay National Corporation (Maryland)"]
["BBBB","Blackboard Inc."]
["BBBY","Bed Bath & Beyond Inc."]
["BBD","Banco Bradesco Sa"]
["BBEP","BreitBurn Energy Partners L.P."]
["BBF","BlackRock Florida Municipal Income Trust"]
["BBG","Bill Barrett Corporation"]
["BBGI","Beasley Broadcast Group Inc."]
["BBH","Merrill Lynch Biotech HOLDRS"]
["BBI","Blockbuster Inc."]
["BBI.B","Blockbuster Inc."]
["BBK","Blackrock Municipal Bond Trust"]
["BBL","BHP Billiton plc"]
["BBND","BigBand Networks Inc."]
["BBNK","Bridge Capital Holdings"]
["BBOX","Black Box Corporation"]
["BBSI","Barrett Business Services Inc."]
["BBT","BB&T Corporation"]
["BBT-A","BB& T CAPITAL TRUST V"]
["BBT-B","BB& T CAPITAL TRST VI"]
["BBVA","BANCO BILBAO ARG SA"]
["BBW","Build-A-Bear Workshop Inc."]
["BBX","BankAtlantic Bancorp Inc."]
["BBXT","BankAtlantic Bancorp Inc."]
["BBY","Best Buy Co. Inc."]
["BC","Brunswick Corporation"]
["BCA","Corpbanca"]
["BCE","BCE Inc."]
["BCF","Blackrock Real Asset Equity Trust"]
["BCH","Banco De Chile"]
["BCO","Brink's Company (The)"]
["BCOM","012 Smile Communications Ltd"]
["BCON","Beacon Power Corporation"]
["BCPC","Balchem Corporation"]
["BCR","C.R. Bard Inc."]
["BCRX","BioCryst Pharmaceuticals Inc."]
["BCS","Barclays PLC"]
["BCS.P","Barclays PLC"]
["BCS-A","Barclays PLC"]
["BCSB","BCSB Bankcorp Inc."]
["BCS-C","Barclays PLC"]
["BCS-D","Barclays PLC"]
["BCSI","Blue Coat Systems Inc"]
["BCV","Bancroft Convertible Fund Inc."]
["BDC","Belden CDT Inc"]
["BDCO","Blue Dolphin Energy Company"]
["BDD","POWERSHARES DB BASE"]
["BDF","Rivus Bond Fund"]
["BDG","POWERSHARES DB BASE"]
["BDGE","Bridge Bancorp Inc."]
["BDH","Merrill Lynch Broadband HOLDRS"]
["BDJ","Blackrock Enhanced Dividend Achievers Trust"]
["BDL","Flanigan's Enterprises Inc."]
["BDMS","Birner Dental Management Services Inc."]
["BDN","Brandywine Realty Trust"]
["BDN-C","Brandywine Realty Trust"]
["BDN-D","Brandywine Realty Trust"]
["BDR","Blonder Tongue Laboratories Inc."]
["BDSI","BioDelivery Sciences International Inc."]
["BDT","Blackrock Strategic Dividend Achievers"]
["BDV","Blackrock Dividend Achievers Trust"]
["BDX","Becton Dickinson and Company"]
["BEAT","CardioNet Inc."]
["BEAV","BE Aerospace Inc."]
["BEBE","bebe stores inc."]
["BEC","Beckman Coulter Inc."]
["BECN","Beacon Roofing Supply Inc."]
["BEE","Strategic Hotels & Resorts Inc"]
["BEE-A","SRATEGIC HOTELS & RES  ORTS IN"]
["BEE-B","Strategic Hotels & Resorts I"]
["BEE-C","Strategic Hotels & Resorts I"]
["BEJ","CITIGROUP FDG INC"]
["BELFA","Bel Fuse Inc."]
["BELFB","Bel Fuse Inc."]
["BELM","Bell Microproducts Inc."]
["BEN","Franklin Resources Inc."]
["BEO","Enhanced S&P 500 Covered Call Fund Inc."]
["BERK","Berkshire Bancorp Inc."]
["BEST","Shiner International Inc."]
["BEXP","Brigham Exploration Company"]
["BEZ","Baldor Electric Company"]
["BF.A","Brown-Forman Corporation"]
["BF.B","Brown-Forman Corporation"]
["BFED","Beacon Federal Bancorp Inc."]
["BFIN","BankFinancial Corporation"]
["BFK","BlackRock Municipal Income Trust"]
["BFLY","Bluefly Inc."]
["BFNB","Beach First National Bancshares Inc"]
["BFO","Blackrock Florida Municipal 2020 Term Trust"]
["BFR","BBVA Banco Frances S.A."]
["BFS","Saul Centers Inc."]
["BFS-A","Saul Ctrs Inc"]
["BFSB","Brooklyn Federal Bancorp Inc."]
["BFS-B","SAUL CENTERS INC 9% SERIES B"]
["BFY","BlackRock New York Municipal Income Trust II"]
["BFZ","BlackRock California Municipal Income Trust"]
["BG","Bunge"]
["BGC","General Cable Corporation"]
["BGCP","BGC Partners Inc."]
["BGE-B","Baltimore Gas & Electric Company"]
["BGFV","Big 5 Sporting Goods Corporation"]
["BGG","Briggs & Stratton Corporation"]
["BGH","Buckeye GP Holdings LP"]
["BGP","Borders Group Inc."]
["BGR","Black Rock Global Energy and Resources Trust"]
["BGS","B&G Foods Holdings Corp."]
["BGT","Blackrock Global"]
["BGU","LARGE CAP BULL 3X"]
["BGY","BLACKROCK INTERNATIONAL LTD."]
["BGZ","LARGE CAP BEAR 3X"]
["BHB","Bar Harbor Bankshares Inc."]
["BHD","Blackrock Strategic Bond Trust"]
["BHE","Benchmark Electronics Inc."]
["BHH","Merrill Lynch B2B Internet HOLDRS"]
["BHI","Baker Hughes Incorporated"]
["BHK","Blackrock Core Bond Trust"]
["BHL","Blackrock Defined Opportunity Credit Trust"]
["BHLB","Berkshire Hills Bancorp Inc."]
["BHP","BHP Billiton"]
["BHS","Brookfield Homes Corp"]
["BHV","BlackRock Virginia Municipal Bond Trust"]
["BHY","Blackrock High Yield Trust (The)"]
["BID","Sotheby's Holdings Inc."]
["BIDU","Baidu.com Inc."]
["BIDZ","Bidz.com Inc."]
["BIE","Blackrock Florida Municipal Bond Trust"]
["BIF","Uslife Income Fund Inc."]
["BIG","Big Lots Inc."]
["BIIB","Biogen Idec Inc"]
["BIK","SPDR Index Fund"]
["BIL","SPDR Series Trust"]
["BIN","BFI CDA LTD"]
["BIO","BIO RAD LABS CL A"]
["BIO.B","BIO RAD LABS CL B"]
["BIOC","BIOCLINICA INC"]
["BIOD","Biodel Inc."]
["BIOF","BioFuel Energy Corp."]
["BIOS","BioScrip Inc."]
["BIP","Brookfield Infrastructure Partners LP"]
["BIR-A","Berkshire Income Realty Inc."]
["BITS","Bitstream Inc."]
["BIV","Vanguard Bond Index Funds"]
["BJ","BJ's Wholesale Club Inc."]
["BJGP","BMP Sunstone Corporation"]
["BJI","MORGAN STANLEY"]
["BJK","Market Vectors ETF Trust"]
["BJRI","BJ's Restaurants Inc."]
["BJS","BJ Services Company"]
["BJZ","Blackrock California Municipal 2018 Term Trust"]
["BK","Bank of New York Mellon Corporation (The)"]
["BKBK","Britton & Koontz Capital Corporation"]
["BKC","Burger King Holdings Inc."]
["BKCC","BlackRock Kelso Capital Corporation"]
["BKD","Brookdale Senior Living Inc."]
["BKE","Buckle Inc. (The)"]
["BK-E","Bank of New York Mellon Corporation (The)"]
["BKF","MSCI BRIC INDEX FUND"]
["BK-F","Bank of New York Mellon Corporation (The)"]
["BKH","Black Hills Corporation"]
["BKI","Buckeye Technologies Inc."]
["BKJ","Bancorp of New Jersey Inc"]
["BKK","Blackrock Municipal 2020 Term Trust"]
["BKMU","Bank Mutual Corporation"]
["BKN","BlackRock Investment Quality Municipal Trust Inc. (The)"]
["BKR","Baker (Michael) Corporation"]
["BKRS","Bakers Footwear Group Inc."]
["BKS","Barnes & Noble Inc."]
["BKSC","Bank of South Carolina Corp."]
["BKT","BlackRock Income Trust Inc. (The)"]
["BKYF","BANK OF KENTUCKY FINANCIAL CORP"]
["BLC","Belo Corporation"]
["BLD","Baldwin Technology Company Inc."]
["BLDP","Ballard Power Systems Inc."]
["BLDR","Builders FirstSource Inc."]
["BLE","BlackRock Municipal Income Trust II"]
["BLH","Blackrock New York Municipal 2018 Term Trust"]
["BLIN","Bridgeline Software Inc."]
["BLJ","Blackrock New Jersey Municipal Bond Trust"]
["BLK","BlackRock Inc."]
["BLKB","Blackbaud Inc."]
["BLL","Ball Corporation"]
["BLN","CITIGROUP FUNDING"]
["BLT","Blount International Inc."]
["BLTI","BioLase Technology Inc."]
["BLU","Blue Chip Value Fund Inc."]
["BLUD","Immucor Inc."]
["BLV","Vanguard Bond Index Funds"]
["BLW","Citigroup Inc."]
["BLX","Banco Latinoamericano de Exportaciones S.A."]
["BMA","Banco Macro S.A."]
["BMC","B M C SOFTWARE"]
["BME","Blackrock Health Sciences Trust"]
["BMI","Badger Meter Inc."]
["BMJ","Birks & Mayors Inc."]
["BML-G","BANK AMERICA DEP G"]
["BML-H","BANK AMERICA DEP H"]
["BML-I","BANK AMERICA DEP I"]
["BML-J","BANK AMERICA DEP J"]
["BML-L","BANK AMERICA DEP L"]
["BML-N","BANK AMERICA DEP N"]
["BML-O","BANK AMERICA DEP O"]
["BML-Q","BANK AMERICA DEP Q"]
["BMO","Bank Of Montreal"]
["BMR","Biomed Realty Trust"]
["BMR-A","Biomed Realty Trust"]
["BMRC","Bank of Marin Bancorp"]
["BMRN","BioMarin Pharmaceutical Inc."]
["BMS","Bemis Company Inc."]
["BMT","BlackRock Insured Municipal Term Trust Inc. (The)"]
["BMTC","Bryn Mawr Bank Corporation"]
["BMTI","BioMimetic Therapeutics Inc."]
["BMY","Bristol-Myers Squibb Company"]
["BNA","BlackRock Income Opportunity Trust Inc. (The)"]
["BNCL","Beneficial Mutual Bancorp Inc."]
["BND","Vanguard Bond Index Funds"]
["BNE","Bowne & Co. Inc."]
["BNHN","Benihana Inc."]
["BNHNA","Benihana Inc."]
["BNJ","BlackRock New Jersey Municipal Income Trust"]
["BNS","Bank of Nova Scotia (The)"]
["BNSO","Bonso Electronics International Inc."]
["BNVI","Bionovo Inc."]
["BNX","Banks.com Inc"]
["BNY","BlackRock New York Municipal Income Trust"]
["BNZ","WISDOMTREE DREYFUS"]
["BOBE","Bob Evans Farms Inc."]
["BOCH","Bank of Commerce Holdings (CA)"]
["BOE","Blackrock Global"]
["BOFI","BofI Holding Inc."]
["BOFL","Bank of Florida Corporation"]
["BOH","Bank of Hawaii Corporation"]
["BOKF","BOK Financial Corporation"]
["BOLT","Bolt Technology Corporation"]
["BOM","POWERSHARES DB BASE"]
["BON","ELEMENTS DB BRIC CURRENCIES ET"]
["BONT","Bon-Ton Stores Inc. (The)"]
["BOOM","Dynamic Materials Corporation"]
["BOOT","LaCrosse Footwear Inc."]
["BOVA","Bank Of Virginia"]
["BP","BP p.l.c."]
["BPAX","Biosante Pharmaceuticals Inc."]
["BPFH","Boston Private Financial Holdings Inc."]
["BPHX","BluePhoenix Solutions Ltd."]
["BPI","BRIDGEPOINT EDUCATIO"]
["BPK","Blackrock Municipal 2018 Term Trust"]
["BPL","Buckeye Partners L.P."]
["BPO","Brookfield Properties Corporation"]
["BPOP","Popular Inc."]
["BPOPM","Popular Inc."]
["BPOPN","Popular Inc."]
["BPP","Blackrock Preferred Oopportunity Trust"]
["BPS","BlackRock Pennsylvania Strategic Municipal Trust (The)"]
["BPSG","Broadpoint Securities Group Inc."]
["BPT","BP Prudhoe Bay Royalty Trust"]
["BPZ","BPZ RESOURCES INC"]
["BQH","Blackrock New York Municipal Bond Trust"]
["BQI","Oilsands Quest Inc"]
["BQI.A","OILSANDS QUEST INC"]
["BQR","BlackRock Ecosolutions Investment Trust"]
["BQY","S&P Quality Rankings Glbl Equ Mngd Tr"]
["BR","Broadridge Financial Solutions LLC"]
["BRC","Brady Corporation"]
["BRCD","Brocade Communications Systems Inc."]
["BRCM","Broadcom Corporation"]
["BRE","BRE Properties Inc."]
["BRE-C","BRE Properties Inc."]
["BRE-D","BRE Properties Inc."]
["BRF","MARKET VECTORS BRAZIL SMALL-CAP"]
["BRFS","BRF BRASIL FOODS SA"]
["BRID","Bridgford Foods Corporation"]
["BRIL","DIREXION DAILY BRIC BULL 2X"]
["BRK.A","Berkshire Hathaway Inc."]
["BRK.B","Berkshire Hathaway Inc."]
["BRKL","Brookline Bancorp Inc."]
["BRKR","Bruker Corporation"]
["BRKS","Brooks Automation Inc."]
["BRLI","Bio-Reference Laboratories Inc."]
["BRN","Barnwell Industries Inc."]
["BRNC","Bronco Drilling Company Inc."]
["BRO","Brown & Brown Inc."]
["BRS","Bristow Group Inc"]
["BRT","BRT Realty Trust"]
["BRXX","EMERGING GLOBAL SHARES INDXX BR"]
["BRY","Berry Petroleum Company"]
["BSBR","BANCO SANTANDER BRASIL SA"]
["BSC","ELEMENTS BG SM CP ET"]
["BSD","BlackRock Strategic Municipal Trust Inc. (The)"]
["BSDM","BSD Medical Corporation"]
["BSE","Blackrock New York Insured Municipal Income Trust"]
["BSET","Bassett Furniture Industries Incorporated"]
["BSI","Blue Square - Israel Ltd."]
["BSMD","BioSphere Medical Inc."]
["BSP","American Strategic Income Portfolio II"]
["BSQ","MARKET LINKED STEP U"]
["BSQR","BSQUARE Corporation"]
["BSRR","Sierra Bancorp"]
["BSTC","BioSpecifics Technologies Corp"]
["BSV","Vanguard Bond Index Funds"]
["BSX","Boston Scientific Corporation"]
["BSY","British Sky Broadcasting Group plc"]
["BT","BT Group plc"]
["BTA","BlackRock Long-Term Municipal Advantage Trust"]
["BTC","Community Bankers Trust Corporation."]
["BTC.W","Community Bankers Trust Corporation."]
["BTE","Baytex Energy Trust"]
["BTF","Boulder Total Return Fund Inc."]
["BTFG","BancTrust Financial Group Inc."]
["BTH","Blyth Inc."]
["BTI","British American Tobacco Industries p.l.c."]
["BTI.W","British American Tobacco Plc [W]"]
["BTIM","BIOTIME INC"]
["BTM","Brasil Telecom Participacoes S.A."]
["BTM.C","BRASIL TELECOM NEW- YAHOO! FINAN"]
["BTN","Ballantyne of Omaha Inc."]
["BTO","John Hancock Bank And Thrift Opportunity Fund"]
["BTQ","MORGAN STANLEY"]
["BTU","Peabody Energy Corporation"]
["BTUI","BTU International Inc."]
["BTZ","Blackrock Preferred"]
["BUCY","Bucyrus International Inc."]
["BUD","Anheuser-Busch Companies Inc."]
["BUSE","First Busey Corporation"]
["BUW","CITIGROUP INC"]
["BVF","Biovail Corporation"]
["BVN","Compania Mina Buenaventura S.A."]
["BVSN","BroadVision Inc."]
["BVT","ELEMENTS BG TLT ETN"]
["BVX","Bovie Medical Corporation"]
["BW","Brush Engineered Materials Inc."]
["BWA","BorgWarner Inc."]
["BWEN","BROADWIND ENERGY INC"]
["BWF","WELLS FARGO CAPITAL XII"]
["BWINB","Baldwin & Lyons Inc."]
["BWLD","Buffalo Wild Wings Inc."]
["BWN","MORGAN STANLEY"]
["BWP","Boardwalk Pipeline Partners"]
["BWS","Brown Shoe Company Inc."]
["BWV","Barclays Bank PLC"]
["BWX","SPDR Series Trust"]
["BWY","Bway Holding Company"]
["BWZ","SPDR BARCLAY TSY BD"]
["BX","THE BLACKSTONE GROUP LP"]
["BXC","Bluelinx Holdings Inc."]
["BXG","Bluegreen Corporation"]
["BXP","Boston Properties Inc."]
["BXS","BancorpSouth Inc."]
["BXS-A","BancorpSouth Inc."]
["BXU","Merrill Lynch & Co. Inc."]
["BYD","Boyd Gaming Corporation"]
["BYG","MERRILL LYNCH"]
["BYI","Bally Technologies Inc."]
["BYM","Blackrock Insured Municipal Income Trust"]
["BZ","Boise Inc"]
["BZ.W","Boise Inc"]
["BZC","Breeze-Eastern Corporation"]
["BZF","WISDOMTREE DREYFUS"]
["BZH","Beazer Homes USA Inc."]
["BZM","BlackRock Maryland Municipal Bond Trust"]
["BZMD","BEAZER HOMES USA INC"]
["BZQ","PROSHARES"]
["C","Citigroup Inc."]
["CA","CA Inc."]
["CAAS","China Automotive Systems Inc."]
["CAB","Cabela's Inc"]
["CABL","China Cablecom Holdings Ltd."]
["CAC","Camden National Corporation"]
["CACB","Cascade Bancorp"]
["CACC","Credit Acceptance Corporation"]
["CACH","Cache Inc."]
["CACI","C A C I INTL CL A"]
["CADC","CHINA ADVANCED CONST"]
["CADE","Cadence Financial Corporation"]
["CADX","Cadence Pharmaceuticals Inc."]
["CAE","Cascade Corporation"]
["CAEI","China Architectural Engineering Inc"]
["CAF","Morgan Stanley China A Share Fund Inc."]
["CAFI","Camco Financial Corporation"]
["CAG","ConAgra Foods Inc."]
["CAGC","CHINA AGRITECH INC"]
["CAH","Cardinal Health Inc."]
["CAJ","Canon Inc."]
["CAKE","Cheesecake Factory Incorporated (The)"]
["CAL","Continental Airlines Inc."]
["CALC","California Coastal Communities Inc"]
["CALD","Callidus Software Inc."]
["CALI","CHINA AUTO LOGISTICS"]
["CALM","Cal-Maine Foods Inc."]
["CALP","Caliper Life Sciences Inc"]
["CALX","CALIX INC"]
["CAM","Cameron International Corporation"]
["CAMP","CalAmp Corp."]
["CAMT","Camtek Ltd."]
["CAP","Cai International Inc."]
["CAPS","ORTHOLOGIC CP"]
["CAR","Avis Budget Group Inc."]
["CAS","Castle (A.M.) & Co."]
["CASA","Mexican Restaurants Inc."]
["CASB","Cascade Financial Corp."]
["CASC","CA INC"]
["CASH","Meta Financial Group Inc."]
["CASM","CAS Medical Systems Inc."]
["CASS","Cass Information Systems Inc"]
["CAST","ChinaCast Education Corporation"]
["CASY","Casey's General Stores Inc."]
["CAT","Caterpillar Inc."]
["CATM","Cardtronics Inc."]
["CATO","CATO CORP CL A"]
["CATY","Cathay General Bancorp"]
["CAVM","Cavium Networks Inc."]
["CAVO","CAVICO CORP"]
["CAW","CCA Industries Inc."]
["CB","Chubb Corporation (The)"]
["CBAK","China BAK Battery Inc."]
["CBAN","Colony Bankcorp Inc."]
["CBB","Cincinnati Bell Inc"]
["CBB-B","Cincinnati Bell Inc"]
["CBC","Capitol Bancorp Ltd."]
["CBC-A","Capitol Bancorp Ltd."]
["CBC-B","Capitol Bancorp Ltd."]
["CBD","Companhia Brasileira de Distribuicao"]
["CBE","Cooper Industries Ltd."]
["CBEH","CHINA BIO ENERGY HLD"]
["CBEY","Cbeyond Inc."]
["CBG","CB Richard Ellis Group Inc"]
["CBI","Chicago Bridge & Iron Company N.V."]
["CBIN","Community Bank of Indiana Inc."]
["CBK","Christopher & Banks Corporation"]
["CBKN","Capital Bank Corporation"]
["CBL","CBL & Associates Properties Inc."]
["CBL-C","CBL & Associates Properties Inc."]
["CBL-D","CBL & Associates Properties Inc."]
["CBLI","Cleveland BioLabs Inc."]
["CBM","Cambrex Corporation"]
["CBMX","CombiMatrix Corporation"]
["CBNJ","Cape Bancorp Inc."]
["CBNK","Chicopee Bancorp Inc."]
["CBOU","Caribou Coffee Company Inc."]
["CBPO","CHINA BIOLOGIC PRODU"]
["CBR","Ciber Inc."]
["CBRL","CBRL Group Inc."]
["CBRX","Columbia Laboratories Inc."]
["CBS","CBS Corporation"]
["CBS.A","CBS Corporation"]
["CBSH","Commerce Bancshares Inc."]
["CBST","Cubist Pharmaceuticals Inc."]
["CBT","Cabot Corporation"]
["CBU","Community Bank System Inc."]
["CBZ","CBIZ Inc."]
["CCA","MFS California Insured Municipal Trust"]
["CCBD","Community Central Bank Corp."]
["CCBG","Capital City Bank Group"]
["CCBP","Comm Bancorp Inc."]
["CCC","Calgon Carbon Corporation"]
["CCE","Coca-Cola Enterprises Inc."]
["CCF","Chase Corporation"]
["CCH","COCA COLA HELLENIC BOTTLING CO"]
["CCI","Crown Castle International Corporation"]
["CCIX","Coleman Cable Inc."]
["CCJ","Cameco Corporation"]
["CCK","Crown Cork & Seal Company Inc."]
["CCL","Carnival Corporation"]
["CCM","Carlton Comm P L C"]
["CCME","CHINA MEDIAEXPRESS"]
["CCMP","Cabot Microelectronics Corporation"]
["CCNE","CNB Financial Corporation"]
["CCO","Clear Channel Outdoor Holdings Inc."]
["CCOI","Cogent Communications Group Inc."]
["CCPCN","Capital Crossing Preferred Corporation"]
["CCRN","Cross Country Healthcare Inc."]
["CCRT","CompuCredit Corporation"]
["CCS","Comcast Corporation"]
["CCT","Comcast Corporation"]
["CCU","Clear Channel Communications Inc."]
["CCUR","Concurrent Computer Corporation"]
["CCW","Comcast Corporation"]
["CDCS","CDC SOFTWARE CORPORATION"]
["CDE","Coeur d'Alene Mines Corporation"]
["CDI","CDI Corporation"]
["CDII","CHINA DIRECT INC."]
["CDNS","Cadence Design Systems Inc."]
["CDR","Cedar Shopping Centers Inc"]
["CDR-A","Cedar Shopping Centers Inc"]
["CDTI","Clean Diesel Technologies Inc."]
["CDY","Cardero Resource Corporation"]
["CDZI","Cadiz Inc."]
["CE","Celanese Corporation"]
["C-E","Citigroup Inc."]
["CEA","China Eastern Airlines Corporation Ltd."]
["CEBK","Central Bancorp Inc"]
["CEC","CEC Entertainment Inc."]
["CECE","CECO Environmental Corp."]
["CECO","Career Education Corporation"]
["CEDC","Central European Distribution Corporation"]
["CEDU","ChinaEdu Corporation"]
["CEE","Central Europe and Russia Fund Inc. (The)"]
["CEF","Central Fund of Canada"]
["CEG","Constellation Energy Group Inc."]
["CEG-A","Constellation Energy Group Inc."]
["CEL","Cellcom Israel Ltd."]
["CELG","Celgene Corporation"]
["CELH","Celsius Holdings"]
["CELHW","Celsius Holdings Inc."]
["CELL","Brightpoint Inc."]
["CELM","China Electric Motor Inc."]
["CENT","Central Garden & Pet Company"]
["CENTA","Central Garden & Pet Company"]
["CENX","Century Aluminum Company"]
["CEO","CNOOC"]
["CEP","Constellation Energy Prtnr L"]
["CEPH","Cephalon Inc."]
["CERN","Cerner Corporation"]
["CERS","Cerus Corporation"]
["CET","Central Securities Corporation"]
["CETV","Central European Media Enterprises Ltd."]
["CEU","CHINA EDUCATION ALLI"]
["CEV","Eaton Vance California Municipal Income Trust"]
["CEVA","CEVA Inc."]
["CEW","WISDOMTREE DREYFUS"]
["CEZ","BANK OF AMERICA"]
["CF","CF Industries Holdings Inc."]
["C-F","Citigroup Inc."]
["CFBK","Central Federal Corporation"]
["CFC-A","Countrywide Financial Corporation"]
["CFC-B","Countrywide Financial Corporation"]
["CFFC","Community Financial Corp."]
["CFFI","C&F Financial Corporation"]
["CFFN","Capitol Federal Financial"]
["CFI","Culp Inc."]
["CFK","CE FRANKLIN LTD SC3"]
["CFL","BRINKS HOME SECURITY HOLDINGS"]
["CFN","Lehman ABS Corporation"]
["CFNB","California First National Bancorp"]
["CFNL","Cardinal Financial Corporation"]
["CFP","Cornerstone Progressive Return Fund"]
["CFR","Cullen/Frost Bankers Inc."]
["CFS","COMFORCE Corp."]
["CFSG","China Fire & Security Group Inc."]
["CFT","ISHARES LEHMAN CREDI"]
["CFU","BANK AMERICA CORP"]
["CFW","Cano Petroleum Inc."]
["CFX","Colfax Corporation"]
["C-G","Citigroup Inc."]
["CGA","Corus Group Plc"]
["CGC","Capital Gold Corp"]
["CGEN","Compugen Ltd."]
["CGI","Commerce Group Inc. (the)"]
["CGL.A","Cagle's Inc."]
["CGNX","Cognex Corporation"]
["CGO","Calamos Global Total Return Fund"]
["CGR","Claude Resources Inc."]
["CGV","Compagnie Generale de Geophysique-Veritas"]
["CGW","Claymore Exchange-Traded Fund Trust 2"]
["CGX","Consolidated Graphics Inc."]
["CH","Chile Fund Inc. (The)"]
["C-H","Citigroup Inc"]
["CHA","China Telecom Corp Ltd"]
["CHBT","CHINA BIOTICS INC"]
["CHC","Chartermac"]
["CHC.W","CHINA HYDROELECTRIC CORPORATIO"]
["CHCI","Comstock Homebuilding Companies Inc."]
["CHCO","City Holding Company"]
["CHD","Church & Dwight Company Inc."]
["CHDN","Churchill Downs Incorporated"]
["CHDX","Chindex International Inc."]
["CHE","Chemed Corp."]
["CHEV","Cheviot Financial Corp"]
["CHFC","Chemical Financial Corporation"]
["CHG","CH Energy Group Inc."]
["CHGS","China Gengsheng Mnrl"]
["CHH","Choice Hotels International Inc."]
["CHI","Calamos Convertible Opportunities and Income Fund"]
["CHIB","GLOBAL X CHINA TECH"]
["CHIE","GLOBAL X CHINA ENRGY"]
["CHII","GLOBAL X CHINA INDUS"]
["CHIM","GLOBAL X CHINA"]
["CHINA","CDC Corporation"]
["CHIO","China IOnline Corp."]
["CHIQ","GLOBAL X CHINA CONSU"]
["CHIX","GLOBAL X CHINA"]
["CHK","Chesapeake Energy Corporation"]
["CHK-D","Chesapeake Energy Corporation"]
["CHKE","Cherokee Inc."]
["CHKP","Check Point Software Technologies Ltd."]
["CHL","China Mobile (Hong Kong) Ltd."]
["CHLN","China Housing & Land Development Inc."]
["CHMP","Champion Industries Inc."]
["CHN","China Fund Inc. (The)"]
["CHNG","CHINA NATURAL GAS"]
["CHNR","China Natural Resources Inc."]
["CHOP","GOLDEN GREEN ENT ORD"]
["CHOPW","GLDN GRN WT 03/19/11"]
["CHP","C&D Technologies Inc."]
["CHRD","Chordiant Software Inc."]
["CHRS","Charming Shoppes Inc."]
["CHRW","C.H. Robinson Worldwide Inc."]
["CHS","Chico's FAS Inc."]
["CHSCP","CHS Inc"]
["CHSI","CATALYST HEALTH"]
["CHSP","CHESAPEAKE LODGING TRUST"]
["CHT","Chunghwa Telecom Co Ltd"]
["CHTP","Chelsea Therapeutics International Ltd."]
["CHU","China Unicom Ltd"]
["CHUX","O'Charley's Inc."]
["CHW","Calamos Global Dynamic Income Fund"]
["CHXX","EMERGING GLOBAL SHARES INDXX CH"]
["CHY","Calamos Convertible and High Income Fund"]
["CHYR","CHRYON CORP"]
["CI","CIGNA Corporation"]
["CIA","Citizens Inc."]
["CIB","BanColombia S.A."]
["CIDM","ACCESS INTEGRATED TECHNOLOGIES"]
["CIE","COBALT INTERNATIONAL ENERGY IN"]
["CIEN","CIENA Corporation"]
["CIF","Colonial Intermediate High Income Fund"]
["CIG","Comp En De Mn Cemig ADS"]
["CIG.C","Comp En De Mn Cemig ADS"]
["CIGX","STAR SCIENTIFIC INC"]
["CII","Blackrock Capital and Income Strategies Fund Inc"]
["CIIC","China Infrastructure Investment Corporation"]
["CIK","Credit Suisse Asset Management Income Fund Inc."]
["CIM","Chimera Investment Corporation"]
["CIMT","Cimatron"]
["CINF","Cincinnati Financial Corporation"]
["CIR","CIRCOR International Inc."]
["CISG","CNinsure Inc."]
["CIT","CIT Group Inc (DEL)"]
["CITZ","CFS Bancorp Inc."]
["CIU","ISHARES LEHMAN INTER"]
["CIX","CompX International Inc."]
["CIZN","Citizens Holding Company"]
["C-J","CITIGROUP CAPITAL XII"]
["CJA","VALE CAPITAL LIMITED"]
["CJB","VALE CAPITAL LIMITED"]
["CJBK","Central Jersey Bancorp"]
["CJR","Corus Entertainmt Incorporated"]
["CJS","VALE CAPITAL II"]
["CJT","VALE CAPITAL II"]
["CKEC","Carmike Cinemas Inc."]
["CKH","Seacor Smit Inc."]
["CKK","Citigroup Inc."]
["CKP","Checkpoint Systms Inc."]
["CKR","CKE Restaurants Inc."]
["CKSW","ClickSoftware Technologies Ltd."]
["CKX","CKX Lands Inc."]
["CKXE","CKX Inc."]
["CL","Colgate-Palmolive Company"]
["CLB","Core Laboratories N.V."]
["CLBH","Carolina Bank Holdings Inc."]
["CLC","CLARCOR Inc."]
["CLCT","Collectors Universe Inc."]
["CLD","San Diego County Cal Pension Oblig"]
["CLDA","Clinical Data Inc."]
["CLDX","CELLDEX THERAPEUTICS"]
["CLF","Cleveland-Cliffs Inc."]
["CLFC","Center Financial Corporation"]
["CLFD","Clearfield Inc."]
["CLH","Corporate Backed Tr Ctfs"]
["CLI","Mack-cali Realty Corporation"]
["CLM","Cornerstone Strategic Value Fund Inc."]
["CLMS","Calamos Asset Management Inc."]
["CLMT","Calumet Specialty Products Partners L.P."]
["CLNE","Clean Energy Fuels Corp."]
["CLNY","COLONY FINANCIAL INC"]
["CLP","Colonial Properties Trust"]
["CLP-D","Colonial Properties Trust"]
["CLR","Continental Resources Inc."]
["CLRT","Clarient Inc."]
["CLS","Celestica Inc."]
["CLSN","Celsion Corporation"]
["CLU","CELLU TISSUE HOLDINGS INC"]
["CLUB","Town Sports International Holdings Inc."]
["CLW","CLEARWATER PAPER CP"]
["CLWR","Clearwire Corporation"]
["CLWRR","CLEARWIRE CORPORATION"]
["CLWT","Euro Tech Holdings Company"]
["CLX","Clorox Company (The)"]
["CLY","ISHARES 10 YR BOND"]
["CM","Canadian Imperial Bank of Commerce"]
["C-M","Citigroup Inc."]
["CMA","Comerica Incorporated"]
["CMC","Commercial Metals Company"]
["CMCO","Columbus McKinnon Corporation"]
["CMCSA","Comcast Corporation"]
["CMCSK","Comcast Corporation"]
["CMD","Criticare Systems Inc."]
["CME","CME Group Inc."]
["CMED","China Medical Technologies Inc."]
["CMF","iShares Trust"]
["CMFO","CHINA MARINE FOOD GR"]
["CMG","Chipotle Mexican Grill Inc."]
["CMI","Cummins Inc."]
["CMK","Colonial Intermarket Income Trust I"]
["CML","COMPELLENT TECH INC"]
["CMLS","Cumulus Media Inc."]
["CMM","CRIIMI MAE Inc."]
["CMN","Cantel Medical Corp."]
["CMO","Capstead Mortgage Corporation"]
["CMO-B","Capstead Mortgage Corporation"]
["CMP","Compass Minerals Intl Inc"]
["CMRG","Casual Male Retail Group Inc."]
["CMRO","COMARCO Inc."]
["CMS","CMS Energy Corporation"]
["CMS-B","CMS Energy Corporation"]
["CMT","Core Molding Technologies Inc"]
["CMTL","Comtech Telecommunications Corp."]
["CMU","Colonial Municipal Income Trust"]
["CMZ","Compton Petroleum Corp"]
["CNA","CNA Financial Corporation"]
["CNAM","China Armco Metals"]
["CNBC","Center Bancorp Inc."]
["CNBKA","Century Bancorp Inc."]
["CNC","Centene Corporation"]
["CNDA","IQ CANADA SMALL CAP ETF"]
["CNET","Chinanet Online Hldg"]
["CNGL","CHINA NUTRIFRUIT GRP"]
["CNH","CNH Global N.V."]
["CNI","Canadian National Railway Company"]
["CNIC","Copernic Inc."]
["CNK","Cinemark Holdings Inc"]
["CNL","Cleco Power LLC"]
["CNLG","Conolog Corporation"]
["CNMD","CONMED Corporation"]
["CNO","Conseco Inc."]
["CNP","CenterPoint Energy Inc (Holding Co)"]
["CNQ","Canadian Natural Resources"]
["CNQR","Concur Technologies Inc."]
["CNS","Cohn & Steers Inc"]
["CNSL","Consolidated Communications Holdings Inc."]
["CNST","Constar International Inc."]
["CNTF","China TechFaith Wireless Communication Technology"]
["CNTY","Century Casinos Inc."]
["CNU","Continucare Corp."]
["CNW","CNF Inc."]
["CNX","COOL Energy Inc."]
["CNXT","Conexant Systems Inc."]
["CNY","Carver Bancorp Inc."]
["CNYD","CHINA YIDA HOLDING"]
["C-O","Citigroup Inc."]
["COBR","Cobra Electronics Corporation"]
["COBZ","CoBiz Financial Inc."]
["COCO","Corinthian Colleges Inc."]
["CODI","Compass Diversified Holdings"]
["COF","Capital One Financial Corporation"]
["COF.W","CAPITAL ONE FINANCIAL CORP"]
["COF-B","Capital One Financial Corporation"]
["COG","Cabot Oil & Gas Corporation"]
["COGO","Cogo Group Inc."]
["COGT","Cogent Inc."]
["COH","Coach Inc."]
["COHN","COHEN & CO INC"]
["COHR","Coherent Inc."]
["COHU","Cohu Inc."]
["COIN","Converted Organics Inc."]
["COINW","CONVER ORG CL A WTS"]
["COINZ","Converted Organics Inc."]
["COKE","Coca-Cola Bottling Co. Consolidated"]
["COL","Rockwell Collins Inc."]
["COLB","Columbia Banking System Inc."]
["COLM","Columbia Sportswear Company"]
["COMS","3Com Corporation"]
["COMV","Comverge Inc."]
["CONM","CONMED HEALTHCARE MG"]
["CONN","Conn's Inc."]
["COO","Cooper Companies Inc. (The)"]
["COOL","Majesco Entertainment Company"]
["COP","ConocoPhillips"]
["CORE","Core-Mark Holding Company Inc."]
["CORT","Corcept Therapeutics Incorporated"]
["COSI","Cosi Inc."]
["COST","Costco Wholesale Corporation"]
["COT","Cott Corporation"]
["COV","Covidien Ltd."]
["COW","IPATH AIG LIVSTK ETN"]
["COWN","Cowen Group Inc."]
["COY","Blackrock Corporate High Yield Fund Inc."]
["CP","Canadian Pacific Railway"]
["C-P","Citigroup Inc."]
["CPA","Copa Holdings S.A."]
["CPB","Campbell Soup Company"]
["CPBC","Community Partners Bancorp"]
["CPBK","Community Capital Corporation"]
["CPBY","China Information Security Technology Inc."]
["CPC","Central Parking Corporation"]
["CPD","Caraco Pharmaceutical Laboratories Ltd."]
["CPE","Callon Petroleum Company"]
["CPEX","CPEX Pharmaceuticals Inc."]
["CPF","CPB Inc."]
["CPHC","CANTERBURY PARK HL"]
["CPHD","CEPHEID"]
["CPHI","CHINA PHARMA HLDGS"]
["CPI","Capital Properties Inc."]
["CPII","CPI International Inc."]
["CPIX","CUMBERLAND PHARMACEUTICALS INC."]
["CPK","Chesapeake Utilities Corporation"]
["CPKI","California Pizza Kitchen Inc."]
["CPL","CPFL Energia S.A."]
["CPLA","Capella Education Company"]
["CPLP","Capital Product Partners L.P."]
["CPN","Calpine Corporation"]
["CPNO","Copano Energy L.L.C."]
["CPO","Corn Products International Inc."]
["CPP","Merrill Lynch Depositor Inc."]
["CPRT","Copart Inc."]
["CPRX","Catalyst Pharmaceutical Partners Inc."]
["CPSI","Computer Programs and Systems Inc."]
["CPSL","China Precision Steel Inc."]
["CPSS","Consumer Portfolio Services Inc."]
["CPST","Capstone Turbine Corporation"]
["CPT","Camden Property Trust"]
["CPTS","Conceptus Inc."]
["CPV","CBS Corporation"]
["CPWM","Cost Plus Inc."]
["CPWR","Compuware Corporation"]
["CPX","Complete Production Services Inc."]
["CPY","CPI Corporation"]
["C-Q","Citigroup Inc."]
["CQB","Chiquita Brands International Inc."]
["CQP","Cheniere Energy Partners LP"]
["CQQQ","CLAYMORE"]
["CR","Crane Company"]
["C-R","Citigroup Inc."]
["CRA","Celera Corporation"]
["CRAI","CRA InternationalInc."]
["CRAY","Cray Inc"]
["CRBA","JEFFERIES CRB GLOBAL- YAHOO! FIN"]
["CRBC","Citizens Republic Bancorp Inc."]
["CRBI","JEFFERIES TR/J CRB- YAHOO! FINAN"]
["CRBQ","THOMSON REUTERS/JEFF"]
["CRC","Chromcraft Revington Inc."]
["CRD.A","Crawford & Company"]
["CRD.B","Crawford & Company"]
["CRDC","Cardica Inc."]
["CRDN","Ceradyne Inc."]
["CRE","Care Investment Trust Inc."]
["CRED","Credo Petroleum Corporation"]
["CREE","Cree Inc."]
["CREG","China Recycling Ener"]
["CRESW","Cresud S.A.C.I.F. y A."]
["CRESY","Cresud S.A.C.I.F. y A."]
["CRF","Cornerstone Strategic Return Fund Inc. (The)"]
["CRH","CRH PLC"]
["CRI","Carter's Inc."]
["CRIC","CHINA REAL ESTATE INFORMATION C"]
["CRIS","Curis Inc."]
["CRK","Comstock Resources Inc."]
["CRL","Charles River Laboratories International Inc."]
["CRM","Salesforce.com Inc"]
["CRME","Cardiome Pharma Corporation"]
["CRMH","CRM Holdings Ltd."]
["CRMT","America's Car-Mart Inc."]
["CRN","Cornell Corrections Inc."]
["CRNT","Ceragon Networks Ltd."]
["CRO","Claymore Exchange-Traded Fund Trust 2"]
["CROX","Crocs Inc."]
["CRP","Credit Suisse Guernsey BRH"]
["CRR","Carbo Ceramics Inc."]
["CRRC","Courier Corporation"]
["CRS","Carpenter Technology Corporation"]
["CRT","Cross Timbers Royalty Trust"]
["CRTP","CHINA RITAR POWER CP"]
["CRTX","Critical Therapeutics Inc."]
["CRU","CRUDE CARRIERS CORP"]
["CRUS","Cirrus Logic Inc."]
["CRV","Coast Distribution System Inc. (The)"]
["CRVL","CorVel Corp."]
["CRWN","Crown Media Holdings Inc."]
["CRWS","Crown Crafts Inc."]
["CRXL","Crucell NV"]
["CRXX","CombinatoRx Incorporated"]
["CRY","CryoLife Inc."]
["CRYP","CryptoLogic"]
["CRZO","Carrizo Oil & Gas Inc."]
["CS","Credit Suisse Group"]
["C-S","Citigroup Inc."]
["CSA","Cogdell Spencer Inc."]
["CSBK","Clifton Savings Bancorp Inc."]
["CSC","Computer Sciences Corporation"]
["CSCO","Cisco Systems Inc."]
["CSCX","Cardiac Science Corporation"]
["CSD","Claymore Exchange-Traded Fund Trust"]
["CSE","CapitalSource Inc"]
["CSFL","Centerstate Banks of Florida Inc."]
["CSGP","CoStar Group Inc."]
["CSGS","CSG Systems International Inc."]
["CSH","Cash America International Inc."]
["CSHB","Community Shores Bank Corp."]
["CSII","Communications Systems Inc."]
["CSIQ","Canadian Solar Inc."]
["CSJ","ISHARES LEHMAN 1-3 Y"]
["CSKI","CHINA SKY ONE MEDICL"]
["CSL","Carlisle Companies Incorporated"]
["CSLS","CREDIT SUISSE LONG SHORT LIQUID"]
["CSM","Structured Product Morgan Stanley"]
["CSNT","Crescent Banking Company"]
["CSP","American Strategic Income Portfolio III"]
["CSQ","Calamos Strategic Total Return Fund"]
["CSR","China Security & Surveillance Technology Inc."]
["CSS","CSS Industries Inc."]
["CSTR","Coinstar Inc."]
["CSU","Capital Senior Living Corporation"]
["CSUN","China Sunergy Co. Ltd."]
["CSV","Carriage Services Inc."]
["CSWC","Capital Southwest Corporation"]
["CSX","CSX Corporation"]
["CT","Capital Trust Inc."]
["CTAS","Cintas Corporation"]
["CTB","Cooper Tire & Rubber Company"]
["CTBC","Connecticut Bank and Trust Company (The)"]
["CTBI","Community Trust Bancorp Inc."]
["CTBK","City Bank"]
["CTC","Compania de Telecomunicaciones de Chile S.A."]
["CTCH","Commtouch Software Ltd."]
["CTCM","CTC Media Inc."]
["CTCT","Constant Contact Inc."]
["CTDC","China Technology Development Group Corporation"]
["CTEL","City Telecom (H.K.)"]
["CTFO","China TransInfo Technology Corp."]
["CTGX","Computer Task Group Incorporated"]
["CTHR","Charles & Colvard Ltd"]
["CTIB","CTI Industries Corporation"]
["CTIC","Cell Therapeutics Inc."]
["CTL","CenturyTel Inc."]
["CTO","Consolidated-Tomoka Land Co."]
["CTRN","Citi Trends Inc."]
["CTRP","Ctrip.com International Ltd."]
["CTS","CTS Corporation"]
["CTSH","Cognizant Technology Solutions Corporation"]
["CTT","Competitive Technologies Inc."]
["CTV","CommScope Inc."]
["CTWS","Connecticut Water Service Inc."]
["CTXS","Citrix Systems Inc."]
["CTZ-A","Citizens Republic Bancorp Inc."]
["CU","Ise Global Copper Index"]
["C-U","Citigroup Inc."]
["CUB","CUBIC CP"]
["CUBA","Herzfeld Caribbean Basin Fund Inc. (The)"]
["CUK","Carnival Plc ADS"]
["CUL","MERRILL LYNCH"]
["CUR","Neuralstem Inc."]
["CUT","Claymore Exchange-Traded Fund Trust 2"]
["CUTR","Cutera Inc."]
["CUZ","Cousins Properties Incorporated"]
["CUZ-A","Cousins Properties Incorporated"]
["CUZ-B","Cousins Properties Incorporated"]
["CV","Central Vermont Pub Svc"]
["C-V","Citigroup Inc."]
["CVA","Danielson Holding Corporation"]
["CVB","Lehman Abs Corporation"]
["CVBF","CVB Financial Corporation"]
["CVBK","Central Virginia Bankshares Inc."]
["CVC","Cablevision Systems Corporation"]
["CVCO","Cavco Industries Inc."]
["CVCY","Central Valley Community Bancorp"]
["CVD","Covance Inc."]
["CVE","Cleveland Electric Illumi"]
["CVG","Convergys Corporation"]
["CVGI","Commercial Vehicle Group Inc."]
["CVGW","Calavo Growers Inc."]
["CVH","Coventry Health Care Inc."]
["CVI","CVR Energy Inc."]
["CVLT","CommVault Systems Inc."]
["CVLY","Codorus Valley Bancorp Inc"]
["CVM","Cel-Sci Corporation"]
["CVO","Cenveo Inc"]
["CVR","Chicago Rivet & Machine Co."]
["CVS","CVS Corporation"]
["CVTI","Covenant Transportation Group Inc."]
["CVU","CPI Aerostructures Inc."]
["CVV","CVD Equipment Corporation"]
["CVVT","CHINA VALVES TECH"]
["CVX","ChevronTexaco Corporation"]
["CVY","Claymore Exchange-Traded Fund Trust"]
["CW","Curtiss-Wright Corporation"]
["C-W","Citigroup Inc."]
["CWB","SPDR BARCLAY CV BD E"]
["CWBS","Commonwealth Bankshares Inc."]
["CWCO","Consolidated Water Co. Ltd."]
["CWEI","Clayton Williams Energy Inc."]
["CWF","Chartwell Dividend and Income Fund Inc."]
["CWI","streetTRACKS Index Funds"]
["CWS","CHINA WIND SYSTEMS INC."]
["CWST","Casella Waste Systems Inc."]
["CWT","California Water Service Group Holding"]
["CWTR","Coldwater Creek Inc."]
["CWZ","Lehman Abs Corporation"]
["CX","Cemex S.A.B. de C.V."]
["CXA","SPDR Series Trust"]
["CXDC","CHINA XD PLASTICS CO"]
["CXE","Colonial High Income Municipal Trust"]
["CXG","CNX Gas Corporation"]
["CXH","Colonial Investment Grade Municipal Trust"]
["CXM","Cardium Therapeutics Inc."]
["CXO","Concho Resources Inc."]
["CXPO","CRIMSON EXPLORATION"]
["CXS","CREXUS INVESTMENT CORP"]
["CXW","Corrections Corporation of America"]
["CXZ","Crosshair Exploration & Mining Corp"]
["CY","CYPRESS SEMICONDUCTR"]
["CYAN","Cyanotech Corporation"]
["CYB","CYBEX INTERNATIONAL INC."]
["CYBE","CyberOptics Corporation"]
["CYBI","Cybex International Inc."]
["CYBS","CyberSource Corporation"]
["CYBX","Cyberonics Inc."]
["CYCC","Cyclacel Pharmaceuticals Inc."]
["CYCCP","Cyclacel Pharmaceuticals Inc."]
["CYD","China Yuchai International"]
["CYE","Blackrock Corporate High Yield Fund III Inc"]
["CYH","Community Health Systems Inc."]
["CYMI","Cymer Inc."]
["CYN","City National Corporation"]
["CYNO","Cynosure Inc."]
["CYOU","CHANGYOU.COM LIMITED"]
["CYPB","Cypress Bioscience Inc."]
["CYS","CYPRESS SHARPRIDGE"]
["CYT","Cytec Industries Inc."]
["CYTK","Cytokinetics Incorporated"]
["CYTR","CytRx Corporation"]
["CYTX","Cytori Therapeutics Inc"]
["CYTXW","CYTORI THERAPEUTICS INC"]
["C-Z","Citigroup Inc."]
["CZA","Claymore Exchange-Traded Fund Trust"]
["CZI","DIREXION"]
["CZM","DIREXION"]
["CZNC","Citizens & Northern Corp"]
["CZWI","Citizens Community Bancorp Inc."]
["CZZ","Cosan"]
["D","Dominion Resources Inc."]
["DAC","Danaos Corporation"]
["DAG","DB AGRI DBL LONG ETN"]
["DAI","Daimler AG"]
["DAIO","Data I/O Corporation"]
["DAKT","Daktronics Inc."]
["DAL","Delta Air Lines Inc. (New)"]
["DAN","Dana Holding Corporation"]
["DAR","Darling International Inc."]
["DARA","DARA Biosciences Inc."]
["DAVE","Famous Dave's of America Inc."]
["DB","Deutsche Bank AG"]
["DBA","PowerShares DB Multi-Sector Commodity Trust"]
["DBB","PowerShares DB Multi-Sector Commodity Trust"]
["DBC","PowerShares DB Commodity Index Tracking Fund"]
["DBD","Diebold Incorporated"]
["DBE","PowerShares DB Multi-Sector Commodity Trust"]
["DBLE","Double Eagle Petroleum Company"]
["DBLEP","Double Eagle Petroleum Company"]
["DBN","WISDOMTREE INTERNATI"]
["DBO","PowerShares DB Multi-Sector Commodity Trust"]
["DBP","PowerShares DB Multi-Sector Commodity Trust"]
["DBRN","Dress Barn Inc. (The)"]
["DBS","PowerShares DB Multi-Sector Commodity Trust"]
["DBTK","Double-Take Software Inc."]
["DBU","WISDOMTREE INTERNATI"]
["DBV","PowerShares DB G10 Currency Harvest Fund"]
["DBY","MORGAN STANLEY"]
["DCA","Dividend Capital Realty Income Allocation Fund"]
["DCAI","Dialysis Corporation of America"]
["DCE","Deutsche Bk Cap Fdg Tr X"]
["DCI","Donaldson Company Inc."]
["DCM","Ntt Docomo Inc"]
["DCO","Ducommun Incorporated"]
["DCOM","Dime Community Bancshares Inc."]
["DCP","Dyncorp International Inc."]
["DCS","Dreman/Claymore Dividend & Income Fund"]
["DCT","DCT Industrial Trust Inc"]
["DCTH","Delcath Systems Inc."]
["DCW","Dividend Capital Global Realty Exposure Fund"]
["DCX","STRATEGIC ACC REDEM"]
["DD","E.I. du Pont de Nemours and Company"]
["DD-A","E.I. du Pont de Nemours and Company"]
["DD-B","E.I. du Pont de Nemours and Company"]
["DDD","SCOLR Inc"]
["DDE","Dover Downs Gaming & Entertainment Inc"]
["DDF","Delaware Investments Dividend & Income Fund Inc."]
["DDG","ProShares Trust"]
["DDIC","DDi Corp."]
["DDM","ProShares Trust"]
["DDMX","Dynamex Inc."]
["DDP","DB COMMODTY SHRT ETN"]
["DDR","Developers Diversified Realty Corporation"]
["DDR-G","Developers Diversified Realty Corporation"]
["DDR-H","Developers Diversified Realty Corporation"]
["DDR-I","Developers Diversified Realty Corporation"]
["DDRX","Diedrich Coffee"]
["DDS","Dillard's Inc."]
["DDSS","Labopharm Inc."]
["DDT","Dillard's Inc."]
["DE","Deere & Company"]
["DEAR","Dearborn Bancorp Inc."]
["DECK","Deckers Outdoor Corporation"]
["DEE","DB COMMODITY DS ETN"]
["DEER","DEER CONSUMER PR NEW"]
["DEF","Claymore Exchange-Traded Fund Trust"]
["DEG","Etablissements Delhaize Freres Et Cie Le Lion S.a."]
["DEI","Douglas Emmett Inc."]
["DEJ","Dejour Enterprises Ltd"]
["DEL","Deltic Timber Corporation"]
["DELL","Dell Inc."]
["DEM","WISDOM TREE TRUST $0.001"]
["DENN","Denny's Corporation"]
["DENT","DENT TACTICAL"]
["DEO","Diageo plc"]
["DEP","Duncan Energy Partners L.P."]
["DEPO","DepoMed Inc."]
["DES","WISDOMTREE SC DIV"]
["DEST","DESTINATION MATERNITY GROUP"]
["DEW","WISDOMTREE EU HI YLD"]
["DEX","Delaware Enhanced Global Dividend"]
["DEXO","DEX ONE CORPORATION"]
["DF","Dean Foods Company"]
["DFE","WISDOMTREE EU SC DIV"]
["DFG","Delphi Financial Group Inc."]
["DFJ","WISDOMTREE JAP SC"]
["DFP","Delphi Financial Group Inc."]
["DFR","DEERFIELD CAPITAL CP"]
["DFS","Discover Financial Services"]
["DFT","Dupont Fabros Technology Inc."]
["DFY","Delphi Financial Group Inc."]
["DFZ","R.G. Barry Corporation"]
["DG","Dollar General Corporation"]
["DGAS","Delta Natural Gas Company Inc."]
["DGF","Delaware Investments Global Dividend & Income Fund Inc."]
["DGI","DIGITALGLOBE INC"]
["DGICA","Donegal Group Inc."]
["DGICB","Donegal Group Inc."]
["DGII","Digi International Inc."]
["DGIT","DG FastChannel Inc."]
["DGL","PowerShares DB Multi-Sector Commodity Trust"]
["DGLY","Digital Ally Inc."]
["DGP","DB GOLD DBL LG ETN"]
["DGS","WISDOMTREE EM MKTS"]
["DGSE","DGSE COMPANIES INC"]
["DGT","streetTRACKS Dow Jones Global Titans Index Fund"]
["DGW","DUOYUAN GLOBAL WATER"]
["DGX","Quest Diagnostics Incorporated"]
["DGZ","DB GOLD SHORT ETN"]
["DHF","Dreyfus High Yield Strategies Fund"]
["DHFT","Diamond Hill Financial Trends Fund Inc."]
["DHG","DWS Dreman Value Income Edge Fund Inc."]
["DHI","D.R. Horton Inc."]
["DHIL","Diamond Hill Investment Group Inc."]
["DHM","Structured Obligations Corp 8.125 Cobalts"]
["DHR","Danaher Corporation"]
["DHS","WISDOMTREE H-Y EQ TR"]
["DHT","DHT Maritime Inc."]
["DHX","Dice Holdings Inc."]
["DHY","Credit Suisse High Yield Bond Fund"]
["DIA","DIAMONDS Trust Series I"]
["DIET","eDiets.com Inc."]
["DIG","ProShares Trust"]
["DIGA","Digital Angel Corporation"]
["DII","Decorator Industries Inc."]
["DIM","WISDOMTREE INTL MC"]
["DIN","DineEquity Inc"]
["DINE","Rewards Network Inc."]
["DIOD","Diodes Incorporated"]
["DIS","Walt Disney Company (the)"]
["DISCA","Discovery Holding Co"]
["DISCB","Discovery Holding Co"]
["DISCK","DISCOVERY COMM INC"]
["DISH","DISH Network Corporation"]
["DIT","AMCON Distributing Company"]
["DITC","Ditech Networks Inc."]
["DIVX","DivX Inc."]
["DJCO","Daily Journal Corp. (S.C.)"]
["DJP","Morgan Stanley Dean Witter & Co."]
["DJSP","DJSP ENTERPRISES INC"]
["DJSPU","DJSP ENTERPRISES INC"]
["DJSPW","DJSP ENTERPRISES INC"]
["DK","Delek US Holdings Inc."]
["DKA","WISDOMTREE INTERNATI"]
["DKC","Ms Structured Asset Corp Saturns Ge Cap Corp Series 2002-14"]
["DKI","Ms Structured Asset Corp Saturns Ge Cap Corp Series 2002-14"]
["DKK","Lehman Abs Corporation"]
["DKL","Lehman Abs Corporation"]
["DKM","Ms Structured Asset Corp Saturns Ge Cap Corp Series 2002-14"]
["DKP","Ms Structured Asset Corp Saturns Ge Cap Corp Series 2002-14"]
["DKQ","Ms Structured Asset Corp Saturns Ge Cap Corp Series 2002-14"]
["DKR","Ms Structured Asset Corp Saturns Ge Cap Corp Series 2002-14"]
["DKS","Dick's Sporting Goods Inc"]
["DKT","Deutsch Bk Contingent Cap Tr V"]
["DKW","Ms Structured Asset Corp Saturns Ge Cap Corp Series 2002-14"]
["DKY","Ms Structured Asset Corp Saturns Ge Cap Corp Series 2002-14"]
["DL","Dial Corporation"]
["DLA","Delta Apparel Inc."]
["DLB","Dolby Laboratories"]
["DLIA","dELIA*s Inc."]
["DLLR","Dollar Financial Corp."]
["DLM","Del Monte Foods Company"]
["DLN","WISDOMTREE LC DVDND"]
["DLR","Digital Realty Trust Inc."]
["DLR-A","Digital Realty Trust Inc."]
["DLR-B","Digital Realty Trust Inc."]
["DLS","Del Laboratories Inc."]
["DLTR","Dollar Tree Inc."]
["DLX","Deluxe Corporation"]
["DM","Dolan Media Company"]
["DMAN","DemandTec Inc."]
["DMC","Document Security Systems Inc."]
["DMF","Dreyfus Municipal Income Inc."]
["DMH","SPAN CLASSQUOTETABLEDATAIND"]
["DMLP","Dorchester Minerals L.P."]
["DMND","Diamond Foods Inc."]
["DMO","WESTERN ASSET MTG DFD OPPTY FD"]
["DMRC","Digimarc Corporation"]
["DNB","Dun & Bradstreet Corporation (The)"]
["DNBF","DNB FINANCIAL CORP"]
["DNBK","Danvers Bancorp Inc."]
["DND","WisdomTree Pacific ex-Japan Total Dividend Fund"]
["DNDN","Dendreon Corporation"]
["DNE","Dune Energy Inc."]
["DNEX","Dionex Corporation"]
["DNH","WisdomTree Pacific ex-Japan High-Yielding Equity Fund"]
["DNL","WisdomTree Japan High-Yielding Equity Fund"]
["DNN","Intl Uranium Corp"]
["DNO","U S SHORT OIL FUND"]
["DNP","Duff & Phelps Utilities Income Inc."]
["DNR","Denbury Resources Inc. (Holding Company)"]
["DNY","R.R. Donnelley & Sons Co"]
["DO","Diamond Offshore Drilling Inc."]
["DOD","ELEMENTS DOGS OF DOW"]
["DOG","ProShares Trust"]
["DOL","WISDOMTREE INTL LC"]
["DOLE","DOLE FOOD COMPANY- YAHOO! FINANC"]
["DOM","Dominion Resources Black Warrior Trust"]
["DON","WISDOMTREE MC DIV"]
["DOO","WisdomTree International Dividend Top 100 Fund"]
["DORM","Dorman Products Inc."]
["DOV","Dover Corporation"]
["DOVR","Dover Saddlery Inc."]
["DOW","Dow Chemical Company (The)"]
["DOX","Amdocs"]
["DPD","Dow 30 Premium"]
["DPK","DEVELOPED MKTS BEAR3"]
["DPL","DPL Inc."]
["DPM","DCP Midstream Partners LP"]
["DPO","Dow 30 Premium"]
["DPS","Dr Pepper Snapple Group Inc"]
["DPTR","Delta Petroleum Corporation"]
["DPU","DB COMMODITY LONG ET"]
["DPW","Digital Power Corporation"]
["DPZ","Domino's Pizza Inc"]
["DRAD","Digirad Corporation"]
["DRAM","Dataram Corporation"]
["DRC","Dresser-Rand Group Inc."]
["DRCO","Dynamics Research Corporation"]
["DRE","Duke Realty Corporation"]
["DRE-J","Duke Realty Corporation"]
["DRE-K","Duke Realty Corporation"]
["DRE-L","Duke Realty Corporation"]
["DRE-M","Duke Realty Corporation"]
["DRE-N","Duke Realty Corporation"]
["DRE-O","Duke Realty Corporation"]
["DRH","Diamondrock Hospitality Company"]
["DRI","Darden Restaurants Inc."]
["DRIV","Digital River Inc."]
["DRJ","Dreams Inc."]
["DRL","Doral Financial Corporation"]
["DRN","DIREXION DAILY REAL"]
["DROOY","DRDGOLD"]
["DRP","DWS Rreef World Estate & Tactical Strategies Fund Inc."]
["DRQ","Dril-Quip Inc."]
["DRR","MORGAN STANLEY"]
["DRRX","Durect Corporation"]
["DRU","DOMINION RESOURCES"]
["DRV","Debt Resolve Inc"]
["DRW","WisdomTree Trust"]
["DRWI","DRAGONWAVE INC"]
["DRYS","DryShips Inc."]
["DSC","SPDR Series Trust"]
["DSCI","Derma Sciences Inc"]
["DSCM","drugstore.com inc."]
["DSCO","Discovery Laboratories Inc."]
["DSG","streetTRACKS Dow Jones U.S. Small Cap Growth Index Fund"]
["DSGX","Descartes Systems Group Inc. (The)"]
["DSI","iShares Trust"]
["DSM","Dreyfus Strategic Municipal Bond Fund Inc."]
["DSPG","DSP Group Inc."]
["DST","DST Systems Inc."]
["DSTI","DayStar Technologies Inc."]
["DSU","Blackrock Debt Strategies Fund Inc."]
["DSV","streetTRACKS Dow Jones U.S. Small Cap Value Index Fund"]
["DSW","DSW Inc."]
["DSWL","Deswell Industries Inc."]
["DSX","Diana Shipping inc."]
["DT","Deutsche Telekom AG"]
["DTD","WISDOMTREE TTL DIV"]
["DTE","DTE Energy Company"]
["DTE-A","DTE Energy Company"]
["DTE-C","DTE Energy Company"]
["DTF","Duff & Phelps Utilities Tax-Free Income Inc."]
["DTG","Dollar Thrifty Automotive Group Inc."]
["DTH","WISDOMTREE DIEFA HY"]
["DTK","Deutsche Bank AG"]
["DTLK","Datalink Corporation"]
["DTN","WISDOMTREE DIV 100"]
["DTO","POWERSHARES DB CRUDE"]
["DTPI","Diamond Management & Technology Consultants Inc."]
["DTSI","DTS Inc."]
["DTT","Deutsche Bank Cap Fdg Tr IX"]
["DTV","The DIRECTV Group Inc."]
["DUA","Deutsche Bank Cap Fdg Tr VIII"]
["DUC","Duff & Phelps Utility & Corporate Bond Trust Inc."]
["DUCK","Duckwall-Alco Stores Inc."]
["DUF","Duff & Phelps Corporation"]
["DUG","ProShares Trust"]
["DUK","Duke Energy Corporation"]
["DUSA","DUSA Pharmaceuticals Inc."]
["DV","DeVry Inc."]
["DVA","DaVita Inc."]
["DVAX","Dynavax Technologies Corporation"]
["DVD","Dover Downs Entertainment Inc."]
["DVF","Blackrock Diversified Income Strategies Fund Inc."]
["DVM","Cohen & Steers Dividend Majors Fund"]
["DVN","Devon Energy Corporation"]
["DVR","Cal Dive International Inc."]
["DVY","Ishares Dow Jones Select Dividend Index Fund"]
["DW","Drew Industries Incorporated"]
["DWA","DREAMWORKS ANIMATION"]
["DWCH","Datawatch Corporation"]
["DWM","WISDOMTREE DIEFA"]
["DWSN","Dawson Geophysical Company"]
["DWX","SPDR Index Fund"]
["DX","Dynex Capital Inc."]
["DXB","Deutsche Bank AG"]
["DXCM","DexCom Inc."]
["DXD","ProShares Trust"]
["DX-D","Dynex Capital Inc."]
["DXJ","WISDOMTREE JAP TDIV"]
["DXPE","DXP Enterprises Inc."]
["DXR","Daxor Corporation"]
["DXYN","Dixie Group Inc. (The)"]
["DY","Dycom Industries Inc."]
["DYAX","Dyax Corp."]
["DYII","Dynacq Healthcare Inc."]
["DYN","Dynegy Inc."]
["DYNT","Dynatronics Corporation"]
["DYY","DB COMMODITY DL ETN"]
["DZK","DEVELOPED MKTS BULL3"]
["DZZ","DB GOLD DBL SH ETN"]
["E","ENI S.p.A."]
["EAD","Evergreen Income Advantage Fund"]
["EAG","American Defense Systems Inc"]
["EAR","HearUSA Inc."]
["EAT","Brinker International Inc."]
["EBAY","eBay Inc."]
["EBF","Ennis Inc."]
["EBI","Evergreen International Balanced Income Fund"]
["EBIX","Ebix Inc"]
["EBMTD","Eagle Bancorp [Mt]"]
["EBR","CENTRAIS ELETRICAS BRASILEIRAS"]
["EBR.B","CENTRAIS ELETRICAS BRASILEIRAS"]
["EBS","Emergent Biosolutions Inc."]
["EBSB","Meridian Interstate Bancorp Inc."]
["EBTC","Enterprise Bancorp Inc"]
["EBTX","Encore Bancshares Inc."]
["EC","Engelhard Corporation"]
["ECA","Encana Corporation"]
["ECBE","ECB Bancorp Inc"]
["ECF","Ellsworth Convertible Growth and Income Fund Inc."]
["ECGI","Envoy Capital Group Inc."]
["ECH","ISHARES MSCI CHILE"]
["ECHO","Electronic Clearing House Inc."]
["ECL","Ecolab Inc."]
["ECLP","Eclipsys Corporation"]
["ECOL","American Ecology Corporation"]
["ECPG","Encore Capital Group Inc"]
["ECV","EKSPORTFINANS"]
["ED","Consolidated Edison Inc."]
["ED-A","Consolidated Edison Inc."]
["EDAC","Edac Technologies Corporation"]
["EDAP","EDAP TMS S.A."]
["EDC","EMERGING MKTS BULL3"]
["ED-C","Consolidated Edison Inc."]
["EDCI","Entertainment Distribution Company Inc."]
["EDD","MORGAN STANLEY EMERGING MKTS D"]
["EDE","Empire District Electric Company (The)"]
["EDE-D","Empire District Electric Company (The)"]
["EDF","CITIGROUP FDG"]
["EDGR","EDGAR Online Inc."]
["EDGW","Edgewater Technology Inc."]
["EDMC","Education Management Corporation"]
["EDN","Empresa Nacional de Electricidad S.A."]
["EDR","Education Realty Trust Inc."]
["EDS","2020 CHINACAP ACQ"]
["EDSWW","2020 CHINACAP WTS"]
["EDT","ENTERGY TEXAS INC"]
["EDU","New Oriental Education & Technology Group Inc."]
["EDUC","Educational Development Corporation"]
["EDV","Vanguard World Funds"]
["EDZ","EMERGING MKTS BEAR3X"]
["EE","El Paso Electric Company"]
["EEA","European Equity Fund Inc. (the)"]
["EEB","Claymore Exchange-Traded Fund Trust"]
["EEE","Evergreen Energy Inc"]
["EEFT","Euronet Worldwide Inc."]
["EEG","EMERGING GLOBAL SHS"]
["EEI","ECOLOGY ENVIRONMENT"]
["EEM","Ishares Msci Emerging Index Fund"]
["EEN","Claymore Exchange-Traded Fund Trust 2"]
["EEO","EMERGING GLOBAL SHS"]
["EEP","Enbridge Energy Partnership"]
["EEQ","Enbridge Energy Management LLC"]
["EES","WisdomTree Trust"]
["EET","Citigroup Funding Inc."]
["EEV","ProShares Trust"]
["EFA","Ishares Msci Eafe Index Fund"]
["EFG","Ishares"]
["EFII","Electronics for Imaging Inc."]
["EFJI","EFJohnson Technologies Inc"]
["EFN","EMERGING GLOBAL SHS"]
["EFO","PROSHARES ULTRA EAFE"]
["EFOI","Energy Focus Inc."]
["EFR","Eaton Vance Senior Floating-Rate Fund"]
["EFSC","Enterprise Financial Services Corporation"]
["EFT","Eaton Vance Floating Rate Income Trust"]
["EFU","ProShares Trust"]
["EFUT","e-Future Information Technology Inc."]
["EFV","Ishares"]
["EFX","Equifax Inc."]
["EFZ","ProShares Trust"]
["EGAS","ENERGY INC."]
["EGBN","Eagle Bancorp Inc."]
["EGF","Blackrock Enhanced Government Fund Inc"]
["EGHT","8x8 Inc"]
["EGI","Entree Gold Inc"]
["EGLE","Eagle Bulk Shipping Inc."]
["EGN","Energen Corporation"]
["EGO","ELDORADO GOLD CORP"]
["EGOV","NIC Inc."]
["EGP","EastGroup Properties Inc."]
["EGPT","MARKET VECTORS EGYPT INDEX ETF"]
["EGT","Elixir Gaming Technologies Inc"]
["EGX","Engex Inc."]
["EGY","Vaalco Energy Inc"]
["EHA","Entergy Arkansas Inc."]
["EHB","Entergy Arkansas Inc."]
["EHI","Western Asset Global High Income Fund Inc"]
["EHL","Entergy Louisiana Inc."]
["EHTH","eHealth Inc."]
["EIA","Eaton Vance Insured California Municipal Bond Fund II"]
["EIF","Eaton Vance Insured Florida Municipal Bond Fund"]
["EIG","Employers Holdings Inc"]
["EIHI","Eastern Insurance Holdings Inc."]
["EIM","Eaton Vance Insured Municipal Bond Fund"]
["EIO","Eaton Vance Insured Ohio Municipal Bond Fund"]
["EIP","Eaton Vance Insured Pennsylvania Municipal Bond Fund"]
["EIS","ISHARES MSCI ISRAEL"]
["EIV","Eaton Vance Insured Municipal Bond Fund II"]
["EIX","Edison International"]
["EJ","E-House (China) Holdings"]
["EK","Eastman Kodak Company"]
["EKH","Merrill Lynch Europe 2001 HOLDRS"]
["EL","Estee Lauder Companies Inc. (The)"]
["ELB","Florida Power And Light"]
["ELG","streetTRACKS Dow Jones U.S. Large Cap Growth Index Fund"]
["ELGX","Endologix Inc"]
["ELMG","EMS Technologies Inc."]
["ELN","Elan Corporation plc"]
["ELNK","EarthLink Inc."]
["ELON","Echelon Corporation"]
["ELOS","Syneron Medical Ltd."]
["ELOY","eLoyalty Corporation"]
["ELP","Companhia Paranaense de Energia (COPEL)"]
["ELR","SPDR Series Trust"]
["ELRC","Electro Rent Corporation"]
["ELS","Equity Lifestyle Properties Inc."]
["ELSE","Electro-Sensors Inc."]
["ELTK","Eltek Ltd."]
["ELV","streetTRACKS Dow Jones U.S. Large Cap Value Index Fund"]
["ELX","Emulex Corporation"]
["ELY","Callaway Golf Company"]
["EM","EMDEON INC."]
["EMB","ISHARES JP MORGAN"]
["EMC","EMC Corporation"]
["EMCI","EMC Insurance Group Inc."]
["EMD","Western Asset Emerging Markets Income Fund Inc"]
["EME","EMCOR Group Inc."]
["EMF","Templeton Emerging Markets Fund"]
["EMFN","ISHARES TRUST"]
["EMG","SPDR Series Trust"]
["EMI","Eaton Vance Michigan Municipal Income Trust"]
["EMIF","ISHARES TRUST"]
["EMITF","Elbit Imaging Ltd."]
["EMJ","Eaton Vance Insured New Jersey Municipal Bond Fund"]
["EMKR","EMCORE Corporation"]
["EML","Eastern Company (The)"]
["EMM","SPDR Series Trust"]
["EMMS","Emmis Communications Corporation"]
["EMMSP","Emmis Communications Corporation"]
["EMMT","ISHARES TRUST"]
["EMN","Eastman Chemical Company"]
["EMO","Entergy Mississippi Inc."]
["EMQ","Entergy Mississippi Inc."]
["EMR","Emerson Electric Company"]
["EMS","Emergency Medical Services Corporation"]
["EMT","EMERGING GLOBAL SHS"]
["EMV","SPDR Series Trust"]
["ENA","Enova Systems Inc."]
["ENB","Enbridge Inc"]
["ENCO","Encorium Group Inc."]
["END","Endeavor International Corporation"]
["ENDP","Endo Pharmaceuticals Holdings Inc."]
["ENER","Energy Conversion Devices Inc."]
["ENG","ENGlobal Corporation"]
["ENH","Endurance Specialty Holdings Ltd"]
["ENH-A","Endurance Specialty Holdings Ltd"]
["ENI","Enersis S A"]
["ENL","Reed Elsevier Nv"]
["ENMD","EntreMed Inc."]
["ENOC","EnerNOC Inc."]
["ENP","Encore Energy Partners LP"]
["ENR","Energizer Holdings Inc."]
["ENS","Enersys"]
["ENSG","The Ensign Group Inc."]
["ENT","Enterra Energy Trust"]
["ENTG","Entegris Inc."]
["ENTR","Entropic Communications Inc."]
["ENWV","Endwave Corporation"]
["ENX","Eaton Vance Insured New York Municipal Bond Fund"]
["ENY","Claymore Exchange-Traded Fund Trust 2"]
["ENZ","Enzo Biochem Inc."]
["ENZN","Enzon Pharmaceuticals Inc."]
["EOC","Empresa Nacional de Electricidad S.A."]
["EOD","EVERGREEN GLOBAL DIVIDEND OPPO"]
["EOG","EOG Resources Inc."]
["EOI","Eaton Vance Enhance Equity Income Fund"]
["EONC","eOn Communications Corporation"]
["EOS","Eaton Vance Enhanced Equity Income Fund II"]
["EOT","EATON VANCE NAT MUN"]
["EP","El Paso Corporation"]
["EPAX","Ambassadors Group Inc."]
["EPAY","Bottomline Technologies Inc."]
["EPB","El Paso Pipeline Partners LP"]
["EPC","CITIGROUPELKS11% APPL10"]
["EP-C","El Paso Corporation"]
["EPCT","EpiCept Corporation"]
["EPD","Enterprise Products Partners L.P."]
["EPE","Enterprise GP Holdings L.P."]
["EPG","Environmental Power Corporation"]
["EPHC","Epoch Holding Corporation"]
["EPI","WISDOMTREE INDIA"]
["EPIC","Epicor Software Corporation"]
["EPIQ","EPIQ Systems Inc."]
["EPL","Energy Partners Ltd."]
["EPM","Evolution Petroleum Corporation Inc."]
["EPP","Ishares Msci Pacific Ex-japan Index Fund"]
["EPR","Entertainment Properties Trust"]
["EPR-B","Entertainment Properties Trust"]
["EPR-C","Entertainment Properties Trust"]
["EPR-D","Entertainment Properties Trust"]
["EPR-E","Entertainment Properties Trust"]
["EPS","WisdomTree Trust"]
["EPU","ISHARES MSCI"]
["EPV","PROSHARES"]
["EQIX","Equinix Inc."]
["EQL","Structured Product Citigroup Funding Inc"]
["EQR","Equity Residential"]
["EQR-H","Equity Residential"]
["EQR-N","Equity Residential"]
["EQS","Equus Total Return Inc."]
["EQT","Equitable Resources Inc."]
["EQY","Equity One Inc."]
["ERC","Evergreen Multi-Sector Income Fund"]
["ERES","eResearch Technology Inc."]
["ERF","Enerplus Resources Fund"]
["ERH","Evergreen Utilities and High Income Fund"]
["ERI","EMRISE CORPORATION"]
["ERIC","LM Ericsson Telephone Company"]
["ERIE","Erie Indemnity Company"]
["ERII","Energy Recovery Inc."]
["ERJ","Embraer-Empresa Brasileira de Aeronautica"]
["ERO","IPATH EUR/USD EXCHAN"]
["EROC","Eagle Rock Energy Partners L.P."]
["ERTS","Electronic Arts Inc."]
["ERX","ENERGY BULL 3X"]
["ERY","ENERGY BEAR 3X"]
["ES","EnergySolutions Inc"]
["ESA","Energy Services Acquisition Corp"]
["ESA.W","Energy Services Acquisition Corp"]
["ESB","CITIGROUP FUNDING"]
["ESBF","ESB Financial Corporation"]
["ESBK","Elmira Savings Bank FSB (The)"]
["ESC","EMERITUS CP"]
["ESCA","Escalade Incorporated"]
["ESD","Western Asset Emerging Markets Debt Fund Inc"]
["ESE","ESCO Technologies Inc."]
["ESEA","Euroseas Ltd."]
["ESGR","Enstar Group"]
["ESI","Itt Educational Services Inc."]
["ESIC","EasyLink Services International Corporation"]
["ESIO","Electro Scientific Industries Inc."]
["ESK","Structured Product Citigroup Funding Inc"]
["ESL","Esterline Technologies Corporation"]
["ESLR","Evergreen Solar Inc."]
["ESLT","Elbit Systems Ltd."]
["ESM","Citigroup Inc."]
["ESMC","Escalon Medical Corp."]
["ESP","Espey Mfg. & Electronics Corp."]
["ESR","ISHARES"]
["ESRX","Express Scripts Inc."]
["ESS","Essex Property Trust Inc."]
["ESSA","ESSA Bancorp Inc."]
["ESSX","ESSEX RENT GROUP"]
["ESSXW","ESSEX RENT CORP"]
["ESV","ECO International Incorporated"]
["ESYS","ELECSYS CORPORATION"]
["ETB","Eaton Vance Tax-Managed Buy-Write Income Fund"]
["ETD","CITIGROUP FUNDING"]
["ETE","ENERGY TRAFER PARTNERS"]
["ETF","Emerging Markets Telecommunications Fund (The)"]
["ETFC","E*TRADE Financial Corporation"]
["ETG","Eaton Vance Tax-Advantaged Global Dividend Income Fund"]
["ETH","Ethan Allen Interiors Inc."]
["ETJ","Eaton Vance Risk-Managed Diversified Equity Income Fund"]
["ETM","Entercom Communications Corporation"]
["ETN","Eaton Corporation"]
["ETO","Eaton Vance Tax-Advantage Global Dividend Opp"]
["ETP","ENERGY TRAFER PARTNERS"]
["ETQ","Corriente Res Inc"]
["ETR","Entergy Corporation"]
["ETRM","EnteroMedics Inc."]
["ETV","Eaton Vance Corporation"]
["ETW","Eaton Vance Corporation"]
["ETY","Eaton Vance Tax-Managed Diversified Equity Income Fund"]
["EU","WISDOMTREE DREYFUS"]
["EUBK","EuroBancshares Inc."]
["EUFN","ISHARES TRUST"]
["EUM","ProShares Trust"]
["EUO","PROSHS ULTRASHT EURO"]
["EURX","Eurand N.V."]
["EV","Eaton Vance Corporation"]
["EVBN","Evans Bancorp Inc."]
["EVBS","Eastern Virginia Bankshares Inc."]
["EVC","Entravision Communications Corporation"]
["EVEP","EV Energy Partners L.P."]
["EVF","Eaton Vance Senior Income Trust"]
["EVG","Eaton Vance Short Diversified Income Fund"]
["EVI","ENVIROSTAR INC"]
["EVJ","Eaton Vance New Jersey Municipal Income Trust"]
["EVK","Ever-Glory International Group Inc."]
["EVM","Eaton Vance Insured California Municipal Bond Fund"]
["EVN","Eaton Vance Municipal Income Trust"]
["EVO","Eaton Vance Ohio Municipal Income Trust"]
["EVOL","Evolving Systems Inc."]
["EVP","Eaton Vance Pennsylvania Municipal Income Trust"]
["EVR","Evercore Partners Inc"]
["EVT","Eaton Vance Tax Advantaged Dividend Income Fund"]
["EVV","Eaton Vance Duration Income Fund"]
["EVVV","ev3 Inc."]
["EVX","Market Vectors ETF Trust"]
["EVY","Eaton Vance New York Municipal Income Trust"]
["EW","Edwards Lifesciences Corporation"]
["EWA","iShares MSCI Australia Index Fund"]
["EWBC","East West Bancorp Inc."]
["EWC","iShares MSCI Canada Index Fund"]
["EWD","Ishares Msci Sweden Index Fund"]
["EWG","iShares MSCI Germany Index Fund"]
["EWH","iShares MSCI Hong Kong Index Fund"]
["EWI","Ishares Msci Italy Index Fund"]
["EWJ","Ishares Msci Japan Index Fund"]
["EWK","iShares MSCI Belgium Index Fund"]
["EWL","Ishares Msci Switzerland Index Fund"]
["EWM","Ishares Msci Malaysia Index Fund"]
["EWN","Ishares Msci Netherlands Index Fund"]
["EWO","iShares MSCI Austria Index Fund"]
["EWP","Ishares Msci Spain Index Fund"]
["EWQ","iShares MSCI France Index Fund"]
["EWS","Ishares Msci Singapore Index Fund"]
["EWT","Ishares Msci Taiwan Index Fund"]
["EWU","Ishares Msci United Kingdom Index Fund"]
["EWV","ProShares Trust"]
["EWW","iShares MSCI Mexico Index Fund"]
["EWX","SPDR Index Fund"]
["EWY","Ishares Msci South Korea Index Fund"]
["EWZ","Ishares Msci Brazil Index Fund"]
["EXAC","Exactech Inc."]
["EXAR","Exar Corporation"]
["EXAS","EXACT Sciences Corporation"]
["EXBD","Corporate Executive Board Company (The)"]
["EXC","Exelon Corporation"]
["EXEL","Exelixis Inc."]
["EXFO","EXFO Electro-Optical Engineering"]
["EXG","Eaton Vance Tax-Managed Global Diversified Equity Income Fund"]
["EXH","EXTERRAN HOLDINGS INC."]
["EXI","ISHARES S& P GLOBAL"]
["EXK","Endeavour Silver Corporation"]
["EXLP","Exterran Partners L.P."]
["EXLS","ExlService Holdings Inc."]
["EXM","Excel Maritime Carriers Ltd."]
["EXP","Eagle Materials Inc"]
["EXPD","Expeditors International of Washington Inc."]
["EXPE","Expedia Inc."]
["EXPO","Exponent Inc."]
["EXR","Extra Space Storage Inc"]
["EXT","WisdomTree Trust"]
["EXTR","Extreme Networks Inc."]
["EXXI","Energy XXI (Bermuda)"]
["EZA","Ishares Msci South Africa Index Fund"]
["EZCH","EZchip Semiconductor"]
["EZJ","PROSHARES JAPAN"]
["EZM","WisdomTree Trust"]
["EZPW","EZCORP Inc."]
["EZU","iShares MSCI EMU Index Fund"]
["EZY","WisdomTree Trust"]
["F","Ford Motor Credit Company"]
["F.W","Ford Motor Company Warrants"]
["F-A","Ford Mtr Co Del"]
["FAA","CLAYMORE AIRLINE ETF"]
["FAB","First Trust Exchange-Traded Fund"]
["FABK","First Advantage Bancorp"]
["FAC","Liberte Investors Inc."]
["FACE","Physicians Formula Holdings Inc."]
["FACT","First Albany Companies Inc."]
["FAD","First Trust Exchange-Traded Fund"]
["FAF","First American Corporation (the)"]
["FALC","FalconStor Software Inc."]
["FAM","First Trust/aberdeen Global Opportunity Income Fund"]
["FAN","FIRST TRUST ISE GLBL"]
["FARM","Farmer Brothers Company"]
["FARO","FARO Technologies Inc."]
["FAS","FINANCIAL BULL 3X"]
["FAST","Fastenal Company"]
["FAV","FIRST TRUST ACTIVE DIVIDEND IN"]
["FAX","Aberdeen Asia-Pacific Income Fund Inc"]
["FAZ","FINANCIAL BEAR 3X"]
["FBC","Flagstar Bancorp Inc."]
["FBCM","FBR Capital Markets Corporation"]
["FBF-M","Fleet Cap Tr Viii"]
["FBF-N","Fleet Cap Tr Ix"]
["FBIZ","First Business Financial Services Inc."]
["FBMI","Firstbank Corporation"]
["FBMS","First Bancshares Inc. (The) (MS)"]
["FBN","Furniture Brands International Inc."]
["FBNC","First Bancorp"]
["FBP","First Bancorp."]
["FBP-A","First Bancorp P R"]
["FBP-B","First Bancorp P R"]
["FBP-C","First Bancorp P R"]
["FBP-D","First Bancorp P R"]
["FBP-E","First Bancorp P R"]
["FBR","Friedman Billings Ramsey Group Inc."]
["FBS-A","First Pfd Cap Tr Iv"]
["FBSI","First Bancshares Inc."]
["FBT","First Trust Amex Biotechnology Index Fund"]
["FC","Franklin Covey Company"]
["FCAL","First California Financial Group Inc."]
["FCAP","First Capital Inc."]
["FCBC","First Community Bancshares Inc."]
["FCCO","First Community Corporation"]
["FCE.A","Forest City Enterprises Inc"]
["FCE.B","Forest City Enterprises Inc"]
["FCEC","FIRST CHESTER COUTNY CORP"]
["FCEL","FuelCell Energy Inc."]
["FCF","First Commonwealth Financial Corporation"]
["FCFC","FirstCity Financial Corporation"]
["FCFL","First Community Bank Corporation of America"]
["FCFS","First Cash Financial Services Inc."]
["FCG","FT ISE REVERE NAT GS"]
["FCH","Felcor Lodging Trust Incorporated"]
["FCH-A","Felcor Lodging Tr Inc"]
["FCH-C","Felcor Lodging Tr Inc"]
["FCHI","iShares FTSE China (HK Listed) Index Fund"]
["FCJ","Ford Motor Credit Company"]
["FCM","First Trust/Four Corners Senior Floating Rate Income Fund"]
["FCN","Fti Consulting Inc."]
["FCNCA","First Citizens BancShares Inc."]
["FCO","Aberdeen Global Income Fund Inc."]
["FCS","Fairchild Semiconductor International Inc."]
["FCT","First Trust Four Corners Senior"]
["FCTY","1ST CENTURY BANCSHARES INC"]
["FCVA","First Capital Bancorp Inc. (VA)"]
["FCX","Freeport-mcmoran Copper & Gold Inc."]
["FCX-M","FREEPORT-MCMORAN COPPER &   GO"]
["FCY","Forest City Enterprises Inc"]
["FCZ","Ford Motor Credit Company"]
["FCZA","First Citizens Banc Corp."]
["FDD","First Trust Exchange-Traded Fund II"]
["FDEF","First Defiance Financial Corp."]
["FDI","Fort Dearborn Income Securities Inc."]
["FDL","First Trust Morningstar Dividend Leaders Index Fund"]
["FDM","First Trust Dow Jones Select MicroCap Index(sm) Fund"]
["FDML","Federal-Mogul Corporation"]
["FDN","First Trust Dow Jones Internet Indexsm Fund"]
["FDO","Family Dollar Stores Inc."]
["FDP","Fresh Del Monte Produce Inc."]
["FDS","Factset Research Systems Inc."]
["FDV","First Trust DB Strategic Value Index Fund"]
["FDX","Fedex Corporation"]
["FE","Firstenergy Corporation"]
["FEED","AgFeed Industries Inc."]
["FEFN","ISHARES TRUST"]
["FEIC","FEI Company"]
["FELE","Franklin Electric Co. Inc."]
["FEN","Energy Income and Growth Fund"]
["FEO","First Trust/aberdeen Emerging Opportunity Fund"]
["FEU","Fresco Dj Stoxx 50"]
["FEX","First Trust Exchange-Traded Fund"]
["FEZ","Fresco Dj Euro Stoxx 50"]
["FF","First Financial Fund Inc."]
["FFA","First Trust/fiduciary"]
["FFBC","First Financial Bancorp."]
["FFBH","First Federal Bancshares of Arkansas Inc."]
["FFC","Flaherty & Crumrine/claymore Preferred Securities Income Fd In"]
["FFCH","First Financial Holdings Inc."]
["FFD","MORGAN STANLEY FRONTIER EMERGI"]
["FFDF","FFD Financial Corporation"]
["FFEX","Frozen Food Express Industries Inc."]
["FFFD","North Central Bancshares Inc."]
["FFG","Fbl Financial Group Inc."]
["FFHL","Fuwei Films (Holdings) Co. Ltd."]
["FFHS","First Franklin Corporation"]
["FFI","Fortune Diversified Industries Inc."]
["FFIC","Flushing Financial Corporation"]
["FFIN","First Financial Bankshares Inc."]
["FFIV","F5 Networks Inc."]
["FFKT","Farmers Capital Bank Corporation"]
["FFKY","First Financial Service Corporation"]
["FFNW","First Financial Northwest Inc."]
["FFR","First Trust Exchange-Traded Fund II"]
["FGB","FIRST TRUST/GALLITIN SPECIALTY"]
["FGC","Fpl Group Capital Inc"]
["FGD","First Trust Exchange-Traded Fund II"]
["FGE","FPL GROUP CAPITAL INC"]
["FGF","Sunamerica Inc."]
["FGI","Sunamerica Inc."]
["FGP","Ferrellgas Partners L.p."]
["FHCO","FEMALE HEALTH CO"]
["FHI","First Trust"]
["FHN","First Tennessee National Corporation"]
["FHO","FIRST TRUST STRATEGIC HIGH INC"]
["FHY","First Trust Strategic High Income Fund Ii"]
["FIBK","FIRST INTERSTATE BANCSYSTEM IN"]
["FICO","FAIR ISAAC INC"]
["FIG","Fortress Investment Group Llc"]
["FII","Federated Investors Inc."]
["FINL","Finish Line Inc. (The)"]
["FIO","ISHS FTS NRT I/O IDX"]
["FIRE","Sourcefire Inc."]
["FIS","Fidelity National Information Services Inc."]
["FISI","Financial Institutions Inc."]
["FISV","Fiserv Inc."]
["FITB","Fifth Third Bancorp"]
["FIVZ","PIMCO 3-7 YEAR US TR- YAHOO! FIN"]
["FIW","FT ISE WATER INDEX"]
["FIX","Comfort Systems USA Inc."]
["FIZZ","National Beverage Corp."]
["FJA","MERRILL LYNCH DEPOSITOR INC SE"]
["FKFS","First Keystone Financial Inc."]
["FL","Footlocker Inc"]
["FLC","Flaherty & Crumrine/claymore Total Return Fund Inc"]
["FLEX","Flextronics International Ltd."]
["FLIC","First of Long Island Corporation (The)"]
["FLIR","FLIR Systems Inc."]
["FLL","Full House Resorts Inc."]
["FLM","FIRST TRUST ISE GLBL"]
["FLML","Flamel Technologies S.A."]
["FLO","Flowers Foods Inc."]
["FLOW","Flow International Corporation"]
["FLR","Fluor Corporation"]
["FLS","Flowserve Corporation"]
["FLWS","1-800 FLOWERS.COM Inc."]
["FLXS","Flexsteel Industries Inc."]
["FLY","Babcock & Brown Air"]
["FMAR","First Mariner Bancorp"]
["FMBI","First Midwest Bancorp Inc."]
["FMC","Fmc Corporation"]
["FMCN","Focus Media Holding"]
["FMD","First Marblehead Corporation (the)"]
["FMER","FirstMerit Corporation"]
["FMFC","First M & F Corporation"]
["FMN","Federated Premier Municipal Income Fund"]
["FMO","Fiduciary/claymore Mlp Opportunity Fund"]
["FMR","First Mercury Financial Corporation"]
["FMS","Fresenius Medical Care Corporation"]
["FMX","Fomento Economico Mexicano S.a.b. De C.v."]
["FMY","First Trust"]
["FNA","FANNIE MAE 8.75 PFD"]
["FNB","F.n.b. Corporation"]
["FNBN","FNB United Corp."]
["FNDT","Fundtech Ltd."]
["FNF","Fidelity National Financial Inc."]
["FNFG","First Niagara Financial Group Inc."]
["FNGN","FINANCIAL ENGINES INC."]
["FNI","FT ISE CHINDIA IDX"]
["FNLC","First Bancorp Inc (ME)"]
["FNM","Federal National Mortgage Association"]
["FNM-F","Federal Natl Mtg Assn"]
["FNM-G","Federal Natl Mtg Assn"]
["FNM-H","Federal Natl Mtg Assn"]
["FNM-I","Federal Natl Mtg Assn"]
["FNM-P","FEDERAL NATL MTG PFD"]
["FNM-Q","FANNIE MAE"]
["FNM-R","FANNIE MAE"]
["FNM-S","FANNIE MAE 8.25% SERIES S"]
["FNM-T","FANNIE MAE 8.25%"]
["FNSC","First National Bancshares Inc (SC)"]
["FNSR","Finisar Corporation"]
["FNX","First Trust Exchange-Traded Fund"]
["FO","Fortune Brands Inc."]
["FOE","Ferro Corporation"]
["FOF","Cohen & Steers Closed-End Opportunity Fund Inc."]
["FOH","Frederick's of Hollywood Group"]
["FOLD","Amicus Therapeutics Inc."]
["FONR","Fonar Corporation"]
["FOR","FORESTAR REAL ESTATE GROUP INC"]
["FORD","Forward Industries Inc."]
["FORM","FormFactor Inc."]
["FORR","Forrester Research Inc."]
["FORTY","Formula Systems (1985) Ltd."]
["FOSL","Fossil Inc."]
["FPBI","FPB Bancorp Inc."]
["FPC-A","Fpc Cap I"]
["FPFC","First Place Financial Corp."]
["FPIC","FPIC Insurance Group Inc."]
["FPL","Fpl Group Inc."]
["FPL-C","Fpl Group Cap Tr I"]
["FPL-F","FPL 8.75 SER F"]
["FPO","First Potomac Realty Trust"]
["FPP","FieldPoint Petroleum Corporation"]
["FPT","Federated Premier Intermediate Municipal Income Fund"]
["FPTB","First PacTrust Bancorp Inc."]
["FPX","First Trust IPOX-100 Index Fund"]
["FR","First Industrial Realty Trust Inc."]
["FRA","Blackrock Floating Rate Income Strategies Fund Inc"]
["FRB","Blackrock Floating Rate Income Strategies Fund II Inc"]
["FRBK","Republic First Bancorp Inc."]
["FRCCO","First Republic Preferred Capital Corporation"]
["FRD","Friedman Industries Inc."]
["FRE","Federal Home Loan Mortgage Corporation"]
["FRE-B","Federal Home Ln Mtg Corp"]
["FRED","Fred's Inc."]
["FREE","FreeSeas Inc."]
["FREEW","FreeSeas Inc."]
["FREEZ","FreeSeas Inc."]
["FRE-F","Federal Home Ln Mtg Corp"]
["FRE-G","Federal Home Ln Mtg Corp"]
["FRE-H","Federal Home Ln Mtg Corp"]
["FRE-K","Federal Home Ln Mtg Corp"]
["FRE-M","Federal Home Ln Mtg Corp"]
["FRE-N","Federal Home Ln Mtg Corp"]
["FRE-O","Federal Home Ln Mtg Corp"]
["FRE-P","Federal Home Ln Mtg Corp"]
["FRE-Q","Federal Home Ln Mtg Corp"]
["FRE-R","Federal Home Ln Mtg Corp"]
["FRE-S","Federal Home Ln Mtg Corp"]
["FRE-T","Federal Home Ln Mtg Corp"]
["FRE-U","Federal Home Ln Mtg Corp"]
["FRE-V","Federal Home Ln Mtg Corp"]
["FRE-W","FREDDIE MAC"]
["FRE-X","FREDDIE MAC 6.02%"]
["FRE-Y","FREDDIE MAC"]
["FRE-Z","FREDDIE MAC $1.00 PAR VALUE"]
["FRG","Fronteer Development Group Inc."]
["FRI","First Trust S&P REIT Index Fund"]
["FR-J","First Industrial Realty Trus"]
["FR-K","First Industrial Realty Trus"]
["FRM","FRIEDMA INC"]
["FRME","First Merchants Corporation"]
["FRN","Friendly Ice Cream Corporation"]
["FRO","Frontline Ltd."]
["FRPT","Force Protection Inc."]
["FRS","Frisch's Restaurants Inc."]
["FRT","Federal Realty Investment Trust"]
["FRX","Forest Laboratories Inc."]
["FRZ","Reddy Ice Holdings Inc."]
["F-S","Ford Mtr Co Cap Tr Ii"]
["FSBI","Fidelity Bancorp Inc."]
["FSBK","First South Bancorp Inc"]
["FSC","FIFTH STREET FINANCE CORP"]
["FSCI","Fisher Communications Inc."]
["FSFG","FIRST SAVINGS FINANC"]
["FSGI","First Security Group Inc."]
["FSI","Flexible Solutions International Inc."]
["FSII","FSI International Inc."]
["FSIN","Fushi Copperweld Inc."]
["FSLR","First Solar Inc."]
["FSNM","First State Bancorporation"]
["FSP","Franklin Street Properties Corp."]
["FSR","FLAGSTONE REIURANCE HOLDINGS"]
["FSRV","FirstService Corporation"]
["FSS","Federal Signal Corporation"]
["FST","Forest Oil Corporation"]
["FSTR","L.B. Foster Company"]
["FSYS","Fuel Systems Solutions Inc."]
["FT","Franklin Universal Trust"]
["FTA","First Trust Exchange-Traded Fund"]
["FTB-A","FIFTH THIRD CAPITAL TRUST V"]
["FTB-B","FIFTH THIRD CAPITAL TRUST VI"]
["FTB-C","FIFTH THIRD CAPITAL TRUST VII"]
["FTBK","Frontier Financial Corporation"]
["FTC","First Trust Exchange-Traded Fund"]
["FTE","France Telecom S.a."]
["FTEK","Fuel Tech Inc."]
["FTF","Franklin Templeton Duration Income Trust"]
["FTI","Fmc Technologies Inc."]
["FTK","FLOTEK INDS INC [DE]"]
["FTLK","FUNTALK CHINA HOLDINGS LIMIT"]
["FTNT","FORTINET INC.- YAHOO! FINANCE"]
["FTO","Frontier Oil Corporation"]
["FTR","FRONTIER COMM CORP"]
["FTT","FEDERATED ENHANCED TREASURY IN"]
["FTWR","FiberTower Corporation"]
["FTY","ISHS FTS NRT RE 50"]
["FUBC","1ST UNITED BANCORP"]
["FUD","E-TRACS UBS BLOOMBER"]
["FUEL","SMF Energy Corporation"]
["FUL","H. B. Fuller Company"]
["FULT","Fulton Financial Corporation"]
["FUN","Cedar Fair L.P."]
["FUNC","First United Corporation"]
["FUND","Royce Focus Trust Inc."]
["FUQI","Fuqi International Inc."]
["FUR","First Union Real Estate Equity And Mortgage Investments"]
["FVD","First Trust Value Line Dividend Index Fund"]
["FVE","Five Star Quality Care Inc."]
["FVI","First Trust Value Line Equity Allocation Index(sm)Fund"]
["FVL","First Trust Value Line 100 Exchange-Traded Fund"]
["FWF","WELLS FARGO CAPITAL XI"]
["FWLT","Foster Wheeler Ltd."]
["FWRD","Forward Air Corporation"]
["FXA","CRRNCYSHR AUS DLR TR"]
["FXB","CRRNCYSHR BP STER TR"]
["FXC","CRRNCYSHRS CAN DL TR"]
["FXCB","Fox Chase Bancorp Inc."]
["FXD","First Trust Exchange-Traded Fund"]
["FXE","Currencyshares Euro Trust"]
["FXEN","FX Energy Inc."]
["FXF","CRRNCYSHR SW FR TR"]
["FXG","First Trust Exchange-Traded Fund"]
["FXH","First Trust Exchange-Traded Fund"]
["FXI","Ishares Trust Ftse-xinhua China 25 Index Fund"]
["FXL","First Trust Exchange-Traded Fund"]
["FXM","CRRNCYSHR MEX PSO TR"]
["FXN","First Trust Exchange-Traded Fund"]
["FXO","First Trust Exchange-Traded Fund"]
["FXP","ProShares Trust"]
["FXR","First Trust Exchange-Traded Fund"]
["FXS","CRRNCYSHR SW KRN TR"]
["FXU","First Trust Exchange-Traded Fund"]
["FXY","CRNCYSHRS JPN YEN TR"]
["FXZ","First Trust Exchange-Traded Fund"]
["FYX","First Trust Exchange-Traded Fund"]
["G","Gillette Company (The)"]
["GA","GIANT INTERACTIVE GROUP INC"]
["GAB","Gabelli Equity Trust Inc. (the)"]
["GABC","German American Bancorp Inc."]
["GAB-D","Gabelli Equity Tr Inc"]
["GAB-F","Gabelli Equity Tr Inc"]
["GAF","SPDR Index Fund"]
["GAH","Georgia Power Company"]
["GAI","GLOBAL TECH APPLIANC"]
["GAIA","Gaiam Inc."]
["GAIN","Gladstone Investment Corporation"]
["GAJ","Great Atlantic & Pacific Tea Company Inc. (the)"]
["GAM","General American Investors Inc."]
["GAM-B","General Amern Invs Inc"]
["GAME","SHANDA GAMES LIMITED"]
["GAP","Great Atlantic & Pacific Tea Company Inc. (the)"]
["GAR","GEORGIA POWER CO. SERIES"]
["GAS","Nicor Inc."]
["GASS","StealthGas Inc."]
["GAT","GEORGIA POWER COMPANY 8.20%"]
["GAZ","IPATH NAT GAS ETN"]
["GB","Wilson Greatbatch Technologies Inc."]
["GBB","IPATH GBP/USD EXCHANGE RATE ET"]
["GBC","Morgan Stanley"]
["GBCI","Glacier Bancorp Inc."]
["GBE","Grubb"]
["GBF","ISHARES LEHMAN GOVER"]
["GBG","GREAT BASIN GOLD LTD"]
["GBL","Gabelli Asset Management Inc."]
["GBN","Great Basin Gold Ltd."]
["GBNK","Guaranty Bancorp"]
["GBR","New Concept Energy Inc"]
["GBX","Greenbrier Companies Inc. (the)"]
["GCA","Global Cash Access Holdings Inc."]
["GCBC","Greene County Bancorp Inc."]
["GCC","GreenHaven Continuous Commodity Index Fund"]
["GCE","CLAYMORE CEF CONNECT"]
["GCF","Global Income & Currency Fund Inc."]
["GCFB","Granite City Food & Brewery Ltd."]
["GCH","Greater China Fund Inc."]
["GCH.P","Greater China Fund Inc. Rights"]
["GCI","Gannett Co. Inc."]
["GCO","Genesco Inc."]
["GCOM","Globecomm Systems Inc."]
["GCS","Scudder Global Commodities Stock Fund Inc"]
["GCV","Gabelli Convertible And Income Securities Fund Inc. (the)"]
["GCV-B","Gabelli Conv & Income Secs F"]
["GD","General Dynamics Corporation"]
["GDF","Western Asset Global Partners Income Fund Inc."]
["GDI","Gardner Denver Inc."]
["GDL","The Gabelli Global Deal Fund"]
["GDL-A","T"]
["GDP","Goodrich Petroleum Corporation"]
["GDV","Gabelli Dividend"]
["GDV-A","Gabelli Divd & Income Tr"]
["GDX","Market Vectors ETF Trust"]
["GE","General Electric Company"]
["GEA","General Electric Capital Corporation"]
["GE-A","GENERAL ELECTRIC CAPITAL CORPO"]
["GEC","General Electric Capital Corporation"]
["GED","General Electric Capital Corporation"]
["GEF","Greif Bros. Corporation"]
["GEF.B","Greif Inc"]
["GEG","Global Power Equipment Group Inc."]
["GEJ","GENERAL ELECTRIC CAPITAL CORP"]
["GEL","Genesis Energy L.P."]
["GENC","Gencor Industries Inc."]
["GENE","Genetic Technologies Ltd"]
["GENT","Gentium SpA"]
["GENZ","Genzyme Corporation"]
["GEO","Geo Group Inc (the)"]
["GEOI","GeoResources Inc."]
["GEOY","GeoEye Inc."]
["GEP","General Electric Capital Corporation"]
["GER","General Electric Capital Corporation"]
["GERN","Geron Corporation"]
["GES","Guess? Inc."]
["GET","Gaylord Entertainment Company"]
["GEX","Globix Corp"]
["GF","New Germany Fund Inc. (the)"]
["GFA","GAFISA S.A"]
["GFC","Gerova Financial Group Ltd"]
["GFC.W","GEROVA FINL GP WTS"]
["GFF","Griffon Corporation"]
["GFI","Gold Fields Ltd."]
["GFIG","GFI Group Inc."]
["GFLB","Great Florida Bank"]
["GFN","GENERAL FINANCE CORP"]
["GFNCW","GENERAL FIN CORP WTS"]
["GFRE","GULF RESOURCES INC"]
["GFW","AAG Holding Company Inc."]
["GFY","Western Asset Variable Rate Strategic Fund Inc."]
["GFZ","AAG Holding Company Inc."]
["GG","Goldcorp Incorporated"]
["GG.W","GOLDCORP INC. SERIES C WARRANTS"]
["GGAL","Grupo Financiero Galicia S.A."]
["GGB","Gerdau S.a."]
["GGC","Georgia Gulf Corporation"]
["GGG","Graco Inc."]
["GGN","The Gabelli Global Goldn Natural Resources & Income Trust"]
["GGN-A","The Gabelli Global Goldn Natural Resources & Income Trust"]
["GGP","General Growth Properties Inc."]
["GGR","GeoGlobal Resources Inc."]
["GGT","Gabelli Global Multi-media Trust Inc. (the)"]
["GHDX","Genomic Health Inc."]
["GHI","Global High Income Dollar Fund Inc."]
["GHL","Greenhill"]
["GHM","Graham Corporation"]
["GIA","Gulfstream International Group Inc"]
["GIB","CGI Group Inc."]
["GIFI","Gulf Island Fabrication Inc."]
["GIGA","Giga-tronics Incorporated"]
["GIGM","GigaMedia"]
["GII","streetTRACKS Index Funds"]
["GIII","G-III Apparel Group LTD."]
["GIL","Gildan Activewear Inc."]
["GILD","Gilead Sciences Inc."]
["GILT","Gilat Satellite Networks Ltd."]
["GIM","Templeton Global Income Fund Inc."]
["GIS","General Mills Inc."]
["GIVN","Given Imaging Ltd."]
["GIW","Wilber Corporation"]
["GJB","Strats Tr For Bellsouth Telecommunications Ctfs"]
["GJD","Strats Tr For Bellsouth Telecommunications Ctfs"]
["GJE","Strats Tr For Bellsouth Telecommunications Ctfs"]
["GJF","Strats Tr For Bellsouth Telecommunications Ctfs"]
["GJG","Strats Tr For Bellsouth Telecommunications Ctfs"]
["GJH","Strats Tr For Bellsouth Telecommunications Ctfs"]
["GJJ","Strats Tr For Bellsouth Telecommunications Ctfs"]
["GJK","Strats Tr For Bellsouth Telecommunications Ctfs"]
["GJM","Gmac Llc"]
["GJN","Floating Rate Structured Repackaged Asset-backed Trust"]
["GJO","Synthetic Fixed-income Securities Inc."]
["GJP","Synthetic Fixed-income Securities Inc."]
["GJS","Goldman Sachs Group Securities"]
["GJT","Synthetic Fixed-income Securities Inc."]
["GJV","Synthetic Fixed-income Securities Inc"]
["GJW","SYNTHETIC FIXED INCOME SECURIT"]
["GKK","Gramercy Capital Corp"]
["GKK-A","GRAMERCY CAPITAL CORP 8.125%"]
["GKM","Gmac Llc"]
["GKSR","G&K Services Inc."]
["GLA","Clark Holdings Inc"]
["GLA.W","Clark Holdings Inc"]
["GLAD","Gladstone Capital Corporation"]
["GLBC","Global Crossing Ltd."]
["GLBL","Global Industries Ltd."]
["GLBZ","Glen Burnie Bancorp"]
["GLD","Streettracks Gold Trust"]
["GLDC","Golden Enterprises Inc."]
["GLDD","Great Lakes Dredge & Dock Corporation"]
["GLF","GULFMARK OFFSHORE INC"]
["GLG","Glamis Gold Ltd."]
["GLG.U","GLG PARTNERS UTS"]
["GLG.W","GLG PARTNERS WTS"]
["GLGL","GLG LIFE TECH CORP"]
["GLL","Morgan Stanley"]
["GLNG","Golar LNG"]
["GLO","Clough Global Opportunities Fund"]
["GLOI","GlobalOptions Group Inc."]
["GLP","Global Partners Lp"]
["GLQ","Clough Global Equity Fund"]
["GLRE","Greenlight Capital Re Ltd."]
["GLT","Glatfelter"]
["GLU","Gabelli Global Utility"]
["GLUU","Glu Mobile Inc."]
["GLV","Clough Global Allocation Fund"]
["GLW","Corning Incorporated"]
["GMA","Gmac Llc"]
["GMCR","Green Mountain Coffee Roasters Inc."]
["GME","Gamestop Corporation"]
["GMET","GeoMet Inc."]
["GMF","SPDR Index Fund"]
["GMK","Gruma S.a. De C.v."]
["GML","SPDR Index Fund"]
["GMM","SPDR Index Fund"]
["GMMB","GRAIL MCDONNELL"]
["GMO","General Moly Inc"]
["GMR","General Maritime Corporation"]
["GMT","Gatx Corporation"]
["GMTB","GRAIL MCDONNELL"]
["GMTC","GameTech International Inc."]
["GMXR","GMX RESOURCES INC."]
["GMXR.P","GMX RESOURCES INC"]
["GNA","Gerdau Ameristeel"]
["GNBT","Generex Biotechnology Corporation"]
["GNCMA","General Communication Inc."]
["GNET","Global Traffic Network Inc."]
["GNI","Great Northern Iron Ore Properties"]
["GNK","GENCO SHIPPING & TRADIN  G LIM"]
["GNRC","Generac Holdings Inc"]
["GNTX","Gentex Corporation"]
["GNV","GSC INVESTMENT CORP"]
["GNVC","GenVec Inc."]
["GNW","Genworth Financial Inc"]
["GOF","Claymore/Guggenheim Strategic Opportunities Fund"]
["GOK","Geokinetics Inc."]
["GOL","Gol Linhas Aereas Inteligentes S.a."]
["GOLD","Randgold Resources"]
["GOLF","Golfsmith International Holdings Inc."]
["GOM","Gmac Llc"]
["GOOD","Gladstone Commercial Corporation"]
["GOODO","Gladstone Commercial Corporation"]
["GOODP","Gladstone Commercial Corporation"]
["GOOG","Google Inc."]
["GORX","GeoPharma Inc."]
["GOV","GOVERNMENT PROPERTIE"]
["GPC","Genuine Parts Company"]
["GPD","Georgia Power Company"]
["GPE-A","Georgia Pwr Co"]
["GPE-X","Georgia Pwr Cap Tr Vii"]
["GPI","Group 1 Automotive Inc."]
["GPIC","Gaming Partners International Corporation"]
["GPJ","Georgia Power Company"]
["GPK","Graphic Packaging International Corporation"]
["GPN","Global Payments Inc."]
["GPOR","Gulfport Energy Corporation"]
["GPR","GeoPetro Resources Co"]
["GPRE","Green Plains Renewable Energy Inc."]
["GPRO","Gen-Probe Incorporated"]
["GPS","Gap Inc. (the)"]
["GPU","Georgia Power Company"]
["GPW","Georgia Power Company"]
["GPX","Gp Strategies Corporation"]
["GR","Goodrich Corporation (the)"]
["GRA","W.r. Grace & Company"]
["GRAN","Bank of Granite Corporation"]
["GRB","Gerber Scientific Inc."]
["GRC","Gorman-Rupp Company (The)"]
["GRES","IQ ARB GLOBAL- YAHOO! FINANCE"]
["GRH","GreenHunter Energy Inc"]
["GRI","ALPS ETF Trust"]
["GRID","FIRST TRUST EXCHANGE-TRADED FUN-"]
["GRIF","Griffin Land & Nurseries Inc."]
["GRM","GENERAL MOTORS CORPORATION"]
["GRMH","GRAYMARK HEALTHC NEW"]
["GRMN","Garmin Ltd."]
["GRN","Claymore Exchange-traded Fund Trust"]
["GRNB","Green Bankshares Inc."]
["GRO","Agria Corporation"]
["GROW","U.S. Global Investors Inc."]
["GRR","Asia Tigers Fund Inc. (The)"]
["GRRF","China Grentech Corporation"]
["GRS","GAMMON GOLD INC"]
["GRT","Glimcher Realty Trust"]
["GRT-F","Glimcher Rlty Tr"]
["GRT-G","Glimcher Rlty Tr"]
["GRU","AB Svensk Ekportkredit (Swedish Export Credit Corporation)"]
["GRVY","GRAVITY Co. Ltd."]
["GRX","THE GABELLI HEALTHCARE &   WEL"]
["GRZ","Gold Reserve Inc"]
["GS","Goldman Sachs Group Inc. (the)"]
["GS-A","Goldman Sachs Group Inc"]
["GSAT","Globalstar Inc."]
["GSB","GlobalSCAPE Inc."]
["GS-B","Goldman Sachs Group Inc"]
["GSBC","Great Southern Bancorp Inc."]
["GSC","GS CONNECT S& P GSCI ENH ANCED"]
["GS-C","Goldman Sachs Group Inc"]
["GSD","GBLSHS FTSE DEV CNTRS US FUND"]
["GS-D","Goldman Sachs Group Inc"]
["GSG","ISHARES GSCI CMDTY"]
["GSH","Guangshen Railway Company"]
["GSI","GENERAL STEEL HLDGS"]
["GSIC","GSI Commerce Inc."]
["GSIT","GSI Technology Inc."]
["GSK","Glaxosmithkline Plc"]
["GSL","Global Signal Inc"]
["GSL.W","GLOBAL SHIP LEASE WT"]
["GSM","GLOBE SPECIALTY METALS INC."]
["GSO","GLOBALSHARES FTSE EMERGING MARK"]
["GSOL","Global Sources Ltd."]
["GSP","IPATH GSCI TRI ETN"]
["GSR","GLOBALSHARES FTSE"]
["GSS","Golden Star Resources Ltd"]
["GST","Gastar Exploration"]
["GSX","GASCO ENERGY INC"]
["GSZ","GLOBALSHARES FTSE EMERGING MARK"]
["GT","Goodyear Tire & Rubber Company (the)"]
["GTE","Gran Tierra Energy Inc."]
["GTF","Cytomedix Inc. New"]
["GTI","Graftech International Ltd"]
["GTIM","Good Times Restaurants Inc."]
["GTIV","Gentiva Health Services Inc."]
["GTLS","Chart Industries Inc."]
["GTN","Gray Television Inc."]
["GTN.A","Gray Television Inc"]
["GTS","TRIPLE-S MANAGEMENT CORPORATIO"]
["GTSI","GTSI Corp."]
["GTU","Central Gold Trust"]
["GTXI","GTx Inc."]
["GTY","Getty Realty Corporation"]
["GU","GUSHMAN ENVIRONMENTAL ENERGY L"]
["GUI","Gulf Power Company"]
["GUID","Guidance Software Inc."]
["GUL","Gulf Power Company"]
["GULF","WisdomTree Middle East Dividend Fund"]
["GUQ","Gulf Power Company"]
["GUR","SPDR Index Fund"]
["GUT","Gabelli Utility Trust (the)"]
["GUT-A","Gabelli Util Tr"]
["GV","Goldfield Corporation (The)"]
["GVA","Granite Construction Incorporated"]
["GVI","Vi Group Plc"]
["GVP","GSE Systems Inc."]
["GWF","Wells Fargo & Company"]
["GWL","SPDR Index Fund"]
["GWR","Genesee & Wyoming Inc."]
["GWW","W.w. Grainger Inc."]
["GWX","SPDR Index Fund"]
["GXC","streetTracks Index Funds"]
["GXDX","Genoptix Inc."]
["GXF","GLOBAL X FTSE NORDIC"]
["GXG","GL"]
["GXP","Great Plains Energy Inc"]
["GXP-E","Great Plains Energy Inc"]
["GXP-F","GREAT PLAINS ENERGY"]
["GY","Gencorp Inc."]
["GYA","Corporate Asset Backed Corp CABCO"]
["GYB","CABCO Series 2004-101 Trust"]
["GYC","Corporate Asset Backed Corp CABCO"]
["GYMB","Gymboree Corporation (The)"]
["GYRO","Gyrodyne Company of America Inc."]
["H","Realogy Corp"]
["HA","Hawaiian Holdings Inc."]
["HAE","Haemonetics Corporation"]
["HAFC","Hanmi Financial Corporation"]
["HAIN","Hain Celestial Group Inc. (The)"]
["HAL","Halliburton Company"]
["HALL","Hallmark Financial Services Inc."]
["HALO","Halozyme Therapeutics Inc."]
["HANS","Hansen Natural Corporation"]
["HAO","Claymore Exchange-Traded Fund Trust 2"]
["HAP","MKT VECTORS RVE ETF"]
["HAR","Harman International Industries Incorporated"]
["HAS","Hasbro Inc."]
["HAST","Hastings Entertainment Inc."]
["HAUP","Hauppauge Digital Inc."]
["HAV","HELIOS ADVANTAGE INCOME FUND"]
["HAVNP","New York Community Bancorp Inc."]
["HAWK","Petrohawk Energy Corporation"]
["HAYN","Haynes International Inc."]
["HBA-D","Hsbc Usa Inc New"]
["HBA-F","Hsbc Usa Inc New"]
["HBA-G","Hsbc Usa Inc New"]
["HBA-H","Hsbc Usa Inc New"]
["HBAN","Huntington Bancshares Incorporated"]
["HBANP","Huntington Bancshares Incorporated"]
["HBC","Hsbc Holdings Plc."]
["HBC.P","HARRIS PREFERRED CAP CP PFD"]
["HBC-A","Hsbc Hldgs Plc"]
["HBCP","HOME BANCORP INC."]
["HBE","HENRY BROS ELCTRNCS"]
["HBHC","Hancock Holding Company"]
["HBI","Hanesbrands Inc."]
["HBIO","Harvard Bioscience Inc."]
["HBNC","Horizon Bancorp (IN)"]
["HBNK","Hampden Bancorp Inc."]
["HBOS","Heritage Financial Group"]
["HCBK","Hudson City Bancorp Inc."]
["HCC","Hcc Insurance Holdings Inc."]
["HCCI","Heritage-Crystal Clean Inc."]
["HCF","Highland Credit Stategies Fund"]
["HCII","HOMEOWNERS CHOICE"]
["HCIIW","HOMEOWNERS CHOICE I"]
["HCKT","Hackett Group Inc.(The)"]
["HCN","Health Care Reit Inc."]
["HCN-D","Health Care Reit Inc"]
["HCN-F","Health Care Reit Inc"]
["HCN-G","Health Care Reit Inc"]
["HCP","Health Care Property Investors Inc."]
["HCP-E","Health Care Ppty Invs Inc"]
["HCP-F","Health Care Ppty Invs Inc"]
["HCS","HSBC HOLDING PLC"]
["HCSG","Healthcare Services Group Inc."]
["HD","Home Depot Inc. (the)"]
["HDB","Hdfc Bank"]
["HDNG","Hardinge Inc."]
["HDSN","Hudson Technologies Inc."]
["HDY","HyperDynamics Corporation"]
["HE","Hawaiian Electric Industries Inc."]
["HEAT","SMARTHEAT INC."]
["HEB","Hemispherx BioPharma Inc."]
["HEDJ","WISDOMTREE INTL HEDG"]
["HEES","H&E Equipment Services Inc."]
["HEI","Heico Corporation"]
["HEI.A","Heico Corporation"]
["HEK","HECKMANN CORPORATION"]
["HEK.U","HECKMANN CORP UTS"]
["HEK.W","HECKMANN CORP WTS"]
["HELE","Helen of Troy"]
["HEOP","Heritage Oaks Bancorp"]
["HEP","Holly Energy Partners L.p."]
["HERO","Hercules Offshore Inc."]
["HES","Hess Corporation"]
["HE-U","Heco Cap Tr Iii"]
["HEV","ENER1 INC"]
["HEW","Hewitt Associates Inc"]
["HF","Hff Inc."]
["HFBC","HopFed Bancorp Inc."]
["HFC-B","Hsbc Finance Corp"]
["HFFC","HF Financial Corp."]
["HFWA","Heritage Financial Corporation"]
["HGG","HHGREGG INC"]
["HGI","Claymore Exchange-Traded Fund Trust 2"]
["HGIC","Harleysville Group Inc."]
["HGR","Hanger Orthopedic Group Inc."]
["HGRD","Health Grades Inc."]
["HGSI","Human Genome Sciences Inc."]
["HGT","Hugoton Royalty Trust"]
["HH","Hooper Holmes Inc."]
["HHGP","Hudson Highland Group Inc."]
["HHH","Merrill Lynch Internet HOLDRS"]
["HHS","Harte-hanks Inc."]
["HHY","HELIOS HIGH YIELD FD"]
["HI","HILLENBRAND INC"]
["HIBB","Hibbett Sports Inc."]
["HIF","Western Asset High Income Fund Inc."]
["HIFS","Hingham Institution for Savings"]
["HIG","Hartford Financial Services Group Inc. (the)"]
["HIG-A","HARTFORD FINL SVCS GROUP INC"]
["HIH","Highland Hospitality Corporation"]
["HIHO","Highway Holdings"]
["HIL","HILL INTERNATIONAL INC"]
["HILL","Dot Hill Systems Corporation"]
["HIMX","Himax Technologies Inc."]
["HIO","Western Asset High Income Opportunity Fund Inc."]
["HIS","CIGNA High Income"]
["HIT","Hitachi Ltd."]
["HITK","Hi-Tech Pharmacal Co. Inc."]
["HITT","Hittite Microwave Corporation"]
["HIW","Highwoods Properties Inc."]
["HIW-B","Highwoods Pptys Inc"]
["HIX","Western Asset High Income Fund Ii Inc."]
["HJA","Ms Structured Asset Corp Saturns Ge Cap Corp Series 2002-14"]
["HJE","Ms Structured Asset Corp Saturns Ge Cap Corp Series 2002-14"]
["HJG","Ms Structured Asset Corp Saturns Ge Cap Corp Series 2002-14"]
["HJJ","Ms Structured Asset Corp Saturns Goldman Sachs"]
["HJL","Ms Structured Asset Corp Saturns Ge Cap Corp Series 2002-14"]
["HJN","Ms Structured Asset Corp Saturns Ge Cap Corp Series 2002-14"]
["HJO","Ms Structured Asset Corp Saturns Ge Cap Corp Series 2002-14"]
["HJR","Ms Structured Asset Corp."]
["HJT","Ms Structured Asset Corp"]
["HJV","MS STRUCTURED ASSET CORP. SATU"]
["HK","PETROHAWK ENERGY CORPORATION"]
["HKN","HKN Inc."]
["HL","Hecla Mining Company"]
["HL-C","HECLA MINING COMPANY 6.5%"]
["HLCS","Helicos BioSciences Corporation"]
["HLF","Herbalife Ltd."]
["HLIT","Harmonic Inc."]
["HLM.P","Hillman Group Capital Trust"]
["HLS","Healthsouth Corporation"]
["HLX","Helix Energy Solutions Group Inc"]
["HLYS","Heelys Inc."]
["HMA","Health Management Associates Inc."]
["HMC","Honda Motor Company Ltd."]
["HME","Home Properties Inc."]
["HMG","HMG/Courtland Properties Inc."]
["HMH","HELLOS MULTI-SECTOR HIHG INCOM"]
["HMIN","Home Inns & Hotels Management Inc."]
["HMN","Horace Mann Educators Corporation"]
["HMNA","Helios & Matheson North America Inc."]
["HMNF","HMN Financial Inc."]
["HMPR","Hampton Roads Bankshares Inc"]
["HMSY","HMS Holdings Corp"]
["HMY","Harmony Gold Mining Co. Ltd."]
["HNB","HERITAGE BANK NA"]
["HNBC","Harleysville National Corporation"]
["HNI","Hon Industries Inc."]
["HNP","Huaneng Power Intl"]
["HNR","Benton Oil and Gas Company"]
["HNSN","Hansen Medical Inc."]
["HNT","Health Net Inc."]
["HNW","Pioneer Diversified High Income Trust"]
["HNZ","Heinz H J Co"]
["HOC","Holly Corporation"]
["HOFT","Hooker Furniture Corporation"]
["HOG","Harley-davidson Inc."]
["HOGS","Zhongpin Inc."]
["HOKU","Hoku Scientific Inc."]
["HOLI","HLS Systems International Ltd."]
["HOLL","Hollywood Media Corp."]
["HOLX","Hologic Inc."]
["HOMB","Home BancShares Inc."]
["HOME","Home Federal Bancorp Inc."]
["HON","Honeywell International Inc."]
["HOO","Cascal N.V."]
["HOOK","Craft Brewers Alliance Inc"]
["HOS","Hornbeck Offshore Services"]
["HOT","Starwood Hotels & Resorts Worldwide Inc."]
["HOTT","Hot Topic Inc."]
["HOV","Hovnanian Enterprises Inc"]
["HOVNP","Hovnanian Enterprises Inc"]
["HP","Helmerich & Payne Inc."]
["HPCCP","Huntington Preferred Capital Inc."]
["HPF","John Hancock Pfd Income Fund Ii"]
["HPI","John Hancock Preferred Income Fund"]
["HPJ","HONG KONG HIGHPOWER"]
["HPOL","Harris Interactive Inc."]
["HPQ","Hewlett-packard Company"]
["HPS","John Hancock Preferred Income Fund Iii"]
["HPT","Hospitality Properites Trust"]
["HPT-B","Hospitality Pptys Tr"]
["HPT-C","HOSPITALITY PROPERTIES TRUST"]
["HPY","Heartland Payment Systems Inc."]
["HQH","H&q Healthcare Investors"]
["HQL","H&q Life Sciences Investors"]
["HQS","HQ Sustainable Maritime Industries Inc."]
["HR","Healthcare Realty Trust Incorporated"]
["HRAY","Hurray! Holding Co. Ltd."]
["HRB","H&r Block Inc."]
["HRBN","Harbin Electric Inc."]
["HRBR","Hollis-Eden Pharmaceuticals In"]
["HRC","HILL ROM HOLDINGS INC"]
["HRG","HARBINGER GROUP INC"]
["HRL","Hormel Foods Corporation"]
["HRLY","Herley Industries Inc."]
["HRP","Hrpt Properties Trust"]
["HRP-B","Hrpt Pptys Tr"]
["HRP-C","Hrpt Pptys Tr"]
["HRP-D","Hrpt Pptys Tr"]
["HRPN","HRPT PROPERTIES TRUST 7.50%"]
["HRS","Harris Corporation"]
["HRT","Arrhythmia Research Technology Inc."]
["HRZ","Horizon Lines Inc."]
["HS","Healthspring Inc."]
["HSA","HELIOS STRATEGIC INCOME FUND"]
["HSC","Harsco Corporation"]
["HSF","Hartford Income Fund Inc"]
["HSIC","Henry Schein Inc."]
["HSII","Heidrick & Struggles International Inc."]
["HSKA","Heska Corporation"]
["HSM","Hyperion Strategic Mortgage Income Fund (the)"]
["HSNI","HSN INC. WI"]
["HSP","Hospira Inc"]
["HST","Host Marriott Financial Trust"]
["HST-E","Host Hotels & Resorts Inc"]
["HSTM","HealthStream Inc."]
["HSWI","HSW International Inc."]
["HSY","Hershey Foods Corporation"]
["HT","HERSHA HOSPITALITY"]
["HT-A","HERSHA HOSP TR PR A"]
["HTB","Household Finance Corp"]
["HTBK","Heritage Commerce Corp"]
["HTCH","Hutchinson Technology Incorporated"]
["HTCO","Hickory Tech Corporation"]
["HTD","John Hancock Tax Advantaged Dividend Income Fund"]
["HTGC","Hercules Technology Growth Capital Inc."]
["HTH","HILLTOP HOLDINGS INC"]
["HTH-A","HILLTOP HOLDINGS INC"]
["HTHT","CHINA LODGING GROUP LIMITED"]
["HTLD","Heartland Express Inc."]
["HTLF","Heartland Financial USA Inc."]
["HTM","U.S. Geothermal Inc."]
["HTN","Household Finance Corp"]
["HTR","Hyperion Total Return Fund Inc. (the)"]
["HTRN","HealthTronics Inc."]
["HTS","HATTERAS FINANCIAL CORP"]
["HTWR","HEARTWARE"]
["HTX","Hutchison Telecommunications International"]
["HTY","JOHN HANCOCK TAX ADV GLOBAL SH"]
["HTZ","Hertz Global Holdings Inc"]
["HUB.A","Hubbell Inc A"]
["HUB.B","Hubbell Inc A"]
["HUBG","Hub Group Inc."]
["HUGH","Hughes Communications Inc"]
["HUM","Humana Inc."]
["HUN","Huntsman Corporation"]
["HURC","Hurco Companies Inc."]
["HURN","Huron Consulting Group Inc."]
["HUSA","Houston American Energy Corporation"]
["HUVL","HUDSON VLY HLDG CP"]
["HVT","Haverty Furniture Companies Inc."]
["HVT.A","Haverty Furniture Companies Inc."]
["HW","Headwaters Incorporated"]
["HWAY","Healthways Inc."]
["HWBK","Hawthorn Bancshares Inc."]
["HWCC","Houston Wire & Cable Company"]
["HWD","HARRY WINSTON DIAMOND CORP"]
["HWG","Hallwood Group Incorporated"]
["HWK","Hawk Corporation"]
["HWKN","Hawkins Inc."]
["HXL","Hexcel Corporation"]
["HXM","Desarrolladora Homex"]
["HYA","Lehman Abs Corporation"]
["HYB","New America High Income Fund Inc. (the)"]
["HYC","Hypercom Corporation"]
["HYD","MARKET VECTORS"]
["HYF","Managed High Yield Plus Fund Inc."]
["HYG","iShares Trust"]
["HYGSD","HYDROGENICS CORP"]
["HYH","Lehman Abs Corporation"]
["HYK","Lehman Abs Corporation"]
["HYL","Lehman Abs Corporation"]
["HYM","Lehman Abs Corporation"]
["HYT","Blackrock Corporate High Yield Fund VI Inc"]
["HYV","Blackrock Corporate High Yield Fund V Inc"]
["HYY","Structured Products Corp 6.25 Verizon Gbl"]
["HZD","Structured Products Corp."]
["HZK","Structured Products Corp."]
["HZO","Marinemax Inc."]
["IAAC","International Assets Holding Corporation"]
["IACI","IAC/InterActiveCorp"]
["IAE","ING ASIA PACIFIC HIGH DIVIDEND"]
["IAF","Aberdeen Australia Equity Fund Inc"]
["IAG","Iamgold Corporation"]
["IAH","Merrill Lynch Internet Architecture HOLDRS"]
["IAI","ISHARES DJ US BDIF"]
["IAK","ISHARES DJ US IN IDX"]
["IART","Integra LifeSciences Holdings Corporation"]
["IAT","ISHARES DJ US RBIF"]
["IAU","iShares COMEX Gold Trust"]
["IAX","International Absorbents Inc."]
["IBA","Industrias Bachoco S.a. De C.v."]
["IBB","ISHARE NQ BIOTCH INX"]
["IBCA","Intervest Bancshares Corp."]
["IBCP","Independent Bank Corporation"]
["IBCPO","Independent Bank Corporation"]
["IBI","Interline Brands Inc."]
["IBKC","IBERIABANK Corporation"]
["IBKR","Interactive Brokers Group Inc."]
["IBM","International Business Machines Corporation"]
["IBN","Icici Bank"]
["IBNK","Integra Bank Corporation"]
["IBOC","International Bancshares Corporation"]
["ICA","Empresas Ica Soc Contrladora"]
["ICAD","icad inc."]
["ICB","Ms Income Securities Inc."]
["ICCC","ImmuCell Corporation"]
["ICE","Intercontinental Exchange Inc."]
["ICF","Ishares Cohen & Steers Realty Majors Index Fund"]
["ICFI","ICF International Inc."]
["ICGE","Internet Capital Group Inc."]
["ICGN","Icagen Inc."]
["ICH","Investors Capital Holdings Ltd."]
["ICI","IPATH OPTIMIZED CURRENCY CARRY E"]
["ICLK","INTERCLICK INC"]
["ICLN","iShares S&P Global Clean Energy Index Fund"]
["ICLR","ICON plc"]
["ICN","WISDOMTREE DREYFUS"]
["ICO","International Coal Group Inc."]
["ICOC","ICO Inc."]
["ICOG","ICO Global Communications Holdings DE"]
["ICON","Iconix Brand Group Inc."]
["ICOP","ICOP Digital Inc."]
["ICS","Ms Insured California Municipal Securities"]
["ICUI","ICU Medical Inc."]
["ICXT","ICx Technologies Inc."]
["ID","L-1 Identity Solutions Inc."]
["IDA","Idacorp Inc."]
["IDC","Interactive Data Corporation"]
["IDCC","InterDigital Inc."]
["IDE","ING INFRASTUCTURE IND MAT FD"]
["IDG","INDUSTRIAL DISTR GRP INC"]
["IDI","Ideation Acquisition Corp"]
["IDI.W","Ideation Acquisition Corp"]
["IDIX","Idenix Pharmaceuticals Inc."]
["IDN","Intelli-Check Inc."]
["IDRA","Idera Pharmaceuticals Inc."]
["IDSA","Industrial Services of America Inc."]
["IDSY","I.D. Systems Inc."]
["IDT","Idt Corporation"]
["IDT.C","Idt Corp"]
["IDTI","Integrated Device Technology Inc."]
["IDU","Ishares Dow Jones U.s. Utilities Index Fund"]
["IDV","ISHARES DJ EPAC ETF"]
["IDX","MARKET VECTORS INDONESIA INDEX"]
["IDXX","IDEXX Laboratories Inc."]
["IEC","I E C ELECTRONICS CP"]
["IEF","Ishares Lehman 7-10 Year Treasury Bond Fund"]
["IEI","ISHARES LEHMAN 3-7 Y"]
["IEO","ISHARES DJ US OG EP"]
["IEP","ICAHN ENTERPRISES LP"]
["IESC","Integrated Electrical Services Inc."]
["IEV","Ishares S&p Europe 350 Index Fund"]
["IEX","Idex Corporation"]
["IEZ","ISHARES DJ US OE& SI"]
["IF","Indonesia Fund Inc. (The)"]
["IFAS","iShares FTSE EPRA/NAREIT Asia Index Fund"]
["IFEU","iShares FTSE EPRA/NAREIT Europe Index Fund"]
["IFF","Internationa Flavors & Fragrances Inc."]
["IFGL","iShares FTSE EPRA/NAREIT Global Real Estate ex-U.S. Index Fund"]
["IFLG","InfoLogix Inc."]
["IFN","India Fund Inc. (the)"]
["IFNA","iShares FTSE EPRA/NAREIT North America Index Fund"]
["IFON","InfoSonics Corp"]
["IFSB","Independence Federal Savings Bank"]
["IFSIA","Interface Inc."]
["IFSM","iShares FTSE Developed Small Cap ex-North America Index Fund"]
["IGA","Ing Global Advantage And Premium Opportunity Fund"]
["IGC","India Globalization Capital Inc."]
["IGC.W","India Globalization Capital Inc."]
["IGD","Ing Global Equity Dividend And Premium Opportunity Fund"]
["IGE","Ishares Goldman Sachs Natural Resources Index Fund"]
["IGF","ISHARES S& P GLOBAL I"]
["IGI","Imagistics International Inc"]
["IGK","ING GROEP NV"]
["IGLD","Internet Gold Golden Lines Ltd."]
["IGM","Ishares Goldman Sachs Technology Index Fund"]
["IGN","Ishares Goldman Sachs Network Index Fund"]
["IGOI","iGo Inc"]
["IGOV","ISHARES TRUST"]
["IGR","ING CLARION GLBL RE"]
["IGT","International Game Technology"]
["IGTE","iGATE Corporation"]
["IGV","Ishares Goldman Sachs Software Index Fund"]
["IGW","Ishares Goldman Sachs Semiconductor Index Fund"]
["IHC","Independence Holding Company"]
["IHE","ISHARES DJ US PHRM"]
["IHF","ISHARES DJ US HCPIF"]
["IHG","Intercontinental Hotels Group"]
["IHI","ISHARES DJ US MDIF"]
["IHS","Ihs Inc."]
["IHT","InnSuites Hospitality Trust"]
["IIC","Ms California Insured Municipal Income Trust"]
["IID","ING INTL HIGH DIVIDEND EQTY IN"]
["IIF","Morgan Stanley India Investment Fund Inc."]
["IIG","iMergent Inc"]
["IIH","Merrill Lynch Internet Infrastructure HOLDRS"]
["III","Information Services Group Inc."]
["IIIIW","Information Services Group Inc."]
["IIIN","Insteel Industries Inc."]
["IIJI","Internet Initiative Japan Inc."]
["IILG","INTERVAL LEISURE WI"]
["IIM","Ms Insured Municipal Income Trust"]
["IIN","IntriCon Corporation"]
["IIT","Perusahaan Satlt Cp"]
["IIVI","II-VI Incorporated"]
["IJD","Indiana Michigan Power Co."]
["IJH","Ishares S&p Midcap 400 Index Fund"]
["IJJ","Ishares S&p Midcap 400/barra Value Index Fund"]
["IJK","Ishares S&p Midcap 400/barra Growth Index Fund"]
["IJR","Ishares S&p Smallcap 600 Index Fund"]
["IJS","Ishares Small Cap 600/barra Value Index Fund"]
["IJT","Ishares Small Cap 600/barra Growth Index Fund"]
["IKAN","Ikanos Communications Inc."]
["IKJ","Bank of America Corporation"]
["IKL","Bank of America Corporation"]
["IKM","Bank of America Corporation"]
["IKNX","Ikonics Corporation"]
["IKR","Bank of America Corporation"]
["ILF","Ishares S&p Latin America 40 Index Fund"]
["ILI","Interleukin Genetics Inc."]
["ILMN","Illumina Inc."]
["IM","Ingram Micro Inc."]
["IMA","INVERNESS MED INNOVA"]
["IMA-B","INVERNESS MED PFD B"]
["IMAX","Imax Corporation"]
["IMC","International Multifoods"]
["IMF","Western Asset Inflation Management Fund Inc"]
["IMGN","ImmunoGen Inc."]
["IMKTA","Ingles Markets Incorporated"]
["IMMR","Immersion Corporation"]
["IMMU","Immunomedics Inc."]
["IMN","Imation Corporation"]
["IMO","Imperial Oil"]
["IMOS","ChipMOS TECHNOLOGIES (Bermuda) LTD."]
["IMPM","IMPAC MTG HLDGS INC"]
["IMS","Ms Insured Municipal Securities"]
["IMT","Ms Insured Municipal Trust"]
["IN","Unova Inc."]
["INAP","Internap Network Services Corporation"]
["INB","Cohen & Steers Global Income Builder Inc."]
["INCB","Indiana Community Bancorp"]
["INCY","Incyte Corporation"]
["IND","Ing Group N.v."]
["INDB","Independent Bank Corp."]
["INDL","DIREXION DAILY INDIA BULL 2X"]
["INDM","United America Indemnity Ltd."]
["INDZ","DIREXION DAILY INDIA BEAR 2X"]
["INET","Internet Brands Inc."]
["INFA","Informatica Corporation"]
["INFI","Infinity Pharmaceuticals Inc."]
["INFN","Infinera Corporation"]
["INFY","Infosys Technologies"]
["ING","Ing Group N.v."]
["INHX","Inhibitex Inc."]
["ININ","Interactive Intelligence Inc."]
["INMD","IntegraMed America Inc."]
["INO","Inovio Biomedical Corporation"]
["INOC","Innotrac Corporation"]
["INOD","Innodata Isogen Inc"]
["INP","IPATH ETNS LINKED TO"]
["INPH","Interphase Corporation"]
["INR","MARKET VECTORS RUPEE"]
["INS","Intelligent Systems Corporation"]
["INSM","Insmed Inc."]
["INSP","InfoSpace Inc."]
["INSU","Insituform Technologies Inc."]
["INT","World Fuel Services Corporation"]
["INTC","Intel Corporation"]
["INTG","Intergroup Corporation (The)"]
["INTT","inTest Corporation"]
["INTU","Intuit Inc."]
["INTX","Intersections Inc."]
["INUV","INUVO INC"]
["INV","American Residential Investment Trust Inc."]
["INVE","SCM MICROSYSTEMS INC."]
["INWK","InnerWorkings Inc."]
["INXI","INX Inc."]
["INY","SPDR Series Trust"]
["INZ","Ing Group N.v."]
["IO","Input/output Inc."]
["IOC","INTEROIL CORP"]
["IOO","ISHARE SP GBL 100 IN"]
["IOSP","Innospec Inc."]
["IOT","Income Opportunity Realty Trust"]
["IP","International Paper Company"]
["IPAR","Inter Parfums Inc."]
["IPAS","iPass Inc."]
["IPB","Merrill Lynch & Co. Inc."]
["IPCC","Infinity Property and Casualty Corporation"]
["IPCI","INTELLIPHARMACEUTICS INTERNATIO-"]
["IPCM","IPC The Hospitalist Company Inc."]
["IPD","SPDR Index Fund"]
["IPE","SPDR Series Trust"]
["IPF","SPDR Index Fund"]
["IPG","Interpublic Group Of Companies Inc. (the)"]
["IPGP","IPG Photonics Corporation"]
["IPHS","Innophos Holdings Inc."]
["IPI","INTREPID POTASH INC"]
["IPK","SPDR Index Fund"]
["IPL-B","Interstate Pwr & Lt Co"]
["IPN","SPDR Index Fund"]
["IPS","SPDR Index Fund"]
["IPSU","Imperial Sugar Company"]
["IPT","iParty Corporation"]
["IPU","SPDR Index Fund"]
["IPW","SPDR Index Fund"]
["IPXL","Impax Laboratories Inc."]
["IQC","Ms California Municipal Securities"]
["IQI","Ms Quality Municipal Income Trust"]
["IQM","Ms Quality Municipal Securities"]
["IQT","Ms Quality Municipal Investment Trust"]
["IR","Ingersoll-rand Company"]
["IRBT","iRobot Corporation"]
["IRC","Inland Real Estate Corporation"]
["IRDM","GHL ACQUISITION CORP"]
["IRDMW","GHL ACQUISITION CORP"]
["IRDMZ","IRIDIUM COMMUNICATIONS INC"]
["IRE","Governor And Company Of The Bank Of Ireland (the)"]
["IRET","Investors Real Estate Trust"]
["IRETP","Investors Real Estate Trust"]
["IRF","International Rectifier Corporation"]
["IRIS","IRIS International Inc."]
["IRIX","IRIDEX Corporation"]
["IRL","Irish Investment Fund Inc. (the)"]
["IRM","Iron Mountain Incorporated"]
["IRO","Claymore Exchange-Traded Fund Trust"]
["IRR","Ing Risk Managed Natural Resources Fund"]
["IRS","Irsa Inversiones Y Representaciones S.a."]
["IRSN","Irvine Sensors Corporation"]
["IRV","SPDR Index Fund"]
["IRWD","IRONWOOD PHARMACEUTICALS INC."]
["IRY","SPDR Index Fund"]
["ISBC","Investors Bancorp Inc."]
["ISCA","International Speedway Corporation"]
["ISF","ING GROEP N.V"]
["ISG","Ing Group N.v."]
["ISH","International Shipholding Corporation"]
["ISHG","ISHARES TRUST"]
["ISI","Ishares S&p 1500 Index Fund"]
["ISIG","Insignia Systems Inc."]
["ISIL","Intersil Corporation"]
["ISIS","Isis Pharmaceuticals Inc."]
["ISL","First Israel Fund Inc. (The)"]
["ISLE","Isle of Capri Casinos Inc."]
["ISLN","Isilon Systems Inc."]
["ISM","Slm Corporation"]
["ISP","Ing Group N.v."]
["ISPH","Inspire Pharmaceuticals Inc."]
["ISR","IsoRay Inc."]
["ISRG","Intuitive Surgical Inc."]
["ISRL","Isramco Inc."]
["ISSC","Innovative Solutions and Support Inc."]
["ISSI","Integrated Silicon Solution Inc."]
["IST","SPDR Index Fund"]
["ISTA","ISTA Pharmaceuticals Inc."]
["ISYS","Integral Systems Inc."]
["IT","Gartner Inc."]
["ITA","ISHARES DJ US A& DIF"]
["ITB","ISHARES DJ US HCIF"]
["ITC","Itc Holdings Corp."]
["ITE","SPDR Series Trust"]
["ITF","Ishares S&p/topix 150 Index Fund"]
["ITG","Investment Technology Group Inc."]
["ITI","Iteris Inc."]
["ITIC","Investors Title Company"]
["ITM","Market Vectors ETF Trust"]
["ITMN","InterMune Inc."]
["ITR","SPDR BARCLAYS CAPITAL INTERM CRE"]
["ITRI","Itron Inc."]
["ITRN","Ituran Location and Control Ltd."]
["ITT","Itt Industries Inc."]
["ITUB","ITAU UNIBANCO ADS"]
["ITW","Illinois Tool Works Inc."]
["IUSA","infoGROUP Inc."]
["IVAC","Intevac Inc."]
["IVAN","Ivanhoe Energy Inc."]
["IVC","Invacare Corporation"]
["IVD","IVAX Diagnostics Inc."]
["IVE","Ishares S&p 500/barra Value Index Fund"]
["IVN","Ivanhoe Mines Ltd"]
["IVR","INVESCO MORTGAGE INC"]
["IVV","Ishares S&p 500 Index Fund"]
["IVW","Ishares S&p 500/barra Growth Index Fund"]
["IVZ","INVESCO PLC"]
["IWA","Iowa Telecommunications Services Inc."]
["IWB","Ishares Russell 1000 Index Fund"]
["IWC","ISHARES RUSSELL MICR"]
["IWD","Ishares Russell 1000 Value Index Fund"]
["IWF","Ishares Russell 1000 Growth Index Fund"]
["IWL","ISHARES"]
["IWM","Ishares Russell 2000 Index Fund"]
["IWN","Ishares Russell 2000 Value Index Fund"]
["IWO","Ishares Russell 2000 Growth Index Fund"]
["IWP","Ishares Russell Midcap Growth Index Fund"]
["IWR","Ishares Russell Midcap Index Fund"]
["IWS","Ishares Russell Midcap Value Index Fund"]
["IWV","Ishares Russell 3000 Index Fund"]
["IWW","Ishares Russell 3000 Value Index Fund"]
["IWX","ISHARES"]
["IWY","ISHARES"]
["IWZ","Ishares Russell 3000 Growth Index Fund"]
["IX","Orix Corp Ads"]
["IXC","Ishares S&p Global Energy Index Fund"]
["IXG","Ishares S&p Global Financial Index Fund"]
["IXJ","Ishares S&p Global Healthcare Index Fund"]
["IXN","Ishares S&p Global Technology Index Fund"]
["IXP","Ishares S&p Global Telecommunications Index Fund"]
["IXYS","IXYS Corporation"]
["IYC","Ishares Dow Jones U.s. Consumer Index Fund"]
["IYE","Ishares Dow Jones U.s. Oil And Gas Fund"]
["IYF","Ishares Dow Jones U.s. Financials Index Fund"]
["IYG","Ishares Dow Jones U.s. Financial Services Index Fund"]
["IYH","Ishares Dow Jones U.s. Health Care Index Fund"]
["IYJ","Ishares Dow Jones U.s. Industrials Index Fund"]
["IYK","Ishares Dow Jones U.s. Consumer Goods Index Fund"]
["IYM","Ishares Dow Jones U.s. Basic Materials Index"]
["IYR","Ishares Dow Jones U.s. Real Estate Index Fund"]
["IYT","Ishares Dow Jones Transportation Average Index Fund"]
["IYW","Ishares Dow Jones U.s. Technology Index Fund"]
["IYY","Ishares Dow Jones U.s. Total Market Index Fund"]
["IYZ","Ishares Dow Jones U.s. Telecommunications Index Fund"]
["JACK","JACK IN THE BOX INC"]
["JADE","LJ International Inc."]
["JAG","JAGUAR MINING INC"]
["JAH","Jarden Corporation"]
["JAKK","JAKKS Pacific Inc."]
["JAS","Jo-ann Stores Inc."]
["JASO","JA Solar Holdings Co. Ltd."]
["JAV","Javelin Pharmaceuticals Inc."]
["JAX","J. Alexander's Corporation"]
["JAXB","Jacksonville Bancorp Inc."]
["JAZZ","Jazz Pharmaceuticals Inc."]
["JBHT","J.B. Hunt Transport Services Inc."]
["JBI","Lehman Abs Cp 7.857%"]
["JBJ","Lehman Abs Corporation"]
["JBK","Lehman Abs Corporation"]
["JBL","Jabil Circuit Inc."]
["JBLU","JetBlue Airways Corporation"]
["JBN","JCP CP CB CL TR CRTS"]
["JBO","Lehman Abs Corporation"]
["JBR","Select Asset Inc."]
["JBSS","John B. Sanfilippo & Son Inc."]
["JBT","JOHN BEAN TECH CORP"]
["JCDA","Jacada Ltd."]
["JCE","NUVEEN CORE EQUITY ALPHA FUND"]
["JCG","J. Crew Group Inc."]
["JCI","Johnson Controls Inc."]
["JCOM","j2 Global Communications Inc"]
["JCP","J.c. Penney Company Inc. Holding Company"]
["JCS","Communications Systems Inc."]
["JCTCF","Jewett-Cameron Trading Company"]
["JDAS","JDA Software Group Inc."]
["JDD","Nuveen Diversified Dividend And Income Fund"]
["JDSU","JDS Uniphase Corporation"]
["JEC","Jacobs Engineering Group Inc."]
["JEF","Jefferies Group Inc."]
["JEM","Barclays PLC"]
["JEQ","Japan Equity Fund Inc. (the)"]
["JFBI","Jefferson Bancshares Inc."]
["JFC","Jf China Region Fund Inc."]
["JFP","Nuveen Ta Fl Rate Fd"]
["JFR","Nuveen Floating Rate Income Fund"]
["JFT","J P Morgan Chase & Co"]
["JGG","Nuveen Global Government Enhanced Income Fund"]
["JGT","NUVEEN MULTI CURRENCY SHORT TE"]
["JGV","Nuveen Global Value Opportunities Fund"]
["JHI","John Hancock Investors Trust"]
["JHP","Nuveen Quality Preferred Income Fund 3"]
["JHS","John Hancock Income Securities Trust"]
["JHX","James Hardie Industries Nv"]
["JJA","IPATH AIG AGRI ETN"]
["JJC","IPATH AIG COPPER ETN"]
["JJE","IPATH AIG ENERGY ETN"]
["JJG","IPATH AIG GRAINS ETN"]
["JJM","IPATH AIG IND MT ETN"]
["JJN","IPATH AIG NICKEL ETN"]
["JJP","IPATH DJ-AIG PRECIOU"]
["JJS","IPATH DJ-AIG SOFTS"]
["JJSF","J & J Snack Foods Corp."]
["JJU","IPATH DJ-AIG ALUMINU"]
["JKD","ISHARES MRNGST LRG C"]
["JKE","ISHARES MRNG LRG GR"]
["JKF","ISHARES MRGSR LGVLIX"]
["JKG","ISHARES MRGST MIDCOR"]
["JKH","ISHARES MRGST GRO IN"]
["JKHY","Jack Henry & Associates Inc."]
["JKI","ISHARES MRGNG MID VA"]
["JKJ","ISHARES MRGN SM CORE"]
["JKK","ISHARES MRNGST SM GR"]
["JKL","ISHARES MRNGST SM VL"]
["JLA","Nuveen Equity Premium Advantage Fund"]
["JLI","Jesup & Lamont Inc"]
["JLL","Jones Lang Lasalle Incorporated"]
["JMBA","Jamba Inc."]
["JMP","JMP GROUP INC."]
["JMT","NUVEEN MORTGAGE OPPTY TRM FD 2"]
["JNJ","Johnson & Johnson"]
["JNK","SPDR Series Trust"]
["JNPR","JUNIPER NETWORKS INC"]
["JNS","Stilwell Financial Inc."]
["JNY","Jones Apparel Group Inc."]
["JO","IPATH DJ-AIG COFFEE"]
["JOB","General Employment Enterprises Inc."]
["JOBS","51job Inc."]
["JOE","St. Joe Company (the)"]
["JOEZ","Joe's Jeans Inc."]
["JOF","Japan Smaller Capitalization Fund Inc"]
["JOSB","Jos. A. Bank Clothiers Inc."]
["JOUT","Johnson Outdoors Inc."]
["JOYG","Joy Global Inc."]
["JPC","Nuveen Preferred And Convertible Income Fund"]
["JPG","Nuveen Equity Premium And Growth Fund"]
["JPM","J.p. Morgan Chase & Co."]
["JPM.W","JPMORGAN CHASE"]
["JPM-B","JPMORGAN CHASE CAPITAL XXVIII"]
["JPM-C","JPMORGAN CHASE CAPITAL XXIX 6.7"]
["JPM-E","JPMORGAN CHASE & CO S  ER E"]
["JPM-F","JPMORGAN CHASE & CO S  ER F"]
["JPM-I","JPMORGAN CHASE & CO 8  .625%"]
["JPM-J","Jp Morgan Chase Cap X"]
["JPM-K","J P Morgan Chase Cap Xi"]
["JPM-P","Jpmorgan Chase Cap Xvi"]
["JPM-S","Jpmorgan Chase Cap Xix"]
["JPM-W","JPMORGAN CHASE CAPITAL XXIV"]
["JPM-X","J P Morgan Chase Cap Xii"]
["JPM-Y","Jpmorgan Chase Cap Xiv"]
["JPM-Z","JPMORGAN CHASE CAPITAL XXVI"]
["JPS","Nuveen Quality Preferred Income Fund 2"]
["JPX","PROSHARES"]
["JPZ","Nuveen Equity Premium Income Fund"]
["JQC","Nuveen Preferred And Convertible Income Fund 2"]
["JRCC","James River Coal Company"]
["JRJC","China Finance Online Co."]
["JRN","Journal Communications Inc."]
["JRO","Nuveen Floating Rate Income Opportuntiy Fund"]
["JRS","Nuveen Real Estate Fund"]
["JSC","streetTRACKS Index Funds"]
["JSDA","Jones Soda Co."]
["JSM","Slm Corporation"]
["JSN","Nuveen Equity Premium Opportunity Fund"]
["JST","JINPAN INTL LTD"]
["JTA","Nuveen Tax-advantaged Total Return Strategy Fund"]
["JTD","NUVEEN TAX-ADVANTAGED DIVIDEND"]
["JTP","Nuveen Quality Preferred Income Fund"]
["JTX","Jackson Hewitt Tax Services"]
["JVA","Coffee Holding Co."]
["JW.A","John Wiley & Sons Inc."]
["JW.B","John Wiley & Sons Inc."]
["JWF","Wells Fargo & Company"]
["JWN","Nordstrom Inc."]
["JXI","ISHARES S& P GLOBAL"]
["JXSB","Jacksonville Bancorp Inc."]
["JYN","IPATH JPY/USD EXCHAN"]
["JZC","Lehman Abs Corporation"]
["JZE","Lehman Abs Corporation"]
["JZH","Lehman Abs Corporation"]
["JZJ","Lehman Abs Corporation"]
["JZK","Lehman Abs Corporation"]
["JZL","Lehman Abs Corporation"]
["JZS","Lehman Abs Corporation"]
["JZT","Lehman Abs Corp"]
["JZV","Lehman Abs Corporation"]
["K","Kellogg Company"]
["KAD","Arcadia Resources Inc."]
["KAI","Kadant Inc"]
["KALU","Kaiser Aluminum Corporation"]
["KAMN","Kaman Corporation"]
["KAR","Adesa Inc"]
["KAZ","BMB Munai Inc."]
["KB","Kookmin Bank"]
["KBALB","Kimball International Inc."]
["KBE","SPDR Series Trust"]
["KBH","Kb Home"]
["KBR","Kbr Inc."]
["KBW","Kbw Inc"]
["KBX","Kimber Resources Inc"]
["KCAP","Kohlberg Capital Corporation"]
["KCC","Lehman Abs Corporation"]
["KCE","SPDR Series Trust"]
["KCI","Kinetic Concepts Inc."]
["KCLI","Kansas City Life Insurance Company"]
["KCP","Kenneth Cole Productions Inc."]
["KCT","Lehman Abs Corporation"]
["KCW","Lehman Abs Corporation"]
["KDE","4Kids Entertainment Inc."]
["KDN","Kaydon Corporation"]
["KED","Kayne Anderson Energy Development Company"]
["KEF","Korea Equity Fund Inc."]
["KEG","Key Energy Services Inc."]
["KEI","Keithley Instruments Inc."]
["KELYA","Kelly Services Inc."]
["KEP","Korea Electric Power Corporation"]
["KEQU","Kewaunee Scientific Corporation"]
["KERX","Keryx Biopharmaceuticals Inc."]
["KEX","Kirby Corporation"]
["KEY","Keycorp"]
["KEY-A","Keycorp Cap V"]
["KEY-B","Keycorp Cap Vi"]
["KEY-D","Keycorp Capital Viii"]
["KEY-E","Keycorp Cap Ix"]
["KEY-F","KEYCORP CAPITAL X"]
["KEY-G","KEYCORP PFD"]
["KEYN","Keynote Systems Inc."]
["KF","Korea Fund Inc. (the)"]
["KFED","K-Fed Bancorp"]
["KFFB","Kentucky First Federal Bancorp"]
["KFN","Kkr Financial Corp."]
["KFRC","Kforce Inc."]
["KFS","Kingsway Financial Services Inc."]
["KFT","Kraft Foods Inc."]
["KFY","Korn/ferry International"]
["KG","King Pharmaceuticals Inc."]
["KGC","Kinross Gold Corporation"]
["KGN","Keegan Resources Inc"]
["KGS","QUICKSILVER GAS"]
["KHI","Scudder High Income Trust"]
["KID","KID BRANDS INC"]
["KIE","SPDR Series Trust"]
["KIM","Kimco Realty Corporation"]
["KIM-F","Kimco Realty Corp"]
["KIM-G","KIMCO REALTY CORPORATION"]
["KINS","KINGSTONE COS INC"]
["KIRK","Kirkland's Inc."]
["KITD","KIT DIGITAL INC"]
["KKD","Krispy Kreme Doughnuts Inc."]
["KLAC","KLA-Tencor Corporation"]
["KLD","ISHARES KLD INDX FD"]
["KLIC","Kulicke and Soffa Industries Inc."]
["KMB","Kimberly-clark Corporation"]
["KMGB","KMG Chemicals Inc."]
["KMM","Scudder Multi-market Income Trust"]
["KMP","Kinder Morgan Energy Partners L.p."]
["KMR","Kinder Morgan Management Llc"]
["KMT","Kennametal Inc."]
["KMX","CarMax Inc"]
["KND","Kindred Healthcare Inc."]
["KNDI","Kandi Technolgies Corp."]
["KNDL","Kendle International Inc."]
["KNL","Knoll Inc."]
["KNM","Konami Corporation"]
["KNO","Lehman Abs Corporation"]
["KNOL","Knology Inc."]
["KNOT","Knot Inc. (The)"]
["KNSY","Kensey Nash Corporation"]
["KNX","Knight Transportation Inc."]
["KNXA","Kenexa Corporation"]
["KO","Coca-Cola Company (The)"]
["KOF","Coca Cola Femsa S.A.B. de C.V."]
["KOG","Kodiak Oil"]
["KOL","MARKET VECTORS COAL"]
["KONA","Kona Grill Inc."]
["KONG","KongZhong Corporation"]
["KOOL","THERMOGENESIS Corp."]
["KOP","Koppers Holdings Inc."]
["KOPN","Kopin Corporation"]
["KOS","Lehman Abs Corporation"]
["KOSS","Koss Corporation"]
["KR","Kroger Company (the)"]
["KRA","KRATON PERFORMANCE POLYMERS IN"]
["KRB-D","Mbna Cap D"]
["KRB-E","Mbna Cap E"]
["KRC","Kilroy Realty Corporation"]
["KRC-E","Kilroy Rlty Corp"]
["KRC-F","Kilroy Rlty Corp"]
["KRE","SPDR Series Trust"]
["KRG","Kite Realty Group Trust"]
["KRH","Lehman Abs Corporation"]
["KRJ","Lehman Abs Corporation"]
["KRNY","Kearny Financial"]
["KRO","Kronos Worldwide Inc"]
["KROO","IQ AUSTRALIA SMALL CAP ETF"]
["KRY","Crystallex International Corporation"]
["KS","KAPSTONE PAPER AND PACKAGING CO"]
["KSA","Lehman Abs Corporation"]
["KSK","Lehman Abs Corporation"]
["KSM","Scudder Strategic Municiple Income Trust"]
["KSP","K-sea Transportation Partners Lp"]
["KSS","Kohl's Corporation"]
["KST","Scudder Strategic Income Trust"]
["KSU","Kansas City Southern"]
["KSW","KSW Inc"]
["KSWS","K-Swiss Inc."]
["KT","Katy Industries Inc."]
["KTCC","Key Tronic Corporation"]
["KTEC","Key Technology Inc."]
["KTF","Scudder Municiple Income Trust"]
["KTH","Lehman Abs Corporation"]
["KTN","Lehman Abs Corporation"]
["KTOS","Kratos Defense & Security Solutions Inc."]
["KTP","Lehman Abs Corporation"]
["KTV","Lehman Abs Corporation"]
["KTX","Lehman Abs Corporation"]
["KUB","Kubota Corporation"]
["KUN","China Shenghuo Pharmaceutical Holdings Inc"]
["KV.A","K-v Pharmaceutical Company"]
["KV.B","K-v Pharmaceutical Company"]
["KVHI","KVH Industries Inc."]
["KVJ","Lehman Abs Corporation"]
["KVN","Lehman Abs Corporation"]
["KVR","Lehman Abs Corporation"]
["KVT","Lehman Abs Corporation"]
["KVU","Lehman Abs Corporation"]
["KW","Kennedy-Wilson Holdi"]
["KWK","Quicksilver Resources Inc."]
["KWR","Quaker Chemical Corporation"]
["KWT","Market Vectors ETF Trust"]
["KXI","ISHARES S& P GLOBAL"]
["KXM","IMA EXPLORATION INC"]
["KYE","Kayne Anderson Energy Total Return Fund Inc."]
["KYN","Kayne Anderson Mlp Investment Company"]
["KYO","Kyocera Corporation"]
["L","Liberty Media Corporation"]
["LAB","Labranche & Co. Inc."]
["LABC","Louisiana Bancorp Inc."]
["LABL","Multi-Color Corporation"]
["LACO","Lakes Entertainment Inc."]
["LAD","Lithia Motors Inc."]
["LAG","SPDR Series Trust"]
["LAKE","Lakeland Industries Inc."]
["LAMR","Lamar Advertising Company"]
["LANC","Lancaster Colony Corporation"]
["LAQ","Latin America Equity Fund Inc. (The)"]
["LARK","Landmark Bancorp Inc."]
["LAVA","Magma Design Automation Inc."]
["LAWS","Lawson Products Inc."]
["LAYN","Layne Christensen Company"]
["LAZ","Lazard Ltd."]
["LB","LaBarge Inc."]
["LBAI","Lakeland Bancorp Inc."]
["LBF","Scudder Global High Income Fund Inc."]
["LBIX","Leading Brands Inc"]
["LBJ","DIREXION"]
["LBTYA","Liberty Global Inc."]
["LBTYB","Liberty Global Inc."]
["LBTYK","Liberty Global Inc."]
["LBY","LIBBEY INC  SC"]
["LCAPA","Liberty Media Corporation"]
["LCAPB","Liberty Media Corporation"]
["LCAV","LCA-Vision Inc."]
["LCC","Us Airways Group Inc. New"]
["LCI","Lannett Co Inc"]
["LCM","Advent/Claymore Enhanced Growth & Income Fund"]
["LCRD","LaserCard Corporation"]
["LCRY","LeCroy Corporation"]
["LCUT","Lifetime Brands Inc."]
["LD","IPATH DJ-AIG LEAD"]
["LDF","Latin American Discovery Fund Inc. (the)"]
["LDK","LDK SOLAR CO. LTD"]
["LDL","Lydall Inc."]
["LDR","Landauer Inc."]
["LDSH","Ladish Co. Inc."]
["LEA","Lear Corporation"]
["LEAP","Leap Wireless International Inc."]
["LECO","Lincoln Electric Holdings Inc."]
["LEDR","HOUSEVALUES INC."]
["LEE","Lee Enterprises Incorporated"]
["LEG","Leggett & Platt Incorporated"]
["LEGC","Legacy Bancorp Inc."]
["LEI","Lucas Energy Inc."]
["LEN","Lennar Corporation"]
["LEN.B","Lennar Corp"]
["LEO","Dreyfus Strategic Municipals Inc."]
["LF","Leapfrog Enterprises Inc"]
["LFC","China Life Insurance Company"]
["LFL","Lan Chile S.a."]
["LFT","LONGTOP FINANCIAL TECHNOLOGIES"]
["LFUS","Littelfuse Inc."]
["LG","Laclede Group Inc."]
["LGCY","Legacy Reserves LP"]
["LGF","Lions Gate Entertainment Corporation"]
["LGI","Lazard Global Total Return And Income Fund"]
["LGL","LGL Group Inc."]
["LGN","Lodgian Inc."]
["LGND","Ligand Pharmaceuticals Incorporated"]
["LH","Laboratory Corporation Of America Holdings"]
["LHB","DIREXION"]
["LHCG","LHC Group"]
["LHO","Lasalle Hotel Properties"]
["LHO-B","Lasalle Hotel Pptys"]
["LHO-D","Lasalle Hotel Pptys"]
["LHO-E","Lasalle Hotel Pptys"]
["LHO-G","Lasalle Hotel Pptys"]
["LIA","Liberty Acquisition Holdings Corp"]
["LIA.U","Liberty Acquisition Holdings Corp"]
["LIA.W","Liberty Acquisition Holdings Corp"]
["LIFE","Lifeline Systems Inc."]
["LIHR","Lihir Gold"]
["LII","Lennox International Inc."]
["LIME","lime energy co."]
["LINC","Lincoln Educational Services Corporation"]
["LINE","Linn Energy LLC"]
["LINTA","Liberty Media Corporation"]
["LINTB","Liberty Media Corporation"]
["LION","Fidelity Southern Corporation"]
["LIOX","Lionbridge Technologies Inc."]
["LIVE","LiveDeal Inc."]
["LIWA","LIHUA INTERNATIONAL INC."]
["LIZ","Liz Claiborne Inc."]
["LKFN","Lakeland Financial Corporation"]
["LKQX","LKQ Corporation"]
["LL","LUMBER LIQUIDATORS INC"]
["LLEN","L&L Intl Hldgs Inc"]
["LLL","L-3 Communications Holdings Inc."]
["LLNW","Limelight Networks Inc."]
["LLTC","Linear Technology Corporation"]
["LLY","Eli Lilly and Company"]
["LM","Legg Mason Inc."]
["LMAT","LeMaitre Vascular Inc."]
["LMI","LEGG MASON CORP UNIT"]
["LMIA","LMI Aerospace Inc."]
["LMLP","LML Payment Systems Inc."]
["LMNX","Luminex Corporation"]
["LMT","Lockheed Martin Corporation"]
["LNBB","LNB Bancorp Inc."]
["LNC","Lincoln Natl Corp Ind"]
["LNCE","Lance Inc."]
["LNC-F","Lincoln Natl Cap Vi"]
["LNC-G","Lincoln Natl Corp Ind"]
["LNCR","Lincare Holdings Inc."]
["LNDC","Landec Corporation"]
["LNET","LodgeNet Interactive Corporation"]
["LNG","Cheniere Energy Inc."]
["LNN","Lindsay Corporation"]
["LNT","Alliant Energy Corporation"]
["LNUX","SourceForge Inc."]
["LNY","Landry's Restaurants Inc."]
["LO","LORILLARD INC"]
["LOAN","Manhattan Bridge Capital Inc"]
["LOCM","Local.com Corporation"]
["LOGC","Logic Devices Incorporated"]
["LOGI","Logitech International S.A."]
["LOGM","LOGMEIN INC."]
["LOJN","LoJack Corporation"]
["LONG","eLong Inc."]
["LOOK","LookSmart Ltd."]
["LOOP","LoopNet Inc."]
["LOPE","GRAND CANYON EDUCATION INC."]
["LOR","Lazard World Dividend & Income Fund Inc."]
["LORL","Loral Space and Communications Inc."]
["LOV","Spark Networks Plc"]
["LOW","Lowe's Companies Inc."]
["LPHI","Life Partners Holdings Inc"]
["LPL","Lg.philips"]
["LPNT","LifePoint Hospitals Inc."]
["LPS","LENDER PROCESSING SERVICES INC"]
["LPSN","LivePerson Inc."]
["LPTH","LightPath Technologies Inc."]
["LPX","Louisiana-pacific Corporation"]
["LQD","Tm Corporate Bond Fund"]
["LQDT","Liquidity Services Inc."]
["LRAD","Lrad Corp"]
["LRCX","Lam Research Corporation"]
["LRN","K12 INC"]
["LRY","Liberty Property Trust"]
["LSBI","LSB Financial Corp."]
["LSBK","Lake Shore Bancorp Inc."]
["LSBX","LSB Corporation"]
["LSC","ELEMENTS S& P ETN"]
["LSCC","Lattice Semiconductor Corporation"]
["LSE","Caplease Funding Inc"]
["LSE-A","Caplease Funding Inc"]
["LSI","Lsi Logic Corporation"]
["LSTR","Landstar System Inc."]
["LSTZA","LIBERTY MEDIA CORPORATION- YAHOO"]
["LTBR","LIGHTBRIDGE CORP"]
["LTC","Ltc Properties Inc."]
["LTC-F","Ltc Pptys Inc"]
["LTD","Limited Brands Inc."]
["LTL","ProShares Trust"]
["LTM","Life Time Fitness"]
["LTON","Linktone Ltd."]
["LTPZ","PIMCO"]
["LTRE","Learning Tree International Inc."]
["LTRX","Lantronix Inc."]
["LTS","Ladenburg Thalmann Financial Services Inc"]
["LTXC","LTX CREDENCE CORP"]
["LUB","Luby's Inc."]
["LUFK","Lufkin Industries Inc."]
["LUK","Leucadia National Corporation"]
["LULU","lululemon athletica inc."]
["LUNA","Luna Innovations Incorporated"]
["LUV","Southwest Airlines Company"]
["LUX","Luxottica Group S.p.a."]
["LVB","Steinway Musical Instruments Inc."]
["LVL","Claymore Exchange-Traded Fund Trust"]
["LVLT","Level 3 Communications Inc."]
["LVS","Las Vegas Sands Corp."]
["LWAY","Lifeway Foods Inc."]
["LWC","SPDR BARCLAYS CAPITL"]
["LWSN","Lawson Software Inc."]
["LXK","Lexmark International Inc."]
["LXP","Lexington Realty Trust"]
["LXP-B","Lexington Realty Trust"]
["LXP-C","Lexington Realty Trust"]
["LXP-D","Lexington Rlty Tr"]
["LXRX","Lexicon Pharmaceuticals Inc."]
["LXU","LSB INDUSTRIES INC"]
["LYG","Lloyds Tsb Group Plc"]
["LYTS","LSI Industries Inc."]
["LYV","CCE Spinco Inc."]
["LZ","Lubrizol Corporation (the)"]
["LZB","La-z-boy Incorporated"]
["LZR","EMERGENT GROUP INC"]
["M","MACY'S INC"]
["MA","Mastercard Incorporated"]
["MAA","Mid-america Apartment Communities Inc."]
["MAA-H","Mid-amer Apt Cmntys Inc"]
["MAB","Eaton Vance Insured Massachusetts Municipal Bond Fund"]
["MAC","Macerich Company (the)"]
["MACE","Mace Security International Inc."]
["MAG","Magnetek Inc."]
["MAGS","Magal Security Systems Ltd."]
["MAIL","IncrediMail Ltd."]
["MAIN","Main Street Capital Corporation"]
["MAKO","MAKO Surgical Corp."]
["MALL","PC Mall Inc."]
["MAM","Maine & Maritimes Corporation"]
["MAN","Manpower Inc"]
["MANH","Manhattan Associates Inc."]
["MANT","ManTech International Corporation"]
["MAPP","MAP Pharmaceuticals Inc."]
["MAR","Marriot International"]
["MAS","Masco Corporation"]
["MASI","Masimo Corporation"]
["MAT","MATTEL INC"]
["MATK","Martek Biosciences Corporation"]
["MATW","Matthews International Corporation"]
["MAV","Pioneer Municipal High Income Advantage Trust"]
["MAXY","Maxygen Inc."]
["MAY","MAY DEPT STORES CO"]
["MAYS","J. W. Mays Inc."]
["MBA","CIBT Education Group Inc."]
["MBB","iShares Trust"]
["MBC","CITIGROUP FUNDING"]
["MBF","CITIGROUP"]
["MBFI","MB Financial Inc."]
["MBG","SPDR BARCLAY CAP BD"]
["MBHI","Midwest Banc Holdings Inc."]
["MBI","Mbia Inc."]
["MBLX","Metabolix Inc."]
["MBND","Multiband Corporation"]
["MBR","Mercantile Bancorp Inc. (Quincey IL)"]
["MBRG","Middleburg Financial Corporation"]
["MBRK","MiddleBrook Pharmaceuticals Inc."]
["MBT","Mobile Telesystems"]
["MBTF","M B T Financial Corp"]
["MBVT","Merchants Bancshares Inc."]
["MBWM","Mercantile Bank Corporation"]
["MCA","Blackrock MuniYield California Insured Fund Inc."]
["MCBC","Macatawa Bank Corporation"]
["MCBF","Monarch Community Bancorp Inc."]
["MCBI","MetroCorp Bancshares Inc."]
["MCCC","Mediacom Communications Corporation"]
["MCD","Mcdonald's Corporation"]
["MCF","Contango Oil & Gas Company"]
["MCGC","MCG Capital Corporation"]
["MCHP","Microchip Technology Incorporated"]
["MCHX","Marchex Inc."]
["MCI","Massmutual Corporate Investors"]
["MCK","Mckesson Corporation"]
["MCN","Madison/claymore Covered Call Fund"]
["MCO","Moody's Corporation"]
["MCR","Mfs Charter Income Trust"]
["MCRI","Monarch Casino & Resort Inc."]
["MCRL","Micrel Incorporated"]
["MCRO","IQ HEDGE MACRO TRACK"]
["MCRS","MICROS Systems Inc."]
["MCS","Marcus Corporation (the)"]
["MCY","Mercury General Corporation"]
["MCZ","Mad Catz Interactive Inc"]
["MD","MEDNAX INC"]
["MDAS","MedAssets Inc."]
["MDC","M.d.c. Holdings Inc."]
["MDCA","MDC Partners Inc."]
["MDCI","Medical Action Industries Inc."]
["MDCO","Medicines Company (The)"]
["MDD","SPDR Index Fund"]
["MDF","Metropolitan Health Networks Inc."]
["MDH","MHI Hospitality Corporation"]
["MDM","Mountain Province Diamonds Inc."]
["MDNU","Medical Nutrition USA Inc."]
["MDP","Meredith Corporation"]
["MDR","Mcdermott International Inc."]
["MDRX","Allscripts Healthcare Solutions Inc"]
["MDS","Midas Inc."]
["MDSO","MEDIDATA SOLUTIONS INC."]
["MDT","Medtronic Inc."]
["MDTH","MedCath Corporation"]
["MDU","Mdu Res Group Inc"]
["MDVN","Medivation Inc."]
["MDW","Midway Gold Corporation"]
["MDY","MidCap SPDR Trust Series I"]
["MDZ","Mds Inc."]
["ME","Mariner Energy Inc."]
["MEA","Metalico Inc"]
["MEAD","Meade Instruments Corp."]
["MEAS","Measurement Specialties Inc."]
["MED","Medifast Inc"]
["MEDQ","MedQuist Inc."]
["MEDW","MEDIWARE Information Systems Inc."]
["MEE","Massey Energy Company"]
["MEG","Media General Inc."]
["MEI","METHODE ELECTRONICS INC"]
["MELA","Electro-Optical Sciences Inc"]
["MELI","MercadoLibre Inc."]
["MEMS","MEMSIC Inc."]
["MEN","Blackrock MuniEnhanced Fund Inc."]
["MEND","Micrus Endovascular Corporation"]
["MENT","Mentor Graphics Corporation"]
["MEOH","Methanex Corporation"]
["MERC","Mercer International Inc."]
["MER-D","Merrill Lynch Pfd Cap Tr Iii"]
["MER-E","Merrill Lynch Pfd Cap Tr Iv"]
["MER-F","Merrill Lynch Pfd Cap Tr V"]
["MER-K","Merrill Lynch Cap Tr I"]
["MER-M","MERRILL LYNCH CAPITAL TRUST II"]
["MER-P","MERRILL LYNCH CAPITAL TRUST II"]
["MERR","Merriman Curhan Ford Group Inc"]
["MERU","Meru Networks Inc."]
["MES","MARKET VECTORS"]
["MET","Metlife Inc."]
["MET-A","Metlife Inc"]
["MET-B","Metlife Inc"]
["METR","METRO BANCORP INC"]
["MF","MF Global Ltd"]
["MFA","America First Mortgage Investments Inc."]
["MFA-A","America First Mortgage Investments Inc."]
["MFB","Maidenform Brands Inc."]
["MFC","Manulife Financial Corp"]
["MFD","Macquarie/first Trust Global"]
["MFE","Networks Associates Inc."]
["MFG","Mizuho Financial Group Inc."]
["MFI","MicroFinancial Incorporated"]
["MFL","Blackrock MuniHoldings Florida Insured Fund Inc."]
["MFLR","Mayflower Bancorp Inc."]
["MFLX","Multi-Fineline Electronix Inc."]
["MFM","Mfs Municipal Income Trust"]
["MFN","MineFinders Corp. Ltd."]
["MFRI","MFRI Inc."]
["MFSF","MutualFirst Financial Inc."]
["MFT","Blackrock MuniYield Florida Insured Fund"]
["MFV","Mfs Special Value Trust"]
["MFW","M&f Worldwide Corporation"]
["MFY","Merrill Lynch & Co. Inc."]
["MG","MISTRAS GROUP INC"]
["MGA","Magna International Inc."]
["MGAM","Multimedia Games Inc."]
["MGC","VANGUARD MEGACAP 300"]
["MGEE","MGE Energy Inc."]
["MGF","Mfs Government Markets Income Trust"]
["MGH","Minco Gold Corporation"]
["MGI","Moneygram International Inc."]
["MGIC","Magic Software Enterprises Ltd."]
["MGJ","BANK OF AMERICA CORP"]
["MGK","VANGUARD MEGACP GR"]
["MGLN","Magellan Health Services Inc."]
["MGM","Mgm Mirage"]
["MGN","Mines Management Inc."]
["MGPI","MGP Ingredients Inc."]
["MGRC","McGrath RentCorp"]
["MGS","Metrogas S.a."]
["MGT","MGT Capital Investments Inc"]
["MGU","Macquarie Global Infrastructure Total Return Fund Inc."]
["MGV","VANGUARD MEGACP VAL"]
["MHD","Blackrock MuniHoldings Fund Inc."]
["MHE","Massachusetts Health and Education Tax-Exempt Trust"]
["MHF","Western Asset Municipal High Income Fund Inc."]
["MHGC","Morgans Hotel Group Co."]
["MHH","MASTECH HOLDINGS INC"]
["MHI","Pioneer Municipal High Income Trust"]
["MHJ","Man Sang Holdings Inc"]
["MHK","Mohawk Industries Inc."]
["MHLD","Maiden Hldgs Ltd"]
["MHN","Blackrock MuniHoldings New York Insured Fund Inc."]
["MHO","M/i Homes Inc."]
["MHO-A","M/I HOMES DEPOSITORY"]
["MHP","Mcgraw-hill Companies Inc. (the)"]
["MHR","Merrill Lynch & Co. Inc."]
["MHR-C","MAGNUM HUNTER RESOUR"]
["MHS","Medcohealth Solutions Inc"]
["MHT","Morgan Stanley Dean Witter & Co."]
["MHY","Western Asset Managed High Income Fund Inc."]
["MI","Marshall & Ilsley Corporation"]
["MIB","MORGAN STANLEY"]
["MIC","Macquarie Infrastructure Company Trust"]
["MICC","Millicom International Cellular S.A."]
["MIDD","Middleby Corporation (The)"]
["MIF","Merrill Lynch & Co. Inc."]
["MIG","Meadowbrook Insurance Group Inc."]
["MIGP","Mercer Insurance Group Inc."]
["MIL","Millipore Corporation"]
["MIM","Mi Developments Inc"]
["MIN","Mfs Intermediate Income Trust"]
["MIND","Mitcham Industries Inc."]
["MINI","Mobile Mini Inc."]
["MIPI","Molecular Insight Pharmaceuticals Inc."]
["MIPS","MIPS Technologies Inc."]
["MIR","Mirant Corp"]
["MIR.A","MIRANT CO A WT WI"]
["MIR.B","MIRANT B WT WI"]
["MITI","Micromet Inc."]
["MITSY","Mitsui & Company Ltd."]
["MIW","Eaton Vance Insure Michigan Municipal Bond Fund"]
["MIY","Blackrock MuniYield Michigan Insured Fund Inc."]
["MJC","3% MIN CPN RUSSELL 2"]
["MJF","Msdw Structured Asset Corporation"]
["MJH","Ms Structured Asset Corp Saturns Ge Cap Corp Series 2002-14"]
["MJI","Blackrock MuniYield New Jersey Insured Fund Inc."]
["MJN","MSDW Structured Asset Corp SATUR AT&T Deb Bkd Ser 2001-8"]
["MJT","Ms Dw Structured Asset Corp Saturns"]
["MJV","Ms Structured Asset Corp Saturns Ge Cap Corp Series 2002-14"]
["MJY","Mdsw Structured Asset Corporation"]
["MKC","Mccormick & Company Incorporated"]
["MKC.V","Mccormick & Co Inc"]
["MKL","Markel Corporation"]
["MKS","Ms Structured Asset Corp Saturns Ge Cap Corp Series 2002-14"]
["MKSI","MKS Instruments Inc."]
["MKTAY","Makita Corp."]
["MKTX","MarketAxess Holdings Inc."]
["MKV","Markel Corporation"]
["MKZ","CITIGROUP"]
["MLAB","Mesa Laboratories Inc."]
["MLB","Merrill Lynch & Co. Inc."]
["MLG","Metlife Inc."]
["MLHR","Herman Miller Inc."]
["MLI","Mueller Industries Inc."]
["MLM","Martin Marietta Materials Inc."]
["MLN","Market Vectors ETF Trust"]
["MLNK","MODUSLINK GLOBAL"]
["MLNX","Mellanox Technologies Ltd."]
["MLP","MAUI LAND & PINE"]
["MLPI","UBS AG ETN"]
["MLR","Miller Industries Inc."]
["MLV","Merrill Lynch & Co. Inc."]
["MLVF","Malvern Federal Bancorp Inc."]
["MMC","Marsh & Mclennan Companies Inc."]
["MMG","Metalline Mining Company"]
["MMLP","Martin Midstream Partners L.P."]
["MMM","3M Company"]
["MMP","Magellan Midstream Partners L.p."]
["MMR","Mcmoran Exploration Company"]
["MMR-M","MCMORAN EXPLORATION CO"]
["MMS","Maximus Inc."]
["MMSI","Merit Medical Systems Inc."]
["MMT","Mfs Multimarket Income Trust"]
["MMU","Western Asset Managed Municipals Fund Inc."]
["MMUS","MakeMusic Inc."]
["MMV","Eaton Vance Massachusetts Municipal Income Trust"]
["MMY","BANK OF AMERICA"]
["MNA","ML SP500 IDX AR"]
["MNDO","MIND C.T.I. Ltd."]
["MNE","Blackrock Muni New York Intermediate Duration Fund Inc"]
["MNI","Mcclatchy Company (the)"]
["MNKD","MannKind Corporation"]
["MNOV","MediciNova Inc."]
["MNP","Western Asset Municipal Partners Fund Inc."]
["MNRK","Monarch Financial Holdings Inc."]
["MNRO","Monro Muffler Brake Inc."]
["MNRTA","Monmouth Real Estate Investment Corporation"]
["MNRTP","Monmouth Real Estate Investment Corporation"]
["MNTA","Momenta Pharmaceuticals Inc."]
["MNTG","MTR Gaming Group Inc."]
["MNTX","Manitex International Inc."]
["MO","Altria Group"]
["MOC","Command Security Corporation"]
["MOCO","MOCON Inc."]
["MOD","Modine Manufacturing Company"]
["MOFG","MidWestOne Financial Group Inc."]
["MOG.A","Moog Inc"]
["MOH","Molina Healthcare Inc"]
["MOLX","Molex Incorporated"]
["MOLXA","Molex Incorporated"]
["MON","Monsanto Company"]
["MOO","Market Vectors ETF Trust"]
["MORN","Morningstar Inc."]
["MOS","Mosaic Company (the)"]
["MOSY","MoSys Inc."]
["MOT","Motorola Inc."]
["MOU","CITIGROUP"]
["MOV","Movado Group Inc."]
["MOVE","Move Inc."]
["MPA","Blackrock MuniYield Pennsylvania Insured Fund"]
["MPAA","Motorcar Parts of America Inc."]
["MPAC","MOD-PAC CORP."]
["MPB","MID PENN BANCORP INC"]
["MPD","BANK OF AMERICA CORPORATION MAR"]
["MP-D","Mississippi Power Co"]
["MPEL","Melco Crown Entertainment"]
["MPET","Magellan Petroleum Corporation"]
["MPG","Maguire Properties Inc"]
["MPG-A","Maguire Pptys Inc"]
["MPJ","Mississippi Power Company"]
["MPR","Met-pro Corporation"]
["MPV","Massmutual Participation Investors"]
["MPW","Medical Properties Trust Inc."]
["MPWR","Monolithic Power Systems Inc."]
["MPX","Marine Products Corporation"]
["MQT","Blackrock MuniYield Quality Fund II Inc."]
["MQY","Blackrock MuniYield Quality Fund Inc."]
["MR","Mindray Medical International"]
["MRCY","Mercury Computer Systems"]
["MRF","American Income Fund Inc."]
["MRGE","Merge Healthcare Incorporated."]
["MRH","Montpelier Re Holdings Ltd"]
["MRK","Merck & Company Inc."]
["MRLN","Marlin Business Services Corp."]
["MRNA","MDRNA Inc."]
["MRO","Marathon Oil Corporation"]
["MROE","Monroe Bancorp"]
["MRT","Morton's Restaurant Group Inc."]
["MRTN","Marten Transport Ltd."]
["MRVL","Marvell Technology Group Ltd."]
["MRX","Medicis Pharmaceutical Corporation"]
["MS","Morgan Stanley"]
["MSA","Mine Safety Appliances Company"]
["MS-A","Morgan Stanley"]
["MSB","Mesabi Trust"]
["MSBF","MSB Financial Corp."]
["MSCC","Microsemi Corporation"]
["MSD","Morgan Stanley Emerging Markets Debt Fund Inc."]
["MSDXP","BB&T Corporation"]
["MSEX","Middlesex Water Company"]
["MSF","Morgan Stanley Emerging Markets Fund Inc."]
["MSFG","MainSource Financial Group Inc."]
["MSFT","Microsoft Corporation"]
["MSG","Madison Square Garden Inc."]
["MSHLD","Marshall Edwards Inc."]
["MSII","Media Sciences International Inc."]
["MSJ","Morgan Stanley Cap Trust Vi"]
["MSK","Grupo Industrial Maseca S.A. de C.V."]
["MSL","MidSouth Bancorp"]
["MSM","Msc Industrial Direct Company Inc."]
["MSN","Emerson Radio Corporation"]
["MSO","Martha Stewart Living Omnimedia Inc."]
["MSON","MISONIX Inc."]
["MSP","Madison Strategic Sector Premium Fund"]
["MSPD","Mindspeed Technologies Inc."]
["MSPX","Merrill Lynch & Co. Inc."]
["MSSR","McCormick & Schmick's Seafood Restaurants Inc."]
["MST","MORGAN STANLEY"]
["MSTR","MicroStrategy Incorporated"]
["MSW","Mission West Properties Inc."]
["MSY","Morgan Stanley High Yield Fund Inc."]
["MSZ","Morgan Stanley Capital Trust Vii"]
["MT","Arcelor Mittal"]
["MTA","Matav"]
["MTB","M&t Bank Corporation"]
["MTB-A","M& T CAPITAL TRUST IV"]
["MTD","Mettler-toledo International Inc."]
["MTE","Mahanagar Telephone Nigam Ltd"]
["MTEX","Mannatech Incorporated"]
["MTG","Mgic Investment Corporation"]
["MTH","Meritage Corporation"]
["MTK","streetTRACKS Morgan Stanley Technology Index Fund"]
["MTL","Mechel Steel Group Oao"]
["MTLK","Metalink Ltd."]
["MTN","Vail Resorts Inc."]
["MTOX","Medtox Scientific Inc."]
["MTP","MLP & STRATEGIC EQTY FU  ND IN"]
["MTR","Mesa Royalty Trust"]
["MTRX","Matrix Service Company"]
["MTS","Montgomery Street Income Securities Inc."]
["MTSC","MTS Systems Corporation"]
["MTSN","Mattson Technology Inc."]
["MTT","WESTERN ASSET"]
["MTU","Mitsubishi Ufj Financial Group Inc"]
["MTW","Manitowoc Company Inc."]
["MTX","Minerals Technologies Inc."]
["MTXX","Matrixx Initiatives Inc."]
["MTY","Marlton Technologies Inc."]
["MTZ","Mastec Inc."]
["MU","MICRON TECHNOLOGY"]
["MUA","Blackrock MuniAssets Fund Inc."]
["MUAA","ISHARES"]
["MUAB","ISHARES"]
["MUAC","ISHARES"]
["MUAD","ISHARES"]
["MUAE","ISHARES"]
["MUAF","ISHARES"]
["MUB","iShares Trust"]
["MUC","Blackrock MuniHoldings California Insured Fund Inc."]
["MUE","Blackrock MuniHoldings Insured Fund II Inc."]
["MUH","Blackrock MuniHoldings Fund II Inc."]
["MUI","Blackrock Muni Intermediate Duration Fund Inc"]
["MUJ","Blackrock MuniHoldings New Jersey Insured Fund Inc."]
["MUNI","PIMCO INTERMEDIATE M"]
["MUR","Murphy Oil Corporation"]
["MUS","Blackrock MuniHoldings Insured Fund Inc."]
["MVC","Mvc Capital"]
["MVF","MuniVest Fund Inc."]
["MVG","Mag Silver Corporation"]
["MVI","Merrill Lynch & Co. Inc."]
["MVIS","Microvision Inc."]
["MVISW","Microvision Inc."]
["MVO","Mv Oil Trust"]
["MVT","Blackrock MuniVest Fund II Inc."]
["MVV","ProShares Trust"]
["MW","Men's Wearhouse Inc. (the)"]
["MWA","Mueller Water Products"]
["MWE","MARKWEST ENERGY PTNR"]
["MWG","Morgan Stanley Cap Tr Iv"]
["MWIV","MWI Veterinary Supply Inc."]
["MWJ","MID CAP BULL 3X SHS"]
["MWN","MID CAP BEAR 3X SHS"]
["MWO","Morgan Stanley Cap Tr V"]
["MWR","Morgan Stanley Cap Tr Iii"]
["MWV","Meadwestvaco Corporation"]
["MWW","MOTER WORLDWIDE"]
["MXA","Minnesota Municipal Income Portfolio Inc."]
["MXB","MSCI INC"]
["MXC","Mexco Energy Corporation"]
["MXE","Mexico Equity And Income Fund Inc. (the)"]
["MXE.P","MEXICO EQTY AND INCOME FUND IN"]
["MXF","Mexico Fund Inc. (the)"]
["MXGL","Max Capital Group Ltd."]
["MXI","ISHARES S& P GLOBAL"]
["MXIM","Maxim Integrated Products Inc."]
["MXL","MAXLINEAR INC."]
["MXN","First American Minnesota Municipal Income Fund II Inc."]
["MXT","Metris Companies Inc."]
["MXWL","Maxwell Technologies Inc."]
["MYC","Blackrock MuniYield California Fund Inc."]
["MYD","Blackrock MuniYield Fund Inc."]
["MYE","Myers Industries Inc."]
["MYF","Blackrock MuniYield Florida Fund"]
["MYGN","Myriad Genetics Inc."]
["MYI","Blackrock MuniYield Insured Fund Inc."]
["MYJ","Blackrock MuniYield New Jersey Fund Inc."]
["MYL","MYLAN INC"]
["MYLNP","MYLAN INC PFD A"]
["MYM","Blackrock MuniYield Michigan Insured Fund II Inc."]
["MYN","Blackrock MuniYield New York Insured Fund Inc."]
["MYP","FOCUSSHARES CCM ETF"]
["MYRG","MYR GROUP INC"]
["MYRX","MYRIAD PHARMACEUTICALS INC."]
["MYY","ProShares Trust"]
["MZA","MuniYield Arizona Fund Inc."]
["MZF","Mbia Capital/claymore Total Return Fund Inc"]
["MZZ","ProShares Trust"]
["N","Inco Ltd."]
["NABI","Nabi Biopharmaceuticals"]
["NAC","Nuveen California Dividend Advantage Municipal Fund"]
["NAD","Nuveen Dividend Advantage Municipal Fund"]
["NADX","National Dentex Corporation"]
["NAFC","Nash-Finch Company"]
["NAI","Nicholas-applegate International"]
["NAII","Natural Alternatives International Inc."]
["NAK","Northern Dynasty Minerals Ltd."]
["NAL","Newalliance Bancshares Inc."]
["NAN","Nuveen New York Dividend Advantage Municipal Fund"]
["NAN-C","NUVEEN NY DIV ADVANTAGE MUNI F"]
["NANO","Nanometrics Incorporated"]
["NANX","Nanophase Technologies Corporation"]
["NARA","Nara Bancorp Inc."]
["NASB","NASB Financial Inc."]
["NAT","Nordic American Tanker Shipping"]
["NATH","Nathan's Famous Inc."]
["NATI","National Instruments Corporation"]
["NATL","National Interstate Corporation"]
["NATR","Nature's Sunshine Products Inc."]
["NAV","Navistar International Corporation"]
["NAVG","Navigators Group Inc. (The)"]
["NAVI","NaviSite Inc."]
["NAVR","Navarre Corporation"]
["NAZ","Nuveen Arizona Premium Income Municipal Fund Inc."]
["NBBC","NewBridge Bancorp"]
["NBG","Natl Bk Greece Ads"]
["NBG-A","NATIONAL BANK OF GREECE SA"]
["NBH","Neuberger Berman Intermediate Municipal Fund Inc."]
["NBIX","Neurocrine Biosciences Inc."]
["NBJ","Nuveen Ohio Dividend Advantage Municipal Fund 2"]
["NBL","Noble Energy Inc."]
["NBN","Northeast Bancorp"]
["NBO","Neuberger Berman New York Intermediate Municipal Fund Inc."]
["NBR","Nabors Industries Inc."]
["NBS","Neostem Inc."]
["NBTB","NBT Bancorp Inc."]
["NBTF","NB&T FINANCIAL GROUP INC"]
["NBW","Neuberger Berman California Intermediate Municipal Fund Inc."]
["NBXH","Morgan Stanley"]
["NBY","NovaBay Pharmaceuticals Inc."]
["NC","Nacco Industries Inc."]
["NCA","Nuveen California Municipal Value Fund Inc."]
["NCB","NUVEEN CALIFORNIA"]
["NCC-A","National City Cap Tr Ii"]
["NCC-B","NATIONAL CITY CAPITAL TRUST II"]
["NCC-C","NATIONAL CITY CAPITAL TRUST IV"]
["NCI","Navigant Consulting Inc."]
["NCIT","NCI Inc."]
["NCL","Nuveen Insured California Premium Income Municipal Fund Ii In"]
["NCMI","National CineMedia Inc."]
["NCO","Nuveen California Municipal Market Opportunity Fund Inc."]
["NCOC","National Coal Corp."]
["NCP","Nuveen California Performance Plus Municipal Fund Inc."]
["NCR","Ncr Corporation"]
["NCS","Nci Building Systems Inc."]
["NCT","Newcastle Investment Corporation"]
["NCT-B","Newcastle Invt Corp"]
["NCT-C","Newcastle Invt Corp"]
["NCT-D","NEWCASTLE INVESTMENT CORP."]
["NCTY","The9"]
["NCU","Nuveen California Premium Income Municipal Fund"]
["NCV","Nicholas-applegate Convertible & Income Fund"]
["NCZ","Nicholas-applegate Convertible & Income Fund Ii"]
["NDAQ","NASDAQ OMX Group Inc. (The)"]
["NDN","99 Cents Only Stores"]
["NDSN","Nordson Corporation"]
["NE","Noble Corporation"]
["NEA","Nuveen Insured Tax-Free Advantage Municipal Fund"]
["NEA-C","Nuveen Insd Tax-Free"]
["NEBS","New England Bancshares Inc."]
["NECB","Northeast Community Bancorp Inc."]
["NED","NOAH EDUCATION HOLDINGS LTD"]
["NEM","Newmont Mining Corporation (holding Company)"]
["NEN","New England Realty Associates Partnership"]
["NENG","Network Engines Inc"]
["NEOG","Neogen Corporation"]
["NEP","Nephros Inc."]
["NEPT","Neptune Technologies & Bioresources Inc"]
["NETC","NET Servicos de Comunicacao S.A."]
["NETL","NetLogic Microsystems Inc."]
["NEU","Newmarket Corporation"]
["NEV","NUEVO ENERGY CO"]
["NEWL","ARIES MARITIME TRANSPORT LIMITE"]
["NEWP","Newport Corporation"]
["NEWS","NewStar Financial Inc."]
["NEWT","Newtek Business Services Inc."]
["NEXM","NexMed Inc."]
["NEXS","Nexxus Lighting Inc."]
["NFBK","Northfield Bancorp Inc."]
["NFC","Nuveen Connecticut Dividend Advantage Municipal Fund"]
["NFG","National Fuel Gas Company"]
["NFJ","Nfj Dividend Interest & Premium Strategy Fund"]
["NFLX","Netflix Inc."]
["NFM","Nuveen Maryland Dividend Advantage Municipal Fund"]
["NFO","Claymore Exchange-Traded Fund Trust"]
["NFP","National Financial Partners Corporation"]
["NFSB","Newport Bancorp Inc."]
["NFX","Newfield Exploration Company"]
["NG","Novagold Resources Inc New"]
["NGA","North American Galvanizing & Coatings Inc"]
["NGAS","NGAS Resources Inc."]
["NGB","Nuveen Virginia Dividend Advantage Municipal Fund"]
["NGBF","NEW GENERATION BIOFUELS HOLDIN"]
["NGD","NEW GOLD INC."]
["NGG","National Grid Transco Plc"]
["NGK","Nuveen Connecticut Dividend Advantage Municipal Fund 2"]
["NGLS","TARGA RESOURCES PARTNERS LP"]
["NGO","Nuveen Connecticut Dividend Advantage Municipal Fund 3"]
["NGO-C","NUVEEN CONNECTICUT DIV ADVANTA"]
["NGPC","NGP Capital Resources Company"]
["NGS","NATURAL GAS SVCS GRP"]
["NGSX","NeurogesX Inc."]
["NGT","Eastern American Natural Gas Trust"]
["NGX","Nuveen Insured Massachusetts Tax-Free Advantage Municipal Fund"]
["NGX-C","NUVEEN INSURED MASSACHUSETTS T"]
["NGZ","NICHOLAS APPLEGATE GLB EQTY &"]
["NHC","National HealthCare Corporation"]
["NHC-A","National HealthCare Corporation"]
["NHI","National Health Investors Inc."]
["NHP","Nationwide Health Properties Inc."]
["NHS","NEUBERGER BERMAN HIGH YIELD ST"]
["NHTB","New Hampshire Thrift Bancshares Inc."]
["NHWK","NightHawk Radiology Holdings Inc."]
["NI","Northern Indiana Public Service Company"]
["NIB","IPATH DJ-AIG COCOA"]
["NICE","NICE-Systems"]
["NICK","Nicholas Financial Inc."]
["NIE","Nicholas-applegate Equity & Convertible Income Fund"]
["NIF","Nuveen Premier Insured Municipal Income Fund Inc."]
["NIHD","NII Holdings Inc."]
["NII","Nuveen North Carolina Dividend Advantage Municipal Fund 3"]
["NII-C","NUVEEN NORTH CAROLINA MUNI FD"]
["NILE","Blue Nile Inc."]
["NIM","Nuveen Select Maturities Municipal Fund"]
["NINE","Ninetowns Internet Technology Group Company"]
["NIO","Nuveen Insured Municipal Opportunity Fund Inc."]
["NITE","Knight Capital Group Inc."]
["NIV","NIVS INTELLIMEDIA"]
["NJ","Nidec Corporation (nihon Densan Kabushiki Kaisha)"]
["NJR","Newjersey Resources Corporation"]
["NJV","NUVEEN NEW JERSEY"]
["NKBP","CHINA NUOKANG BIO-PHARMACEUTICA"]
["NKE","Nike Inc."]
["NKG","Nuveen Georgia Dividend Advantage Municipal Fund 2"]
["NKG-C","NUVEEN GEORGIA DIV ADV MUN FD"]
["NKL","Nuveen Insured California Dividend Advantage Municipal Fund"]
["NKO","Nuveen Insured New York Dividend Advantage Municipal Fund"]
["NKR","Nuveen Arizona Dividend Advantage Municipal Fund 2"]
["NKSH","National Bankshares Inc."]
["NKTR","Nektar Therapeutics"]
["NKX","Nuveen Insured California Tax-Free Advantage Municipal Fund"]
["NL","Nl Industries Inc."]
["NLC","Nalco Holding Company"]
["NLCI","Nobel Learning Communities Inc."]
["NLP","NTS Realty Holdings Partnership"]
["NLR","Market Vectors ETF Trust"]
["NLS","Nautilus Group Inc. (the)"]
["NLST","Netlist Inc."]
["NLTX","Nile Therapeutics Inc."]
["NLY","Annaly Capital Management Inc"]
["NLY-A","Annaly Capital Management Inc"]
["NM","NAVIOS MARITIME HOLDINGS INC"]
["NMA","Nuveen Municipal Advantage Fund Inc."]
["NMB","Nuveen Massachusetts Dividend Advantage Municipal Fund"]
["NMD","NUVEEN MUNICIPAL HIGH INCOME O"]
["NMI","Nuveen Municipal Income Fund Inc."]
["NMM","NAVIOS MARITIME PARTNERS L.P."]
["NMO","Nuveen Municipal Market Opportunity Fund Inc."]
["NMP","Nuveen Michigan Premium Income Municipal Fund Inc."]
["NMR","Nomura Holdings Inc Adr"]
["NMRX","Numerex Corp."]
["NMT","Nuveen Massachusetts Premium Income Municipal Fund"]
["NMT-C","Nuveen Mass Prem Inc"]
["NMTI","NMT Medical Inc."]
["NMY","Nuveen Maryland Premium Income Municipal Fund"]
["NMY-C","NUVEEN MARYLAND PREMIUM MUN FD"]
["NMZ","Nuveen Municipal High Income Opportunity Fund"]
["NNA","NAVIOS MARITIME ACQUISITION CO"]
["NNA.U","NAVIOS MARITIME ACQUISITION CO"]
["NNA.W","NAVIOS MARITIME ACQUISITION CO"]
["NNB","Nuveen Virginia Dividend Advantage Municipal Fund 2"]
["NNBR","NN Inc."]
["NNC","Nuveen North Carolina Premium Income Municipal Fund"]
["NNC-C","Nuveen Nc Prem Inc"]
["NNF","Nuveen Insured New York Premium Income Municipal Fund Inc."]
["NNI","Nelnet Inc."]
["NNJ","Nuveen New Jersey Premium Income Municipal Fund Inc."]
["NNN","Commercial Net Lease Realty Inc."]
["NNN-C","National Retail Properties I"]
["NNO","Nuveen North Carolina Dividend Advantage Municipal Fund 2"]
["NNP","Nuveen New York Performance Plus Municipal Fund Inc."]
["NNY","Nuveen New York Municipal Value Fund Inc."]
["NOA","North American Energy Partners Inc."]
["NOBH","Nobility Homes Inc."]
["NOC","Northrop Grumman Corporation"]
["NOEC","New Oriental Energy & Chemical Corp."]
["NOG","Northern Oil and Gas Inc."]
["NOIZ","Micronetics Inc."]
["NOK","Nokia Corporation"]
["NOM","Nuveen Missouri Premium Income Municipal Fund"]
["NOOF","New Frontier Media Inc."]
["NOV","National-oilwell Inc."]
["NOVA","NovaMed Inc."]
["NOVB","North Valley Bancorp"]
["NOVL","Novell Inc."]
["NOW","American International Group Inc."]
["NOX","Neuberger Berman Income Opportunity Fund Inc."]
["NP","Neenah Paper Inc."]
["NPBC","National Penn Bancshares Inc."]
["NPBCO","National Penn Bancshares Inc."]
["NPC","Nuveen Insured California Premium Income Fund Inc."]
["NPD","China Nepstar Chain Drugstore Ltd"]
["NPF","Nuveen Premier Municipal Income Fund Inc."]
["NPG","Nuveen Georgia Premium Income Municipal Fund"]
["NPI","Nuveen Premium Income Municipal Fund Inc."]
["NPK","National Presto Industries Inc."]
["NPM","Nuveen Premium Income Municipal Fund Ii Inc."]
["NPN","NUVEEN PENNSYLVANIA"]
["NPO","Enpro Industries"]
["NPP","Nuveen Performance Plus Municipal Fund Inc."]
["NPSP","NPS Pharmaceuticals Inc."]
["NPT","Nuveen Premium Income Municipal Fund Iv Inc."]
["NPV","Nuveen Virginia Premium Income Municipal Fund"]
["NPV-C","Nuveen Va Prem Inc"]
["NPX","Nuveen Insured Premium Income Municipal Fund Ii"]
["NPY","Nuveen Pennsylvania Premium Income Municipal Fund Ii"]
["NQC","Nuveen California Investment Quality Municipal Fund Inc."]
["NQI","Nuveen Insured Quality Municipal Fund Inc."]
["NQJ","Nuveen New Jersey Investment Quality Municipal Fund Inc."]
["NQM","Nuveen Investment Quality Municipal Fund Inc."]
["NQN","Nuveen New York Investment Quality Municipal Fund Inc."]
["NQP","Nuveen Pennsylvania Investment Quality Municipal Fund Inc."]
["NQS","Nuveen Select Quality Municipal Fund Inc."]
["NQU","Nuveen Quality Income Municipal Fund Inc."]
["NR","Newpark Resources Inc."]
["NRB","Nuveen North Carolina Dividend Advantage Municipal Fund"]
["NRC","National Rural Utilities Cooperative Finance Corp"]
["NRCI","National Research Corporation"]
["NRF","Northstar Realty Finance Corp."]
["NRF-A","Northstar Rlty Fin Corp"]
["NRF-B","Northstar Rlty Fin Corp"]
["NRG","Nrg Energy Inc."]
["NRGP","Inergy Holdings L.P."]
["NRGY","Inergy L.P."]
["NRIM","Northrim BanCorp Inc"]
["NRK","Nuveen Insured New York Tax-Free Advantage Municipal Fund"]
["NRN","National Rural Utilities Cooperative Finance Corp"]
["NRO","Neuberger Berman Real Estate Securities Income Fund Inc."]
["NRP","Natural Resource Partners Lp"]
["NRT","North European Oil Royality Trust"]
["NRU","National Rural Utilities Cooperative Finance Corp"]
["NS","NUSTAR ENERGY L P"]
["NSC","Norfolk Souther Corporation"]
["NSFC","Northern States Financial Corporation"]
["NSH","Nashua Corporation"]
["NSIT","Insight Enterprises Inc."]
["NSL","Nuveen Senior Income Fund"]
["NSM","National Semiconductor Corporation"]
["NSPH","Nanosphere Inc."]
["NSR","Neustar Inc."]
["NSSC","Napco Security Systems Inc."]
["NST","Nstar"]
["NSTC","Ness Technologies Inc."]
["NSU","Nevsun Resources Ltd"]
["NSYS","Nortech Systems Incorporated"]
["NTAP","NetApp Inc."]
["NTC","Nuveen Connecticut Premium Income Municipal Fund"]
["NTCT","NetScout Systems Inc."]
["NTE","Nam Tai Electronics Inc."]
["NTES","Netease.com Inc."]
["NTGR","NETGEAR Inc."]
["NTIC","Northern Technologies International Corporation"]
["NTL","Nortel Inversora Sa Adr"]
["NTLS","NTELOS Holdings Corp."]
["NTN","NTN Buzztime Inc."]
["NTRI","NutriSystem Inc"]
["NTRS","Northern Trust Corporation"]
["NTSC","National Technical Systems Inc."]
["NTT","Nippon Telegraph And Telephone Corporation"]
["NTWK","NetSol Technologies Inc."]
["NTX","Nuveen Texas Quality Income Municipal Fund"]
["NTY","Nbty Inc."]
["NTZ","Natuzzi S.p.a."]
["NU","Northeast Utilities"]
["NUAN","Nuance Communications Inc."]
["NUC","Nuveen California Quality Income Municipal Fund Inc."]
["NUCL","iShares S&P Global Nuclear Index Fund"]
["NUE","Nucor Corporation"]
["NUHC","Nu Horizons Electronics Corp."]
["NUJ","Nuveen New Jersey Dividend Advantage Municipal Fund 2"]
["NUM","Nuveen Michigan Quality Income Municipal Fund Inc."]
["NUN","Nuveen New York Quality Income Municipal Fund Inc."]
["NUO","Nuveen Ohio Quality Income Municipal Fund Inc."]
["NURO","NeuroMetrix Inc."]
["NUS","Nu Skin Enterprises Inc."]
["NUTR","Nutraceutical International Corporation"]
["NUV","Nuveen Municipal Value Fund Inc."]
["NUVA","NuVasive Inc."]
["NUW","NU"]
["NVAX","Novavax Inc."]
["NVC","Nuveen California Select Quality Municipal Fund Inc."]
["NVDA","NVIDIA Corporation"]
["NVE","NV ENERGY INC"]
["NVEC","NVE Corporation"]
["NVG","Nuveen Insured Dividend Advantage Municipal Fund"]
["NVGN","Novogen"]
["NVJ","Nuveen Ohio Dividend Advantage Municipal Fund 3"]
["NVLS","Novellus Systems Inc."]
["NVMI","Nova Measuring Instruments Ltd."]
["NVN","Nuveen New York Select Quality Municipal Fund Inc."]
["NVO","Novo Nordisk A/s"]
["NVR","N V R L P"]
["NVS","Novartis Ag"]
["NVTL","Novatel Wireless Inc."]
["NVX","Nuveen California Dividend Advantage Municipal Fund 2"]
["NVY","Nuveen Pennsylvania Dividend Advantage Municipal Fund 2"]
["NWBI","NORTHWEST BANCORP INC."]
["NW-C","National Westminster Bk Plc"]
["NWD","New Dragon Asia Corporation"]
["NWE","NORTHWESTERN CORPORATION"]
["NWFL","Norwood Financial Corp."]
["NWI","Nuveen Maryland Dividend Advantage Municipal Fund 3"]
["NWI-C","Nuveen Md Dam Fund 3"]
["NWK","NETWORK EQUIP TECH"]
["NWL","Newell Rubbermaid Inc."]
["NWLI","NATL WESTERN LIFE"]
["NWN","Northwest Natural Gas Company"]
["NWPX","Northwest Pipe Company"]
["NWS","NEWS CORP"]
["NWSA","NEWS CORP CL A"]
["NWY","New York & Company Inc."]
["NX","Quanex Corporation"]
["NXC","Nuveen Insured California Select Tax-free Income Portfolio"]
["NXE","Nuveen Arizona Dividend Advantage Municipal Fund 3"]
["NXG","Northgate Minerals Corporation"]
["NXI","Nuveen Ohio Dividend Advantage Municipal Fund"]
["NXJ","Nuveen New Jersey Dividend Advantage Municipal Fund"]
["NXK","Nuveen New York Dividend Advantage Municipal Fund 2"]
["NXM","Nuveen Pennsylvania Dividend Advantage Municipal Fund"]
["NXN","Nuveen Insured New York Select Tax-free Income Portfolio"]
["NXP","Nuveen Select Tax Free Income Portfolio"]
["NXQ","Nuveen Select Tax Free Income Portfolio Ii"]
["NXR","Nuveen Select Tax Free Income Portfolio Iii"]
["NXST","Nexstar Broadcasting Group Inc."]
["NXTM","NxStage Medical Inc."]
["NXY","Nexen Inc."]
["NXY-B","Nexen Inc"]
["NXZ","Nuveen Dividend Advantage Municipal Fund 2"]
["NY","ISHARES NYSE 100 IDX"]
["NYB","New York Community Bancorp Inc."]
["NYB-U","New York Cmnty Cap Tr V"]
["NYC","ISHARES NYSE CMP IDX"]
["NYF","iShares Trust"]
["NYH","Eaton Vance Insured New York Municipal Bond Fund II"]
["NYM","Nymagic Inc."]
["NYMT","New York Mortgage Trust Inc."]
["NYMX","Nymox Pharmaceutical Corporation"]
["NYNY","Empire Resorts Inc."]
["NYT","New York Times Company (the)"]
["NYV","NUVEEN NEW YORK"]
["NYX","Nyse Group Inc."]
["NZ","NETEZZA CORPORATION"]
["NZF","Nuveen Dividend Advantage Municipal Fund 3"]
["NZH","Nuveen California Dividend Advantage Municipal Fund 3"]
["NZH-C","NUVEEN CA DIV ADVANTAGE MUNI F"]
["NZR","Nuveen Maryland Dividend Advantage Municipal Fund 2"]
["NZT","Telecom Corporation"]
["NZW","Nuveen Michigan Dividend Advantage Municipal Fund"]
["NZX","Nuveen Georgia Dividend Advantage Municipal Fund"]
["NZX-C","NUVEEN GEORGIA DIVIDEND ADVANTA"]
["O","Realty Income Corporation"]
["OABC","OMNIAMERICAN BANCORP INC."]
["OB","Onebeacon Insurance Group Ltd."]
["OBAF","OBA FINANCIAL SERVICES INC."]
["OBAS","Optibase Ltd."]
["OBCI","Ocean Bio-Chem Inc."]
["OC","Owens Corning Inc"]
["OC.B","OWE CORNING [B STOCK]"]
["OCCF","Optical Cable Corporation"]
["OCFC","OceanFirst Financial Corp."]
["OCLR","Ocular Sciences Inc."]
["OCLS","Oculus Innovative Sciences Inc."]
["OCN","Ocwen Financial Corporation"]
["OCNF","OceanFreight Inc."]
["OCNW","Occam Networks Inc."]
["OCR","Omnicare Inc."]
["OCR-B","Omnicare Cap Tr Ii"]
["O-D","Realty Income Corp"]
["ODC","Oil-dri Corporation Of America"]
["ODFL","Old Dominion Freight Line Inc."]
["ODP","Office Depot Inc."]
["ODSY","Odyssey Healthcare Inc."]
["O-E","Ope"]
["OEF","Ishares S&p 100 Index Fund"]
["OEH","Orient-express Hotels Ltd."]
["OESX","Orion Energy Systems Inc."]
["OFC","Corporate Office Properties Trust"]
["OFC-G","Corporate Office Properties Trust"]
["OFC-H","Corporate Office Properties Trust"]
["OFC-J","Corporate Office Properties Trust"]
["OFG","Oriental Financial Group Inc."]
["OFI","Overhill Farms Inc."]
["OFIX","Orthofix International N.V."]
["OFLX","Omega Flex Inc."]
["OGE","Oge Energy Corporation"]
["OGXI","Oncogenex Technologies Inc."]
["OHI","Omega Healthcare Investors Inc."]
["OHI-D","Omega Healthcare Invs Inc"]
["OI","Owens-illinois Inc."]
["OIA","Ms Municipal Income Opportunities Trust"]
["OIB","Ms Municipal Income Opportunities Trust Ii"]
["OIC","Ms Municipal Income Opportunities Trust Iii"]
["OIH","Merrill Lynch Market Oil Service HOLDRS"]
["OII","Oceaneering International Inc."]
["OIIM","O2Micro International"]
["OIL","IPATH ETN CRUDE OIL"]
["OIS","Oil States International Inc."]
["OKE","Oneok Inc."]
["OKS","Northern Border Partners L.p."]
["OKSB","Southwest Bancorp Inc."]
["OKSBP","Southwest Bancorp Inc."]
["OLA","Old Mutual/claymore Long-short Fund"]
["OLE","9.25 STRIDES ORACLE"]
["OLN","Olin Corporation"]
["OLO","POWERSHARES DB CRUDE"]
["OLP","One Liberty Properties Inc."]
["OMAB","Grupo Aeroportuario del Centro Norte S.A.B. de C.V."]
["OMC","Omnicom Group Inc."]
["OMCL","Omnicell Inc."]
["OME","Omega Protein Corporation"]
["OMER","OMEROS CORPORATION"]
["OMEX","Odyssey Marine Exploration Inc."]
["OMG","Om Group Inc."]
["OMI","Owens & Minor Inc."]
["OMN","Omnova Solutions Inc."]
["OMNI","OMNI Energy Services Corp."]
["OMPI","Obagi Medical Products Inc."]
["OMX","Boise Cascade Corporation"]
["ONAV","Omega Navigation Enterprises Inc."]
["ONB","Old National Bancorp Capital Trust I"]
["ONB-B","Onb Cap Tr Ii"]
["ONCY","Oncolytics Biotech Inc."]
["ONEQ","Fidelity Nasdaq Composite Index Tracking Stock"]
["ONE-W","Bank One Corporation"]
["ONFC","Oneida Financial Corp."]
["ONNN","ON Semiconductor Corporation"]
["ONP","ORIENT PAPER INC."]
["ONSMD","Onstream Media Corporation"]
["ONTY","Oncothyreon Inc ."]
["ONVI","Onvia Inc."]
["ONXX","ONYX Pharmaceuticals Inc."]
["OPEN","Open Solutions Inc."]
["OPHC","OptimumBank Holdings Inc."]
["OPK","Opko Health Inc"]
["OPLK","Oplink Communications Inc."]
["OPMR","Optimal Group Inc."]
["OPNT","OPNET Technologies Inc."]
["OPOF","Old Point Financial Corporation"]
["OPTC","Optelecom-NKF Inc."]
["OPTR","Optimer Pharmaceuticals Inc."]
["OPTT","Ocean Power Technologies Inc."]
["OPWV","Openwave Systems Inc"]
["OPXA","Opexa Therapeutics Inc."]
["OPXAW","Opexa Therapeutics Inc."]
["OPXT","Opnext Inc."]
["OPY","Oppenheimer Holdings Inc."]
["ORA","Ormat Technologies Inc."]
["ORB","Orbital Sciences Corporation"]
["ORBC","ORBCOMM Inc."]
["ORBK","Orbotech Ltd."]
["ORBT","Orbit International Corporation"]
["ORCC","Online Resources Corporation"]
["ORCD","Orchard Enterprises Inc (The)"]
["ORCH","Orchid Cellmark Inc."]
["ORCL","Oracle Corporation"]
["ORCT","Orckit Communications"]
["OREX","Orexigen Therapeutics Inc."]
["ORH-A","Odyssey Re Hldgs Corp"]
["ORH-B","Odyssey Re Hldgs Corp"]
["ORI","Old Republic International Corporation"]
["ORIT","Oritani Financial Corp."]
["ORLY","O'Reilly Automotive Inc."]
["ORN","ORION MARINE GROUP INC"]
["ORRF","ORRSTOWN FINL SVCS INC"]
["ORS","Orsus Xelent Technolgies Inc."]
["OSBC","Old Second Bancorp Inc."]
["OSBCP","Old Second Bancorp Inc."]
["OSG","Overseas Shipholding Group Inc."]
["OSIP","OSI Pharmaceuticals Inc."]
["OSIR","Osiris Therapeutics Inc."]
["OSIS","OSI Systems Inc."]
["OSK","Oshkosh Truck Corporation"]
["OSM","Slm Corporation"]
["OSTE","Osteotech Inc."]
["OSTK","Overstock.com Inc."]
["OSUR","OraSure Technologies Inc."]
["OTE","Hellenic Telecommunication Organization S.a."]
["OTEX","Open Text Corporation"]
["OTIV","On Track Innovations Ltd"]
["OTIXD","Otix Global Inc"]
["OTP","Claymore Exchange-Traded Fund Trust"]
["OTR","Claymore Exchange-Traded Fund Trust"]
["OTT","Otelco Inc."]
["OTTR","Otter Tail Corporation"]
["OUTD","Outdoor Channel Holdings Inc."]
["OVBC","Ohio Valley Banc Corp."]
["OVLY","OAK VALLEY BANCORP"]
["OVRL","Overland Storage Inc."]
["OVTI","OmniVision Technologies Inc."]
["OWW","ORBITZ WORLDWIDE INC"]
["OXBT","OXYGEN BIOTHERAPEUTC"]
["OXGN","OXiGENE Inc."]
["OXM","Oxford Industries Inc."]
["OXPS","optionsXpress Holdings Inc."]
["OXY","Occidental Petroleum Corporation"]
["OYOG","OYO Geospace Corporation"]
["OZM","OCH ZIFF CAPITAL MANAGEMENT GR"]
["OZRK","Bank of the Ozarks"]
["PAA","Plains All American Pipeline L.p."]
["PAAS","Pan American Silver Corp."]
["PABK","PAB Bankshares Inc."]
["PAC","Grupo Aeroportuario Del Pacifico S.a. De C.v."]
["PACR","Pacer International Inc."]
["PACW","PacWest Bancorp"]
["PAET","PAETEC Holding Corp."]
["PAF","PS FTSE RAFI EX JP"]
["PAG","PENSKE AUTOMOTIVE GROUP INC."]
["PAGG","POWERSHARES GLOBAL A"]
["PAI","Pacific American Income Inc."]
["PAL","North American Palladium Ltd."]
["PALL","ETFS PHYSICAL PALLAD"]
["PALM","Palm Inc."]
["PAM","PAMPA ENERGIA SA"]
["PANL","Universal Display Corporation"]
["PAO","PowerShares Exchange-Traded Fund Trust"]
["PAP","PACIFIC ASIA PETROLEUM INC.- YA"]
["PAR","3PAR INC"]
["PARD","Poniard Pharmaceuticals Inc."]
["PARL","Parlux Fragrances Inc."]
["PATR","Patriot Transportation Holding Inc."]
["PAY","Veriphone Holdings Inc."]
["PAYX","Paychex Inc."]
["PBCI","Pamrapo Bancorp Inc."]
["PBCT","People's United Financial Inc."]
["PBD","PowerShares Exchange-Traded Fund Trust"]
["PBE","PowerShares Exchange-Traded Fund Trust"]
["PBH","Prestige Brand Holdings Inc."]
["PBI","Pitney Bowes Inc"]
["PBIB","Porter Bancorp Inc."]
["PBIO","Pressure BioSciences Inc."]
["PBIP","Prudential Bancorp Inc. of Pennsylvania"]
["PBJ","PowerShares Exchange-Traded Fund Trust"]
["PBM","Pacific Booker Minerals Inc"]
["PBNY","Provident New York Bancorp"]
["PBP","POWERSHARES S& P 500"]
["PBR","Petroleo Brasileiro S.a.- Petrobras"]
["PBR.A","Petroleo Brasileir"]
["PBS","PowerShares Exchange-Traded Fund Trust"]
["PBT","Permian Basin Royalty Trust"]
["PBTH","Modigene Inc"]
["PBTQ","POWERSHARES GLOBAL B"]
["PBW","PowerShares Exchange-Traded Fund Trust"]
["PBY","Pep Boys-manny Moe & Jack (the)"]
["PC","PANASONIC CORPORATION"]
["PCA","PowerShares Exchange-Traded Fund Trust"]
["PCAR","PACCAR Inc."]
["PCBC","Pacific Capital Bancorp"]
["PCBK","Pacific Continental Corporation (Ore)"]
["PCC","PMC Commercial Trust"]
["PCCC","PC Connection Inc."]
["PCE","Arizona Land Income Corporation"]
["PCEF","POWERSHARES CEF INCOME COMPOSIT"]
["PCF","Putnam High Income Bond Fund"]
["PCG","Pacific Gas & Electric Co."]
["PCG-A","Pacific Gas & Electric Co."]
["PCG-B","Pacific Gas & Electric Co."]
["PCG-C","Pacific Gas & Electric Co."]
["PCG-D","Pacific Gas & Electric Co."]
["PCGR","PC GROUP INC"]
["PCH","Potlatch Corporation"]
["PCK","Pimco California Municipal Income Fund Ii"]
["PCL","Plum Creek Timber Company Inc."]
["PCLN","priceline.com Incorporated"]
["PCM","Pimco Commercial Mortgage Securities Trust Inc."]
["PCN","Pimco Corporate Income Fund"]
["PCP","Precision Castparts Corporation"]
["PCQ","Pimco California Municipal Income Fund"]
["PCS","Sprint Pcs Group"]
["PCTI","PC-Tel Inc."]
["PCX","PATRIOT COAL CORPORATION"]
["PCY","PowerShares Exchange-Traded Fund Trust"]
["PCYC","Pharmacyclics Inc."]
["PCYO","Pure Cycle Corporation"]
["PDC","Pioneer Drilling Co"]
["PDCO","Patterson Companies Inc."]
["PDD","Citigroup Inc."]
["PDE","Pride International Inc."]
["PDEX","Pro-Dex Inc."]
["PDFS","PDF Solutions Inc."]
["PDII","PDI Inc."]
["PDL.B","Presidential Realty Corporation"]
["PDLI","PDL BioPharma Inc."]
["PDM","PIEDMONT OFFICE REALTY TRUST I"]
["PDN","PowerShares Exchange-Traded Fund Trust"]
["PDO","Pyramid Oil Co"]
["PDP","PS DWA TEC LDR PFL"]
["PDS","Precision Drilling Corporation"]
["PDT","John Hancock Patriot Premium Dividend Fund Ii"]
["PEB","PEBBLEBROOK HOTEL TRUST"]
["PE-B","Peco Energy Co"]
["PEBO","Peoples Bancorp Inc."]
["PED","Petroflow Energy Ltd."]
["PE-D","Peco Energy Co"]
["PEDH","Peoples Educational Holdings Inc."]
["PEET","Peet's Coffee & Tea Inc."]
["PEF","PS FTSE RAFI EUROPE"]
["PEG","Public Service Enterprise Group Incorporated"]
["PEGA","Pegasystems Inc."]
["PEI","Pennsylvania Real Estate Investment Trust"]
["PEIX","Pacific Ethanol Inc."]
["PEJ","PowerShares Exchange-Traded Fund Trust"]
["PENN","Penn National Gaming Inc."]
["PENX","Penford Corporation"]
["PEO","Petroleum Resources Corporation"]
["PEP","Pepsico Inc."]
["PERF","Perfumania Holdings Inc"]
["PERY","Perry Ellis International Inc."]
["PESI","Perma-Fix Environmental Services Inc."]
["PET-A","Pacific Enterprises"]
["PETD","Petroleum Development Corporation"]
["PETM","PETsMART Inc."]
["PETS","PetMed Express Inc."]
["PEY","PowerShares High Yield Equity Dividend Achievers Portfolio"]
["PEZ","PowerShares Exchange-Traded Fund Trust"]
["PFA","PowerShares Exchange-Traded Fund Trust"]
["PFBC","Preferred Bank"]
["PFBI","Premier Financial Bancorp Inc."]
["PFBX","Peoples Financial Corporation"]
["PFCB","P.F.Chang's China Bistro Inc."]
["PFD","Flaherty & Crumrine Preferred Income Fund Incorporated"]
["PFE","Pfizer Inc."]
["PFED","Park Bancorp Inc."]
["PFF","iShares Trust"]
["PFG","Principal Financial Group Inc"]
["PFG-B","Principal Financial Group In"]
["PFH","Cabco Tr Jcp 7.625"]
["PFI","PowerShares Exchange-Traded Fund Trust"]
["PFIN","P & F Industries Inc."]
["PFK","Prudential Financial Inflation-linked Retail Medium"]
["PFL","Pimco Floating Rate Income Fund"]
["PFL.P","Pimco Income Strategy Fund Right"]
["PFM","PowerShares Exchange-Traded Fund Trust"]
["PFN","Pimco Floating Rate Strategy Fund"]
["PFN.P","Pimco Income Strategy Fund Ii R"]
["PFO","Flaherty & Crumrine Preferred Income Opportunity Fund Inc"]
["PFS","Provident Financial Services"]
["PFSW","PFSweb Inc."]
["PFWD","Phase Forward Incorporated"]
["PFX","Phoenix Companies Inc."]
["PG","Procter & Gamble Company (the)"]
["PGC","PEAPACK GLADSTONE FI"]
["PGEB","Merrill Lynch & Co. Inc."]
["PGE-B","Prime Group Realty Trust"]
["PGF","PowerShares Exchange-Traded Fund Trust"]
["PGH","Pengrowth Energy Trust"]
["PGI","Ptek Holdings Inc."]
["PGJ","PowerShares Golden Dragon Halter USX China Portfolio"]
["PGLA","Progen Pharmaceuticals"]
["PGM","IPATH DJ-AIG PLATINU"]
["PGN","Progress Energy Inc"]
["PGNX","Progenics Pharmaceuticals Inc."]
["PGP","Pimco Global Stocksplus & Income Fund"]
["PGR","Progressive Corporation (the)"]
["PGTI","PGT Inc."]
["PGX","PowerShares Exchange-Traded Fund Trust"]
["PH","Parker-hannifin Corporation"]
["PHA","Pulte Homes Inc."]
["PHB","PowerShares Exchange-Traded Fund Trust"]
["PHC","PHC Inc."]
["PHD","Pioneer Floating Rate Trust"]
["PHF","Pacholder High Yield Fund Inc."]
["PHG","Koninklijke Philips Electronics N.v."]
["PHH","Phh Corp"]
["PHHM","Palm Harbor Homes Inc."]
["PHI","Philippine Long Distance Telephone Company"]
["PHII","PHI Inc."]
["PHIIK","PHI Inc."]
["PHK","Pimco High Income Fund"]
["PHM","Pulte Homes Inc."]
["PHMD","PhotoMedex Inc."]
["PHO","PowerShares Exchange-Traded Fund Trust"]
["PHR","PRUDENTIAL FINANCIAL INC 9.0%"]
["PHT","Pioneer High Income Trust"]
["PHX","PANHANDLE OIL & GAS"]
["PHYS","SPROTT PHYSICAL GOLD TRUST ETV"]
["PIA","Ms Municipal Premium Income Trust"]
["PIC","PowerShares Exchange-Traded Fund Trust"]
["PICO","PICO Holdings Inc."]
["PID","PowerShares Exchange-Traded Fund Trust"]
["PIE","POWERSHARES DWA EMER"]
["PIF","Insured Municipal Income Fund Inc."]
["PII","Polaris Industries Inc."]
["PIII","PECO II Inc."]
["PIJ","Merrill Lynch Depositor Inc."]
["PIKE","Pike Electric Corp"]
["PIM","Putnam Master Intermediate Income Trust"]
["PIN","POWERSHARES INDIA"]
["PINN","Pinnacle Gas Resources Inc."]
["PIO","PowerShares Exchange-Traded Fund Trust"]
["PIP","PharmAthene Inc"]
["PIQ","PowerShares Exchange-Traded Fund Trust"]
["PIR","Pier 1 Imports Inc."]
["PIS","Merrill Lynch Depositor Inc."]
["PIV","PowerShares Exchange-Traded Fund Trust"]
["PIY","Merrill Lynch Depositor Inc."]
["PIZ","POWERSHARES DWA DEV"]
["PJA","Preferred Plus Trust Ser Qws 2 Tr Ctf"]
["PJB","PowerShares Exchange-Traded Fund Trust"]
["PJC","Piper Jaffray Companies"]
["PJE","Merrill Lynch Preferredplus Tr"]
["PJF","PowerShares Exchange-Traded Fund Trust"]
["PJG","PowerShares Exchange-Traded Fund Trust"]
["PJI","Pplus Trust"]
["PJJ","Merrill Lynch Depositor Inc Preferred Plus Trust Elp-1"]
["PJL","Preferredplus Tr"]
["PJM","PowerShares Exchange-Traded Fund Trust"]
["PJO","PS FTSE RAFI JAPAN"]
["PJP","PowerShares Exchange-Traded Fund Trust"]
["PJR","Merrill Lynch Depositor Inc."]
["PJS","Preferredplus Trust"]
["PJT","Preferred Plus Trust Gec-1 6.05"]
["PJZ","Pplus Trust"]
["PKB","PowerShares Exchange-Traded Fund Trust"]
["PKBK","Parke Bancorp Inc."]
["PKD","Parker Drilling Company"]
["PKE","Park Electrochemical Corporation"]
["PKG","Packaging Corporation Of America"]
["PKH","Merrill Lynch Depositor Inc Preferred Plus Trust Ser Qws-1 7.7"]
["PKI","Perkinelmer Inc."]
["PKJ","Merrill Lynch Depositor Inc."]
["PKK","Merrill Lynch Depositor Inc."]
["PKM","Merrill Lynch Depositor Inc."]
["PKN","POWERSHARES GLOBAL"]
["PKO","Preferred Plus Tr"]
["PKOH","Park-Ohio Holdings Corp."]
["PKOL","PWRSHRS GLBL COAL"]
["PKT","Procera Networks Inc."]
["PKW","PowerShares Exchange-Traded Fund Trust"]
["PKX","Pohang Iron & Steel Co. Ltd."]
["PKY","Parkway Properties Inc."]
["PL","Protective Life Corporation"]
["PLA","Playboy Enterprises Inc."]
["PL-A","Plc Cap Tr Iv"]
["PLAB","Photronics Inc."]
["PL-B","Plc Cap Tr V"]
["PLBC","Plumas Bancorp"]
["PLCE","Children's Place Retail Stores Inc. (The)"]
["PLCM","Polycom Inc."]
["PLD","Prologis"]
["PL-D","Protective Life Corp"]
["PLD-F","Prologis"]
["PLD-G","Prologis"]
["PLFE","Presidential Life Corporation"]
["PLG","Platinum Group Metals Ltd."]
["PLK","POWERSHARES ACT LOW"]
["PLL","Pall Corporation"]
["PLM","Polymet Mining Corp."]
["PLNR","Planar Systems Inc."]
["PLP","Phosphate Resource Plp"]
["PLPC","Preformed Line Products Company"]
["PLS","Ppl Energy Supply Llc"]
["PL-S","Plc Capital Trust Iii"]
["PLT","Plantronics Inc."]
["PLTM","Ise Global Platinum Index"]
["PLUG","Plug Power Inc."]
["PLUS","Eplus Inc."]
["PLV","PPL CAPITAL FDG INC"]
["PLW","PowerShares Exchange-Traded Fund Trust"]
["PLX","Protalix BioTherapeutics Inc."]
["PLXS","Plexus Corp."]
["PLXT","PLX Technology Inc."]
["PM","PHILIP MORRIS INTERNATIONAL IN"]
["PMACA","PMA Capital Corporation"]
["PMBC","Pacific Mercantile Bancorp"]
["PMC","PHARMERICA CORPORATION"]
["PMCS","PMC - Sierra Inc."]
["PMD","PSYCHEMEDICS NEW"]
["PMF","Pimco Municipal Income Fund"]
["PMFG","Peerless Manufacturing Company"]
["PMI","Pmi Group Inc. (the)"]
["PMIC","Pacific Magtron Intl Corp"]
["PMK","PMA Capital Corporation"]
["PML","Pimco Municipal Income Fund Ii"]
["PMM","Putnam Managed Municipal Income Trust"]
["PMNA","PowerShares MENA Frontier Countries Portfolio"]
["PMO","Putnam Municipal Opportunities Trust"]
["PMR","PowerShares Exchange-Traded Fund Trust"]
["PMT","Putnam Master Income Trust"]
["PMTC","Parametric Technology Corporation"]
["PMTI","Palomar Medical Technologies Inc."]
["PMU","Pacific Rim Mining Corp New"]
["PMX","Pimco Municipal Income Fund Iii"]
["PNBC","Princeton National Bancorp Inc."]
["PNBK","Patriot National Bancorp Inc."]
["PNC","Pnc Bank Corp."]
["PNC-D","Pnc Finl Svcs Group Inc"]
["PNCL","Pinnacle Airlines Corp."]
["PNC-L","PNC FINL PR L"]
["PNF","Pimco New York Municipal Income Fund"]
["PNFP","Pinnacle Financial Partners Inc."]
["PNH","PNC CAPITAL TRUST E"]
["PNI","Pimco New York Municipal Income Fund Ii"]
["PNK","Pinnacle Entertainment Inc."]
["PNM","Pnm Resources Inc. (holding Co.)"]
["PNNT","PennantPark Investment Corporation"]
["PNNW","Pennichuck Corporation"]
["PNQI","PowerShares NASDAQ Internet Portfolio"]
["PNR","Pentair Inc."]
["PNRA","Panera Bread Company"]
["PNRG","PrimeEnergy Corporation"]
["PNS","Pinnacle Data Systems Inc."]
["PNSN","Penson Worldwide Inc."]
["PNU","Pnc Bank Corp."]
["PNW","Pinnacle West Capital Corporation"]
["PNX","Phoenix Companies Inc. (the)"]
["PNXQ","PowerShares Exchange-Traded Fund Trust"]
["PNY","Piedmont Natural Gas Company Inc."]
["PODD","Insulet Corporation"]
["POH","Public Service Company Of Oklahoma"]
["POL","Polyone Corporation"]
["POM","Potomac Electric Power Company"]
["PONE","Protection One Inc."]
["POOL","Pool Corporation"]
["POPE","Pope Resources"]
["POR","Portland General Electric Co"]
["POT","Potash Corporation Of Saskatchewan Inc."]
["POWI","Power Integrations Inc."]
["POWL","Powell Industries Inc."]
["POWR","PowerSecure International Inc"]
["POZN","Pozen Inc."]
["PPA","PowerShares Exchange-Traded Fund Trust"]
["PPBI","Pacific Premier Bancorp Inc"]
["PPC","Pilgrim's Pride Corporation"]
["PPCO","Penwest Pharmaceuticals Co."]
["PPD","Pre-paid Legal Services Inc."]
["PPDI","Pharmaceutical Product Development Inc."]
["PPG","Ppg Industries Inc."]
["PPH","Merrill Lynch Pharmaceutical HOLDRS"]
["PPHM","Peregrine Pharmaceuticals Inc."]
["PPL","Ppl Corporation"]
["PPL-A","Ppl Elec Utils Corp"]
["PPL-B","Ppl Elec Utils Corp"]
["PPLT","ETFS PHYSICAL PLATIN"]
["PPM","Investment Grade Municipal Income Fund Inc."]
["PPO","POLYPORE INTERNATIONAL INC."]
["PPR","Ing Prime Rate Trust"]
["PPS","Post Properties Inc."]
["PPS-A","Post Pptys Inc"]
["PPS-B","Post Pptys Inc"]
["PPT","Putnam Premier Income Trust"]
["PQ","Petroquest Energy Inc"]
["PQBW","PowerShares NASDAQ-100 BuyWrite Portfolio"]
["PQSC","PowerShares Exchange-Traded Fund Trust"]
["PQY","POWERSHARES ALPHA Q"]
["PQZ","POWERSHARES MULTICAP"]
["PRA","Pro-assurance Corporation"]
["PRAA","Portfolio Recovery Associates Inc."]
["PRAN","Prana Biotechnology Ltd"]
["PRB","Prb Gas Transportation Inc."]
["PRCP","Perceptron Inc."]
["PRD","Primus Guaranty Ltd."]
["PRE","Partnerre Ltd."]
["PRE-C","Partnerre Ltd"]
["PRE-D","Partnerre Ltd"]
["PRF","PS FTSE RAFI US 1000"]
["PRFT","Perficient Inc."]
["PRFZ","PowerShares FTSE RAFI US 1500 Small-Mid Portfolio"]
["PRGN","Paragon Shipping Inc."]
["PRGO","Perrigo Company"]
["PRGS","Progress Software Corporation"]
["PRGX","PRG-Schultz International Inc."]
["PRI","COX Communications Incorporated New"]
["PRIM","Rhapsody Acquisition Corp."]
["PRIMW","Rhapsody Acquisition Corp."]
["PRK","Park National Corporation"]
["PRKR","ParkerVision Inc."]
["PRLS","Peerless Systems Corporation"]
["PRM","Primedia Inc."]
["PRN","PowerShares Exchange-Traded Fund Trust"]
["PRO","PROS HOLDINGS INC"]
["PROJ","Deltek Inc."]
["PROV","Provident Financial Holdings Inc."]
["PRPX","Portec Rail Products Inc."]
["PRS","Primus Guaranty Ltd."]
["PRSC","The Providence Service Corporation"]
["PRSP","Prosperity Bancshares Inc."]
["PRST","Presstek Inc."]
["PRTS","U.S. Auto Parts Network Inc."]
["PRU","Prudential Financial Inc"]
["PRVT","Private Media Group Inc."]
["PRWT","Premier West Bancorp"]
["PRX","Pharmaceutical Resources Inc."]
["PRXI","Premier Exhibitions Inc."]
["PRXL","PAREXEL International Corporation"]
["PSA","Public Storage Inc."]
["PSA.A","Public Storage Inc"]
["PSA-A","Public Storage Inc"]
["PSA-B","Public Storage Inc"]
["PSA-C","Public Storage Inc"]
["PSA-D","Public Storage Inc"]
["PSA-E","Public Storage Inc"]
["PSA-F","Public Storage Inc"]
["PSA-G","Public Storage Inc"]
["PSA-H","Public Storage Inc"]
["PSA-I","Public Storage Inc"]
["PSA-K","Public Storage Inc"]
["PSA-L","Public Storage Inc"]
["PSA-M","Public Storage Inc"]
["PSA-N","PUBLIC STORAGE7% SERIES N"]
["PSAU","PSHS GBL GLD & PRC M"]
["PSA-V","Public Storage Inc"]
["PSA-W","Public Storage Inc"]
["PSA-X","Public Storage Inc"]
["PSA-Z","Public Storage Inc"]
["PSB","PS BUSINESS PARKS"]
["PSBC","Pacific State Bancorp CA"]
["PSB-H","PS BUS PKS DEP PFD H"]
["PSB-I","PS BUS PKS DEP SHS"]
["PSB-K","PS BUS PARK K"]
["PSB-L","PS BUSINESS PKS 7.60"]
["PSB-M","PS BUSINESS PFD M"]
["PSB-O","PS BUSINESS PKS"]
["PSB-P","PS BUSINESS PARKS I"]
["PSDV","pSivida Corp."]
["PSE","PIONEER SOUTHWEST ENERGY PARTN"]
["PSEC","Prospect Capital Corporation"]
["PSEM","Pericom Semiconductor Corporation"]
["PSI","PowerShares Exchange-Traded Fund Trust"]
["PSID","POSITIVEID CORP"]
["PSJ","PowerShares Exchange-Traded Fund Trust"]
["PSK","SPDR WELLS FARGO ETF"]
["PSL","PowerShares Exchange-Traded Fund Trust"]
["PSMT","PriceSmart Inc."]
["PSO","Pearson Plc"]
["PSOF","PAOFT COMPANY LTD"]
["PSP","PowerShares Exchange-Traded Fund Trust"]
["PSQ","ProShares Trust"]
["PSR","POWERSHARES US REAL"]
["PSS","Collective Brands Inc."]
["PSSI","PSS World Medical Inc."]
["PST","ProShares Trust"]
["PSTI","Pluristem Therapeutics Inc."]
["PSTL","PWRSHRS GLBL STEEL"]
["PSTR","POSTROCK ENERGY CORPORATION"]
["PSUN","Pacific Sunwear of California Inc."]
["PSW","Blackrock Preferred and Corporate Income Strategies Fund Inc"]
["PSY","Blackrock Preferred Income Strategies Fund Inc"]
["PSYS","Psychiatric Solutions Inc."]
["PT","Portugal Telecom Sgps S.a ."]
["PTC","Par Technology Corporation"]
["PTD","E-TRACS UBS SHRT ETN"]
["PTE","PowerShares Exchange-Traded Fund Trust"]
["PTEC","Phoenix Technologies Ltd."]
["PTEK","PokerTek Inc."]
["PTEN","Patterson-UTI Energy Inc."]
["PTF","PowerShares Exchange-Traded Fund Trust"]
["PTH","PowerShares Exchange-Traded Fund Trust"]
["PTI","Patni Computer Systems"]
["PTIE","Pain Therapeutics"]
["PTIX","Performance Technologies Incorporated"]
["PTJ","PowerShares Exchange-Traded Fund Trust"]
["PTM","E-TRACS UBS BLOOMBER"]
["PTN","Palatin Technologies Inc."]
["PTNR","Partner Communications Company Ltd."]
["PTO","PowerShares Exchange-Traded Fund Trust"]
["PTP","Platinum Underwriters Holdings Ltd"]
["PTR","Petrochina Company"]
["PTRP","PWRSHRS GLBL PRG. TR"]
["PTRY","Pantry Inc. (The)"]
["PTSI","P.A.M. Transportation Services Inc."]
["PTSX","Point.360 (New)"]
["PTV","Pactiv Corporation"]
["PTX","Pernix Therapeutics Hldgs Inc"]
["PTY","Pimco Corporate Opportunity Fund"]
["PUDA","PUDA COAL NEW"]
["PUI","PowerShares Exchange-Traded Fund Trust"]
["PUK","Prudential Public Company"]
["PUK.P","Prudential Public Company PR"]
["PUK-A","Prudential Plc"]
["PULB","Pulaski Financial Corp."]
["PURE","PURE Bioscience"]
["PUW","PowerShares Exchange-Traded Fund Trust"]
["PVA","Penn Virginia Corporation"]
["PVD","Administradora de Fondos de Pensiones-Provida S.A."]
["PVFC","PVF Capital Corp."]
["PVG","Penn Virginia Gp Holdings L.p."]
["PVH","Phillips-van Heusen Corporation"]
["PVI","PowerShares Exchange-Traded Fund Trust"]
["PVR","Penn Virginia Resource Partners Lp"]
["PVSA","Parkvale Financial Corporation"]
["PVSW","Pervasive Software Inc."]
["PVTB","PrivateBancorp Inc."]
["PVTBP","PrivateBancorp Inc."]
["PVX","Provident Energy Trust"]
["PW","Pittsburgh & West Virginia Railroad"]
["PWAV","Powerwave Technologies Inc."]
["PWB","PowerShares Exchange-Traded Fund Trust"]
["PWC","Power XTF: Dynamic Market Portfolio"]
["PWE","Penn West Energy Trust"]
["PWER","Power-One Inc."]
["PWJ","PowerShares Exchange-Traded Fund Trust"]
["PWND","PowerShares Global Wind Energy Portfolio"]
["PWO","Power XTF: Dynamic OTC Portfolio"]
["PWOD","Penns Woods Bancorp Inc."]
["PWP","PowerShares Exchange-Traded Fund Trust"]
["PWR","Quanta Services Inc."]
["PWRD","Perfect World Co. Ltd."]
["PWT","PowerShares Exchange-Traded Fund Trust"]
["PWV","PowerShares Exchange-Traded Fund Trust"]
["PWX","Providence and Worcester Railroad Company"]
["PWY","PowerShares Exchange-Traded Fund Trust"]
["PWZ","PowerShares Exchange-Traded Fund Trust"]
["PX","Praxair Inc."]
["PXD","Pioneer Natural Resources Company"]
["PXE","PowerShares Exchange-Traded Fund Trust"]
["PXF","PS FTSE RAFI EX US"]
["PXG","Phoenix Footwear Group Inc."]
["PXH","PowerShares Exchange-Traded Fund Trust"]
["PXI","PowerShares Exchange-Traded Fund Trust"]
["PXJ","PowerShares Exchange-Traded Fund Trust"]
["PXLW","Pixelworks Inc."]
["PXN","PowerShares Exchange-Traded Fund Trust"]
["PXP","Plains Exploration & Production Company"]
["PXQ","PowerShares Exchange-Traded Fund Trust"]
["PXR","POWERSHARES EMR"]
["PYA","Pplus Trust"]
["PYB","Pplus Trust"]
["PYC","Pplus Trust"]
["PYE","Pplus Trust"]
["PYG","Pplus Trust"]
["PYH","PowerShares Exchange-Traded Fund Trust"]
["PYI","Pplus Trust"]
["PYJ","Pplus Trust"]
["PYK","Pplus Trust"]
["PYL","Pplus Trust"]
["PYN","Pimco New York Municipal Income Fund Iii"]
["PYO","Pplus Trust"]
["PYS","Pplus Trust"]
["PYT","Pplus Trust"]
["PYZ","PowerShares Exchange-Traded Fund Trust"]
["PZA","PowerShares Exchange-Traded Fund Trust"]
["PZB","Merrill Lynch Depositor Inc."]
["PZC","Pimco California Municipal Income Fund Iii"]
["PZD","PowerShares Exchange-Traded Fund Trust"]
["PZE","Petrobras Energia Participaciones Sa"]
["PZG","Paramount Gold and Silver Corp."]
["PZI","PowerShares Exchange-Traded Fund Trust"]
["PZJ","PowerShares Exchange-Traded Fund Trust"]
["PZN","PZENA INV MGMT CL A"]
["PZT","PowerShares Exchange-Traded Fund Trust"]
["PZZ","PROSPECT MEDICL HLDS"]
["PZZA","Papa John's International Inc."]
["PZZI","Pizza Inn Inc."]
["Q","Qwest Communications International Inc."]
["QABA","FIRST TRUST EXCHANGE-TRADED FUN"]
["QADI","QAD Inc."]
["QAI","IQ HEDGE"]
["QBAK","Qualstar Corporation"]
["QBC","Cubic Energy Inc"]
["QCC","Quest Cap Corp New"]
["QCCO","QC Holdings Inc."]
["QCLN","First Trust NASDAQ Clean Edge U.S. Liquid Series Index Fund"]
["QCOM","QUALCOMM Incorporated"]
["QCOR","Questcor Pharmaceuticals Inc."]
["QCRH","QCR Holdings Inc."]
["QDEL","Quidel Corporation"]
["QGEN","Qiagen N.V."]
["QGLY","Quigley Corporation (The)"]
["QID","ProShares Trust"]
["QKLS","QKL STORES INC"]
["QLD","ProShares Trust"]
["QLGC","QLogic Corporation"]
["QLTI","QLT Inc."]
["QLTY","Quality Distribution Inc."]
["QMM","Quaterra Resources Inc"]
["QNST","QUINSTREET INC."]
["QQEW","First Trust NASDAQ-100 Equal Weighted Index Fund"]
["QQQQ","PowerShares QQQ Trust Series 1"]
["QQQX","NASDAQ Premium Income and Growth Fund Inc."]
["QQXT","First Trust NASDAQ-100 Ex-Technology Sector Index Fund"]
["QSFT","Quest Software Inc."]
["QSII","Quality Systems Inc."]
["QTEC","First Trust NASDAQ-100-Technology Sector Index Fund"]
["QTM","Quantum Corporation"]
["QTWW","Quantum Fuel Systems Technologies Worldwide Inc."]
["QUIK","QuickLogic Corporation"]
["QXM","QIAO XING MOBILE COM"]
["R","Ryder System Inc."]
["RA","Reckson Assocs Rlty Corp"]
["RAD","Rite Aid Corporation"]
["RADA","Rada Electronics Industries"]
["RADS","Radiant Systems Inc."]
["RAE","RAE Systems Inc"]
["RAH","Ralcorp Holdings Inc."]
["RAI","Reynolds American Inc"]
["RAIL","FreightCar America Inc."]
["RAME","RAM Energy Resources Inc."]
["RAP","RMR Asia Pacific Real Estate Fund"]
["RAS","Rait Financial Trust"]
["RAS-A","Rait Financial Trust"]
["RAS-B","Rait Financial Trust"]
["RAS-C","RAIT FINANCIAL TRUST"]
["RAVN","Raven Industries Inc."]
["RAX","RACKSPACE HOSTING INC"]
["RBA","Ritchie Bros. Auctioneers Incorporated"]
["RBC","Regal-beloit Corporation"]
["RBCAA","Republic Bancorp Inc."]
["RBCN","Rubicon Technology Inc."]
["RBI","Sport Supply Group Inc"]
["RBL","BEAR MARKET PLUS LINKED TO THE"]
["RBN","Robbins & Myers Inc."]
["RBNF","Rurban Financial Corp"]
["RBPAA","Royal Bancshares of Pennsylvania Inc."]
["RBS","THE ROYAL BANK OF SCOTLAND GRO"]
["RBS-E","Royal Bk Scotland Group Plc"]
["RBS-F","Royal Bk Scotland Group Plc"]
["RBS-G","Royal Bk Scotland Group Plc"]
["RBS-H","Royal Bk Scotland Group Plc"]
["RBS-I","ROYAL BK SCOTLAND GROUP PLC"]
["RBS-L","Royal Bk Scotland Group Plc"]
["RBS-M","Royal Bk Scotland Group Plc"]
["RBS-N","Royal Bk Scotland Group Plc"]
["RBS-P","Royal Bk Scotland Group Plc"]
["RBS-Q","Royal Bk Scotland Group Plc"]
["RBS-R","Royal Bk Scotland Group Plc"]
["RBS-S","THE ROYAL BANK OF SCOTLAND GRO"]
["RBS-T","THR ROYAL BANK OF SCOTLAND GRO"]
["RBV","CBS Corporation"]
["RBY","Rubicon Minerals Corp"]
["RCC","Small Cap Premium"]
["RCD","Rydex ETF Trust"]
["RCG","Renaissance Capital Growth & Income Fund III Inc."]
["RCI","Renal Care Group Inc."]
["RCII","Rent-A-Center Inc."]
["RCKB","Rockville Financial Inc."]
["RCKY","Rocky Brands Inc."]
["RCL","Royal Caribbean Cruises Ltd."]
["RCMT","RCM Technologies Inc."]
["RCNI","RCN Corp."]
["RCON","RECON TECHNOLOGY LTD."]
["RCRC","RC2 Corporation"]
["RCS","Rcm Strategic Global Government Fund Inc."]
["RDC","Rowan Companies Inc."]
["RDCM","Radcom Ltd."]
["RDEA","Ardea Biosciences Inc."]
["RDEN","Elizabeth Arden Inc."]
["RDI","READING INTL CL A"]
["RDK","Ruddick Corporation"]
["RDN","Radian Group Inc."]
["RDNT","RadNet Inc."]
["RDS.A","Royal Dutch Shell"]
["RDS.B","Royal Dutch Shell Plc"]
["RDWR","Radware Ltd."]
["RDY","Dr. Reddy's Laboratories Ltd"]
["RE","Everest Re Group Ltd."]
["REA","Rydex ETF Trust"]
["RE-B","Everest Re Cap Tr Ii"]
["REC","Rydex ETF Trust"]
["RECN","Resources Connection Inc."]
["REDF","Rediff.com India"]
["REED","Reeds Inc."]
["REFR","Research Frontiers Incorporated"]
["REG","Regency Centers Corporation"]
["REG-C","Regency Ctrs Corp"]
["REG-D","Regency Ctrs Corp"]
["REG-E","Regency Ctrs Corp"]
["REGN","Regeneron Pharmaceuticals Inc."]
["REIS","Reis Inc"]
["REK","ML RUSSELL 2K ARNS"]
["RELL","Richardson Electronics Ltd."]
["RELV","Reliv' International Inc."]
["REM","ISHS FTS NRT MTG RTS"]
["REN","RESOLUTE ENERGY CORPORATON"]
["REN.W","RESOLUTE ENERGY CORPORATION"]
["RENT","Rentrak Corporation"]
["REP","Repsol Ypf S.a."]
["REP-A","Repsol Intl Cap Ltd"]
["RES","Rpc Inc."]
["REV","Revlon Inc."]
["REVU","Princeton Review Inc. (The)"]
["REW","ProShares Trust"]
["REXI","Resource America Inc."]
["REXX","Rex Energy Corporation"]
["REZ","ISHS FTSE NRT RES ID"]
["RF","Regions Financing Tr I"]
["RFA","BlackRock Florida Investment Quality Municipal Trust Inc. (The"]
["RFG","Rydex ETF Trust"]
["RFI","Cohen & Steers Total Return Realty Fund Inc."]
["RFL","Rydex ETF Trust"]
["RFMD","RF Micro Devices Inc."]
["RFMI","RF Monolithics Inc."]
["RFN","Rydex ETF Trust"]
["RFO-A","Royce Focus Tr"]
["RFV","Rydex ETF Trust"]
["RFW","RUSSELL 2000 IDX CAP"]
["RF-Z","REGIONS FINANCING TRUST III"]
["RGA","Reinsurance Group Of America Incorporated"]
["RGA-A","Reinsurance Group Amer Inc"]
["RGC","Regal Entertainment Group"]
["RGCO","RGC Resources Inc."]
["RGDX","Response Genetics Inc."]
["RGEN","Repligen Corporation"]
["RGI","Rydex ETF Trust"]
["RGLD","Royal Gold Inc."]
["RGN","Regenerx Biopharmaceuticals Inc"]
["RGNC","Regency Energy Partners LP"]
["RGR","Sturm Ruger & Company Inc."]
["RGS","Regis Corporation"]
["RHB","Rehabcare Group Inc."]
["RHI","Robert Half International Inc."]
["RHIE","RHI Entertainment Inc."]
["RHM","Rydex ETF Trust"]
["RHS","Rydex ETF Trust"]
["RHT","Right Mgmt Consultant Inc"]
["RIC","Richmont Mines Inc."]
["RICK","Rick's Cabaret International Inc."]
["RIF","Aew Real Estate Income Fund"]
["RIG","Transocean Inc."]
["RIGL","Rigel Pharmaceuticals Inc."]
["RIH","MARKET LINKED STEP U- YAHOO! FIN"]
["RIMG","Rimage Corporation"]
["RIMM","Research in Motion"]
["RINO","Blue Rhino"]
["RISK","RISKMETRICS GROUP"]
["RIT","Lmp Real Estate Income Fund Inc"]
["RITT","RIT Technologies Ltd."]
["RIVR","River Valley Bancorp."]
["RJA","AB Svensk Ekportkredit (Swedish Export Credit Corporation)"]
["RJET","Republic Airways Holdings Inc."]
["RJF","Raymond James Financial Inc."]
["RJI","AB Svensk Ekportkredit (Swedish Export Credit Corporation)"]
["RJN","AB Svensk Ekportkredit (Swedish Export Credit Corporation)"]
["RJZ","AB Svensk Ekportkredit (Swedish Export Credit Corporation)"]
["RKH","Merrill Lynch Regional Bank HOLDRS"]
["RKT","Rock-tenn Company"]
["RL","Polo Ralph Lauren Corporation"]
["RLH","Westcoast Hospitality Corporation"]
["RLH-A","Red Lion Hotels Capital Trus"]
["RLI","Rli Corporation"]
["RLOG","Rand Logistics Inc."]
["RLRN","Renaissance Learning Inc."]
["RMBS","Rambus Inc."]
["RMCF","Rocky Mountain Chocolate Factory Inc."]
["RMD","Resmed Inc."]
["RMIX","U.S. Concrete Inc."]
["RMKR","Rainmaker Systems Inc."]
["RMM","Rydex ETF Trust"]
["RMS","Rydex ETF Trust"]
["RMT","Royce Micro-cap Trust Inc."]
["RMT-A","Royce Micro-cap Tr Inc"]
["RMTI","Rockwell Medical Technologies Inc."]
["RMTR","Ramtron International Corporation"]
["RMX","Ready Mix Inc."]
["RNE","Morgan Stanley Eastern Europe Fund Inc."]
["RNIN","Wireless Ronin Technologies Inc."]
["RNJ","BlackRock New Jersey Investment Quality Municipal Trust Inc."]
["RNN","Rexahn Pharmaceuticals Inc."]
["RNOW","RightNow Technologies Inc."]
["RNP","Cohen & Steers Reit and Preferred Income Fund Inc"]
["RNR","Renaissancere Holdings Ltd."]
["RNR-B","Renaissancere Holdings Ltd"]
["RNR-C","Renaissancere Holdings Ltd"]
["RNR-D","Renaissancere Holdings Ltd"]
["RNST","Renasant Corporation"]
["RNWK","RealNetworks Inc."]
["RNY","BlackRock New York Investment Quality Municipal Trust Inc. (Th"]
["ROAC","Rock of Ages Corporation"]
["ROB","CLAYMORE/ROBB REPORT GLOBAL LU"]
["ROC","Rockwood Holdings Inc."]
["ROCK","Gibraltar Industries Inc."]
["ROCM","Rochester Medical Corporation"]
["RODM","Rodman & Renshaw Capital Group Inc."]
["ROG","Rogers Corporation"]
["ROI","WISDOMTREE"]
["ROIA","Radio One Inc."]
["ROIAK","Radio One Inc."]
["ROIC","RETAIL OPPORTUNITY INVTS COR"]
["ROICW","RETAIL OPPORTUNITY INVESTMENTS -"]
["ROK","Rockwell Automation Inc"]
["ROL","Rollins Inc."]
["ROLL","RBC Bearings Incorporated"]
["ROM","ProShares Trust"]
["ROMA","Roma Financial Corporation"]
["ROME","Rome Bancorp Inc."]
["ROP","Roper Industries Inc."]
["ROSE","Rosetta Resources Inc."]
["ROSG","Rosetta Genomics Ltd."]
["ROST","Ross Stores Inc."]
["ROVI","ROVI CORP"]
["ROX","Castle Brands Inc."]
["ROYL","Royale Energy Inc."]
["RPC","Roberts Pharmaceutical Corporation"]
["RPG","Rydex ETF Trust"]
["RPM","Rpm Inc."]
["RPRX","Repros Therapeutics Inc."]
["RPT","Ramco-gershenson Properties Trust"]
["RPTP","RAPTOR PHARMACEUTICL"]
["RPV","Rydex ETF Trust"]
["RQI","Cohen & Steers Quality Income Realty Fund Inc"]
["RRC","Range Resources Corporation"]
["RRD","RR DONNELLEY SONS"]
["RRGB","Red Robin Gourmet Burgers Inc."]
["RRI","Reliant Resources Inc."]
["RRR","ROTO ROOTER INC"]
["RRST","RRSat Global Communications Network Ltd."]
["RRY","Rydex ETF Trust"]
["RRZ","Rydex ETF Trust"]
["RS","Reliance Steel & Aluminum Company"]
["RSC","Rex Stores Corporation"]
["RSCR","Res-Care Inc."]
["RSG","Republic Services Inc."]
["RSH","Radioshack Corporation"]
["RSO","Resource Capital Corp."]
["RSOL","Real Goods Solar Inc."]
["RSP","Rydex ETF Trust"]
["RST","Boca Resorts Inc"]
["RSTI","Rofin-Sinar Technologies Inc."]
["RSU","Rydex ETF Trust"]
["RSW","Rydex ETF Trust"]
["RSX","MKT VCTR RUSSIA SBI"]
["RSYS","RadiSys Corporation"]
["RT","Ruby Tuesday Inc"]
["RTEC","Rudolph Technologies Inc."]
["RTG","Rydex ETF Trust"]
["RTH","Merrill Lynch Retail HOLDRS"]
["RTI","Rti International Metals Inc."]
["RTIX","RTI Biologics Inc."]
["RTK","Rentech Inc."]
["RTL","ISHS FTSE NRT RTL ID"]
["RTLX","Retalix Ltd."]
["RTM","Rydex ETF Trust"]
["RTN","Raytheon Company"]
["RTN.W","RAYTHEON CO. WARRANTS [EXPIRIN"]
["RTP","Rio Tinto Plc"]
["RTR","REVENUESHARES ADR FD"]
["RTW","Rydex ETF Trust"]
["RUBO","Rubio's Restaurants Inc."]
["RUK","Reed Elsevier Plc"]
["RURL","Rural/Metro Corporation"]
["RUSHA","Rush Enterprises Inc."]
["RUSHB","Rush Enterprises Inc."]
["RUTH","Ruth's Hospitality Group Inc."]
["RVBD","Riverbed Technology Inc."]
["RVI","Retail Ventures Inc."]
["RVP","Retractable Technologies Inc."]
["RVR","White River Capital Inc."]
["RVSB","Riverview Bancorp Inc"]
["RVSN","RADVision Ltd."]
["RVT","Royce Value Trust Inc."]
["RVT-B","Royce Value Tr Inc"]
["RWC","RELM Wireless Corporation"]
["RWG","RP FOCUSED LARGE ETF"]
["RWJ","REVENUESHARES SM CP"]
["RWK","REVENUESHARES MD CP"]
["RWL","REVENUESHARES LG CP"]
["RWM","ProShares Trust"]
["RWO","SPDR Index Fund"]
["RWR","streetTRACKS Wilshire REIT Index Fund"]
["RWT","Redwood Trust Inc."]
["RWV","REVENUESHARES NAVELL"]
["RWW","REVENUESHARES"]
["RWX","streetTRACKS Index Funds"]
["RXD","ProShares Trust"]
["RXI","ISHARES S& P GLOBAL C"]
["RXII","RXi Pharmaceuticals Corporation"]
["RXL","ProShares Trust"]
["RY","Royal Bank Of Canada"]
["RYAAY","Ryanair Holdings plc"]
["RYE","Rydex ETF Trust"]
["RYF","Rydex ETF Trust"]
["RYH","Rydex ETF Trust"]
["RYJ","CLAYMORE/RAJA EQ FD"]
["RYL","Ryland Group Inc. (the)"]
["RYN","Rayonier Inc. Reit"]
["RYT","Rydex ETF Trust"]
["RYU","Rydex ETF Trust"]
["RZ","RASER TECH INC"]
["RZG","Rydex ETF Trust"]
["RZV","Rydex ETF Trust"]
["S","Sprint Nextel Corporation"]
["SA","Seabridge Gold Inc."]
["SAA","ProShares Trust"]
["SAAS","UCN INC."]
["SAB","Grupo Casa Saba S.a. De C.v."]
["SABA","Saba Software Inc."]
["SAFM","Sanderson Farms Inc."]
["SAFT","Safety Insurance Group Inc."]
["SAH","Sonic Automotive Inc."]
["SAI","Saic Inc"]
["SAIA","Saia Inc."]
["SAL","Salisbury Bancorp Inc."]
["SALM","Salem Communications Corporation"]
["SAM","Boston Beer Company Inc. (The)"]
["SAN","Banco Santiago S.A."]
["SANM","Sanmina-SCI Corporation"]
["SAP","Sap Aktiengesellschaft Systeme Anwendungen Produkte"]
["SAPE","Sapient Corporation"]
["SAPX","SEVEN ARTS PICT NEW"]
["SASR","Sandy Spring Bancorp Inc."]
["SATC","SatCon Technology Corporation"]
["SATS","EchoStar Corporation"]
["SAVB","Savannah Bancorp Inc. (The)"]
["SAY","Satyam Computer Services"]
["SB","SAFE BULKERS INC"]
["SBA","Structured Product Morgan Stanely"]
["SBAC","SBA Communications Corporation"]
["SBAY","Subaye Inc."]
["SBB","ProShares Trust"]
["SBBX","Sussex Bancorp"]
["SBCF","Seacoast Banking Corporation of Florida"]
["SBGI","Sinclair Broadcast Group Inc."]
["SBH","Sally Beauty Holdings Inc."]
["SBI","Western Asset Intermediate Muni Fund Inc"]
["SBIB","Sterling Bancshares Inc."]
["SBIBN","Sterling Bancshares Inc."]
["SBK","Sun American Bancorp"]
["SBLK","Star Bulk Carriers Corp."]
["SBNY","Signature Bank"]
["SBP","Santander Bancorp"]
["SBR","Sabine Royalty Trust"]
["SBS","Companhia de saneamento Basico Do Estado De Sao Paulo - Sabesp"]
["SBSA","Spanish Broadcasting System Inc."]
["SBSI","Southside Bancshares Inc."]
["SBUX","Starbucks Corporation"]
["SBW","Western Asset Worldwide Income Fund Inc."]
["SBX","SEABRIGHT IURANCE"]
["SCB","Community Bankshares Inc."]
["SCBT","SCBT Financial Corporation"]
["SCC","ProShares Trust"]
["SCCO","Southern Copper Corp"]
["SCD","Lmp Capital And Income Fund Inc."]
["SCE-D","Southern California Edison Company"]
["SCE-E","Southern California Edison Company"]
["SCG","Scana Corporation"]
["SCHC","SCHWAB"]
["SCHE","SCHWAB"]
["SCHG","CHARLES SCHWAB"]
["SCHL","Scholastic Corporation"]
["SCHN","Schnitzer Steel Industries Inc."]
["SCHS","School Specialty Inc."]
["SCHV","CHARLES SCHWAB"]
["SCHW","The Charles Schwab Corporation"]
["SCI","Service Corporation International"]
["SCIL","Scientific Learning Corporation"]
["SCJ","ISHARES MSCI JPN SC"]
["SCKT","Socket Mobile Inc."]
["SCL","Stepan Company"]
["SCLN","SciClone Pharmaceuticals Inc."]
["SCMF","Southern Community Financial Corporation"]
["SCMFO","Southern Community Financial Corporation"]
["SCMP","Sucampo Pharmaceuticals Inc."]
["SCMR","Sycamore Networks Inc."]
["SCO","PROSHARES ULTRASHORT DJ-AIG CRU"]
["SCOK","Ableauctions Com"]
["SCON","Superconductor Technologies Inc."]
["SCOR","comScore Inc."]
["SCPB","SPDR BARCLAYS"]
["SCR","SIMCERE PHARMACEUTICAL GROUP"]
["SCS","Steelcase Inc."]
["SCSC","ScanSource Inc."]
["SCSS","Select Comfort Corporation"]
["SCU","SCANA CORPORATION"]
["SCVL","Shoe Carnival Inc."]
["SCX","L.s. Starrett Company (the)"]
["SCZ","ISHARES MSCI EAFE SM"]
["SD","SANDRIDGE ENERGY INC"]
["SDA","BANK OF AMERICA CORPORATION MAR"]
["SDD","ProShares Trust"]
["SDE","BANK OF AMERICA"]
["SDIX","Strategic Diagnostics Inc."]
["SDK","ProShares Trust"]
["SDO-A","San Diego Gas & Electric Company"]
["SDO-B","San Diego Gas & Electric Company"]
["SDO-H","San Diego Gas & Electric Company"]
["SDOW","PROSHRARES ULTRAPRO SHRT DOW30"]
["SDP","ProShares Trust"]
["SDS","ProShares Trust"]
["SDTH","ShengdaTech Inc."]
["SDXC","Switch & Data Facilities Company Inc."]
["SDY","SPDR Series Trust"]
["SE","Spectra Energy Corp"]
["SEA","Star Maritime Acquistion Corp"]
["SEAC","SeaChange International Inc."]
["SEB","Seaboard Corporation"]
["SEE","Sealed Air Corporation"]
["SEED","Origin Agritech"]
["SEF","ProShares Trust"]
["SEH","Spartech Corporation"]
["SEIC","SEI Investments Company"]
["SEM","Select Medical Corporation"]
["SENEA","Seneca Foods Corp."]
["SENO","SenoRx Inc."]
["SEP","SPECTRA ENERGY PARTERS LP"]
["SERV","Servidyne Inc."]
["SF","Stifel Financial Corporation"]
["SFA","MERRILL LYNCH"]
["SFD","Smithfield Foods Inc."]
["SFE","Safeguard Scientifics Inc."]
["SFG","Stancorp Financial Group Inc."]
["SFI","Istar Financial Inc."]
["SFI-D","Istar Finl Inc"]
["SFI-E","Istar Finl Inc"]
["SFI-F","Istar Finl Inc"]
["SFI-G","Istar Finl Inc"]
["SFI-I","Istar Finl Inc"]
["SFK","ProShares Trust"]
["SFL","Ship Finance International"]
["SFLY","Shutterfly Inc."]
["SFN","Spherion Corporation"]
["SFNC","Simmons First National Corporation"]
["SFSF","SuccessFactors Inc."]
["SFY","Swift Energy Company"]
["SGA","Saga Communications Inc."]
["SGC","Superior Uniform Group Inc."]
["SGEN","Seattle Genetics Inc."]
["SGF","Singapore Fund Inc. (the)"]
["SGG","IPATH DOW JONES-AIG SUGAR TOTAL"]
["SGI","SILICON GRAPHICS INTL CORP"]
["SGK","Schawk Inc."]
["SGL","Strategic Global Income Fund Inc."]
["SGMA","SigmaTron International Inc."]
["SGMO","Sangamo BioSciences Inc."]
["SGMS","Scientific Games Corp"]
["SGN","Signalife Inc."]
["SGOL","ETFS GOLD TRUST"]
["SGRP","SPAR Group Inc."]
["SGS","STREAM GLOBAL"]
["SGS.W","STREAM GLOBAL WTS- YAHOO! FINANC"]
["SGU","Star Gas Partners L.p."]
["SGY","Stone Energy Corporation"]
["SGZ","Selective Insurance Group Inc."]
["SH","ProShares Trust"]
["SHAW","SHAW GROUP INC"]
["SHBI","Shore Bancshares Inc"]
["SHE","STONEHENGE METALS"]
["SHEN","Shenandoah Telecommunications Co"]
["SHFL","Shuffle Master Inc."]
["SHG","Shinhan Financial Group Co Ltd"]
["SHI","Sinopec Shangai Petrochemical Company Ltd."]
["SHIP","SEANERGY MARITIME CO"]
["SHIPW","SEANERGY MARITIME WT"]
["SHK","BANK OF AMERICA"]
["SHLD","Sears Holdings Corporation"]
["SHLM","A. Schulman Inc."]
["SHLO","Shiloh Industries Inc."]
["SHM","SPDR Series Trust"]
["SHMR","Shamir Optical Industry Ltd."]
["SHO","Sunstone Hotel Investors Inc."]
["SHO-A","Sunstone Hotel Invs Inc New"]
["SHOO","Steven Madden Ltd."]
["SHOR","ShoreTel Inc."]
["SHPGY","Shire"]
["SHS","Sauer-danfoss Inc."]
["SHV","ISHARES LEHMAN SHORT"]
["SHW","Sherwin-williams Company (the)"]
["SHY","Ishares Lehman 1-3 Year Treasury Bond Fund"]
["SHZ","China Shen Zhou Mining & Resources Inc."]
["SI","Siemens Ag"]
["SIAL","Sigma-Aldrich Corporation"]
["SID","Companhia Siderurgica Nacional S.a."]
["SIF","SIFCO Industries Inc."]
["SIFY","Sify Technologies"]
["SIG","Signet Group Plc"]
["SIGA","SIGA Technologies Inc."]
["SIGI","Selective Insurance Group Inc."]
["SIGM","Sigma Designs Inc."]
["SIHI","SINOHUB INC"]
["SII","Smith International Inc."]
["SIJ","ProShares Trust"]
["SILC","Silicom Ltd"]
["SIM","Grupo Simec S.A. de C.V."]
["SIMG","Silicon Image Inc."]
["SIMO","Silicon Motion Technology Corporation"]
["SINA","Sina Corporation"]
["SINO","Sino-Global Shipping America Ltd."]
["SIRI","Sirius XM Radio Inc."]
["SIRO","Sirona Dental Systems Inc."]
["SIVB","SVB Financial Group"]
["SIVBO","SVB Financial Group"]
["SIVR","ETFS SILVER TRUST"]
["SJF","ProShares Trust"]
["SJH","ProShares Trust"]
["SJI","South Jersey Industries Inc."]
["SJL","ProShares Trust"]
["SJM","J.m. Smucker Company (the)"]
["SJR","Shaw Communications Inc."]
["SJT","San Juan Basin Royalty Trust"]
["SJW","Sjw Corporation"]
["SKBI","SKYSTAR BIO PHARMA"]
["SKF","ProShares Trust"]
["SKH","SKILLED HEALTHCARE GROUP INC C"]
["SKIL","SkillSoft plc"]
["SKK","ProShares Trust"]
["SKL","CFI SP500 SMUNS"]
["SKM","Sk Telecom Corporation Ltd."]
["SKN","Citigroup Global Funding"]
["SKS","Saks Incorporated"]
["SKT","Tanger Factory Outlet Centers Inc."]
["SKT-C","Tanger Factory Outlet Ctrs I"]
["SKX","Skechers U.s.a. Inc."]
["SKY","Skyline Corporation"]
["SKYW","SkyWest Inc."]
["SLA","American Select Portfolio Inc."]
["SLAB","Silicon Laboratories Inc."]
["SLB","Schlumberger N.v."]
["SLE","Sara Lee Corporation"]
["SLF","Sun Life Financial Incorporated"]
["SLG","Sl Green Realty Corporation"]
["SLG-C","Sl Green Rlty Corp"]
["SLG-D","Sl Green Rlty Corp"]
["SLGN","Silgan Holdings Inc."]
["SLH","Strategic Hotel Capital Inc"]
["SLI","SL Industries Inc."]
["SLM","Slm Corporation"]
["SLM-A","Slm Corp"]
["SLM-B","Slm Corp"]
["SLP","Simulations Plus Inc."]
["SLRC","SOLAR CAPITAL LTD."]
["SLRY","Salary.com"]
["SLS","SELIGMAN LASALLE INTERNATIONAL"]
["SLT","STERLITE INDUSTRIES [INDIA] LI"]
["SLTC","Selectica Inc."]
["SLTM","THERMAGE INC."]
["SLV","iShares Silver Trust"]
["SLW","Silver Wheaton Corp"]
["SLX","Market Vectors ETF Trust"]
["SLXP","Salix Pharmaceuticals Ltd."]
["SM","St. Mary Land"]
["SMA","Symmetry Medical Inc"]
["SMB","Market Vectors ETF Trust"]
["SMBC","Southern Missouri Bancorp Inc."]
["SMBL","Smart Balance Inc"]
["SMC","Central Sun Mining Inc"]
["SMCG","Millenium India Acquisition Company Inc."]
["SMCGU","Millenium India Acquisition Company Inc."]
["SMCGW","Millenium India Acquisition Company Inc."]
["SMCI","Super Micro Computer Inc."]
["SMDD","PROSHARES ULTRAPRO SHORT MC400"]
["SMED","SHARPS COMPLIANCE CORP"]
["SMG","Scotts Company (the)"]
["SMH","Merrill Lynch Semiconductor HOLDRS"]
["SMHG","Sanders Morris Harris Group Inc."]
["SMI","Semiconductor Manufacturing International Corporation"]
["SMIT","Schmitt Industries Inc."]
["SMK","Citigroup Funding Inc."]
["SMMF","Summit Financial Group Inc."]
["SMMX","Symyx Technologies Inc."]
["SMN","ProShares Trust"]
["SMOD","SMART Modular Technologies (WWH) Inc."]
["SMP","Standard Motor Products Inc."]
["SMRT","Stein Mart Inc."]
["SMS","SIMS GROUP LIMITED"]
["SMSC","Standard Microsystems Corporation"]
["SMSI","Smith Micro Software Inc."]
["SMTB","Smithtown Bancorp Inc"]
["SMTC","Semtech Corporation"]
["SMTS","Somanetics Corporation"]
["SMTX","SMTC Corporation"]
["SMU","Citigroup Global Markets"]
["SNA","Snap-on Incorporated"]
["SNAK","Inventure Group Inc. (The)"]
["SNBC","Sun Bancorp Inc."]
["SNCR","Synchronoss Technologies Inc."]
["SNDA","Shanda Interactive Entertainment"]
["SNDK","SanDisk Corporation"]
["SNE","Sony Corporation"]
["SNEN","Sinoenergy Corporation"]
["SNF","Spain Fund (the)"]
["SNG","Canadian Superior Energy Inc"]
["SNH","Senior Housing Properties Trust"]
["SNHY","Sun Hydraulics Corporation"]
["SNI","SCRIPPS NETWORKS INTERACTIVE I"]
["SNIC","Sonic Solutions"]
["SNMX","Senomyx Inc."]
["SNN","Smith & Nephew Snats Inc."]
["SNP","China Petroleum & Chemical Corporation"]
["SNPS","Synopsys Inc."]
["SNSS","Sunesis Pharmaceuticals Inc."]
["SNSTA","Sonesta International Hotels Corporation"]
["SNT","Senesco Technologies Inc"]
["SNTA","Synta Pharmaceuticals Corp."]
["SNTS","Santarus Inc."]
["SNV","Synovus Financial Corporation"]
["SNWL","SonicWALL Inc."]
["SNX","Synnex Corporation"]
["SNY","Sanofi-aventis Sa"]
["SNZ","MORGAN STANLEY"]
["SO","Southern Company (the)"]
["SOA","Southern Africa Fund"]
["SOCB","Southcoast Financial Corporation"]
["SOFO","Sonic Foundry Inc."]
["SOG","Citigroup Inc."]
["SOHU","Sohu.com Inc."]
["SOL","Sola International Inc."]
["SOLF","Solarfun Power Holdings Co. Ltd."]
["SOLR","GT Solar International Inc."]
["SOMH","Somerset Hills Bancorp"]
["SOMX","Somaxon Pharmaceuticals Inc."]
["SON","Sonoco Products Company"]
["SONA","Southern National Bancorp of Virginia Inc."]
["SONC","Sonic Corp."]
["SONE","S1 Corporation"]
["SONO","SonoSite Inc."]
["SONS","Sonus Networks Inc."]
["SOR","Source Capital Inc."]
["SOR.P","SOURCE CAPITAL INC PFD"]
["SORL","SORL Auto Parts Inc."]
["SOV-B","Sovereign Cap Tr V"]
["SOV-C","Sovereign Bancorp Inc"]
["SOXL","DIREXION DAILY SEMCONDUCTOR BUL"]
["SOXS","DIREXION DAILY SEMICONDUCTOR BE"]
["SPA","Sparton Corporation"]
["SPAN","Span-America Medical Systems Inc."]
["SPAR","Spartan Motors Inc."]
["SPB","Spectrum Brands Inc."]
["SPC","BANK OF AMERICA"]
["SPCHA","Sport Chalet Inc."]
["SPCHB","Sport Chalet Inc."]
["SPDE","Speedus Corp."]
["SPEC","Spectrum Control Inc."]
["SPEX","Spherix Incorporated"]
["SPF","Standard Pacific Lp"]
["SPG","Simon Property Group Inc."]
["SPG-J","Simon Ppty Group Inc New"]
["SPH","Suburban Propane Partners L.p."]
["SPIL","Siliconware Precision Industries Company Ltd."]
["SPIR","Spire Corporation"]
["SPLS","Staples Inc."]
["SPMD","IDEARC INC."]
["SPN","Superior Energy Services Inc."]
["SPNC","Spectranetics Corporation (The)"]
["SPNS","Sapiens International Corporation N.V."]
["SPO","Citigroup Inc."]
["SPP","Sappi"]
["SPPI","Spectrum Pharmaceuticals Inc."]
["SPPR","Supertel Hospitality Inc."]
["SPPRO","Supertel Hospitality Inc."]
["SPR","Spirit Aerosystems Holdings Inc."]
["SPRD","Spreadtrum Communications Inc."]
["SPRO","SmartPros Ltd."]
["SPRT","SupportSoft Inc."]
["SPTN","Spartan Stores Inc."]
["SPU","Skypeople Fruit Juice Inc"]
["SPW","Spx Corporation"]
["SPWRA","SUNPOWER CORPORATION"]
["SPWRB","SUNPOWER CORP"]
["SPXU","PROSHARES"]
["SPY","SPDR Trust Series I"]
["SQM","Sociedad Quimica Y Minera S.a."]
["SQNM","Sequenom Inc."]
["SQQQ","PROSHARES TRUST"]
["SR","Standard Register Company (the)"]
["SRCE","1st Source Corporation"]
["SRCL","Stericycle Inc."]
["SRDX","SurModics Inc."]
["SRE","Sempra Energy"]
["SRI","Stoneridge Inc."]
["SRLS","SeraCare Life Sciences Inc"]
["SRO","Scudder RREEF Real Estate Fund II Inc."]
["SRQ","Scudder RREEF Real Estate Fund Inc."]
["SRS","ProShares Trust"]
["SRSL","SRS Labs Inc."]
["SRT","Startek Inc."]
["SRTY","PROSHARES ULTRAPRO SHT RUS2000"]
["SRV","Sierra Pacific Resources"]
["SRX","Sra International Inc"]
["SRZ","Sunrise Senior Living Inc."]
["SSBI","Summit State Bank"]
["SSD","Simpson Manufacturing Company Inc."]
["SSE","Southern Connecticut Bancorp Inc"]
["SSFN","Stewardship Financial Corp"]
["SSG","ProShares Trust"]
["SSI","Stage Stores Inc."]
["SSL","Sasol Ltd."]
["SSM","Merrill Lynch & Co. Inc."]
["SSN","Samson Oil & Gas"]
["SSNC","SS&C Technologies Inc."]
["SSO","ProShares Trust"]
["SSP","E.W. Scripps Company (The)"]
["SSRI","Silver Standard Resources Inc"]
["SSRX","3SBio Inc."]
["SSS","Sovran Self Storage Inc."]
["SSW","Seaspan Corporation"]
["SSY","SunLink Health Systems Inc."]
["SSYS","Stratasys Inc."]
["ST","Sps Technologies Inc"]
["STAA","STAAR Surgical Company"]
["STAN","Standard Parking Corporation"]
["STBA","S&T Bancorp Inc."]
["STBC","State Bancorp Inc."]
["STBK","Sterling Banks Inc."]
["STC","Stewart Information Services Corporation"]
["STD","Banco Santander S.A."]
["STD-A","Banco Santander S.A."]
["STD-B","Banco Santander S.A."]
["STD-C","Banco Santander S.A."]
["STD-E","SANTANDER FIN PFD UNIPERSONAL"]
["STD-I","Banco Santander S.A."]
["STE","Steris Corporation"]
["STEC","STEC Inc."]
["STEI","Stewart Enterprises Inc."]
["STEL","StellarOne Corporation"]
["STEM","StemCells Inc."]
["STFC","State Auto Financial Corporation"]
["STH","Claymore Exchange-Traded Fund Trust"]
["STI","Suntrust Banks Inc."]
["STI-A","Suntrust Bks Inc"]
["STI-Z","SUNTRUST CAPITAL IX"]
["STJ","St. Jude Medical Inc."]
["STK","Storage Technology Corporation"]
["STKL","SunOpta Inc."]
["STL","Sterling Bancorp"]
["STL-A","Sterling Bancorp Tr I"]
["STLD","Steel Dynamics Inc."]
["STLY","Stanley Furniture Company Inc."]
["STM","Stmicroelectronics N.v."]
["STMP","Stamps.com Inc."]
["STN","Station Casinos Inc."]
["STNG","Scorpio Tankers Inc"]
["STNR","Steiner Leisure"]
["STO","Statoil Asa"]
["STON","StoneMor Partners L.P."]
["STP","Suntech Power Holdings Co. Ltd."]
["STPZ","PIMCO 1-5"]
["STR","Questar Corporation"]
["STRA","Strayer Education Inc."]
["STRC","SRI/Surgical Express Inc."]
["STRL","Sterling Construction Company Inc"]
["STRM","Streamline Health Solutions Inc."]
["STRN","Sutron Corporation"]
["STRT","Strattec Security Corporation"]
["STS","Supreme Industries Inc."]
["STSA","Sterling Financial Corporation"]
["STST","ARGON ST Inc."]
["STT","State Street Corp"]
["STU","Student Loan Corporation (the)"]
["STV","China Digital TV Holding Co. Ltd."]
["STWD","STARWOOD PROPERTY TR"]
["STX","SEAGATE TECHNOLOGY"]
["STXS","Stereotaxis Inc."]
["STZ","Constellation Brands Inc."]
["STZ.B","Constellation Brands Inc."]
["SU","Suncor Energy Inc."]
["SUB","ISHARES"]
["SUBK","Suffolk Bancorp"]
["SUF","Sulphco Inc."]
["SUG","Southern Union Company"]
["SUG-C","Southern Un Co New"]
["SUI","Sun Communities Inc."]
["SUMR","Summer Infant Inc."]
["SUN","Sunoco Inc."]
["SUNH","Sun Healthcare Group Inc."]
["SUP","Superior Industries International Inc."]
["SUPG","SuperGen Inc."]
["SUPR","Superior Bancorp"]
["SUPX","Supertex Inc."]
["SUR","CNA Surety Corporation"]
["SURG","Synergetics USA Inc."]
["SURW","SureWest Communications"]
["SUS-A","SUSQUEHANNA CAPITAL I"]
["SUSQ","Susquehanna Bancshares Inc."]
["SUSS","Susser Holdings Corporation"]
["SUTR","Sutor Technology Group"]
["SVA","SINOVAC BIOTECH LTD"]
["SVBI","Severn Bancorp Inc"]
["SVLF","Silverleaf Resorts Inc."]
["SVM","Servicemaster Company (the)"]
["SVN","Hollinger International Inc."]
["SVNT","Savient Pharmaceuticals Inc"]
["SVR","Syniverse Holdings Inc."]
["SVT","Servotronics Inc."]
["SVU","Supervalu Inc."]
["SVVS","SAVVIS Inc."]
["SVW","LEVERAGED IDX RN SP5"]
["SWC","Stillwater Mining Company"]
["SWH","Merrill Lynch Software HOLDRS"]
["SWHC","Smith & Wesson Holding Corporation"]
["SWI","SOLARWINDS INC"]
["SWIR","Sierra Wireless Inc."]
["SWK","Stanley Works (the)"]
["SWKS","Skyworks Solutions Inc."]
["SWM","Schweitzer-mauduit International Inc."]
["SWN","Southwestern Energy Company"]
["SWS","Sws Group Inc."]
["SWSI","Superior Well Services Inc."]
["SWWC","Southwest Water Company"]
["SWX","Southwest Gas Corporation"]
["SWY","Safeway Inc."]
["SWZ","Swiss Helvetia Fund Inc. (the)"]
["SXCI","SXC Health Solutions Corp."]
["SXE","Stanley Inc."]
["SXI","Standex International Corporation"]
["SXL","Sunoco Logistics Partners Lp"]
["SXT","Sensient Technologies Corporation"]
["SXU","Merrill Lynch & Co. Inc."]
["SY","Sybase Inc."]
["SYA","SYMETRA FINANCIAL CORPORATION"]
["SYBT","S.Y. Bancorp Inc."]
["SYBTP","S.Y. BANCORP INC."]
["SYK","Stryker Corporation"]
["SYKE","Sykes Enterprises Incorporated"]
["SYMC","Symantec Corporation"]
["SYMM","Symmetricom Inc."]
["SYMS","Syms Corp"]
["SYMX","Synthesis Energy Systems Inc."]
["SYNA","Synaptics Incorporated"]
["SYNL","Synalloy Corporation"]
["SYNM","Syntroleum Corporation"]
["SYNO","Synovis Life Technologies Inc."]
["SYNT","Syntel Inc."]
["SYPR","Sypris Solutions Inc."]
["SYT","Syngenta Ag"]
["SYUT","Synutra International Inc."]
["SYX","Systemax Inc."]
["SYY","Sysco Corporation"]
["SZF","CFI NIKKEI 225 SMUNS"]
["SZK","ProShares Trust"]
["SZL","Merrill Lynch & Co. Inc."]
["SZO","POWERSHARES DB CRUDE"]
["SZR","WISDOMTREE DREYFUS"]
["T","AT&T Inc."]
["TA","TravelCenters of America LLC"]
["TAC","Transalta Corporation"]
["TACT","TransAct Technologies Incorporated"]
["TAI","Transamerica Income Inc."]
["TAIT","Taitron Components Incorporated"]
["TAL","Tal International Group Inc."]
["TAM","Tam S.a."]
["TAMB","Tamalpais Bancorp"]
["TAN","CLAYMORE/MAC GLOBAL"]
["TAO","CLAYMORE/ALPHASHARES"]
["TAP","Molson Coors Brewing Company"]
["TAP.A","Molson Coors Brewing Co"]
["TASR","TASER International Inc."]
["TAST","Carrols Restaurant Group Inc."]
["TAT","TRANSATLANTIC PETROL"]
["TAXI","Medallion Financial Corp."]
["TAYC","Taylor Capital Group Inc."]
["TAYCP","Taylor Capital Group Inc."]
["TAYD","Taylor Devices Inc."]
["TBAC","Tandy Brands Accessories Inc."]
["TBBK","The Bancorp Inc."]
["TBF","PROSHARES SHORT"]
["TBH","Telecom Brasil Sa Te"]
["TBI","TOM BROWN INC"]
["TBL","Timberland Company (the)"]
["TBNK","TERRITORIAL BANCORP INC."]
["TBSI","TBS International"]
["TBT","ProShares Trust"]
["TBUS","DRI Corporation"]
["TBV","Tiens Biotech Group (USA) Inc."]
["TC","THOMPSON CREEK METALS CO. INC"]
["TCAP","Triangle Capital Corporation"]
["TCB","Tcf Financial Corporation"]
["TCB.W","TCF FINANCIAL CORP"]
["TCB-A","TCF CAPITAL I"]
["TCBI","Texas Capital Bancshares Inc."]
["TCBIW","TEXAS CAPITAL BANCSHARES INC."]
["TCBK","TriCo Bancshares"]
["TCH","Templeton China World Fd"]
["TCHC","21st Century Holding Company"]
["TCI","Transcontinental Realty Investors Inc."]
["TCK","Teck Cominco Ltd"]
["TCL","TATA COMMUNICATIONS LIMITED"]
["TCLP","TC PipeLines LP"]
["TCM","TONGITANG CHINESE MEDICINES CO"]
["TCO","Taubman Centers Inc."]
["TCO-G","Taubman Ctrs Inc"]
["TCO-H","Taubman Ctrs Inc"]
["TCX","Tucows Inc"]
["TD","Toronto Dominion Bank (the)"]
["TDA","Telephone And Data Systems Inc."]
["TDBK","Tidelands Bancshares Inc."]
["TDC","TERADATA CORPORATION"]
["TDD","TDAX INDEPENDNC 2010"]
["TDF","Templeton Dragon Fund Inc."]
["TDG","Transdigm Group Incorporated"]
["TDH","TARGETS TRUST IX"]
["TDI","Telephone And Data Systems Inc."]
["TDN","Citigroup Global Markets Holdings Inc"]
["TDS","TELEPHONE + DATA SYS"]
["TDS.S","TEL AND DATA SYS"]
["TDSC","3D Systems Corporation"]
["TDV","TDAX INDEPENDNC 2040"]
["TDW","Tidewater Inc."]
["TDX","TDAX INDEPENDENC ETF"]
["TDY","Teledyne Technologies Incorporated"]
["TE","Teco Energy Inc."]
["TEAM","TechTeam Global Inc."]
["TEAR","OCCULOGIX INC."]
["TECD","Tech Data Corporation"]
["TECH","Techne Corporation"]
["TECUA","Tecumseh Products Company"]
["TEF","Telefonica Sa"]
["TEG","Wps Resources Corporation"]
["TEI","Templeton Emerging Markets Income Fund Inc."]
["TEL","TYCO ELECTRONICS LTD. COMMON S"]
["TELK","Telik Inc."]
["TELOZ","TEL Offshore Trust"]
["TEN","Tenneco Automotive Inc."]
["TENZ","PIMCO"]
["TEO","Telecom Argentina Stet - France Telecom S.a."]
["TER","Teradyne Inc."]
["TESO","Tesco Corporation"]
["TESS","TESSCO Technologies Incorporated"]
["TEVA","Teva Pharmaceutical Industries"]
["TEX","Terex Corporation"]
["TF","Thai Capital Fund Inc"]
["TFC","Taiwan Greater China Fund"]
["TFI","SPDR Series Trust"]
["TFONY","Telefonos de Mexico"]
["TFSL","TFS Financial Corporation"]
["TFX","Teleflex Incorporated"]
["TG","Tredegar Corporation"]
["TGA","Transglobe Energy Corp"]
["TGAL","Tegal Corporation"]
["TGB","Taseko Mines"]
["TGC","Tengasco Inc."]
["TGE","TGC Industries Inc."]
["TGH","TEXTAINER GROUP HOLDINGS LIMIT"]
["TGI","Triumph Group Inc."]
["TGIS","Thomas Group Inc."]
["TGP","Teekay Lng Partners L.p."]
["TGR","ISHARES"]
["TGS","Transportadora De Gas Del Sur Sa Tgs"]
["TGT","Target Corporation"]
["TGX","Theragenics Corporation"]
["THC","Tenet Healthcare Corporation"]
["THD","ISHARES MSCI THAILAN"]
["THFF","First Financial Corporation Indiana"]
["THG","Allmerica Financial Corporation"]
["THI","Tim Hortons Inc."]
["THLD","Threshold Pharmaceuticals Inc."]
["THM","International Tower Hill Mines Ltd"]
["THMD","Thermadyne Holdings Corporation New"]
["THO","Thor Industries Inc."]
["THOR","Thoratec Corporation"]
["THQI","THQ Inc."]
["THRD","TF Financial Corporation"]
["THRX","Theravance Inc."]
["THS","Treehouse Foods Inc."]
["TI","Telecom Italia S.p.a."]
["TI.A","Telecom Italia S P"]
["TIBB","TIB Financial Corporation"]
["TIBX","TIBCO Software Inc."]
["TICC","TICC Capital Corp."]
["TIE","Titanium Metals Corporation"]
["TIER","Tier Technologies Inc."]
["TIF","Tiffany & Co."]
["TIGR","TigerLogic Corporation"]
["TII","Thomas Industries Inc."]
["TIII","TII Network Technologies Inc."]
["TIK","Tel-Instrument Electronics Corp."]
["TIN","Temple-inland Inc."]
["TINY","Harris & Harris Group Inc."]
["TIP","ISHARES LEHMAN TIPS"]
["TIPZ","PIMCO BROAD U.S. TIP"]
["TIS","Orchids Paper Products Company"]
["TISA","Top Image Systems Ltd."]
["TISI","Team Inc."]
["TITN","Titan Machinery Inc."]
["TIV","Tri-Valley Corporation"]
["TIVO","TiVo Inc."]
["TIXC","Tix Corporation"]
["TJX","Tjx Companies Inc. (the)"]
["TK","Teekay Shipping Corporation"]
["TKC","Turkcell Iletisim Hizmetleri As"]
["TKF","Turkish Investment Fund Inc. (the)"]
["TKLC","Tekelec"]
["TKR","Timken Company (the)"]
["TKS","Tomkins Plc"]
["TLAB","Tellabs Inc."]
["TLB","Talbots Inc. (the)"]
["TLCR","TALECRIS BIOTHERAPEUTICS HOLDIN"]
["TLEO","Taleo Corporation"]
["TLF","Tandy Leather Factory Inc."]
["TLGD","Tollgrade Communications Inc."]
["TLH","ISHARES LEHMAN 10-20"]
["TLI","Lmp Corporate Loan Fund Inc"]
["TLK","P.t. Telekomunikasi Indonesia Tbk."]
["TLL","ProShares Trust"]
["TLM","Talisman Energy Inc."]
["TLO","SPDR Series Trust"]
["TLP","Transmontaigne Partners L.p."]
["TLR","Timberline Resources Corporation"]
["TLT","Ishares Lehman 20 Year Treasury Bond Fund"]
["TLVT","Telvent GIT S.A."]
["TLX","Trans-Lux Corporation"]
["TM","Toyota Motor Corporation"]
["TMF","DIREXION DAILY 30Y T"]
["TMH","TEAM HEALTH HOLDINGS INC"]
["TMK","Torchmark Corporation"]
["TMK-A","Torchmark Cap Tr Iii"]
["TMM","Grupo Tmm S.a."]
["TMNG","Management Network Group Inc. (The)"]
["TMO","Thermo Fisher Scientific Inc"]
["TMP","TompkinsTrustco Inc."]
["TMR","Meridian Resource Corporation (the)"]
["TMRK","Terremark Worldwide Inc."]
["TMV","DIREXION DAILY 30Y B"]
["TMW","FORTUNE 500 Index Tracking Stock"]
["TMX","Telefonos De Mexico"]
["TNA","SMALL CAP BULL 3X"]
["TNB","Thomas & Betts Corporation"]
["TNC","Tennant Company"]
["TNCC","Tennessee Commerce Bancorp Inc. (TN)"]
["TNDM","Neutral Tandem Inc."]
["TNE","Tele Norte Leste Participacoes S.a."]
["TNH","Terra Nitrogen Company L.p."]
["TNK","TEEKAY TANKERS LTD"]
["TNL","Technitrol Inc."]
["TNP","Tsakos Energy Navigation Ltd"]
["TNS","Tns Inc."]
["TO","TECH OPS SEVCON SC3"]
["TOBC","TOWER BANCORP INC"]
["TOD","Todd Shipyards Corporation"]
["TOF","Tofutti Brands Inc."]
["TOFC","Tower Financial Corporation"]
["TOK","ISHARES MSCI KOKUSAI"]
["TOL","Toll Brothers Inc."]
["TOMO","TomoTherapy Incorporated"]
["TONE","TierOne Corporation"]
["TOO","Teekay Offshore Partners L.p."]
["TOPS","TOP Ships Inc."]
["TORM","TOR Minerals International Inc"]
["TOT","Totalfinaelf S.a."]
["TOWN","Towne Bank"]
["TPC","Triton PCS Holdings Inc."]
["TPGI","Thomas Properties Group Inc."]
["TPI","Citigroup Global Markets Holdings Inc"]
["TPL","Texas Pacific Land Trust"]
["TPX","Tempur-pedic International Inc"]
["TPZ","TORTOISE PWR AND ENE"]
["TQNT","TriQuint Semiconductor Inc."]
["TQQQ","PROSHARES TRUST"]
["TR","Tootsie Roll Industries Inc."]
["TRA","Terra Industries Inc."]
["TRAD","TradeStation Group Inc"]
["TRAK","DealerTrack Holdings Inc."]
["TRBN","Trubion Pharmaceuticals Inc."]
["TRBR","Trailer Bridge Inc."]
["TRC","Tejon Ranch Company"]
["TRCI","Technology Research Corporation"]
["TRCR","Transcend Services Inc."]
["TRE","Tanzanian Royalty Exploration Corporation"]
["TREE","TREE.COM INC. WI"]
["TREX","TREX CO INC"]
["TRF","Templeton Russia Fund Inc."]
["TRGL","Toreador Resources Corporation"]
["TRGT","Targacept Inc."]
["TRH","Transatlantic Holdings Inc."]
["TRI","Triad Hospitals Inc."]
["TRIB","Trinity Biotech plc"]
["TRID","Trident Microsystems Inc."]
["TRIT","TRI-TECH HOLDING INC."]
["TRK","Speedway Motorsports Inc."]
["TRLG","True Religion Apparel Inc."]
["TRMA","Trico Marine Services Inc."]
["TRMB","Trimble Navigation"]
["TRMD","Aktieselskabet Dampskibsselskabet Torm"]
["TRMK","Trustmark Corporation"]
["TRMS","Trimeris Inc."]
["TRN","Trinity Industries Inc."]
["TRNO","TERRENO REALTY CORPORATION"]
["TROW","T. Rowe Price Group Inc."]
["TRP","Transcananda Pipelines Ltd."]
["TRR","Trc Companies Inc."]
["TRS","TRIMAS CORP"]
["TRST","TrustCo Bank Corp NY"]
["TRT","Trio-Tech International"]
["TRU","Torch Energy Royalty Trust"]
["TRV","St. Paul Companies Inc. (the)"]
["TRW","Trw Automotive Holdings Corporation"]
["TS","Tenaris S.a."]
["TSBK","Timberland Bancorp Inc."]
["TSCM","TheStreet.com Inc."]
["TSCO","Tractor Supply Company"]
["TSEM","Tower Semiconductor Ltd."]
["TSFG","South Financial Group Inc. (The)"]
["TSH","Teche Holding Company"]
["TSI","Tcw Strategic Income Fund Inc."]
["TSL","Trina Solar"]
["TSM","Taiwan Semiconductor Manufacturing Company"]
["TSN","Tyson Foods Inc."]
["TSO","Tesoro Petroleum Corporation"]
["TSON","TranS1 Inc."]
["TSP","Telecomunicacoes De Sao Paulo S.a."]
["TSPT","TRANSCEPT PHAR"]
["TSRA","Tessera Technologies Inc."]
["TSRI","TSR Inc."]
["TSS","Total System Services Inc."]
["TSTC","Telestone Technologies Corp."]
["TSTF","TeamStaff Inc."]
["TSTR","TerreStar Corporation"]
["TSTY","Tasty Baking Company"]
["TSU","Tele Celular Sul Participacoes S.a."]
["TSYS","TeleCommunication Systems Inc."]
["TTC","Toro Company (the)"]
["TTEC","TeleTech Holdings Inc."]
["TTEK","Tetra Tech Inc."]
["TTES","T-3 Energy Services Inc"]
["TTF","Thai Fund Inc. (the)"]
["TTGT","TechTarget Inc."]
["TTH","Merrill Lynch Telecom HOLDRS"]
["TTHI","Transition Therapeutics Inc."]
["TTI","Tetra Technologies Inc."]
["TTIL","TTI Team Telecom International Ltd."]
["TTM","Tata Motors Ltd"]
["TTMI","TTM Technologies Inc."]
["TTO","Tortoise Capital Resources Corporation"]
["TTPA","Trintech Group PLC"]
["TTT","Terra Nova Royalty Corporation"]
["TTWO","Take-Two Interactive Software Inc."]
["TU","Telus Corporation"]
["TUC","Mac-gray Corporation"]
["TUES","Tuesday Morning Corp."]
["TUNE","Microtune Inc."]
["TUP","Tupperware Corporation"]
["TUR","ISHARES MSCI TURKEY"]
["TUTR","PLATO Learning Inc."]
["TUZ","PIMCO ETF 1-3YR US TRESURY IDX"]
["TV","Grupo Televisa S.a."]
["TVC","Tennessee Valley Authority"]
["TVE","Tennessee Valley Authority"]
["TVL","Lin Tv Corp"]
["TW","21st Century Insurance Group"]
["TWC","TIME WARNER CABLE CLASS A"]
["TWER","Towerstream Corporation"]
["TWGP","Tower Group Inc."]
["TWI","Titan International Inc."]
["TWIN","Twin Disc Incorporated"]
["TWLL","Techwell Inc."]
["TWM","ProShares Trust"]
["TWMC","Trans World Entertainment Corp."]
["TWN","Taiwan Fund Inc. (the)"]
["TWO","TWO HBRS INVT CORP"]
["TWO.W","TWO HARBORS INVESTMENT CORP.- YA"]
["TWOZ","Direxion Daily 2 Year Treasury"]
["TWPG","Thomas Weisel Partners Group Inc."]
["TWTC","tw telecom inc."]
["TWX","Time Warner Inc."]
["TX","Ternium S.a."]
["TXCC","TranSwitch Corporation"]
["TXI","Texas Industries Inc."]
["TXIC","Tongxin International Ltd."]
["TXICW","Tongxin International Ltd."]
["TXN","Texas Instruments Incorporated"]
["TXRH","Texas Roadhouse Inc."]
["TXT","Textron Inc."]
["TY","Tri Contl Corp"]
["TY.P","TRI CONTINENTAL CP PFD"]
["TYC","Tyco International Ltd."]
["TYD","DIREXION DAILY 10-YE"]
["TYG","Tortoise Energy Infrastructure Corporation"]
["TYG-A","TORTOISE ENERGY INFRASTRUCTURE"]
["TYH","TECHNOLOGY BULL 3X"]
["TYL","Tyler Technologies Inc."]
["TYN","Tortoise North American Energy Corporation"]
["TYO","DIREXION 10Y BEAR"]
["TYP","TECHNOLOGY BEAR 3X"]
["TYPE","Monotype Imaging Holdings Inc."]
["TYW","Ts&w/claymore Tax-advantaged Balanced Fund"]
["TYY","Tortoise Energy Capital Corporation"]
["TYY-A","TORTOISE ENERGY CAPITAL CORP"]
["TZA","SMALL CAP BEAR 3X"]
["TZD","SHARES"]
["TZE","ISHARES"]
["TZF","Bear Stearns Depositor Inc."]
["TZG","ISHARES"]
["TZI","ISHARES"]
["TZK","Trust Ctfs 2002 1 Bear Stearns Depositor Inc Acting As Deposit"]
["TZL","ISHARES"]
["TZO","ISHARES"]
["TZOO","Travelzoo Inc"]
["TZV","ISHARES"]
["UA","Under Armour Inc."]
["UACL","Universal Truckload Services Inc."]
["UAM","UNIVERSAL AMERICAN"]
["UAUA","UAL Corporation"]
["UBA","Urstadt Biddle Properties Inc."]
["UBCP","United Bancorp Inc."]
["UBET","Youbet.com Inc."]
["UBFO","United Security Bancshares"]
["UBM","E-TRACS UBS BLOOMBER"]
["UBN","E-TRACS UBS BLOOMBER"]
["UBNK","United Financial Bancorp Inc."]
["UBOH","United Bancshares Inc."]
["UBP","Urstadt Biddle Properties Inc."]
["UBP-C","Urstadt Biddle Pptys Ins"]
["UBP-D","Urstadt Biddle Pptys Ins"]
["UBS","Ubs Ag"]
["UBS-D","Ubs Pfd Fdg Tr Iv"]
["UBSH","Union Bankshares Corporation"]
["UBSI","United Bankshares Inc."]
["UBT","PROSHARES"]
["UCBI","United Community Banks Inc."]
["UCC","ProShares Trust"]
["UCD","PROSHS ULTRA DJ-AIG"]
["UCFC","United Community Financial Corp."]
["UCO","PROSH ULTRA DJ CRUDE"]
["UCTT","Ultra Clean Holdings Inc."]
["UDN","POWERSHARES DB US DOLLAR INDEX BULLISH FUND"]
["UDOW","PROSHARES ULTRA PRO DOW30"]
["UDR","United Dominion Realty Trust Inc."]
["UDR-G","UDR INC 6.75% SERIES G"]
["UDRL","Union Drilling Inc."]
["UDW","US Dataworks Inc"]
["UEC","Uranium Energy Corp."]
["UEIC","Universal Electronics Inc."]
["UEPS","Net 1 UEPS Technologies Inc."]
["UFCS","United Fire & Casualty Company"]
["UFI","Unifi Inc."]
["UFPI","Universal Forest Products Inc."]
["UFPT","UFP Technologies Inc."]
["UFS","Domtar Corporation"]
["UG","UNITED GUARDIAN INC"]
["UGA","United States Gasoline Fund"]
["UGE","ProShares Trust"]
["UGI","Ugi Corporation"]
["UGL","PROSHARES"]
["UGP","Ultrapar Participacoes S.a."]
["UHAL","Amerco"]
["UHN","United States Heating Oil Fund LP"]
["UHS","Universal Health Services Inc."]
["UHT","Universal Health Realty Income Trust"]
["UIL","Uil Holdings Corporation"]
["UIS","Unisys Corporation"]
["UKF","ProShares Trust"]
["UKK","ProShares Trust"]
["UKW","ProShares Trust"]
["UL","Unilever Plc"]
["ULBI","Ultralife Corporation"]
["ULE","PROSHARES ULTRA EURO"]
["ULGX","Urologix Inc."]
["ULQ","Claymore Exchange-Traded Fund Trust"]
["ULTA","Ulta Salon Cosmetics & Fragrance Inc."]
["ULTI","Ultimate Software Group Inc. (The)"]
["ULTR","Ultrapetrol (Bahamas)"]
["ULU","Uluru Inc."]
["UMBF","UMB Financial Corporation"]
["UMC","United Microelectronics Corporation"]
["UMDD","PROSHARES ULTRAPRO MIDCAP400"]
["UMH","UMH Properties Inc."]
["UMPQ","Umpqua Holdings Corporation"]
["UN","Unilever Nv"]
["UNAM","Unico American Corporation"]
["UNB","UNION BANKSHARES INC"]
["UNCA","Unica Corporation"]
["UNF","Unifirst Corporation"]
["UNFI","United Natural Foods Inc."]
["UNFY","UNIFY CORP"]
["UNG","United States Natural Gas Fund LP"]
["UNH","Unitedhealth Group Incorporated"]
["UNIS","UNILIFE CORPORATION"]
["UNM","Unumprovident Corporation"]
["UNP","Union Pacific Corporation"]
["UNS","Unisource Energy Corporation"]
["UNT","Unit Corporation"]
["UNTD","United Online Inc."]
["UNTY","Unity Bancorp Inc."]
["UPG","Universal Power Group Inc"]
["UPI","Uroplasty Inc."]
["UPL","ULTRA PETROLEUM CORP"]
["UPRO","PROSHARES"]
["UPS","United Parcel Service Inc."]
["UPW","ProShares Trust"]
["UQM","UQM TECHNOLOGIES INC"]
["URBN","Urban Outfitters Inc."]
["URE","ProShares Trust"]
["URG","Ur Energy Inc"]
["URI","United Rentals Inc."]
["URRE","Uranium Resources Inc."]
["URS","Urs Corporation"]
["URTY","PROSHARES ULTRAPRO RUSSELL2000"]
["URZ","Uranerz Energy Corporation"]
["USA","Liberty All-star Equity Fund"]
["USAK","USA Truck Inc."]
["USAP","Universal Stainless & Alloy Products Inc."]
["USAT","USA Technologies Inc."]
["USATW","USA TECHNOLOGIES INC."]
["USB","U.s. Bancorp"]
["USB-E","Usb Cap Vi"]
["USB-F","Usb Cap Vii"]
["USB-G","Usb Cap Viii"]
["USB-H","Us Bancorp Del"]
["USBI","United Security Bancshares Inc."]
["USB-I","Usb Cap X"]
["USB-J","Usb Cap Xi"]
["USB-K","Usb Cap Xii"]
["USB-L","U S BANCORP SERIES D"]
["USD","ProShares Trust"]
["USEG","U.S. Energy Corp."]
["USG","Usg Corporation"]
["USHS","U.S. Home Systems Inc."]
["USL","United States 12 Month Oil Fund LP"]
["USLM","United States Lime & Minerals Inc."]
["USM","U S CELLULAR"]
["USMO","USA Mobility Inc."]
["USNA","USANA Health Sciences Inc."]
["USO","United States Oil Fund LP"]
["USPH","U.S. Physical Therapy Inc."]
["UST","PROSHARES"]
["USTR","United Stationers Inc."]
["USU","Usec Inc."]
["USV","E-TRACS UBS BLOOMBER"]
["UTA","UNIVERSAL TRAVEL GRP"]
["UTEK","Ultratech Inc."]
["UTF","Cohen & Steers Select Utility Fund"]
["UTG","Reaves Utility Income Fund"]
["UTH","Merrill Lynch Utilities HOLDRS"]
["UTHR","United Therapeutics Corporation"]
["UTI","Universal Technical Institute Inc"]
["UTIW","UTi Worldwide Inc."]
["UTL","UNITIL CP"]
["UTMD","Utah Medical Products Inc."]
["UTR","Unitrin Inc."]
["UTSI","UTStarcom Inc."]
["UTX","United Technologies Corporation"]
["UUP","POWERSHARES DB US DOLLAR INDEX BULLISH FUND"]
["UUU","Universal Security Instruments Inc."]
["UVE","UNIVERSAL IURANCE HOLDINGS INC"]
["UVG","ProShares Trust"]
["UVSP","Univest Corporation of Pennsylvania"]
["UVT","ProShares Trust"]
["UVU","ProShares Trust"]
["UVV","Universal Corporation"]
["UWBK","United Western Bancorp Inc."]
["UWM","ProShares Trust"]
["UWN","Nevada Gold & Casinos Inc."]
["UXG","U.S. Gold Corporation"]
["UXI","ProShares Trust"]
["UYG","ProShares Trust"]
["UYM","ProShares Trust"]
["UZV","United States Cellular Corporation"]
["V","Visa Inc"]
["VAL","Valspar Corporation (the)"]
["VAL.P","THE VALSPAR CORP"]
["VALE","COMPANHIA VALE ADS"]
["VALU","Value Line Inc."]
["VAR","Varian Medical Systems Inc."]
["VARI","Varian Inc."]
["VASC","Vascular Solutions Inc."]
["VAW","Vanguard Materials ETF"]
["VAZ","Delaware Investments Arizona Municipal Income Fund Inc."]
["VB","Vanguard Small-Cap ETF"]
["VBF","Van Kampen Bond Fund"]
["VBFC","Village Bank and Trust Financial Corp."]
["VBK","Vanguard Small-Cap Growth ETF"]
["VBR","Vanguard Small-Cap Value ETF"]
["VCBI","Virginia Commerce Bancorp"]
["VCF","Delaware Investments Colorado Municipal Income Fund Inc"]
["VCGH","VCG Holding Corporation"]
["VCI","Valassis Communications Inc."]
["VCIT","VANGUARD SCOTTSDALE FUNDS- YAHOO"]
["VCLK","ValueClick Inc."]
["VCLT","VANGUARD SCOTTSDALE FUNDS- YAHOO"]
["VCO","Vina Concha Y Toro"]
["VCR","Vanguard Consumer Discretionary ETF"]
["VCSH","VANGUARD SCOTTSDALE FUNDS- YAHOO"]
["VCV","Van Kampen California Value Municipal Income Trust"]
["VDC","Vanguard Consumer Staples ETF"]
["VDE","Vanguard Energy ETF"]
["VDSI","VASCO Data Security International Inc."]
["VE","Vivendi Environnement Ord"]
["VEA","Vanguard Tax-Managed Funds"]
["VECO","Veeco Instruments Inc."]
["VEU","Vanguard FTSE All World Ex US ETF"]
["VFC","V.f. Corporation"]
["VFH","Vanguard Financials ETF"]
["VFL","Delaware Investments Florida Insured Municipal Income Fund"]
["VG","Vonage Holdings Corp."]
["VGIT","VANGUARD SCOTTSDALE FUNDS- YAHOO"]
["VGK","Vanguard European ETF"]
["VGLT","VANGUARD SCOTTSDALE FUNDS- YAHOO"]
["VGM","Van Kampen Trust For Investment Grade Municipals"]
["VGR","Vector Group Ltd."]
["VGSH","VANGUARD SCOTTSDALE FUNDS- YAHOO"]
["VGT","Vanguard Information Technology ETF"]
["VGZ","Vista Gold Corporation"]
["VHC","VirnetX Holding Corp"]
["VHI","Valhi Inc."]
["VHT","Vanguard Health Care ETF"]
["VIA","Viacom Inc."]
["VIA.B","Viacom Inc."]
["VIAS","VIASYSTEMS GROUP INC."]
["VICL","Vical Incorporated"]
["VICR","Vicor Corporation"]
["VIDE","Video Display Corporation"]
["VIFL","Food Technology Service Inc."]
["VIG","Vanguard Dividend Appreciation ETF"]
["VII","Vicon Industries Inc"]
["VIM","Van Kampen Trust For Insured Municipals"]
["VIMC","Vimicro International Corporation"]
["VIP","Open Joint Stock Company Vimpel-communications"]
["VIRC","Virco Manufacturing Corporation"]
["VIRL","Virage Logic Corporation"]
["VIS","Vanguard Industrials ETF"]
["VISN","VisionChina Media Inc."]
["VIST","VIST Financial Corp"]
["VIT","Van Kampen High Income Corporate Bond Fund"]
["VITA","Orthovita Inc."]
["VITC","VITACOST.COM INC."]
["VIV","Vivo Participacoes S.a."]
["VIVO","Meridian Bioscience Inc."]
["VKI","Van Kampen Advantage Municipal Income Trust II"]
["VKL","Van Kampen Select Sector Municipal Trust"]
["VKQ","Van Kampen Municipal Trust"]
["VLCCF","Knightsbridge Tankers"]
["VLCM","Volcom Inc."]
["VLGEA","Village Super Market Inc."]
["VLNC","Valence Technology Inc."]
["VLO","Valero Energy Corporation"]
["VLT","Van Kampen High Income Corporate Bond Fund"]
["VLTR","Volterra Semiconductor Corporation"]
["VLY","Valley National Bancorp"]
["VLY-A","Vnb Cap Tr I"]
["VMBS","VANGUARD SCOTTSDALE FUNDS- YAHOO"]
["VMC","Vulcan Materials Company"]
["VMED","Virgin Media Inc."]
["VMI","Valmont Industries Inc."]
["VMM","Delaware Investments Minnesota Municipal Income Fund II Inc."]
["VMO","Van Kampen Municipal Opportunity Trust"]
["VMV","Van Kampen Massachusetts Value Municipal Income Trust"]
["VMW","VMWARE INC."]
["VNDA","Vanda Pharmaceuticals Inc."]
["VNM","MARKET VECTORS VIETN"]
["VNO","Vornado Realty Trust"]
["VNOD","VORNADO REALTY LP"]
["VNO-E","Vornado Rlty Tr"]
["VNO-F","Vornado Rlty Tr"]
["VNO-G","Vornado Rlty Tr"]
["VNO-H","Vornado Rlty Tr"]
["VNO-I","Vornado Rlty Tr"]
["VNQ","Vanguard REIT ETF"]
["VNR","VANGUARD NATURAL RES"]
["VNV","Viacom Inc."]
["VO","Vanguard Mid-Cap ETF"]
["VOCL","VocalTec Communications Ltd."]
["VOCS","Vocus Inc."]
["VOD","VODAFONE GRP PLC ADS"]
["VOE","Vanguard Mid-Cap Value ETF"]
["VOL","Volt Information Sciences Inc."]
["VOLC","Volcano Corporation"]
["VOLT","Voltaire Ltd."]
["VOQ","Van Kampen Ohio Quality Municipal Trust"]
["VOT","Vanguard Mid-Cap Growth ETF"]
["VOX","Vanguard Telecommunication Services ETF"]
["VOXW","Voxware Inc."]
["VOXX","Audiovox Corporation"]
["VPF","VALPEY FISHER CP"]
["VPFG","ViewPoint Financial Group"]
["VPHM","ViroPharma Incorporated"]
["VPL","Vanguard Pacific ETF"]
["VPRT","VistaPrint"]
["VPS","Vermont Pure Holdings Ltd."]
["VPU","Vanguard Utilities ETF"]
["VPV","Van Kampen Pennsylvania Value Municipal Income Trust"]
["VQ","Venoco Inc."]
["VR","VALIDUS HOLDINGS"]
["VRAD","Virtual Radiologic Corporation"]
["VRAZ","Veraz Networks Inc."]
["VRGY","Verigy Ltd."]
["VRNM","Verenium Corporation"]
["VRS","VERSO PAPER CORP"]
["VRSK","VERISK ANALYTICS INC."]
["VRSN","VeriSign Inc."]
["VRTA","Vestin Realty Mortgage I Inc."]
["VRTB","Vestin Realty Mortgage II Inc."]
["VRTS","VERITAS Software Corporation"]
["VRTU","Virtusa Corporation"]
["VRTX","Vertex Pharmaceuticals Incorporated"]
["VRUS","Pharmasset Inc."]
["VRX","Valeant Pharmaceuticals International"]
["VSAT","ViaSat Inc."]
["VSCI","Vision-Sciences Inc."]
["VSCP","VirtualScopics Inc."]
["VSEA","Varian Semiconductor Equipment Associates Inc."]
["VSEC","VSE Corporation"]
["VSH","Vishay Intertechnology Inc."]
["VSI","VITAMIN SHOPPE INC- YAHOO! FINAN"]
["VSNT","Versant Corporation"]
["VSR","Versar Inc."]
["VSS","VANGUARD FTSE ETF"]
["VT","VANGUARD TOTAL WORLD"]
["VTA","Vesta Insurance Group Inc."]
["VTAL","Vital Images Inc."]
["VTG","Vantage Drilling Company"]
["VTG.W","Vantage Drilling Company"]
["VTI","Vanguard Total Stock Market ETF"]
["VTIV","inVentiv Health Inc."]
["VTJ","Van Kampen Trust For Investment Grade New Jersey Municipals"]
["VTN","Van Kampen Trust For Investment Grade New York Municipals"]
["VTNC","Vitran Corporation Inc."]
["VTR","Ventas Inc."]
["VTRO","VERTRO INC"]
["VTV","Vanguard Value ETF"]
["VUG","Vanguard Growth ETF"]
["VV","Vanguard Large-Cap ETF"]
["VVC","Vectren Corporation"]
["VVI","Viad Corporation"]
["VVR","Van Kampen Senior Income Trust"]
["VVTV","ValueVision Media Inc."]
["VVUS","Vivus Inc."]
["VWO","Vanguard Emerging Markets ETF"]
["VXF","Vanguard Extended Market ETF"]
["VXX","IPATH S& P 500 VIX SHORT  -TERM"]
["VXZ","IPATH S& P 500 VIX MID-T  ERM F"]
["VYM","Vanguard High Dividend Yield ETF"]
["VZ","Verizon Communications Inc."]
["WAB","Wabtec Corporation"]
["WABC","Westamerica Bancorporation"]
["WAC","WALTER INVESTMENT MG"]
["WACLY","Wacoal Holdings Corporation"]
["WAG","Walgreen Company"]
["WAIN","Wainwright Bank & Trust Company"]
["WAL","Western Alliance Bancorporation"]
["WASH","Washington Trust Bancorp Inc."]
["WAT","Waters Corporation"]
["WATG","Wonder Auto Technology Inc."]
["WAVE","NextWave Wireless Inc"]
["WAVX","Wave Systems Corp."]
["WAYN","Wayne Savings Bancshares Inc."]
["WB-B","WACHOVIA CAPITAL TRUST IV"]
["WBC","WABCO HOLDINGS INC"]
["WB-C","WACHOVIA CAPITAL TRUST IX"]
["WBCO","Washington Banking Company"]
["WBD","Wimm Bill Dann Foods Ojsc"]
["WB-D","WACHOVIA CAPITAL TRUST X"]
["WBK","Westpac Banking Corporation"]
["WBMD","WebMD Health Corp"]
["WBNK","Waccamaw Bankshares Inc"]
["WBS","Webster Financial Corporation"]
["WBSN","Websense Inc."]
["WCAA","WCA Waste Corporation"]
["WCAT","JEFFERIES TR/J CRB"]
["WCBO","West Coast Bancorp"]
["WCC","Wesco International Inc."]
["WCG","Wellcare Group"]
["WCN","Waste Connections Inc."]
["WCO","WELLS FARGO CAPITAL XIV 8.625%"]
["WCRX","Warner Chilcott"]
["WDC","Western Digital Corporation"]
["WDFC","WD-40 Company"]
["WDR","Waddell & Reed Financial Inc."]
["WEA","Western Asset Bond Fund"]
["WEBM","Webmethods Inc."]
["WEC","Wisconsin Energy Corporation"]
["WEDC","White Electronic Designs Corporation"]
["WEL","Boots and Coots International Well Control Inc."]
["WEN","Wendy's International Inc."]
["WERN","Werner Enterprises Inc."]
["WES","WestCorp"]
["WEX","Winland Electronics Inc."]
["WEYS","Weyco Group Inc."]
["WF","Woori Finance Holdings Co Ltd"]
["WFC","Wells Fargo & Company"]
["WFC-J","WELLS FARGO PFD J"]
["WFC-L","WELLS FARGO PFD L"]
["WFD","Westfield Financial Inc."]
["WFMI","Whole Foods Market Inc."]
["WFR","Memc Electronic Materials Inc."]
["WFSL","Washington Federal Inc."]
["WFSLW","WASHINGTON FEDERAL INC."]
["WFT","Weatherford International Inc."]
["WG","Willbros Group Inc."]
["WGA","Wells-Gardner Electronics Corporation"]
["WGL","Washington Gas Light Company"]
["WGNR","Wegener Corporation"]
["WGO","Winnebago Industries Inc."]
["WGOV","Woodward Governor Company"]
["WH","WSP HOLDINGS LIMITED"]
["WHG","Westwood Holdings Group Inc"]
["WHI","W Holding Company Incorporated"]
["WHR","Whirlpool Corporation"]
["WHRT","World Heart Corporation"]
["WHX","WHX Corporation"]
["WIA","Western Asset/claymore U.s. Treasury Inflation Prot Secs Fd"]
["WIBC","Wilshire Bancorp Inc."]
["WILC","G. Willi-Food International Ltd."]
["WIN","WINDSTREAM CORP"]
["WINA","Winmark Corporation"]
["WINN","Winn-Dixie Stores Inc."]
["WIP","SPDR Series Trust"]
["WIRE","Encore Wire Corporation"]
["WIT","Wipro"]
["WIW","Western Asset/claymore U.s Treasury Inflation Prot Secs Fd 2"]
["WL","Wilmington Trust Corporation"]
["WLB","Westmoreland Coal Company"]
["WLB.P","Westmoreland Coal Company"]
["WLDN","Willdan Group Inc."]
["WLFC","Willis Lease Finance Corporation"]
["WLFCP","Willis Lease Finance Corporation"]
["WLK","Westlake Chemical Corporation"]
["WLL","Whiting Petroleum Corporation"]
["WLL-A","WHITING PETROLEUM"]
["WLP","Wellpoint Health Networks Inc."]
["WLT","Walter Industries Inc."]
["WM","Washington Mutual Inc."]
["WMAR","West Marine Inc."]
["WMB","Williams Companies Inc. (the)"]
["WMG","Warner Music Group Corp."]
["WMGI","Wright Medical Group Inc."]
["WMH","Merrill Lynch Wireless HOLDRS"]
["WMK","Weis Markets Inc."]
["WMS","Wms Industries Inc."]
["WMT","Wal-mart Stores Inc."]
["WMW","DEUTSHE BANK AG ELEM"]
["WMZ","WILLIAMS PIPELINE PARTNERS LP"]
["WNA.P","WACHOVIA PRF FUNDING CP PFD"]
["WNC","Wabash National Corporation"]
["WNI","Weider Nutrition International Inc."]
["WNR","Western Refining Inc."]
["WNS","Wns (holdings)"]
["WOLF","Great Wolf Resorts Inc."]
["WOOD","iShares S&P Global Timber &Forestry Index Fund"]
["WOOF","VCA Antech Inc."]
["WOR","Worthington Industries Inc."]
["WPC","W.p. Carey & Co. Llc"]
["WPCS","WPCS International Incorporated"]
["WPI","Watson Pharmaceuticals Inc."]
["WPK","Wells Fargo & Company"]
["WPO","Washington Post Company (the)"]
["WPP","Wausau-mosinee Paper Corporation"]
["WPPGY","WPP Group plc"]
["WPRT","Westport Innovations Inc"]
["WPS","ISHARES S& P WLD X-US"]
["WPZ","Williams Partners L.p."]
["WR","Westar Energy Inc."]
["WRB","W R BERKLEY CORPORATION"]
["WRB-A","W R BERKLEY CAPITAL TRUST II"]
["WRC","WORLD COLOR PRESS INC"]
["WRD","WEINGARTEN RLTY 8.1%"]
["WRE","Washington Real Estate Investment Trust"]
["WRES","Warren Resources Inc."]
["WRI","Weingarten Realty Investors"]
["WRI-D","Weingarten Rlty Invs"]
["WRI-E","Weingarten Rlty Invs"]
["WRI-F","Weingarten Rlty Invs"]
["WRLD","World Acceptance Corporation"]
["WRLS","Telular Corporation"]
["WRS","Windrose Med Pptys Tr"]
["WSBC","WesBanco Inc."]
["WSBF","Waterstone Financial Inc."]
["WSC","Wesco Financial Corporation"]
["WSCI","WSI Industries Inc."]
["WSF","Wells Fargo & Company"]
["WSFS","WSFS Financial Corporation"]
["WSH","Willis Group Holdings"]
["WSII","Waste Services Inc."]
["WSM","Williams-sonoma Inc."]
["WSO","Watsco Inc."]
["WST","West Pharmaceutical Services Inc."]
["WSTG","Wayside Technology Group Inc."]
["WSTL","Westell Technologies Inc."]
["WTBA","West Bancorporation"]
["WTFC","Wintrust Financial Corporation"]
["WTI","W&t Offshore Inc."]
["WTM","White Mountains Insurance Group Ltd."]
["WTNY","Whitney Holding Corporation"]
["WTR","Aqua America Inc."]
["WTS","Watts Water Technologies Inc."]
["WTSLA","Wet Seal Inc. (The)"]
["WTT","Wireless Telecom Group Inc."]
["WTU","Williams Coal Seam Gas Royalty Trust"]
["WTW","Weight Watchers International Inc"]
["WU","Western Union Company (the)"]
["WUHN","Wuhan General Group (China) Inc."]
["WVVI","Willamette Valley Vineyards Inc."]
["WWAY","WESTWAY GROUP INC"]
["WWAYW","WESTWAY GROUP WT"]
["WWE","World Wrestling Entertainment Inc."]
["WWIN","Waste Industries Usa Inc."]
["WWON","WESTWOOD ONE INC"]
["WWVY","Warwick Valley Telephone Company"]
["WWW","Wolverine World Wide Inc."]
["WWWW","Website Pros Inc."]
["WX","WUXI PHARMATECH [CAYMAN] INC."]
["WXCO","WHX CORPORATION NEW"]
["WXS","Wright Express Corporation"]
["WXSP","WILSHIRE 4500 COMPLETION"]
["WY","Weyerhaeuser Company"]
["WYN","Wyndham Worldwide Corp"]
["WYNN","Wynn Resorts"]
["WYY","WidePoint Corporation"]
["WZE","WIZZARD SOFTWARE CORPORATION"]
["WZEN","Webzen Inc"]
["X","Usx Corporation"]
["XAA","American Municipal Income Portfolio"]
["XATA","XATA Corporation"]
["XBI","SPDR Series Trust"]
["XBKS","XENITH BANKSHARES INC."]
["XCJ","XCEL ENERGY INC"]
["XCO","Exco Resources Inc."]
["XEC","Cimarex Energy Co"]
["XEL","Xcel Energy Inc."]
["XEL-A","Xcel Energy Inc"]
["XEL-B","Xcel Energy Inc"]
["XES","SPDR Series Trust"]
["XETA","XETA Technologies Inc."]
["XFB","Lehman Abs Corporation"]
["XFH","Lehman Abs Corporation"]
["XFJ","Lehman Abs Corporation"]
["XFN","Xfone Inc."]
["XFP","Lehman Abs Corporation"]
["XFR","Lehman Abs Corporation"]
["XGC","Claymore Exchange-Traded Fund Trust"]
["XHB","SPDR Series Trust"]
["XIDE","Exide Technologies"]
["XIN","XINYUAN REAL ESTATE CO LTD"]
["XING","Qiao Xing Universal Telephone Inc."]
["XJT","Expressjet Holdings Inc"]
["XKK","Lehman Abs Corporation"]
["XKN","Lehman Abs Corporation"]
["XKO","Lehman Abs Corporation"]
["XL","Xl Capital"]
["XLB","Select Sector SPDR Fund - Basic Industries"]
["XLE","Select Sector SPDR Fund - Energy Select Sector"]
["XLF","Select Sector SPDR Fund - Financial"]
["XLG","Rydex ETF Trust"]
["XLI","Select Sector SPDR Fund - Industrial"]
["XLK","Select Sector SPDR Fund - Technology"]
["XLNX","Xilinx Inc."]
["XLP","Select Sector SPDR Fund - Consumer Staples"]
["XLU","Select Sector SPDR Fund - Utilities"]
["XLV","Select Sector SPDR Fund - Health Care"]
["XLY","Select Sector SPDR Fund - Consumer Discretionary"]
["XL-Y","XL CAPITAL LTD EQTY SECURITY U"]
["XME","SPDR Series Trust"]
["XNN","Xenonics Holdings Inc."]
["XNPT","XenoPort Inc."]
["XOM","Exxon Mobil Corporation"]
["XOMA","XOMA Ltd."]
["XOP","SPDR Series Trust"]
["XPH","SPDR Series Trust"]
["XPL","Solitario Exploration & Royalty Corp"]
["XPO","Express-1 Expedited Solutions Inc."]
["XPP","MERRILL LYNCH DEP 7.35% ATT-1"]
["XPRT","LECG Corporation"]
["XRA","Exeter Resource Corporation"]
["XRAY","DENTSPLY International Inc."]
["XRIT","X-Rite Incorporated"]
["XRM","Xerium Technologies Inc."]
["XRO","Claymore Exchange-Traded Fund Trust"]
["XRT","SPDR Series Trust"]
["XRTX","Xyratex Ltd."]
["XRU","CURRENCYSHARES"]
["XRX","Xerox Corporation"]
["XSD","SPDR Series Trust"]
["XSEL","XINHUA FINANCE MEDIA LIMITED"]
["XTEX","Crosstex Energy L.P."]
["XTO","Xto Energy Inc."]
["XTXI","Crosstex Energy Inc."]
["XVF","Lehman Abs Corp"]
["XVG","Lehman Abs Corporation"]
["XWES","WORLD ENERGY SOLUTIONS INC DEL"]
["XXIA","Ixia"]
["Y","Alleghany Corporation"]
["YAO","CLAYMORE/ALPHASHARES"]
["YAVY","Yadkin Valley Financial Corporation"]
["YCL","PROSHARES ULTRA YEN"]
["YCS","PROSHS ULTRASHRT YEN"]
["YDNT","Young Innovations Inc."]
["YGE","YINGLI GREEN ENERGY HOLDING CO"]
["YHOO","Yahoo! Inc."]
["YMI","YM BioSciences Inc."]
["YONG","YONGYE INTL INC"]
["YORW","York Water Company (The)"]
["YPF","Ypf Sociedad Anonima"]
["YRCW","YRC Worldwide Inc."]
["YSI","U-store-it Trust"]
["YTEC","Yucheng Technologies"]
["YUII","YUHE INT'L INC"]
["YUM","Yum! Brands Inc."]
["YXI","PROSHARES TRUST ETF"]
["YZC","Yanzhou Coal Mining Company"]
["ZAGG","ZAGG INCORPORATED"]
["ZANE","Zanett Inc."]
["ZB-A","Zions Bancorporation"]
["ZBB","ZBB Energy Corporation"]
["ZB-B","Zions Cap Tr B"]
["ZB-C","ZIO BANCORPORATION"]
["ZBRA","Zebra Technologies Corporation"]
["ZEP","ZEP INC"]
["ZEUS","Olympic Steel Inc."]
["ZF","Zweig Fund Inc. (the)"]
["ZGEN","ZymoGenetics Inc."]
["ZHNE","Zhone Technologies Inc."]
["ZIGO","Zygo Corporation"]
["ZINC","Horsehead Holding Corp."]
["ZION","Zions Bancorporation"]
["ZIOP","ZIOPHARM Oncology Inc"]
["ZIPR","ZipRealty Inc."]
["ZIXI","Zix Corporation"]
["ZLC","Zale Corporation"]
["ZMH","Zimmer Holdings Inc."]
["ZN","ZION OIL & GAS INC"]
["ZNH","China Southern Airlines Company"]
["ZNT","Zenith National Insurance Corporation"]
["ZNWAW","ZION OIL & GAS INC"]
["ZOLL","Zoll Medical Corporation"]
["ZOLT","Zoltek Companies Inc."]
["ZOOM","Zoom Technologies Inc."]
["ZQK","Quiksilver Inc."]
["ZRAN","Zoran Corporation"]
["ZSL","PROSHARES"]
["ZSTN","ZST DIGITAL NETWORKS INC."]
["ZTR","Zweig Total Return Fund Inc. (the)"]
["ZUMZ","Zumiez Inc."]
["ZVZZT","TEST ZVZZT"]
["ZWZZT","TEST ZWZZT"]
["ZXZZT","TEST ZXZZT"]
["ZZ","Sealy Corporation"]
["ZZC","SEALY CORPORATION"]
[true,"Centrue Financial Corporation"]

{"sheet":"ClosingPrices","index":2,"n_rows":28,"n_cols":11,"rows_kept":28,"cut":false,"hidden":true,"merged":[]}
[]
[]
["Month"]
[1,34.409999999999997,23.47,45.28,245.69,21.87,4.03,1.1200000000000001,59.36,33.76,26.45]
[2,34.39,22.62,41.92,235,21.27,3.49,0.91,56.72,30.66,26.47]
[3,31.46,21.04,40.74,204.62,20.78,3.28,0.94,52.7,27.05,26.45]
[4,28.03,20.59,39.4,192.06,19.559999999999999,3.34,0.87,52.07,25.16,26.01]
[5,31.07,19.489999999999998,40.42,210.73,19.420000000000002,3.94,1.05,55.71,27.46,26.41]
[6,28.92,18.760000000000002,39.19,199.91,17.600000000000001,3.2,0.75,54.04,24.73,25.85]
[7,24.74,17.84,37.159999999999997,188.5,16.09,3.15,0.67,50.45,25.71,25.41]
[8,27.83,19.89,39.17,185.35,16.84,3.97,0.71,52.53,26,25.5]
[9,25.68,20.68,42.12,168.21,13.76,4.51,0.64,47.81,21.62,25.34]
[10,23.22,19.420000000000002,46.03,163.38999999999999,12.19,4.82,0.68,49.74,19.29,25.73]
[11,20.309999999999999,19.73,41.31,142.43,11.9,4.59,0.62,43.37,18.78,24.98]
[12,18.23,20.43,42.35,135.81,12.68,4.72,0.91,44.42,17.829999999999998,24.06]
[13,18.260000000000002,19.13,43.5,125.83,10.46,4.8,0.64,38.299999999999997,16.38,24.37]
[14,15.37,17.79,40.85,105.12,8.98,3.6,0.75,32.64,13.7,24.19]
[15,13.87,15.24,37.97,89.31,8.7200000000000006,3.15,0.73,28.11,11.33,24.67]
[16,18.079999999999998,17.79,32.49,90.13,11.4,3.01,0.78,30.36,15.9,24.85]
[17,15.63,20.51,33.409999999999997,85.35,9.68,3.02,0.65,33.06,19.07,23.62]
[18,18.829999999999998,18.55,30.08,92.67,11.32,2.5099999999999998,0.5,30.11,16.149999999999999,22.72]
[19,22.19,16.059999999999999,30.91,107.59,12.76,3.01,0.82,32.43,21.5,22.27]
[20,29.66,17.72,39.299999999999997,113.66,11.94,4.6500000000000004,1.1200000000000001,40.83,32.950000000000003,21.04]
[21,34.76,20.81,42.58,169.53,12.85,4.57,1.36,48.65,48.28,23.58]
[22,36.06,18.52,40.65,158.94999999999999,12.3,4.13,1.93,null,46.25,23.48]
[23,35.54,18.760000000000002,38.42,167.44,10.4,4.13,1.8,null,47.79,23.05]
[24,37.39,20.329999999999998,39.81,188.75,11.65,6.98,2.27,null,56.21,22.98]
[25,30.21,17.48,34.26,173.95,14.4,6.92,2.27,null,53.48,23.07]

{"sheet":"Returns","index":3,"n_rows":27,"n_cols":11,"rows_kept":27,"cut":false,"hidden":true,"merged":[]}
["Corresponding returns"]
[]
["Time period","A","AAON","AAP","AAPL","AAR","AATI","AAU","AAXJ","AB","ABA"]
[2,-5.8122638767788004E-4,-3.6216446527481794E-2,-7.4204946996466403E-2,-4.3510114371769326E-2,-2.7434842249657088E-2,-0.13399503722084372,-0.1875,-4.4474393530997358E-2,-9.1824644549763024E-2,7.5614366729670479E-4]
[3,-8.5199185809828437E-2,-6.9849690539345755E-2,-2.8148854961832059E-2,-0.12927659574468087,-2.3037141513869264E-2,-6.0171919770773741E-2,3.296703296703285E-2,-7.0874471086036617E-2,-0.11774298760600133,-7.5557234605216905E-4]
[4,-0.10902733630006356,-2.1387832699619747E-2,-3.2891507118311347E-2,-6.138207408855445E-2,-5.8710298363811475E-2,1.8292682926829285E-2,-7.446808510638292E-2,-1.1954459203036061E-2,-6.987060998151573E-2,-1.6635160680529171E-2]
[5,0.10845522654298967,-5.3423992229237549E-2,2.5888324873096558E-2,9.7209205456628034E-2,-7.1574642126788213E-3,0.17964071856287434,0.2068965517241379,6.9905895909352811E-2,9.1414944356120964E-2,1.5378700499807607E-2]
[6,-6.9198583842935313E-2,-3.7455105182144566E-2,-3.0430479960415702E-2,-5.1345323399610843E-2,-9.3717816683831057E-2,-0.18781725888324863,-0.2857142857142857,-2.9976664871656844E-2,-9.9417334304442884E-2,-2.1204089360090772E-2]
[7,-0.14453665283540817,-4.9040511727079017E-2,-5.1798928298035229E-2,-5.7075684057826037E-2,-8.5795454545454675E-2,-1.5625000000000111E-2,-0.10666666666666658,-6.6432272390821501E-2,3.9627982207844692E-2,-1.7021276595744705E-2]
[8,0.12489894907033139,0.11491031390134543,5.4090419806243517E-2,-1.6710875331565012E-2,4.6612802983219348E-2,0.2603174603174605,5.9701492537313383E-2,4.1228939544103005E-2,1.1279657720731251E-2,3.5419126328217754E-3]
[9,-7.7254761049227461E-2,3.9718451483157224E-2,7.5312739341332646E-2,-9.247369840841646E-2,-0.18289786223277915,0.13602015113350108,-9.8591549295774628E-2,-8.9853417094993282E-2,-0.16846153846153844,-6.2745098039215241E-3]
[10,-9.5794392523364524E-2,-6.0928433268858662E-2,9.2830009496676302E-2,-2.8654657868141142E-2,-0.11409883720930236,6.8736141906873716E-2,6.25E-2,4.0368123823467883E-2,-0.10777058279370966,1.5390686661404862E-2]
[11,-0.12532299741602071,1.5962924819773461E-2,-0.10254182055181404,-0.12828202460370886,-2.3789991796554499E-2,-4.7717842323651505E-2,-8.8235294117647078E-2,-0.12806594290309614,-2.6438569206842844E-2,-2.9148853478429881E-2]
[12,-0.10241260462826185,3.5478966041561089E-2,2.5175502299685348E-2,-4.6478972126658746E-2,6.5546218487394947E-2,2.8322440087146017E-2,0.467741935483871,2.4210283606179495E-2,-5.0585729499467713E-2,-3.6829463570856702E-2]
[13,1.645639056500281E-3,-6.3631913852178257E-2,2.715466351829976E-2,-7.3485015830940359E-2,-0.17507886435331221,1.6949152542372836E-2,-0.29670329670329676,-0.13777577667717256,-8.1323611890072867E-2,1.2884455527847116E-2]
[14,-0.15826944140197163,-7.0047046523784573E-2,-6.0919540229884994E-2,-0.16458714138122854,-0.14149139579349912,-0.25,0.171875,-0.14778067885117485,-0.16361416361416359,-7.3861304883052759E-3]
[15,-9.7592713077423565E-2,-0.14333895446880263,-7.0501835985312122E-2,-0.15039954337899542,-2.8953229398663627E-2,-0.125,-2.6666666666666727E-2,-0.13878676470588236,-0.17299270072992701,1.9842910293509819E-2]
[16,0.30353280461427534,0.16732283464566922,-0.14432446668422427,9.1815026312842551E-3,0.30733944954128445,-4.4444444444444509E-2,6.8493150684931559E-2,8.00426894343651E-2,0.40335392762577227,7.2963113092825438E-3]
[17,-0.13550884955752196,0.15289488476672308,2.8316405047706716E-2,-5.3034505713968727E-2,-0.15087719298245617,3.3222591362127574E-3,-0.16666666666666663,8.8932806324110825E-2,0.19937106918239,-4.9496981891348102E-2]
[18,0.20473448496481117,-9.5563139931740704E-2,-9.9670757258305875E-2,8.5764499121265381E-2,0.16942148760330578,-0.16887417218543055,-0.23076923076923084,-8.9231699939503972E-2,-0.15312008390141596,-3.8103302286198182E-2]
[19,0.17843866171003731,-0.13423180592991923,2.7593085106383031E-2,0.16100140282723641,0.12720848056537104,0.19920318725099606,0.6399999999999999,7.7050813683161801E-2,0.33126934984520129,-1.9806338028169002E-2]
[20,0.33663812528165837,0.10336239103362388,0.27143319314137804,5.6417882702853417E-2,-6.4263322884012597E-2,0.54485049833887067,0.36585365853658547,0.25901942645698428,0.53255813953488396,-5.5231252806466125E-2]
[21,0.17194875252865804,0.17437923250564324,8.3460559796437739E-2,0.49155375681858171,7.6214405360133908E-2,-1.7204301075268824E-2,0.21428571428571419,0.19152583884398733,0.46525037936267055,0.12072243346007605]
[22,3.7399309551208404E-2,-0.11004324843825075,-4.5326444340065719E-2,-6.240783342181333E-2,-4.2801556420233422E-2,-9.6280087527352398E-2,0.41911764705882337,null,-4.204639602319804E-2,-4.2408821034773947E-3]
[23,-1.4420410427066099E-2,1.2958963282937441E-2,-5.4858548585485778E-2,5.3413022963195944E-2,-0.15447154471544722,0,-6.7357512953367782E-2,null,3.3297297297297357E-2,-1.8313458262350979E-2]
[24,5.2054023635340396E-2,8.3688699360340957E-2,3.6179073399271289E-2,0.12726946966077413,0.12019230769230771,0.69007263922518169,0.26111111111111107,null,0.17618748692195019,-3.0368763557483414E-3]
[25,-0.19202995453329763,-0.14018691588785037,-0.13941220798794285,-7.8410596026490142E-2,0.23605150214592263,-8.5959885386820423E-3,0,null,-4.8567870485678788E-2,3.916449086161844E-3]

{"sheet":"SummaryMeasures","index":4,"n_rows":17,"n_cols":11,"rows_kept":17,"cut":false,"hidden":true,"merged":[]}
["Summary measures for stock returns"]
[]
["Stocks","A","AAON","AAP","AAPL","AAR","AATI","AAU","AAXJ","AB","ABA"]
["Means",{"$f":"AVERAGE(A)","v":4.691536131905899E-3},{"$f":"AVERAGE(AAON)","v":-7.6944739735632746E-3},{"$f":"AVERAGE(AAP)","v":-7.8165151304827266E-3},{"$f":"AVERAGE(AAPL)","v":-6.4876630655228739E-3},{"$f":"AVERAGE(AAR)","v":-9.4162567073592888E-3},{"$f":"AVERAGE(AATI)","v":4.1250053310775955E-2},{"$f":"AVERAGE(AAU)","v":5.5883501655397294E-2},{"$f":"AVERAGE(AAXJ)","v":-4.1460861814329505E-3},{"$f":"AVERAGE(AB)","v":3.7076392125296863E-2},{"$f":"AVERAGE(ABA)","v":-5.1564227049783334E-3}]
["StDevs",{"$f":"STDEV(A)","v":0.14976932971188214},{"$f":"STDEV(AAON)","v":9.7790447545895484E-2},{"$f":"STDEV(AAP)","v":9.0109539354100543E-2},{"$f":"STDEV(AAPL)","v":0.13675740776320799},{"$f":"STDEV(AAR)","v":0.13050383523497627},{"$f":"STDEV(AATI)","v":0.21611532072105746},{"$f":"STDEV(AAU)","v":0.24567247726947489},{"$f":"STDEV(AAXJ)","v":0.11179405258035661},{"$f":"STDEV(AB)","v":0.20774844690726324},{"$f":"STDEV(ABA)","v":3.3670015449828949E-2}]
[]
["Correlations","A","AAON","AAP","AAPL","AAR","AATI","AAU","AAXJ","AB","ABA"]
["A",{"$f":"CORREL(A,A)","v":1},{"$f":"CORREL(A,AAON)","v":0.37944514400462087},{"$f":"CORREL(A,AAP)","v":0.34968371524722613},{"$f":"CORREL(A,AAPL)","v":0.61221329741195407},{"$f":"CORREL(A,AAR)","v":0.45329072633318723},{"$f":"CORREL(A,AATI)","v":0.40977673703691425},{"$f":"CORREL(A,AAU)","v":0.35979288651050978},{"$f":"CORREL(A,AAXJ)","v":0.63859823185987208},{"$f":"CORREL(A,AB)","v":0.69781895401779614},{"$f":"CORREL(A,ABA)","v":0.11322366151447802}]
["AAON",{"$f":"CORREL(AAON,A)","v":0.37944514400462087},{"$f":"CORREL(AAON,AAON)","v":1},{"$f":"CORREL(AAON,AAP)","v":0.38052859190805099},{"$f":"CORREL(AAON,AAPL)","v":0.40586064249869996},{"$f":"CORREL(AAON,AAR)","v":8.1168016800765727E-2},{"$f":"CORREL(AAON,AATI)","v":0.38171684835112452},{"$f":"CORREL(AAON,AAU)","v":3.3351210658001472E-2},{"$f":"CORREL(AAON,AAXJ)","v":0.6209023415014927},{"$f":"CORREL(AAON,AB)","v":0.61657173315302249},{"$f":"CORREL(AAON,ABA)","v":0.12226836176160447}]
["AAP",{"$f":"CORREL(AAP,A)","v":0.34968371524722613},{"$f":"CORREL(AAP,AAON)","v":0.38052859190805099},{"$f":"CORREL(AAP,AAP)","v":1.0000000000000002},{"$f":"CORREL(AAP,AAPL)","v":0.35153472418008791},{"$f":"CORREL(AAP,AAR)","v":-0.34429685492051348},{"$f":"CORREL(AAP,AATI)","v":0.66215989607294556},{"$f":"CORREL(AAP,AAU)","v":0.37054316224778772},{"$f":"CORREL(AAP,AAXJ)","v":0.65279363033418203},{"$f":"CORREL(AAP,AB)","v":0.44238538627329793},{"$f":"CORREL(AAP,ABA)","v":7.1948881508687055E-3}]
["AAPL",{"$f":"CORREL(AAPL,A)","v":0.61221329741195407},{"$f":"CORREL(AAPL,AAON)","v":0.40586064249869996},{"$f":"CORREL(AAPL,AAP)","v":0.35153472418008791},{"$f":"CORREL(AAPL,AAPL)","v":0.99999999999999978},{"$f":"CORREL(AAPL,AAR)","v":0.35596581413873912},{"$f":"CORREL(AAPL,AATI)","v":0.33144824526347144},{"$f":"CORREL(AAPL,AAU)","v":0.35411506046475882},{"$f":"CORREL(AAPL,AAXJ)","v":0.68048016005962486},{"$f":"CORREL(AAPL,AB)","v":0.68383930976568852},{"$f":"CORREL(AAPL,ABA)","v":0.54489151322220253}]
["AAR",{"$f":"CORREL(AAR,A)","v":0.45329072633318723},{"$f":"CORREL(AAR,AAON)","v":8.1168016800765727E-2},{"$f":"CORREL(AAR,AAP)","v":-0.34429685492051348},{"$f":"CORREL(AAR,AAPL)","v":0.35596581413873912},{"$f":"CORREL(AAR,AAR)","v":1.0000000000000002},{"$f":"CORREL(AAR,AATI)","v":0.12436412556499013},{"$f":"CORREL(AAR,AAU)","v":0.31984685372532229},{"$f":"CORREL(AAR,AAXJ)","v":0.30919042336108343},{"$f":"CORREL(AAR,AB)","v":0.35922929921472851},{"$f":"CORREL(AAR,ABA)","v":0.1608067434639506}]
["AATI",{"$f":"CORREL(AATI,A)","v":0.40977673703691425},{"$f":"CORREL(AATI,AAON)","v":0.38171684835112452},{"$f":"CORREL(AATI,AAP)","v":0.66215989607294556},{"$f":"CORREL(AATI,AAPL)","v":0.33144824526347144},{"$f":"CORREL(AATI,AAR)","v":0.12436412556499013},{"$f":"CORREL(AATI,AATI)","v":1.0000000000000002},{"$f":"CORREL(AATI,AAU)","v":0.43935122419008715},{"$f":"CORREL(AATI,AAXJ)","v":0.66630985657052177},{"$f":"CORREL(AATI,AB)","v":0.51543754182720625},{"$f":"CORREL(AATI,ABA)","v":-0.11397845359559233}]
["AAU",{"$f":"CORREL(AAU,A)","v":0.35979288651050978},{"$f":"CORREL(AAU,AAON)","v":3.3351210658001472E-2},{"$f":"CORREL(AAU,AAP)","v":0.37054316224778772},{"$f":"CORREL(AAU,AAPL)","v":0.35411506046475882},{"$f":"CORREL(AAU,AAR)","v":0.31984685372532229},{"$f":"CORREL(AAU,AATI)","v":0.43935122419008715},{"$f":"CORREL(AAU,AAU)","v":1},{"$f":"CORREL(AAU,AAXJ)","v":0.54979796814984483},{"$f":"CORREL(AAU,AB)","v":0.48059835177592619},{"$f":"CORREL(AAU,ABA)","v":5.1255105945018441E-2}]
["AAXJ",{"$f":"CORREL(AAXJ,A)","v":0.63859823185987208},{"$f":"CORREL(AAXJ,AAON)","v":0.6209023415014927},{"$f":"CORREL(AAXJ,AAP)","v":0.65279363033418203},{"$f":"CORREL(AAXJ,AAPL)","v":0.68048016005962486},{"$f":"CORREL(AAXJ,AAR)","v":0.30919042336108343},{"$f":"CORREL(AAXJ,AATI)","v":0.66630985657052177},{"$f":"CORREL(AAXJ,AAU)","v":0.54979796814984483},{"$f":"CORREL(AAXJ,AAXJ)","v":1},{"$f":"CORREL(AAXJ,AB)","v":0.86360374927050276},{"$f":"CORREL(AAXJ,ABA)","v":0.13083519274005742}]
["AB",{"$f":"CORREL(AB,A)","v":0.69781895401779614},{"$f":"CORREL(AB,AAON)","v":0.61657173315302249},{"$f":"CORREL(AB,AAP)","v":0.44238538627329793},{"$f":"CORREL(AB,AAPL)","v":0.68383930976568852},{"$f":"CORREL(AB,AAR)","v":0.35922929921472851},{"$f":"CORREL(AB,AATI)","v":0.51543754182720625},{"$f":"CORREL(AB,AAU)","v":0.48059835177592619},{"$f":"CORREL(AB,AAXJ)","v":0.86360374927050276},{"$f":"CORREL(AB,AB)","v":0.99999999999999978},{"$f":"CORREL(AB,ABA)","v":0.15758699257976208}]
["ABA",{"$f":"CORREL(ABA,A)","v":0.11322366151447802},{"$f":"CORREL(ABA,AAON)","v":0.12226836176160447},{"$f":"CORREL(ABA,AAP)","v":7.1948881508687055E-3},{"$f":"CORREL(ABA,AAPL)","v":0.54489151322220253},{"$f":"CORREL(ABA,AAR)","v":0.1608067434639506},{"$f":"CORREL(ABA,AATI)","v":-0.11397845359559233},{"$f":"CORREL(ABA,AAU)","v":5.1255105945018441E-2},{"$f":"CORREL(ABA,AAXJ)","v":0.13083519274005742},{"$f":"CORREL(ABA,AB)","v":0.15758699257976208},{"$f":"CORREL(ABA,ABA)","v":1.0000000000000002}]

{"sheet":"Model","index":5,"n_rows":26,"n_cols":12,"rows_kept":26,"cut":false,"hidden":false,"merged":[]}
["Portfolio selection model (solution shown is when required return is halfway between minimum and maximum and maximum of stock returns)"]
[]
["Stock","A","AAON","AAP","AAPL","AAR","AATI","AAU","AAXJ","AB","ABA","Sum"]
["Weights",0,0,0,0,0,4.1564829266310823E-5,0.99995843517073335,0,0,0,{"$f":"SUM(Weights)","v":0.99999999999999967}]
["Means",{"$f":" AVERAGE(A)","v":4.691536131905899E-3},{"$f":" AVERAGE(AAON)","v":-7.6944739735632746E-3},{"$f":" AVERAGE(AAP)","v":-7.8165151304827266E-3},{"$f":" AVERAGE(AAPL)","v":-6.4876630655228739E-3},{"$f":" AVERAGE(AAR)","v":-9.4162567073592888E-3},{"$f":" AVERAGE(AATI)","v":4.1250053310775955E-2},{"$f":" AVERAGE(AAU)","v":5.5883501655397294E-2},{"$f":" AVERAGE(AAXJ)","v":-4.1460861814329505E-3},{"$f":" AVERAGE(AB)","v":3.7076392125296863E-2},{"$f":" AVERAGE(ABA)","v":-5.1564227049783334E-3}]
[]
["Covariances","A","AAON","AAP","AAPL","AAR","AATI","AAU","AAXJ","AB","ABA"]
["A",{"$f":"COVAR(A,A)","v":2.1496233283915353E-2},{"$f":"COVAR(A,AAON)","v":5.3258007367392802E-3},{"$f":"COVAR(A,AAP)","v":4.5225737502433035E-3},{"$f":"COVAR(A,AAPL)","v":1.2016918034203454E-2},{"$f":"COVAR(A,AAR)","v":8.4906236181406733E-3},{"$f":"COVAR(A,AATI)","v":1.2710783925749375E-2},{"$f":"COVAR(A,AAU)","v":1.2686696724374202E-2},{"$f":"COVAR(A,AAXJ)","v":1.069657779945001E-2},{"$f":"COVAR(A,AB)","v":2.0807505958720121E-2},{"$f":"COVAR(A,ABA)","v":5.4716711906937978E-4}]
["AAON",{"$f":"COVAR(AAON,A)","v":5.3258007367392802E-3},{"$f":"COVAR(AAON,AAON)","v":9.1645144799254313E-3},{"$f":"COVAR(AAON,AAP)","v":3.2134466318146193E-3},{"$f":"COVAR(AAON,AAPL)","v":5.2016464063717417E-3},{"$f":"COVAR(AAON,AAR)","v":9.9270735080741156E-4},{"$f":"COVAR(AAON,AATI)","v":7.7310754758724287E-3},{"$f":"COVAR(AAON,AAU)","v":7.6785839484425544E-4},{"$f":"COVAR(AAON,AAXJ)","v":6.4607976104606567E-3},{"$f":"COVAR(AAON,AB)","v":1.200423321837419E-2},{"$f":"COVAR(AAON,ABA)","v":3.8580729655452128E-4}]
["AAP",{"$f":"COVAR(AAP,A)","v":4.5225737502433035E-3},{"$f":"COVAR(AAP,AAON)","v":3.2134466318146193E-3},{"$f":"COVAR(AAP,AAP)","v":7.7814070374995188E-3},{"$f":"COVAR(AAP,AAPL)","v":4.1515135006001012E-3},{"$f":"COVAR(AAP,AAR)","v":-3.8801069299150988E-3},{"$f":"COVAR(AAP,AATI)","v":1.2357647236525313E-2},{"$f":"COVAR(AAP,AAU)","v":7.861088262803068E-3},{"$f":"COVAR(AAP,AAXJ)","v":6.4096312202834276E-3},{"$f":"COVAR(AAP,AB)","v":7.9364433696049504E-3},{"$f":"COVAR(AAP,ABA)","v":2.0919665041082274E-5}]
["AAPL",{"$f":"COVAR(AAPL,A)","v":1.2016918034203454E-2},{"$f":"COVAR(AAPL,AAON)","v":5.2016464063717417E-3},{"$f":"COVAR(AAPL,AAP)","v":4.1515135006001012E-3},{"$f":"COVAR(AAPL,AAPL)","v":1.7923314054024329E-2},{"$f":"COVAR(AAPL,AAR)","v":6.088341733005799E-3},{"$f":"COVAR(AAPL,AATI)","v":9.3879060413435463E-3},{"$f":"COVAR(AAPL,AAU)","v":1.1401667117419011E-2},{"$f":"COVAR(AAPL,AAXJ)","v":1.0488175300192276E-2},{"$f":"COVAR(AAPL,AB)","v":1.861912648977548E-2},{"$f":"COVAR(AAPL,ABA)","v":2.4044780335622574E-3}]
["AAR",{"$f":"COVAR(AAR,A)","v":8.4906236181406733E-3},{"$f":"COVAR(AAR,AAON)","v":9.9270735080741156E-4},{"$f":"COVAR(AAR,AAP)","v":-3.8801069299150988E-3},{"$f":"COVAR(AAR,AAPL)","v":6.088341733005799E-3},{"$f":"COVAR(AAR,AAR)","v":1.6321615552244591E-2},{"$f":"COVAR(AAR,AATI)","v":3.3614027069896585E-3},{"$f":"COVAR(AAR,AAU)","v":9.8273960173803337E-3},{"$f":"COVAR(AAR,AAXJ)","v":4.0608992425097048E-3},{"$f":"COVAR(AAR,AB)","v":9.3336047526300508E-3},{"$f":"COVAR(AAR,ABA)","v":6.7715399009511939E-4}]
["AATI",{"$f":"COVAR(AATI,A)","v":1.2710783925749375E-2},{"$f":"COVAR(AATI,AAON)","v":7.7310754758724287E-3},{"$f":"COVAR(AATI,AAP)","v":1.2357647236525313E-2},{"$f":"COVAR(AATI,AAPL)","v":9.3879060413435463E-3},{"$f":"COVAR(AATI,AAR)","v":3.3614027069896585E-3},{"$f":"COVAR(AATI,AATI)","v":4.475975552326697E-2},{"$f":"COVAR(AATI,AAU)","v":2.2354784930383256E-2},{"$f":"COVAR(AATI,AAXJ)","v":1.2796890160995996E-2},{"$f":"COVAR(AATI,AB)","v":2.2177673369262452E-2},{"$f":"COVAR(AATI,ABA)","v":-7.9481897399396901E-4}]
["AAU",{"$f":"COVAR(AAU,A)","v":1.2686696724374202E-2},{"$f":"COVAR(AAU,AAON)","v":7.6785839484425544E-4},{"$f":"COVAR(AAU,AAP)","v":7.861088262803068E-3},{"$f":"COVAR(AAU,AAPL)","v":1.1401667117419011E-2},{"$f":"COVAR(AAU,AAR)","v":9.8273960173803337E-3},{"$f":"COVAR(AAU,AATI)","v":2.2354784930383256E-2},{"$f":"COVAR(AAU,AAU)","v":5.7840175834065623E-2},{"$f":"COVAR(AAU,AAXJ)","v":1.4602136065609672E-2},{"$f":"COVAR(AAU,AB)","v":2.3506781052649427E-2},{"$f":"COVAR(AAU,ABA)","v":4.0630629465862773E-4}]
["AAXJ",{"$f":"COVAR(AAXJ,A)","v":1.069657779945001E-2},{"$f":"COVAR(AAXJ,AAON)","v":6.4607976104606567E-3},{"$f":"COVAR(AAXJ,AAP)","v":6.4096312202834276E-3},{"$f":"COVAR(AAXJ,AAPL)","v":1.0488175300192276E-2},{"$f":"COVAR(AAXJ,AAR)","v":4.0608992425097048E-3},{"$f":"COVAR(AAXJ,AATI)","v":1.2796890160995996E-2},{"$f":"COVAR(AAXJ,AAU)","v":1.4602136065609672E-2},{"$f":"COVAR(AAXJ,AAXJ)","v":1.1873014682722565E-2},{"$f":"COVAR(AAXJ,AB)","v":2.0612900846564704E-2},{"$f":"COVAR(AAXJ,ABA)","v":5.1217026023688721E-4}]
["AB",{"$f":"COVAR(AB,A)","v":2.0807505958720121E-2},{"$f":"COVAR(AB,AAON)","v":1.200423321837419E-2},{"$f":"COVAR(AB,AAP)","v":7.9364433696049504E-3},{"$f":"COVAR(AB,AAPL)","v":1.861912648977548E-2},{"$f":"COVAR(AB,AAR)","v":9.3336047526300508E-3},{"$f":"COVAR(AB,AATI)","v":2.2177673369262452E-2},{"$f":"COVAR(AB,AAU)","v":2.3506781052649427E-2},{"$f":"COVAR(AB,AAXJ)","v":2.0612900846564704E-2},{"$f":"COVAR(AB,AB)","v":4.1361108142697472E-2},{"$f":"COVAR(AB,ABA)","v":1.0563748746328387E-3}]
["ABA",{"$f":"COVAR(ABA,A)","v":5.4716711906937978E-4},{"$f":"COVAR(ABA,AAON)","v":3.8580729655452128E-4},{"$f":"COVAR(ABA,AAP)","v":2.0919665041082274E-5},{"$f":"COVAR(ABA,AAPL)","v":2.4044780335622574E-3},{"$f":"COVAR(ABA,AAR)","v":6.7715399009511939E-4},{"$f":"COVAR(ABA,AATI)","v":-7.9481897399396901E-4},{"$f":"COVAR(ABA,AAU)","v":4.0630629465862773E-4},{"$f":"COVAR(ABA,AAXJ)","v":5.1217026023688721E-4},{"$f":"COVAR(ABA,AB)","v":1.0563748746328387E-3},{"$f":"COVAR(ABA,ABA)","v":1.0864336928753989E-3}]
[]
["Constraint on mean return"]
[null,{"$f":"SUMPRODUCT(Weights,Means)","v":5.588289341861525E-2},">=",5.5883500725030899E-2]
[]
["Portfolio variance"]
[null,{"$f":"MMULT(Weights,MMULT(Covar,TRANSPOSE(Weights)))","v":5.7837226045650281E-2}]
[]
["Portfolio standard deviation"]
[null,{"$f":"SQRT(PortfolioVariance)","v":0.24049371311044762}]

{"sheet":"EffecientFrontier","index":6,"n_rows":14,"n_cols":14,"rows_kept":14,"cut":false,"hidden":false,"merged":[]}
["Efficient frontier"]
[null,null,null,null,"Weights for these optimal portfolios"]
[null,"PortStdev","ReqdReturn",null,"A","AAON","AAP","AAPL","AAR","AATI","AAU","AAXJ","AB","ABA"]
[]
[null,3.1582094263273922E-2,-2.8862813487648964E-3,null,0,1.0258079120764037E-2,3.9844910452311352E-2,0,1.0775730810438405E-2,4.0515138601984378E-2,9.3038439144587457E-3,0,0,0.88930229710004338]
[null,4.1047804913351915E-2,3.6436945665627718E-3,null,0,0,0,0,0,9.3594676798278695E-2,6.9249632511905093E-2,0,5.4395098246025194E-3,0.83171618086521371]
[null,5.861629998911741E-2,1.0173670016229153E-2,null,0,0,0,0,0,0.12836580277417697,0.12780062325420757,0,3.7225741600407654E-2,0.70660783237120783]
[null,7.9053331527340565E-2,1.6703646630048752E-2,null,0,0,0,0,0,0.16313693467397009,0.18635163832718027,0,6.9011957497236071E-2,0.58149946950161346]
[null,0.10062602680340949,2.3233622312545776E-2,null,0,0,0,0,0,0.19790807206555128,0.24490263155332007,0,0.10079817725670544,0.45639111912442293]
[null,0.12273701592400857,2.9763597995042801E-2,null,0,0,0,0,0,0.23267924695563999,0.30345360515594511,0,0.13258438416064555,0.33128276372776916]
[null,0.14514049281893635,3.6293573677539825E-2,null,0,0,0,0,0,0.2674503789832699,0.36200461570325337,0,0.16437058492678397,0.20617442038669251]
[null,0.16771928923702506,4.282354936003685E-2,null,0,0,0,0,0,0.30222153935579693,0.42055561804478808,0,0.19615676606346089,8.1066076535953824E-2]
[null,0.19223186934662276,4.9353525042533875E-2,null,0,0,0,0,0,0.30305339738173748,0.58553870710709655,0,0.1114078955111656,0]
[null,0.24049371311044762,5.5883500725030899E-2,null,0,0,0,0,0,4.1564829266310823E-5,0.99995843517073335,0,0,0]